Workbook

Sheet Introduction
C4: CBAM Vulnerability Monitor
D7: Introduction The CBAM Vulnerability Monitor (CBAM-VM) is a simple tool designed to estimate the vulnerability of a country to the European Union's Carbon Border Adjustment Mechanism (CBAM).
D14: Vulnerability Index The vulnerability index is constructed across five impact dimensions: - Dependence of GDP on exports - Export landscape diversification (dependence on CBAM exports) - Export market concentration (dependence on EU market) - Emission intensity of production systems - Carbon price signals (existence of a carbon pricing scheme in the exporting country)
D24: How to Use the Tool Navigate to the Dashboard tab to view results and visualizations across different sections: - Vulnerability Overview Displays three least vulnerable countries, three most vulnerable countries, and two custom samples selected by the user - Country Focus Presents detailed performance of a selected country across the five impact dimensions Provides data on exports segmented by commodity and destination - Emission Embodied in Trade Explores direct and indirect emissions from trade in CBAM commodities - Carbon Cost Estimation Provides mounting carbon cost of exports as carbon price raise for the selected country - Data and Specification Customizes the weights of the five impact dimensions in cells J129:K129 Selects custom samples in cell E140 Update relevant data in yellow cells in the following tabs: - Index Calculation Tab Add new regions (e.g., provinces, cities) for individual analysis by entering data Update data for GDP, exports, emission intensity, and carbon pricing for all countries - Trade Data Tab Update export data, world price of the commodities, and emission intensity data - Emissions Default Values Update emissions default factors as per EC - Sankey Tab Background calculations for creation of Sankey chart
B50: File Name: | C50: CBAM Vulnerability Monitor (CBAM-VM)
B51: Version: | C51: V1.1
B52: Location: | C52: The model is made available for download via the NewClimate Institute website tools section
B53: Info and useage rights: | C53: The model is provided as an open source tool to support research and policy making related to the implementation of carbon pricing in different jurisdictions and for different goods and services. The authors and NewClimate Institute are in no way liable for any errors or omissions in the model, and nor are they in any way liable for the accuracy or appropriateness of data included in the model, nor any use, manipulation or application of the model by a third party
B56: Contact: | C56: Mats Marquardt (m.marquardt@newclimate.org); Norah Zhang (n.zhang@newclimate.org)

Sheet Dashboard
C3: CBAM Vulnerability Monitor Tool - Dashboard
C5: The Carbon Border Adjustment Mechanism (CBAM) is a policy tool implemented by the European Union to impose carbon tariffs on imports from countries with less stringent climate policies. This mechanism aims to prevent "carbon leakage," where businesses might relocate production to countries with lower environmental standards. Exporting countries, particularly those heavily reliant on carbon-intensive industries, could be significantly impacted by CBAM as their goods may become less competitive in the European market. While the CBAM-VM Tool is a valuable resource for assessing how susceptible different countries are to the effects of CBAM across several key dimensions, it does not estimate the economic impacts directly. These impacts are more complex to gauge due to the intricate and interconnected nature of global trade. For a more detailed economic analysis, we offer CLIMTRADE, a partial equilibrium model designed to simulate the effects of trade policies like CBAM. The CBAM-VM Tool, however, remains useful for an initial assessment, helping to identify countries that may be particularly at risk from the implementation of CBAM.
C7: Vulnerability Overview
C33: Country Focus
D36: Thailand | F36: Dependence on Exports | G36: Dependence on CBAM Exports | H36: Dependence on EU Market | I36: Emission Intensity (kgCO2/USD) | J36: Weighted Carbon Price (USD/tCO2e) | M36: Iron & Steel | N36: Aluminum | O36: Cement | P36: Electricity | Q36: Fertilizer | R36: Hydrogen
D37: ="Global Rank: " & RANK(INDEX('Index Calculation'!$F$12:$F$116, MATCH(Dashboard!D36, 'Index Calculation'!$C$12:$C$116, 0)), 'Index Calculation'!$F$12:$F$116, 0) -> Global Rank: 36 | E37: Value | F37: =INDEX('Index Calculation'!$N$12:$N$116,MATCH(Dashboard!D36,'Index Calculation'!$C$12:$C$116,0),1) -> 0.572628351 | G37: =INDEX('Index Calculation'!$O$12:$O$116,MATCH(Dashboard!D36,'Index Calculation'!$C$12:$C$116,0),1) -> 0.03177606234 | H37: =INDEX('Index Calculation'!$P$12:$P$116,MATCH(Dashboard!D36,'Index Calculation'!$C$12:$C$116,0),1) -> 0.09463976797 | I37: =INDEX('Index Calculation'!$Q$12:$Q$116,MATCH(Dashboard!D36,'Index Calculation'!$C$12:$C$116,0),1) -> 0.24084675 | J37: =INDEX('Index Calculation'!$R$12:$R$116,MATCH(Dashboard!D36,'Index Calculation'!$C$12:$C$116,0),1) -> 0 | L37: EU27 | M37: =IFERROR(INDEX('Trade Data'!$G$31:$G$1184,MATCH(INDEX('Index Calculation'!$D$12:$D$116,MATCH(Dashboard!$D$36,'Index Calculation'!$C$12:$C$116,0),1)&Dashboard!$L37&M$36,'Trade Data'!$C$31:$C$1184,0),1),0) -> 418138.565 | N37: =IFERROR(INDEX('Trade Data'!$G$31:$G$1184,MATCH(INDEX('Index Calculation'!$D$12:$D$116,MATCH(Dashboard!$D$36,'Index Calculation'!$C$12:$C$116,0),1)&Dashboard!$L37&N$36,'Trade Data'!$C$31:$C$1184,0),1),0) -> 119738.34 | O37: =IFERROR(INDEX('Trade Data'!$G$31:$G$1184,MATCH(INDEX('Index Calculation'!$D$12:$D$116,MATCH(Dashboard!$D$36,'Index Calculation'!$C$12:$C$116,0),1)&Dashboard!$L37&O$36,'Trade Data'!$C$31:$C$1184,0),1),0) -> 0.668 | P37: =IFERROR(INDEX('Trade Data'!$G$31:$G$1184,MATCH(INDEX('Index Calculation'!$D$12:$D$116,MATCH(Dashboard!$D$36,'Index Calculation'!$C$12:$C$116,0),1)&Dashboard!$L37&P$36,'Trade Data'!$C$31:$C$1184,0),1),0) -> 0 | Q37: =IFERROR(INDEX('Trade Data'!$G$31:$G$1184,MATCH(INDEX('Index Calculation'!$D$12:$D$116,MATCH(Dashboard!$D$36,'Index Calculation'!$C$12:$C$116,0),1)&Dashboard!$L37&Q$36,'Trade Data'!$C$31:$C$1184,0),1),0) -> 10.558 | R37: =IFERROR(INDEX('Trade Data'!$G$31:$G$1184,MATCH(INDEX('Index Calculation'!$D$12:$D$116,MATCH(Dashboard!$D$36,'Index Calculation'!$C$12:$C$116,0),1)&Dashboard!$L37&R$36,'Trade Data'!$C$31:$C$1184,0),1),0) -> 0
D38: =VLOOKUP(INDEX('Index Calculation'!$F$12:$F$116,MATCH(Dashboard!D36,'Index Calculation'!$C$12:$C$116,0),1),Ranges!$D$48:$E$52,2,TRUE)&" vulnerability" -> Low vulnerability | E38: Index | F38: =INDEX('Index Calculation'!$H$12:$H$116,MATCH(Dashboard!D36,'Index Calculation'!$C$12:$C$116,0),1) -> 0.3349698933 | G38: =INDEX('Index Calculation'!$I$12:$I$116,MATCH(Dashboard!D36,'Index Calculation'!$C$12:$C$116,0),1) -> 0.06265966371 | H38: =INDEX('Index Calculation'!$J$12:JQ$116,MATCH(Dashboard!D36,'Index Calculation'!$C$12:$C$116,0),1) -> 0.1014922053 | I38: =INDEX('Index Calculation'!$K$12:$K$116,MATCH(Dashboard!D36,'Index Calculation'!$C$12:$C$116,0),1) -> 0.2298904836 | J38: =INDEX('Index Calculation'!$L$12:$L$116,MATCH(Dashboard!D36,'Index Calculation'!$C$12:$C$116,0),1) -> 1 | L38: Total | M38: =IFERROR(INDEX('Trade Data'!$G$31:$G$1184,MATCH(INDEX('Index Calculation'!$D$12:$D$116,MATCH(Dashboard!$D$36,'Index Calculation'!$C$12:$C$116,0),1)&Dashboard!$L38&M$36,'Trade Data'!$C$31:$C$1184,0),1),0) -> 5430553.076 | N38: =IFERROR(INDEX('Trade Data'!$G$31:$G$1184,MATCH(INDEX('Index Calculation'!$D$12:$D$116,MATCH(Dashboard!$D$36,'Index Calculation'!$C$12:$C$116,0),1)&Dashboard!$L38&N$36,'Trade Data'!$C$31:$C$1184,0),1),0) -> 2755560.238 | O38: =IFERROR(INDEX('Trade Data'!$G$31:$G$1184,MATCH(INDEX('Index Calculation'!$D$12:$D$116,MATCH(Dashboard!$D$36,'Index Calculation'!$C$12:$C$116,0),1)&Dashboard!$L38&O$36,'Trade Data'!$C$31:$C$1184,0),1),0) -> 385883.01 | P38: =IFERROR(INDEX('Trade Data'!$G$31:$G$1184,MATCH(INDEX('Index Calculation'!$D$12:$D$116,MATCH(Dashboard!$D$36,'Index Calculation'!$C$12:$C$116,0),1)&Dashboard!$L38&P$36,'Trade Data'!$C$31:$C$1184,0),1),0) -> 159406.063 | Q38: =IFERROR(INDEX('Trade Data'!$G$31:$G$1184,MATCH(INDEX('Index Calculation'!$D$12:$D$116,MATCH(Dashboard!$D$36,'Index Calculation'!$C$12:$C$116,0),1)&Dashboard!$L38&Q$36,'Trade Data'!$C$31:$C$1184,0),1),0) -> 287233.462 | R38: =IFERROR(INDEX('Trade Data'!$G$31:$G$1184,MATCH(INDEX('Index Calculation'!$D$12:$D$116,MATCH(Dashboard!$D$36,'Index Calculation'!$C$12:$C$116,0),1)&Dashboard!$L38&R$36,'Trade Data'!$C$31:$C$1184,0),1),0) -> 62.048
E40: Relative Importance vs. WORLD
D41: Dependence on Exports: | E41: =VLOOKUP(INDEX('Index Calculation'!$N$12:$N$116,MATCH(Dashboard!D36,'Index Calculation'!$C$12:$C$116,0),1),Ranges!$D$8:$E$12,2,TRUE) -> Very high
D42: Dependence on CBAM Exports: | E42: =VLOOKUP(INDEX('Index Calculation'!$O$12:$O$116,MATCH(Dashboard!D36,'Index Calculation'!$C$12:$C$116,0),1),Ranges!$D$16:$E$20,2, TRUE) -> High
D43: Dependence on EU Market: | E43: =VLOOKUP(INDEX('Index Calculation'!$P$12:$P$116,MATCH(Dashboard!D36,'Index Calculation'!$C$12:$C$116,0),1),Ranges!$D$24:$E$28,2, TRUE) -> Medium
D44: Emissions Intensity: | E44: =VLOOKUP(INDEX('Index Calculation'!$Q$12:$Q$116,MATCH(Dashboard!D36,'Index Calculation'!$C$12:$C$116,0),1),Ranges!$D$32:$E$36,2, TRUE) -> High
D45: Carbon Price Signal: | E45: =VLOOKUP(INDEX('Index Calculation'!$R$12:$R$116,MATCH(Dashboard!D36,'Index Calculation'!$C$12:$C$116,0),1),Ranges!$D$40:$E$44,2, TRUE) -> Very high
D49: Indonesia | F49: Dependence on Exports | G49: Dependence on CBAM Exports | H49: Dependence on EU Market | I49: Emission Intensity (kgCO2/USD) | J49: Weighted Carbon Price (USD/tCO2e) | M49: Iron & Steel | N49: Aluminum | O49: Cement | P49: Electricity | Q49: Fertilizer | R49: Hydrogen
D50: ="Global Rank: " & RANK(INDEX('Index Calculation'!$F$12:$F$116, MATCH(Dashboard!D49, 'Index Calculation'!$C$12:$C$116, 0)), 'Index Calculation'!$F$12:$F$116, 0) -> Global Rank: 46 | E50: Value | F50: =INDEX('Index Calculation'!$N$12:$N$116,MATCH(Dashboard!D49,'Index Calculation'!$C$12:$C$116,0),1) -> 0.2213511818 | G50: =INDEX('Index Calculation'!$O$12:$O$116,MATCH(Dashboard!D49,'Index Calculation'!$C$12:$C$116,0),1) -> 0.1138623839 | H50: =INDEX('Index Calculation'!$P$12:$P$116,MATCH(Dashboard!D49,'Index Calculation'!$C$12:$C$116,0),1) -> 0.07944545606 | I50: =INDEX('Index Calculation'!$Q$12:$Q$116,MATCH(Dashboard!D49,'Index Calculation'!$C$12:$C$116,0),1) -> 0.2082468 | J50: =INDEX('Index Calculation'!$R$12:$R$116,MATCH(Dashboard!D49,'Index Calculation'!$C$12:$C$116,0),1) -> 0 | L50: EU27 | M50: =IFERROR(INDEX('Trade Data'!$G$31:$G$1184,MATCH(INDEX('Index Calculation'!$D$12:$D$116,MATCH(Dashboard!$D$49,'Index Calculation'!$C$12:$C$116,0),1)&Dashboard!$L50&M$36,'Trade Data'!$C$31:$C$1184,0),1),0) -> 1180180.303 | N50: =IFERROR(INDEX('Trade Data'!$G$31:$G$1184,MATCH(INDEX('Index Calculation'!$D$12:$D$116,MATCH(Dashboard!$D$49,'Index Calculation'!$C$12:$C$116,0),1)&Dashboard!$L50&N$36,'Trade Data'!$C$31:$C$1184,0),1),0) -> 160156.84 | O50: =IFERROR(INDEX('Trade Data'!$G$31:$G$1184,MATCH(INDEX('Index Calculation'!$D$12:$D$116,MATCH(Dashboard!$D$49,'Index Calculation'!$C$12:$C$116,0),1)&Dashboard!$L50&O$36,'Trade Data'!$C$31:$C$1184,0),1),0) -> 0.028 | P50: =IFERROR(INDEX('Trade Data'!$G$31:$G$1184,MATCH(INDEX('Index Calculation'!$D$12:$D$116,MATCH(Dashboard!$D$49,'Index Calculation'!$C$12:$C$116,0),1)&Dashboard!$L50&P$36,'Trade Data'!$C$31:$C$1184,0),1),0) -> 0 | Q50: =IFERROR(INDEX('Trade Data'!$G$31:$G$1184,MATCH(INDEX('Index Calculation'!$D$12:$D$116,MATCH(Dashboard!$D$49,'Index Calculation'!$C$12:$C$116,0),1)&Dashboard!$L50&Q$36,'Trade Data'!$C$31:$C$1184,0),1),0) -> 156122.282 | R50: =IFERROR(INDEX('Trade Data'!$G$31:$G$1184,MATCH(INDEX('Index Calculation'!$D$12:$D$116,MATCH(Dashboard!$D$49,'Index Calculation'!$C$12:$C$116,0),1)&Dashboard!$L50&R$36,'Trade Data'!$C$31:$C$1184,0),1),0) -> 0
D51: =VLOOKUP(INDEX('Index Calculation'!$F$12:$F$116,MATCH(Dashboard!D49,'Index Calculation'!$C$12:$C$116,0),1),Ranges!$D$48:$E$52,2,TRUE)&" vulnerability" -> Low vulnerability | E51: Index | F51: =INDEX('Index Calculation'!$H$12:$H$116,MATCH(Dashboard!D49,'Index Calculation'!$C$12:$C$116,0),1) -> 0.1279350972 | G51: =INDEX('Index Calculation'!$I$12:$I$116,MATCH(Dashboard!D49,'Index Calculation'!$C$12:$C$116,0),1) -> 0.2245268342 | H51: =INDEX('Index Calculation'!$J$12:JQ$116,MATCH(Dashboard!D49,'Index Calculation'!$C$12:$C$116,0),1) -> 0.08501877886 | I51: =INDEX('Index Calculation'!$K$12:$K$116,MATCH(Dashboard!D49,'Index Calculation'!$C$12:$C$116,0),1) -> 0.1883823212 | J51: =INDEX('Index Calculation'!$L$12:$L$116,MATCH(Dashboard!D49,'Index Calculation'!$C$12:$C$116,0),1) -> 1 | L51: Total | M51: =IFERROR(INDEX('Trade Data'!$G$31:$G$1184,MATCH(INDEX('Index Calculation'!$D$12:$D$116,MATCH(Dashboard!$D$49,'Index Calculation'!$C$12:$C$116,0),1)&Dashboard!$L51&M$36,'Trade Data'!$C$31:$C$1184,0),1),0) -> 29140589.14 | N51: =IFERROR(INDEX('Trade Data'!$G$31:$G$1184,MATCH(INDEX('Index Calculation'!$D$12:$D$116,MATCH(Dashboard!$D$49,'Index Calculation'!$C$12:$C$116,0),1)&Dashboard!$L51&N$36,'Trade Data'!$C$31:$C$1184,0),1),0) -> 859109.178 | O51: =IFERROR(INDEX('Trade Data'!$G$31:$G$1184,MATCH(INDEX('Index Calculation'!$D$12:$D$116,MATCH(Dashboard!$D$49,'Index Calculation'!$C$12:$C$116,0),1)&Dashboard!$L51&O$36,'Trade Data'!$C$31:$C$1184,0),1),0) -> 389038.922 | P51: =IFERROR(INDEX('Trade Data'!$G$31:$G$1184,MATCH(INDEX('Index Calculation'!$D$12:$D$116,MATCH(Dashboard!$D$49,'Index Calculation'!$C$12:$C$116,0),1)&Dashboard!$L51&P$36,'Trade Data'!$C$31:$C$1184,0),1),0) -> 0 | Q51: =IFERROR(INDEX('Trade Data'!$G$31:$G$1184,MATCH(INDEX('Index Calculation'!$D$12:$D$116,MATCH(Dashboard!$D$49,'Index Calculation'!$C$12:$C$116,0),1)&Dashboard!$L51&Q$36,'Trade Data'!$C$31:$C$1184,0),1),0) -> 2856561.416 | R51: =IFERROR(INDEX('Trade Data'!$G$31:$G$1184,MATCH(INDEX('Index Calculation'!$D$12:$D$116,MATCH(Dashboard!$D$49,'Index Calculation'!$C$12:$C$116,0),1)&Dashboard!$L51&R$36,'Trade Data'!$C$31:$C$1184,0),1),0) -> 136.639
E53: Relative Importance vs. WORLD
D54: Dependence on Exports: | E54: =VLOOKUP(INDEX('Index Calculation'!$N$12:$N$116,MATCH(Dashboard!D49,'Index Calculation'!$C$12:$C$116,0),1),Ranges!$D$8:$E$12,2,TRUE) -> Medium
D55: Dependence on CBAM Exports: | E55: =VLOOKUP(INDEX('Index Calculation'!$O$12:$O$116,MATCH(Dashboard!D49,'Index Calculation'!$C$12:$C$116,0),1),Ranges!$D$16:$E$20,2, TRUE) -> Very high
D56: Dependence on EU Market: | E56: =VLOOKUP(INDEX('Index Calculation'!$P$12:$P$116,MATCH(Dashboard!D49,'Index Calculation'!$C$12:$C$116,0),1),Ranges!$D$24:$E$28,2, TRUE) -> Medium
D57: Emissions Intensity: | E57: =VLOOKUP(INDEX('Index Calculation'!$Q$12:$Q$116,MATCH(Dashboard!D49,'Index Calculation'!$C$12:$C$116,0),1),Ranges!$D$32:$E$36,2, TRUE) -> Medium
D58: Carbon Price Signal: | E58: =VLOOKUP(INDEX('Index Calculation'!$R$12:$R$116,MATCH(Dashboard!D49,'Index Calculation'!$C$12:$C$116,0),1),Ranges!$D$40:$E$44,2, TRUE) -> Very high
D62: Ukraine | F62: Dependence on Exports | G62: Dependence on CBAM Exports | H62: Dependence on EU Market | I62: Emission Intensity (kgCO2/USD) | J62: Weighted Carbon Price (USD/tCO2e) | M62: Iron & Steel | N62: Aluminum | O62: Cement | P62: Electricity | Q62: Fertilizer | R62: Hydrogen
D63: ="Global Rank: " & RANK(INDEX('Index Calculation'!$F$12:$F$116, MATCH(Dashboard!D62, 'Index Calculation'!$C$12:$C$116, 0)), 'Index Calculation'!$F$12:$F$116, 0) -> Global Rank: 4 | E63: Value | F63: =INDEX('Index Calculation'!$N$12:$N$116,MATCH(Dashboard!D62,'Index Calculation'!$C$12:$C$116,0),1) -> 0.2743584918 | G63: =INDEX('Index Calculation'!$O$12:$O$116,MATCH(Dashboard!D62,'Index Calculation'!$C$12:$C$116,0),1) -> 0.1673228607 | H63: =INDEX('Index Calculation'!$P$12:$P$116,MATCH(Dashboard!D62,'Index Calculation'!$C$12:$C$116,0),1) -> 0.6405843301 | I63: =INDEX('Index Calculation'!$Q$12:$Q$116,MATCH(Dashboard!D62,'Index Calculation'!$C$12:$C$116,0),1) -> 0.45688295 | J63: =INDEX('Index Calculation'!$R$12:$R$116,MATCH(Dashboard!D62,'Index Calculation'!$C$12:$C$116,0),1) -> 0.3097017 | L63: EU27 | M63: =IFERROR(INDEX('Trade Data'!$G$31:$G$1184,MATCH(INDEX('Index Calculation'!$D$12:$D$116,MATCH(Dashboard!$D$62,'Index Calculation'!$C$12:$C$116,0),1)&Dashboard!$L63&M$36,'Trade Data'!$C$31:$C$1184,0),1),0) -> 4156532.759 | N63: =IFERROR(INDEX('Trade Data'!$G$31:$G$1184,MATCH(INDEX('Index Calculation'!$D$12:$D$116,MATCH(Dashboard!$D$62,'Index Calculation'!$C$12:$C$116,0),1)&Dashboard!$L63&N$36,'Trade Data'!$C$31:$C$1184,0),1),0) -> 71084.689 | O63: =IFERROR(INDEX('Trade Data'!$G$31:$G$1184,MATCH(INDEX('Index Calculation'!$D$12:$D$116,MATCH(Dashboard!$D$62,'Index Calculation'!$C$12:$C$116,0),1)&Dashboard!$L63&O$36,'Trade Data'!$C$31:$C$1184,0),1),0) -> 66990.646 | P63: =IFERROR(INDEX('Trade Data'!$G$31:$G$1184,MATCH(INDEX('Index Calculation'!$D$12:$D$116,MATCH(Dashboard!$D$62,'Index Calculation'!$C$12:$C$116,0),1)&Dashboard!$L63&P$36,'Trade Data'!$C$31:$C$1184,0),1),0) -> 534866.016 | Q63: =IFERROR(INDEX('Trade Data'!$G$31:$G$1184,MATCH(INDEX('Index Calculation'!$D$12:$D$116,MATCH(Dashboard!$D$62,'Index Calculation'!$C$12:$C$116,0),1)&Dashboard!$L63&Q$36,'Trade Data'!$C$31:$C$1184,0),1),0) -> 161798.766 | R63: =IFERROR(INDEX('Trade Data'!$G$31:$G$1184,MATCH(INDEX('Index Calculation'!$D$12:$D$116,MATCH(Dashboard!$D$62,'Index Calculation'!$C$12:$C$116,0),1)&Dashboard!$L63&R$36,'Trade Data'!$C$31:$C$1184,0),1),0) -> 0
D64: =VLOOKUP(INDEX('Index Calculation'!$F$12:$F$116,MATCH(Dashboard!D62,'Index Calculation'!$C$12:$C$116,0),1),Ranges!$D$48:$E$52,2,TRUE)&" vulnerability" -> Medium vulnerability | E64: Index | F64: =INDEX('Index Calculation'!$H$12:$H$116,MATCH(Dashboard!D62,'Index Calculation'!$C$12:$C$116,0),1) -> 0.1591764034 | G64: =INDEX('Index Calculation'!$I$12:$I$116,MATCH(Dashboard!D62,'Index Calculation'!$C$12:$C$116,0),1) -> 0.3299462996 | H64: =INDEX('Index Calculation'!$J$12:JQ$116,MATCH(Dashboard!D62,'Index Calculation'!$C$12:$C$116,0),1) -> 0.6933964413 | I64: =INDEX('Index Calculation'!$K$12:$K$116,MATCH(Dashboard!D62,'Index Calculation'!$C$12:$C$116,0),1) -> 0.5049604049 | J64: =INDEX('Index Calculation'!$L$12:$L$116,MATCH(Dashboard!D62,'Index Calculation'!$C$12:$C$116,0),1) -> 0.9883292235 | L64: Total | M64: =IFERROR(INDEX('Trade Data'!$G$31:$G$1184,MATCH(INDEX('Index Calculation'!$D$12:$D$116,MATCH(Dashboard!$D$62,'Index Calculation'!$C$12:$C$116,0),1)&Dashboard!$L64&M$36,'Trade Data'!$C$31:$C$1184,0),1),0) -> 6496653.017 | N64: =IFERROR(INDEX('Trade Data'!$G$31:$G$1184,MATCH(INDEX('Index Calculation'!$D$12:$D$116,MATCH(Dashboard!$D$62,'Index Calculation'!$C$12:$C$116,0),1)&Dashboard!$L64&N$36,'Trade Data'!$C$31:$C$1184,0),1),0) -> 92969.794 | O64: =IFERROR(INDEX('Trade Data'!$G$31:$G$1184,MATCH(INDEX('Index Calculation'!$D$12:$D$116,MATCH(Dashboard!$D$62,'Index Calculation'!$C$12:$C$116,0),1)&Dashboard!$L64&O$36,'Trade Data'!$C$31:$C$1184,0),1),0) -> 86203.658 | P64: =IFERROR(INDEX('Trade Data'!$G$31:$G$1184,MATCH(INDEX('Index Calculation'!$D$12:$D$116,MATCH(Dashboard!$D$62,'Index Calculation'!$C$12:$C$116,0),1)&Dashboard!$L64&P$36,'Trade Data'!$C$31:$C$1184,0),1),0) -> 589179.438 | Q64: =IFERROR(INDEX('Trade Data'!$G$31:$G$1184,MATCH(INDEX('Index Calculation'!$D$12:$D$116,MATCH(Dashboard!$D$62,'Index Calculation'!$C$12:$C$116,0),1)&Dashboard!$L64&Q$36,'Trade Data'!$C$31:$C$1184,0),1),0) -> 171356.76 | R64: =IFERROR(INDEX('Trade Data'!$G$31:$G$1184,MATCH(INDEX('Index Calculation'!$D$12:$D$116,MATCH(Dashboard!$D$62,'Index Calculation'!$C$12:$C$116,0),1)&Dashboard!$L64&R$36,'Trade Data'!$C$31:$C$1184,0),1),0) -> 0.796
E66: Relative Importance vs. WORLD
D67: Dependence on Exports: | E67: =VLOOKUP(INDEX('Index Calculation'!$N$12:$N$116,MATCH(Dashboard!D62,'Index Calculation'!$C$12:$C$116,0),1),Ranges!$D$8:$E$12,2,TRUE) -> High
D68: Dependence on CBAM Exports: | E68: =VLOOKUP(INDEX('Index Calculation'!$O$12:$O$116,MATCH(Dashboard!D62,'Index Calculation'!$C$12:$C$116,0),1),Ranges!$D$16:$E$20,2, TRUE) -> Very high
D69: Dependence on EU Market: | E69: =VLOOKUP(INDEX('Index Calculation'!$P$12:$P$116,MATCH(Dashboard!D62,'Index Calculation'!$C$12:$C$116,0),1),Ranges!$D$24:$E$28,2, TRUE) -> Very high
D70: Emissions Intensity: | E70: =VLOOKUP(INDEX('Index Calculation'!$Q$12:$Q$116,MATCH(Dashboard!D62,'Index Calculation'!$C$12:$C$116,0),1),Ranges!$D$32:$E$36,2, TRUE) -> Very high
D71: Carbon Price Signal: | E71: =VLOOKUP(INDEX('Index Calculation'!$R$12:$R$116,MATCH(Dashboard!D62,'Index Calculation'!$C$12:$C$116,0),1),Ranges!$D$40:$E$44,2, TRUE) -> Very high
C74: Emissions Embodied in Trade
D77: Indonesia | E77: Emissions scope: | F77: Total Emissions (tCO2)
D79: =D77&": Emissions Embodied in Exports by CBAM Commodity" -> Indonesia: Emissions Embodied in Exports by CBAM Commodity | L79: =D77&": Direct vs. Indirect Emissions from Total Exports of CBAM Commodities" -> Indonesia: Direct vs. Indirect Emissions from Total Exports of CBAM Commodities
C100: Carbon Cost Estimation
D103: Indonesia | E103: Emissions scope: | F103: Direct Emissions (tCO2) | G103: CBAM phase-in factor: | H103: 2030: 48.5%
C126: Data and Specification
F129: Index Weights | G129: 1 | H129: 1 | I129: 1 | J129: 1 | K129: 0.5
D130: Rank | E130: Country/Region | F130: Vulnerability Index | G130: Dependence on Exports | H130: Dependence on CBAM Exports | I130: Dependence on EU Market | J130: Emission Intensity | K130: Carbon Price Signal
D131: Least vulnerable | E131: =INDEX('Index Calculation'!$C$12:$C$116,MATCH(SMALL('Index Calculation'!$F$12:$F$116,1),'Index Calculation'!$F$12:$F$116,0),1) -> New Zealand | F131: =_xlfn._xlws.FILTER('Index Calculation'!F:F,'Index Calculation'!$C:$C=Dashboard!E131) -> 0.08059646199 | G131: =_xlfn._xlws.FILTER('Index Calculation'!H:H,'Index Calculation'!$C:$C=Dashboard!$E131) -> 0.1029653091 | H131: =_xlfn._xlws.FILTER('Index Calculation'!I:I,'Index Calculation'!$C:$C=Dashboard!$E131) -> 0.05115105931 | I131: =_xlfn._xlws.FILTER('Index Calculation'!J:J,'Index Calculation'!$C:$C=Dashboard!$E131) -> 0.0808837597 | J131: =_xlfn._xlws.FILTER('Index Calculation'!K:K,'Index Calculation'!$C:$C=Dashboard!$E131) -> 0.1276839509 | K131: =_xlfn._xlws.FILTER('Index Calculation'!L:L,'Index Calculation'!$C:$C=Dashboard!$E131) -> 0
D132: Second least vulnerable | E132: =INDEX('Index Calculation'!$C$12:$C$116,MATCH(SMALL('Index Calculation'!$F$12:$F$116,2),'Index Calculation'!$F$12:$F$116,0),1) -> Tanzania | F132: =_xlfn._xlws.FILTER('Index Calculation'!F:F,'Index Calculation'!$C:$C=Dashboard!E132) -> 0.1612522656 | G132: =_xlfn._xlws.FILTER('Index Calculation'!H:H,'Index Calculation'!$C:$C=Dashboard!$E132) -> 0.04965033106 | H132: =_xlfn._xlws.FILTER('Index Calculation'!I:I,'Index Calculation'!$C:$C=Dashboard!$E132) -> 0.05799469418 | I132: =_xlfn._xlws.FILTER('Index Calculation'!J:J,'Index Calculation'!$C:$C=Dashboard!$E132) -> 0.09474677803 | J132: =_xlfn._xlws.FILTER('Index Calculation'!K:K,'Index Calculation'!$C:$C=Dashboard!$E132) -> 0.02324339193 | K132: =_xlfn._xlws.FILTER('Index Calculation'!L:L,'Index Calculation'!$C:$C=Dashboard!$E132) -> 1
D133: Third least vulnerable | E133: =INDEX('Index Calculation'!$C$12:$C$116,MATCH(SMALL('Index Calculation'!$F$12:$F$116,3),'Index Calculation'!$F$12:$F$116,0),1) -> Macao | F133: =_xlfn._xlws.FILTER('Index Calculation'!F:F,'Index Calculation'!$C:$C=Dashboard!E133) -> 0.1681292407 | G133: =_xlfn._xlws.FILTER('Index Calculation'!H:H,'Index Calculation'!$C:$C=Dashboard!$E133) -> 0.03040168628 | H133: =_xlfn._xlws.FILTER('Index Calculation'!I:I,'Index Calculation'!$C:$C=Dashboard!$E133) -> 0 | I133: =_xlfn._xlws.FILTER('Index Calculation'!J:J,'Index Calculation'!$C:$C=Dashboard!$E133) -> 0.0002582634425 | J133: =_xlfn._xlws.FILTER('Index Calculation'!K:K,'Index Calculation'!$C:$C=Dashboard!$E133) -> 0.2259216333 | K133: =_xlfn._xlws.FILTER('Index Calculation'!L:L,'Index Calculation'!$C:$C=Dashboard!$E133) -> 1
D135: Third most vulnearble | E135: =INDEX('Index Calculation'!$C$12:$C$116,MATCH(LARGE('Index Calculation'!$F$12:$F$116,3),'Index Calculation'!$F$12:$F$116,0),1) -> North Macedonia | F135: =_xlfn._xlws.FILTER('Index Calculation'!F:F,'Index Calculation'!C:C=Dashboard!E135) -> 0.5015237675 | G135: =_xlfn._xlws.FILTER('Index Calculation'!H:H,'Index Calculation'!$C:$C=Dashboard!$E135) -> 0.3727005894 | H135: =_xlfn._xlws.FILTER('Index Calculation'!I:I,'Index Calculation'!$C:$C=Dashboard!$E135) -> 0.2559016402 | I135: =_xlfn._xlws.FILTER('Index Calculation'!J:J,'Index Calculation'!$C:$C=Dashboard!$E135) -> 0.8691906423 | J135: =_xlfn._xlws.FILTER('Index Calculation'!K:K,'Index Calculation'!$C:$C=Dashboard!$E135) -> 0.2590640819 | K135: =_xlfn._xlws.FILTER('Index Calculation'!L:L,'Index Calculation'!$C:$C=Dashboard!$E135) -> 1
D136: Second most vulnerable | E136: =INDEX('Index Calculation'!$C$12:$C$116,MATCH(LARGE('Index Calculation'!$F$12:$F$116,2),'Index Calculation'!$F$12:$F$116,0),1) -> Bosnia and Herzegovina | F136: =_xlfn._xlws.FILTER('Index Calculation'!F:F,'Index Calculation'!C:C=Dashboard!E136) -> 0.5448870783 | G136: =_xlfn._xlws.FILTER('Index Calculation'!H:H,'Index Calculation'!$C:$C=Dashboard!$E136) -> 0.2299665278 | H136: =_xlfn._xlws.FILTER('Index Calculation'!I:I,'Index Calculation'!$C:$C=Dashboard!$E136) -> 0.4636571904 | I136: =_xlfn._xlws.FILTER('Index Calculation'!J:J,'Index Calculation'!$C:$C=Dashboard!$E136) -> 0.8012708522 | J136: =_xlfn._xlws.FILTER('Index Calculation'!K:K,'Index Calculation'!$C:$C=Dashboard!$E136) -> 0.4570972821 | K136: =_xlfn._xlws.FILTER('Index Calculation'!L:L,'Index Calculation'!$C:$C=Dashboard!$E136) -> 1
D137: Most vulnerable | E137: =INDEX('Index Calculation'!$C$12:$C$116,MATCH(LARGE('Index Calculation'!$F$12:$F$116,1),'Index Calculation'!$F$12:$F$116,0),1) -> Bahrain | F137: =_xlfn._xlws.FILTER('Index Calculation'!F:F,'Index Calculation'!C:C=Dashboard!E137) -> 0.5691470777 | G137: =_xlfn._xlws.FILTER('Index Calculation'!H:H,'Index Calculation'!$C:$C=Dashboard!$E137) -> 0.2929682419 | H137: =_xlfn._xlws.FILTER('Index Calculation'!I:I,'Index Calculation'!$C:$C=Dashboard!$E137) -> 0.925513044 | I137: =_xlfn._xlws.FILTER('Index Calculation'!J:J,'Index Calculation'!$C:$C=Dashboard!$E137) -> 0.1005995535 | J137: =_xlfn._xlws.FILTER('Index Calculation'!K:K,'Index Calculation'!$C:$C=Dashboard!$E137) -> 0.7420810103 | K137: =_xlfn._xlws.FILTER('Index Calculation'!L:L,'Index Calculation'!$C:$C=Dashboard!$E137) -> 1
D139: Wildcard 1 | E139: Indonesia | F139: =_xlfn._xlws.FILTER('Index Calculation'!F:F,'Index Calculation'!C:C=Dashboard!E139) -> 0.2501917848 | G139: =_xlfn._xlws.FILTER('Index Calculation'!H:H,'Index Calculation'!$C:$C=Dashboard!$E139) -> 0.1279350972 | H139: =_xlfn._xlws.FILTER('Index Calculation'!I:I,'Index Calculation'!$C:$C=Dashboard!$E139) -> 0.2245268342 | I139: =_xlfn._xlws.FILTER('Index Calculation'!J:J,'Index Calculation'!$C:$C=Dashboard!$E139) -> 0.08501877886 | J139: =_xlfn._xlws.FILTER('Index Calculation'!K:K,'Index Calculation'!$C:$C=Dashboard!$E139) -> 0.1883823212 | K139: =_xlfn._xlws.FILTER('Index Calculation'!L:L,'Index Calculation'!$C:$C=Dashboard!$E139) -> 1
D140: Wildcard 2 | E140: South Africa | F140: =_xlfn._xlws.FILTER('Index Calculation'!F:F,'Index Calculation'!C:C=Dashboard!E140) -> 0.3713251105 | G140: =_xlfn._xlws.FILTER('Index Calculation'!H:H,'Index Calculation'!$C:$C=Dashboard!$E140) -> 0.1743398659 | H140: =_xlfn._xlws.FILTER('Index Calculation'!I:I,'Index Calculation'!$C:$C=Dashboard!$E140) -> 0.2341314942 | I140: =_xlfn._xlws.FILTER('Index Calculation'!J:J,'Index Calculation'!$C:$C=Dashboard!$E140) -> 0.2817508701 | J140: =_xlfn._xlws.FILTER('Index Calculation'!K:K,'Index Calculation'!$C:$C=Dashboard!$E140) -> 0.6342503167 | K140: =_xlfn._xlws.FILTER('Index Calculation'!L:L,'Index Calculation'!$C:$C=Dashboard!$E140) -> 0.6929809012

Sheet Index Calculation
C2: Index calculation
C4: This tab calculates the vulnerability indices. Data input is required in the yellow cells. Data sources are provided.
F7: Sub-index Average | H7: =AVERAGE(H12:H116) -> 0.1781499309 | I7: =AVERAGE(I12:I116) -> 0.1013115706 | J7: =AVERAGE(J12:J116) -> 0.2359876803 | K7: 0.220932302 | L7: 0.9604652511
F9: Averaged Value | H9: Normalised sub-index | N9: Pre-normalised sub-index | T9: Data input (2022)
C10: Country/Region | D10: ISO3 | F10: Vulnerability Index | H10: Dependence on Exports | I10: Dependence on CBAM Exports | J10: Dependence on EU Market | K10: Emission Intensity | L10: Carbon Price Signal | N10: Dependence on Exports | O10: Dependence on CBAM Exports | P10: Dependence on EU Market | Q10: Emission Intensity | R10: Carbon Price Signal | T10: GDP, 2022 (current kUSD) | U10: Total exports, 2022 (kUSD) | V10: Total export to EU27, 2022 (kUSD) | W10: Total exports of CBAM commodities, 2022 (kUSD) | X10: Total exports of CBAM commodities to EU27, 2022 (kUSD) | Y10: Emissions intensity, 2022 (kgCO2/USD) | Z10: Emissions-weighted carbon price for carbon tax, 2021 (USD/tCO2e) | AA10: Emissions-weighted carbon price for ETS, 2021 (USD/tCO2e)
T11: https://data.worldbank.org/indicator/NY.GDP.MKTP.CD | U11: https://wits.worldbank.org/ | V11: https://wits.worldbank.org/ | W11: https://wits.worldbank.org/ | X11: https://wits.worldbank.org/ | Y11: https://ourworldindata.org/grapher/co2-intensity?tab=table | Z11: https://ourworldindata.org/carbon-pricing | AA11: https://ourworldindata.org/carbon-pricing
C12: Angola | D12: AGO | F12: =SUMPRODUCT(H12:L12,Dashboard!$G$129:$K$129)/SUM(Dashboard!$G$129:$K$129) -> 0.2515845084 | H12: =IFERROR(((N12-MIN(N$12:N$116))/(MAX(N$12:N$116)-MIN(N$12:N$116))),"") -> 0.2804269765 | I12: =IFERROR(((O12-MIN(O$12:O$116))/(MAX(O$12:O$116)-MIN(O$12:O$116))),"") -> 0.002760339182 | J12: =IFERROR(((P12-MIN(P$12:P$116))/(MAX(P$12:P$116)-MIN(P$12:P$116))),"") -> 0.2964919936 | K12: =IFERROR(((Q12-MIN(Q$12:Q$116))/(MAX(Q$12:Q$116)-MIN(Q$12:Q$116))),"") -> 0.05245097863 | L12: =IFERROR(1-((R12-MIN(R$12:R$116))/(MAX(R$12:R$116)-MIN(R$12:R$116))),"") -> 1 | N12: =IFERROR(U12/T12,"") -> 0.4800850599 | O12: =IFERROR(W12/U12,"") -> 0.001399827333 | P12: =IFERROR(V12/U12,"") -> 0.2744983795 | Q12: =IFERROR(Y12,"") -> 0.10148816 | R12: =IFERROR(MAX(Z12,AA12),"") -> 0 | T12: 104399746.9 | U12: 50120758.72 | V12: 13758067.05 | W12: 70160.408 | X12: 3470.161 | Y12: 0.10148816 | Z12: 0 | AA12: 0 | AC12: =C12 -> Angola | AD12: =SUM(H12:K12/4) -> 0.158032572
C13: Albania | D13: ALB | F13: =SUMPRODUCT(H13:L13,Dashboard!$G$129:$K$129)/SUM(Dashboard!$G$129:$K$129) -> 0.3596114196 | H13: =IFERROR(((N13-MIN(N$12:N$116))/(MAX(N$12:N$116)-MIN(N$12:N$116))),"") -> 0.1316450195 | I13: 0.1015272172 | J13: =IFERROR(((P13-MIN(P$12:P$116))/(MAX(P$12:P$116)-MIN(P$12:P$116))),"") -> 0.7874369832 | K13: 0.09764216851 | L13: =IFERROR(1-((R13-MIN(R$12:R$116))/(MAX(R$12:R$116)-MIN(R$12:R$116))),"") -> 1 | N13: =IFERROR(U13/T13,"") -> 0.227645829 | O13: =IFERROR(W13/U13,"") -> 0.05148663415 | P13: =IFERROR(V13/U13,"") -> 0.7273228925 | Q13: =IFERROR(Y13,"") -> 0.13698071 | R13: =IFERROR(MAX(Z13,AA13),"") -> 0 | T13: 18916378.86 | U13: 4306234.747 | V13: 3132023.112 | W13: 221713.533 | X13: 204710.156 | Y13: 0.13698071 | Z13: 0 | AA13: 0 | AC13: =C13 -> Albania | AD13: =SUM(H13:K13/4) -> 0.2795628471
C14: Andorra | D14: AND | F14: =SUMPRODUCT(H14:L14,Dashboard!$G$129:$K$129)/SUM(Dashboard!$G$129:$K$129) -> 0.3988062832 | H14: 0.06479626186 | I14: 0.003910379292 | J14: 1 | K14: 0.2259216333 | L14: 1 | N14: =IFERROR(U14/T14,"") -> 0.1142231446 | O14: =IFERROR(W14/U14,"") -> 0.001983037393 | P14: 0.923380998 | Q14: =IFERROR(Y14,"") -> 0.2377296686 | R14: =IFERROR(MAX(Z14,AA14),"") -> 0 | T14: 3380602.043 | U14: 386142.996 | V14: 356557.105 | W14: 765.736 | X14: 609.388 | Y14: 0.2377296686 | Z14: 0 | AA14: 0 | AC14: Andorra | AD14: =SUM(H14:K14/4) -> 0.3236570686
C15: United Arab Emirates | D15: ARE | F15: =SUMPRODUCT(H15:L15,Dashboard!$G$129:$K$129)/SUM(Dashboard!$G$129:$K$129) -> 0.3293842869 | H15: 0.5967993922 | I15: 0.05211490494 | J15: 0.01180191301 | K15: 0.3215130808 | L15: 1 | N15: 1.016876018 | O15: 0.02642858851 | P15: 0.01191367078 | Q15: 0.3128059 | R15: 0 | T15: 507063968.3 | U15: 515621189 | V15: 6142941.096 | W15: 13627140.23 | X15: 2365130.078 | Y15: 0.3128059 | Z15: 0 | AA15: 0 | AC15: United Arab Emirates | AD15: =SUM(H15:K15/4) -> 0.2455573227
C16: Argentina | D16: ARG | F16: =SUMPRODUCT(H16:L16,Dashboard!$G$129:$K$129)/SUM(Dashboard!$G$129:$K$129) -> 0.2004926332 | H16: 0.08006984185 | I16: 0.006088937071 | J16: 0.1401943705 | K16: 0.2104711401 | L16: 0.9307851198 | N16: 0.1401379186 | O16: 0.003087830871 | P16: 0.1303368206 | Q16: 0.22559506 | R16: 1.8367215 | T16: 631133384.4 | U16: 88445718.84 | V16: 11527733.79 | W16: 273105.421 | X16: 7868.834 | Y16: 0.22559506 | Z16: 1.8367215 | AA16: 0 | AC16: Argentina | AD16: =SUM(H16:K16/4) -> 0.1092060724
C17: Armenia | D17: ARM | F17: =SUMPRODUCT(H17:L17,Dashboard!$G$129:$K$129)/SUM(Dashboard!$G$129:$K$129) -> 0.2250268169 | H17: 0.1523823527 | I17: 0.09945956556 | J17: 0.1321511953 | K17: 0.1286275627 | L17: 1 | N17: 0.2628309855 | O17: 0.05043808359 | P17: 0.1229181749 | Q17: 0.16131622 | R17: 0 | T17: 19513474.65 | U17: 5128745.773 | V17: 630416.07 | W17: 258684.108 | X17: 131867.24 | Y17: 0.16131622 | Z17: 0 | AA17: 0 | AC17: Armenia | AD17: =SUM(H17:K17/4) -> 0.1281551691
C18: Australia | D18: AUS | F18: =SUMPRODUCT(H18:L18,Dashboard!$G$129:$K$129)/SUM(Dashboard!$G$129:$K$129) -> 0.2253719472 | H18: 0.1402990669 | I18: 0.03110027198 | J18: 0.04798202125 | K18: 0.2947924021 | L18: 1 | N18: 0.2423292027 | O18: 0.01577161642 | P18: 0.04528449692 | Q18: 0.29181984 | R18: 0 | T18: 1692956647 | U18: 410252834.5 | V18: 18578093.22 | W18: 6470350.342 | X18: 368681.151 | Y18: 0.29181984 | Z18: 0 | AA18: 0 | AC18: Australia | AD18: =SUM(H18:K18/4) -> 0.1285434406
C19: Azerbaijan | D19: AZE | F19: =SUMPRODUCT(H19:L19,Dashboard!$G$129:$K$129)/SUM(Dashboard!$G$129:$K$129) -> 0.3889368664 | H19: 0.2827613887 | I19: 0.03600848615 | J19: 0.7318659929 | K19: 0.199580031 | L19: 1 | N19: 0.4840458709 | O19: 0.01826067733 | P19: 0.6760668309 | Q19: 0.21704133 | R19: 0 | T19: 78807470.59 | U19: 38146430.73 | V19: 25789536.54 | W19: 696579.663 | X19: 140360.454 | Y19: 0.21704133 | Z19: 0 | AA19: 0 | AC19: Azerbaijan | AD19: =SUM(H19:K19/4) -> 0.3125539747
C20: Burundi | D20: BDI | F20: =SUMPRODUCT(H20:L20,Dashboard!$G$129:$K$129)/SUM(Dashboard!$G$129:$K$129) -> 0.1766236151 | H20: 0.03417032511 | I20: 0.08689828468 | J20: 0.1397275622 | K20: 0.0340100961 | L20: 1 | N20: 0.06225993569 | O20: 0.04406798805 | P20: 0.1299062586 | Q20: 0.08700494 | R20: 0 | T20: 3338722.828 | U20: 207868.6685 | V20: 27003.441 | W20: 9160.354 | X20: 0 | Y20: 0.08700494 | Z20: 0 | AA20: 0 | AC20: Burundi | AD20: =SUM(H20:K20/4) -> 0.07370156701
C21: Benin | D21: BEN | F21: =SUMPRODUCT(H21:L21,Dashboard!$G$129:$K$129)/SUM(Dashboard!$G$129:$K$129) -> 0.1836760776 | H21: 0.02788871644 | I21: 0.01630514959 | J21: 0.03661287108 | K21: 0.2457356123 | L21: 1 | N21: 0.05160189293 | O21: 0.008268691838 | P21: 0.0347981288 | Q21: 0.2532913 | R21: 0 | T21: 17425418.04 | U21: 899184.5561 | V21: 31289.94 | W21: 7435.08 | X21: 133.694 | Y21: 0.2532913 | Z21: 0 | AA21: 0 | AC21: Benin | AD21: =SUM(H21:K21/4) -> 0.08163558735
C22: Burkina Faso | D22: BFA | F22: =SUMPRODUCT(H22:L22,Dashboard!$G$129:$K$129)/SUM(Dashboard!$G$129:$K$129) -> 0.1935437942 | H22: 0.137449659 | I22: 0.05078076362 | J22: 0.05607552463 | K22: 0.1266411267 | L22: 1 | N22: 0.2374945954 | O22: 0.02575201677 | P22: 0.05274956288 | Q22: 0.1597561 | R22: 0 | T22: 18820219.33 | U22: 4469700.375 | V22: 235774.741 | W22: 115103.799 | X22: 202.358 | Y22: 0.1597561 | Z22: 0 | AA22: 0 | AC22: Burkina Faso | AD22: =SUM(H22:K22/4) -> 0.09273676849
C23: Bahrain | D23: BHR | F23: =SUMPRODUCT(H23:L23,Dashboard!$G$129:$K$129)/SUM(Dashboard!$G$129:$K$129) -> 0.5691470777 | H23: 0.2929682419 | I23: 0.925513044 | J23: 0.1005995535 | K23: 0.7420810103 | L23: 1 | N23: 0.5013638994 | O23: =IFERROR(W23/U23,"") -> 0.4693475586 | P23: 0.09381642803 | Q23: 0.64311427 | R23: 0 | T23: 44383297.87 | U23: 22252183.29 | V23: 2087620.352 | W23: 10444007.9 | X23: 1943226.901 | Y23: 0.64311427 | Z23: 0 | AA23: 0 | AC23: Bahrain | AD23: =SUM(H23:K23/4) -> 0.5152904624
C24: Bahamas, The | D24: BHS | F24: =SUMPRODUCT(H24:L24,Dashboard!$G$129:$K$129)/SUM(Dashboard!$G$129:$K$129) -> 0.1826401795 | H24: 0.02323940885 | I24: 0.03385560797 | J24: 0.03886415749 | K24: 0.2259216333 | L24: 1 | N24: 0.0437133851 | O24: 0.01716890653 | P24: 0.03687460926 | Q24: 0.2377296686 | R24: 0 | T24: 13136400 | U24: 574236.512 | V24: 21174.747 | W24: 9859.013 | X24: 0 | Y24: 0.2377296686 | Z24: 0 | AA24: 0 | AC24: Bahamas, The | AD24: =SUM(H24:K24/4) -> 0.08047020191
C25: Bosnia and Herzegovina | D25: BIH | F25: =SUMPRODUCT(H25:L25,Dashboard!$G$129:$K$129)/SUM(Dashboard!$G$129:$K$129) -> 0.5448870783 | H25: 0.2299665278 | I25: 0.4636571904 | J25: 0.8012708522 | K25: 0.4570972821 | L25: 1 | N25: 0.3944685166 | O25: 0.2351305276 | P25: 0.740082601 | Q25: 0.4192919 | R25: 0 | T25: 24534663.64 | U25: 9678152.37 | V25: 7162632.179 | W25: 2275629.073 | X25: 1590643.905 | Y25: 0.4192919 | Z25: 0 | AA25: 0 | AC25: Bosnia and Herzegovina | AD25: =SUM(H25:K25/4) -> 0.4879979631
C26: Belize | D26: BLZ | F26: =SUMPRODUCT(H26:L26,Dashboard!$G$129:$K$129)/SUM(Dashboard!$G$129:$K$129) -> 0.2583462717 | H26: 0.05711718278 | I26: 0 | J26: 0.3795194064 | K26: 0.2259216333 | L26: 1 | N26: 0.1011940055 | O26: 0 | P26: 0.3510789507 | Q26: 0.2377296686 | R26: 0 | T26: 2830507.576 | U26: 286430.3992 | V26: 100559.684 | W26: 0 | X26: 0 | Y26: 0.2377296686 | Z26: 0 | AA26: 0 | AC26: Belize | AD26: =SUM(H26:K26/4) -> 0.1656395556
C27: Bermuda | D27: BMU | F27: =SUMPRODUCT(H27:L27,Dashboard!$G$129:$K$129)/SUM(Dashboard!$G$129:$K$129) -> 0.192519324 | H27: 0 | I27: 0.01284313829 | J27: 0.1275721862 | K27: 0.2259216333 | L27: 1 | N27: 0.004282941959 | O27: 0.006513031491 | P27: 0.1186947129 | Q27: 0.2377296686 | R27: 0 | T27: 7827980 | U27: 33526.784 | V27: 3979.452 | W27: 218.361 | X27: 2.485 | Y27: 0.2377296686 | Z27: 0 | AA27: 0 | AC27: Bermuda | AD27: =SUM(H27:K27/4) -> 0.09158423946
C28: Bolivia | D28: BOL | F28: =SUMPRODUCT(H28:L28,Dashboard!$G$129:$K$129)/SUM(Dashboard!$G$129:$K$129) -> 0.2386530494 | H28: 0.1794371983 | I28: 0.02929448031 | J28: 0.09185868221 | K28: 0.2733483613 | L28: 1 | N28: 0.308735103 | O28: 0.01485586065 | P28: 0.08575426045 | Q28: 0.27497798 | R28: 0 | T28: 44008282.88 | U28: 13586901.75 | V28: 1165134.711 | W28: 201845.119 | X28: 60.193 | Y28: 0.27497798 | Z28: 0 | AA28: 0 | AC28: Bolivia | AD28: =SUM(H28:K28/4) -> 0.1434846805
C29: Brazil | D29: BRA | F29: =SUMPRODUCT(H29:L29,Dashboard!$G$129:$K$129)/SUM(Dashboard!$G$129:$K$129) -> 0.2248911774 | H29: 0.09846581 | I29: 0.1215281848 | J29: 0.1756539378 | K29: 0.1163623657 | L29: 1 | N29: 0.1713504671 | O29: 0.06162955477 | P29: 0.1630430537 | Q29: 0.1516833 | R29: 0 | T29: 1951923942 | U29: 334463079.2 | V29: 54531881.78 | W29: 20612810.66 | X29: 2568410.411 | Y29: 0.1516833 | Z29: 0 | AA29: 0 | AC29: Brazil | AD29: =SUM(H29:K29/4) -> 0.1280025746
C30: Barbados | D30: BRB | F30: =SUMPRODUCT(H30:L30,Dashboard!$G$129:$K$129)/SUM(Dashboard!$G$129:$K$129) -> 0.2400919646 | H30: 0.04771018432 | I30: 0.1059455799 | J30: 0.04292991833 | K30: 0.3838281583 | L30: 1 | N30: 0.08523309528 | O30: 0.05372728085 | P30: 0.04062467537 | Q30: 0.36174732 | R30: 0 | T30: 5840673.7 | U30: 497818.698 | V30: 20223.723 | W30: 26746.445 | X30: 175.097 | Y30: 0.36174732 | Z30: 0 | AA30: 0 | AC30: Barbados | AD30: =SUM(H30:K30/4) -> 0.1451034602
C31: Brunei | D31: BRN | F31: =SUMPRODUCT(H31:L31,Dashboard!$G$129:$K$129)/SUM(Dashboard!$G$129:$K$129) -> 0.282129929 | H31: 0.5002459477 | I31: 0.04191458255 | J31: 0.001502517051 | K31: 0.2259216333 | L31: 1 | N31: 0.8530532149 | O31: 0.02125578577 | P31: 0.002413993515 | Q31: 0.2377296686 | R31: 0 | T31: 16681536.47 | U31: 14230238.31 | V31: 34351.703 | W31: 302474.897 | X31: 26.761 | Y31: 0.2377296686 | Z31: 0 | AA31: 0 | AC31: Brunei | AD31: =SUM(H31:K31/4) -> 0.1923961701
C32: Botswana | D32: BWA | F32: =SUMPRODUCT(H32:L32,Dashboard!$G$129:$K$129)/SUM(Dashboard!$G$129:$K$129) -> 0.2480078764 | H32: 0.2414579372 | I32: 0.003070161855 | J32: 0.2063112894 | K32: 0.1651960553 | L32: 1 | N32: 0.4139660593 | O32: 0.00155694507 | P32: 0.1913199495 | Q32: 0.19003662 | R32: 0 | T32: 20321958.85 | U32: 8412601.222 | V32: 1609498.441 | W32: 13097.958 | X32: 451.657 | Y32: 0.19003662 | Z32: 0 | AA32: 0 | AC32: Botswana | AD32: =SUM(H32:K32/4) -> 0.1540088609
C33: Central African Republic | D33: CAF | F33: =SUMPRODUCT(H33:L33,Dashboard!$G$129:$K$129)/SUM(Dashboard!$G$129:$K$129) -> 0.1746120064 | H33: 0.02605667299 | I33: 1.882460384e-05 | J33: 0.259678531 | K33: 0 | L33: 1 | N33: 0.04849345391 | O33: 9.546361241e-06 | P33: 0.2405433772 | Q33: 0.06029387 | R33: 0 | T33: 2382618.615 | U33: 115541.406 | V33: 27792.72 | W33: 1.103 | X33: 0 | Y33: 0.06029387 | Z33: 0 | AA33: 0 | AC33: Central African Republic | AD33: =SUM(H33:K33/4) -> 0.07143850715
C34: Canada | D34: CAN | F34: =SUMPRODUCT(H34:L34,Dashboard!$G$129:$K$129)/SUM(Dashboard!$G$129:$K$129) -> 0.2112367306 | H34: 0.1601960303 | I34: 0.1170884902 | J34: 0.07043614823 | K34: 0.3193445306 | L34: 0.567000177 | N34: 0.2760884988 | O34: 0.05937809019 | P34: 0.06599512506 | Q34: 0.31110275 | R34: 11.490305 | T34: 2161483369 | U34: 596760698.7 | V34: 39383296.94 | W34: 35434510.59 | X34: 1454459.1 | Y34: 0.31110275 | Z34: 11.490305 | AA34: 3.5283508 | AC34: Canada | AD34: =SUM(H34:K34/4) -> 0.1667662998
C35: Chile | D35: CHL | F35: =SUMPRODUCT(H35:L35,Dashboard!$G$129:$K$129)/SUM(Dashboard!$G$129:$K$129) -> 0.2087258613 | H35: 0.1897434685 | I35: 0.04314314416 | J35: 0.09284029727 | K35: 0.1628589639 | L35: 0.901361004 | N35: 0.3262218128 | O35: =IFERROR(W35/U35,"") -> 0.02187881577 | P35: 0.0866596559 | Q35: =IFERROR(Y35,"") -> 0.1882011 | R35: =IFERROR(MAX(Z35,AA35),"") -> 2.6175349 | T35: 302116539.4 | U35: 98557005.17 | V35: 8540916.154 | W35: 2156310.559 | X35: 325749.265 | Y35: 0.1882011 | Z35: 2.6175349 | AA35: 0 | AC35: Chile | AD35: =SUM(H35:K35/4) -> 0.1221464684
C36: China | D36: CHN | F36: =SUMPRODUCT(H36:L36,Dashboard!$G$129:$K$129)/SUM(Dashboard!$G$129:$K$129) -> 0.2952748954 | H36: 0.1159195761 | I36: 0.1108190749 | J36: 0.1931783758 | K36: 0.4613536324 | L36: 0.8949327402 | N36: 0.2009643757 | O36: 0.05619873493 | P36: 0.1792067691 | Q36: 0.42263478 | R36: 2.7881186 | T36: 1.788178339e+10 | U36: 3593601436 | V36: 643997702.7 | W36: 201955854.5 | X36: 20459934.41 | Y36: 0.42263478 | Z36: 0 | AA36: 2.7881186 | AC36: China | AD36: =SUM(H36:K36/4) -> 0.2203176648
C37: Cote d'Ivoire | D37: CIV | F37: =SUMPRODUCT(H37:L37,Dashboard!$G$129:$K$129)/SUM(Dashboard!$G$129:$K$129) -> 0.2283478931 | H37: 0.1354588294 | I37: 0.02243210641 | J37: 0.3234478698 | K37: 0.04622671317 | L37: 1 | N37: 0.234116743 | O37: 0.01137580334 | P37: 0.2993612089 | Q37: 0.096599706 | R37: 0 | T37: 70173140.1 | U37: 16428707.01 | V37: 4918117.59 | W37: 186889.74 | X37: 3297.908 | Y37: 0.096599706 | Z37: 0 | AA37: 0 | AC37: Cote d'Ivoire | AD37: =SUM(H37:K37/4) -> 0.1318913797
C38: Colombia | D38: COL | F38: =SUMPRODUCT(H38:L38,Dashboard!$G$129:$K$129)/SUM(Dashboard!$G$129:$K$129) -> 0.2017860261 | H38: 0.09460472625 | I38: 0.0665293136 | J38: 0.1641657665 | K38: 0.09417917286 | L38: 0.9771162766 | N38: 0.1647993433 | O38: 0.03373844498 | P38: 0.1524469061 | Q38: 0.13426092 | R38: 0.6072542 | T38: 345329875.1 | U38: 56910136.65 | V38: 8675774.259 | W38: 1920059.514 | X38: 320499.384 | Y38: 0.13426092 | Z38: 0.6072542 | AA38: 0 | AC38: Colombia | AD38: =SUM(H38:K38/4) -> 0.1048697448
C39: Cape Verde | D39: CPV | F39: =SUMPRODUCT(H39:L39,Dashboard!$G$129:$K$129)/SUM(Dashboard!$G$129:$K$129) -> 0.1792022233 | H39: 0.07673497501 | I39: 1.085868942e-05 | J39: 0.1360798139 | K39: 0.09358435743 | L39: 1 | N39: 0.1344796302 | O39: 5.506674815e-06 | P39: 0.1265417475 | Q39: 0.13379376 | R39: 0 | T39: 2303738.02 | U39: 309805.837 | V39: 39203.372 | W39: 1.706 | X39: 1.707 | Y39: 0.13379376 | Z39: 0 | AA39: 0 | AC39: Cape Verde | AD39: =SUM(H39:K39/4) -> 0.07660250125
C40: Costa Rica | D40: CRI | F40: =SUMPRODUCT(H40:L40,Dashboard!$G$129:$K$129)/SUM(Dashboard!$G$129:$K$129) -> 0.2109962292 | H40: 0.1278715715 | I40: 0.05986922847 | J40: 0.2134981168 | K40: 0.04824411482 | L40: 1 | N40: 0.2212433974 | O40: 0.03036097265 | P40: 0.1979487403 | Q40: 0.098184146 | R40: 0 | T40: 69243626.03 | U40: 15319695.07 | V40: 3032514.34 | W40: 465120.843 | X40: 13761.631 | Y40: 0.098184146 | Z40: 0 | AA40: 0 | AC40: Costa Rica | AD40: =SUM(H40:K40/4) -> 0.1123707579
C41: Dominican Republic | D41: DOM | F41: =SUMPRODUCT(H41:L41,Dashboard!$G$129:$K$129)/SUM(Dashboard!$G$129:$K$129) -> 0.1994424597 | H41: 0.04837698226 | I41: 0.1890179069 | J41: 0.07943912641 | K41: 0.08065705332 | L41: 1 | N41: 0.08636445531 | O41: 0.09585504353 | P41: 0.07429904769 | Q41: 0.12364083 | R41: 0 | T41: 113537368.2 | U41: 9805592.96 | V41: 728546.219 | W41: 939915.54 | X41: 196276.559 | Y41: 0.12364083 | Z41: 0 | AA41: 0 | AC41: Dominican Republic | AD41: =SUM(H41:K41/4) -> 0.09937276721
C42: Ecuador | D42: ECU | F42: =SUMPRODUCT(H42:L42,Dashboard!$G$129:$K$129)/SUM(Dashboard!$G$129:$K$129) -> 0.2340795496 | H42: 0.1763339868 | I42: 0.01475412797 | J42: 0.1363202242 | K42: 0.225949634 | L42: 1 | N42: 0.3034698654 | O42: 0.007482135434 | P42: 0.1267634907 | Q42: 0.23775166 | R42: 0 | T42: 116586079 | U42: 35380361.71 | V42: 4484938.152 | W42: 264720.658 | X42: 497.879 | Y42: 0.23775166 | Z42: 0 | AA42: 0 | AC42: Ecuador | AD42: =SUM(H42:K42/4) -> 0.1383394933
C43: Egypt, Arab Rep. | D43: EGY | F43: =SUMPRODUCT(H43:L43,Dashboard!$G$129:$K$129)/SUM(Dashboard!$G$129:$K$129) -> 0.3010029431 | H43: 0.06190357562 | I43: 0.2486217297 | J43: 0.394993308 | K43: 0.1489946307 | L43: 1 | N43: 0.1093151067 | O43: 0.1260814233 | P43: 0.3653513481 | Q43: 0.17731224 | R43: 0 | T43: 476747720.4 | U43: 52115727.91 | V43: 19040551.45 | W43: 6570825.151 | X43: 3306504.342 | Y43: 0.17731224 | Z43: 0 | AA43: 0 | AC43: Egypt, Arab Rep. | AD43: =SUM(H43:K43/4) -> 0.213628311
C44: Ethiopia(excludes Eritrea) | D44: ETH | F44: =SUMPRODUCT(H44:L44,Dashboard!$G$129:$K$129)/SUM(Dashboard!$G$129:$K$129) -> 0.181883175 | H44: =IFERROR(((N44-MIN(N$12:N$116))/(MAX(N$12:N$116)-MIN(N$12:N$116))),"") -> 0.01181870418 | I44: =IFERROR(((O44-MIN(O$12:O$116))/(MAX(O$12:O$116)-MIN(O$12:O$116))),"") -> 0.001342359529 | J44: =IFERROR(((P44-MIN(P$12:P$116))/(MAX(P$12:P$116)-MIN(P$12:P$116))),"") -> 0.2921301679 | K44: =IFERROR(((Q44-MIN(Q$12:Q$116))/(MAX(Q$12:Q$116)-MIN(Q$12:Q$116))),"") -> 0.0131830559 | L44: =IFERROR(1-((R44-MIN(R$12:R$116))/(MAX(R$12:R$116)-MIN(R$12:R$116))),"") -> 1 | N44: 0.02433580759 | O44: 0.0006807393712 | P44: 0.2704752371 | Q44: 0.070647664 | R44: 0 | T44: 126772703 | U44: 3085116.109 | V44: 834447.511 | W44: 2100.16 | X44: 596.663 | Y44: 0.070647664 | Z44: 0 | AA44: 0 | AC44: Ethiopia(excludes Eritrea) | AD44: =SUM(H44:K44/4) -> 0.07961857187
C45: Fiji | D45: FJI | F45: =SUMPRODUCT(H45:L45,Dashboard!$G$129:$K$129)/SUM(Dashboard!$G$129:$K$129) -> 0.2063969426 | H45: 0.1223614173 | I45: 0.01986706717 | J45: 0.06063612406 | K45: 0.2259216333 | L45: 1 | N45: 0.2118942861 | O45: 0.01007501681 | P45: 0.05695604479 | Q45: 0.2377296686 | R45: 0 | T45: 4979979.531 | U45: 1055229.207 | V45: 60101.682 | W45: 10631.452 | X45: 0 | Y45: 0.2377296686 | Z45: 0 | AA45: 0 | AC45: Fiji | AD45: =SUM(H45:K45/4) -> 0.1071965605
C46: United Kingdom | D46: GBR | F46: =SUMPRODUCT(H46:L46,Dashboard!$G$129:$K$129)/SUM(Dashboard!$G$129:$K$129) -> 0.1759156466 | H46: 0.09958416832 | I46: 0.06459707107 | J46: 0.4378821331 | K46: 0.07837128698 | L46: 0.2223715008 | N46: 0.1732479923 | O46: 0.03275856326 | P46: 0.4049099784 | Q46: 0.12184562 | R46: 20.635548 | T46: 3088839763 | U46: 535135287.5 | V46: 216681617.7 | W46: 17530263.17 | X46: 12235368.78 | Y46: 0.12184562 | Z46: 3.5399458 | AA46: 20.635548 | AC46: United Kingdom | AD46: =SUM(H46:K46/4) -> 0.1701086649
C47: Georgia | D47: GEO | F47: =SUMPRODUCT(H47:L47,Dashboard!$G$129:$K$129)/SUM(Dashboard!$G$129:$K$129) -> 0.2341800131 | H47: 0.1291868002 | I47: 0.1558255022 | J47: 0.1453062767 | K47: 0.12349148 | L47: 1 | N47: 0.2234749538 | O47: 0.07902246164 | P47: 0.1350518019 | Q47: 0.15728241 | R47: 0 | T47: 24984568.96 | U47: 5583425.394 | V47: 754051.66 | W47: 441216.019 | X47: 25333.851 | Y47: 0.15728241 | Z47: 0 | AA47: 0 | AC47: Georgia | AD47: =SUM(H47:K47/4) -> 0.1384525148
C48: Ghana | D48: GHA | F48: =SUMPRODUCT(H48:L48,Dashboard!$G$129:$K$129)/SUM(Dashboard!$G$129:$K$129) -> 0.2177415026 | H48: 0.1322914939 | I48: 0.05601134418 | J48: 0.1861384641 | K48: 0.1053954595 | L48: 1 | N48: 0.2287427061 | O48: 0.0284045566 | P48: 0.1727134865 | Q48: 0.14307004 | R48: 0 | T48: 74263364.04 | U48: 16987202.86 | V48: 2933919.031 | W48: 482513.965 | X48: 127604.252 | Y48: 0.14307004 | Z48: 0 | AA48: 0 | AC48: Ghana | AD48: =SUM(H48:K48/4) -> 0.1199591904
C49: Guatemala | D49: GTM | F49: =SUMPRODUCT(H49:L49,Dashboard!$G$129:$K$129)/SUM(Dashboard!$G$129:$K$129) -> 0.2108976118 | H49: 0.09553321564 | I49: 0.1539929568 | J49: 0.1091566373 | K49: 0.09035644349 | L49: 1 | N49: 0.1663747168 | O49: 0.0780931385 | P49: 0.1017090787 | Q49: 0.1312586 | R49: 0 | T49: 95003330.32 | U49: 15806152.18 | V49: 1607629.176 | W49: 1234352.031 | X49: 107646.856 | Y49: 0.1312586 | Z49: 0 | AA49: 0 | AC49: Guatemala | AD49: =SUM(H49:K49/4) -> 0.1122598133
C50: Guyana | D50: GUY | F50: =SUMPRODUCT(H50:L50,Dashboard!$G$129:$K$129)/SUM(Dashboard!$G$129:$K$129) -> 0.4708523201 | H50: 0.8963955637 | I50: 0.0002405112326 | J50: 0.4962777323 | K50: 0.2259216333 | L50: 1 | N50: =IFERROR(U50/T50,"") -> 1.525202623 | O50: 0.0001219684159 | P50: 0.458771326 | Q50: 0.2377296686 | R50: 0 | T50: 14718388.49 | U50: 22448524.73 | V50: 10298739.46 | W50: 2738.011 | X50: 24.04 | Y50: 0.2377296686 | Z50: 0 | AA50: 0 | AC50: Guyana | AD50: =SUM(H50:K50/4) -> 0.4047088601
C51: Hong Kong, China | D51: HKG | F51: =SUMPRODUCT(H51:L51,Dashboard!$G$129:$K$129)/SUM(Dashboard!$G$129:$K$129) -> 0.3597288643 | H51: 1 | I51: 0.005493865237 | J51: 0.08093562545 | K51: 0.03235039859 | L51: 1 | N51: 1.700988886 | O51: 0.002786057153 | P51: 0.07567934786 | Q51: 0.085701436 | R51: 0 | T51: 358696261.5 | U51: 610138354.3 | V51: 46174872.75 | W51: 1699880.326 | X51: 117712.535 | Y51: 0.085701436 | Z51: 0 | AA51: 0 | AC51: Hong Kong, China | AD51: =SUM(H51:K51/4) -> 0.2796949723
C52: Indonesia | D52: IDN | F52: =SUMPRODUCT(H52:L52,Dashboard!$G$129:$K$129)/SUM(Dashboard!$G$129:$K$129) -> 0.2501917848 | H52: 0.1279350972 | I52: 0.2245268342 | J52: 0.08501877886 | K52: 0.1883823212 | L52: 1 | N52: 0.2213511818 | O52: 0.1138623839 | P52: 0.07944545606 | Q52: 0.2082468 | R52: 0 | T52: 1319076267 | U52: 291979090.6 | V52: 23196412.01 | W52: 33245435.29 | X52: 1496459.453 | Y52: 0.2082468 | Z52: 0 | AA52: 0 | AC52: Indonesia | AD52: =SUM(H52:K52/4) -> 0.1564657579
C53: India | D53: IND | F53: =SUMPRODUCT(H53:L53,Dashboard!$G$129:$K$129)/SUM(Dashboard!$G$129:$K$129) -> 0.2635923775 | H53: 0.0770356403 | I53: 0.1402658848 | J53: 0.2017255702 | K53: 0.2671386033 | L53: 1 | N53: 0.1349897708 | O53: 0.07113184518 | P53: 0.1870902983 | Q53: 0.27010092 | R53: 0 | T53: 3353470497 | U53: 452684213.6 | V53: 84692824.58 | W53: 32200263.4 | X53: 8725757.117 | Y53: 0.27010092 | Z53: 0 | AA53: 0 | AC53: India | AD53: =SUM(H53:K53/4) -> 0.1715414246
C54: Israel | D54: ISR | F54: =SUMPRODUCT(H54:L54,Dashboard!$G$129:$K$129)/SUM(Dashboard!$G$129:$K$129) -> 0.2464718772 | H54: 0.07894287992 | I54: 0.08039791719 | J54: 0.3143514181 | K54: 0.1354312321 | L54: 1 | N54: 0.1382257956 | O54: 0.04077151197 | P54: 0.2909710706 | Q54: 0.16665973 | R54: 0 | T54: 525002447.7 | U54: 72568881 | V54: 21115445 | W54: 2958743 | X54: 459593 | Y54: 0.16665973 | Z54: 0 | AA54: 0 | AC54: Israel | AD54: =SUM(H54:K54/4) -> 0.1522808618
C55: Jamaica | D55: JAM | F55: =SUMPRODUCT(H55:L55,Dashboard!$G$129:$K$129)/SUM(Dashboard!$G$129:$K$129) -> 0.218963994 | H55: 0.06301948145 | I55: 0.007233130871 | J55: 0.07923246116 | K55: 0.3358528996 | L55: 1 | N55: 0.1112084707 | O55: 0.003668076141 | P55: 0.07410842941 | Q55: 0.3240682 | R55: 0 | T55: 17097760.69 | U55: 1901415.819 | V55: 140910.94 | W55: 6974.538 | X55: 86.122 | Y55: 0.3240682 | Z55: 0 | AA55: 0 | AC55: Jamaica | AD55: =SUM(H55:K55/4) -> 0.1213344933
C56: Jordan | D56: JOR | F56: =SUMPRODUCT(H56:L56,Dashboard!$G$129:$K$129)/SUM(Dashboard!$G$129:$K$129) -> 0.2530088734 | H56: 0.1522877481 | I56: 0.2117415891 | J56: 0.0574336098 | K56: 0.2170769833 | L56: 1 | N56: 0.2626704694 | O56: 0.1073787112 | P56: 0.05400219661 | Q56: 0.2307832 | R56: 0 | T56: 48653381.83 | U56: 12779806.64 | V56: 690137.631 | W56: 1372279.167 | X56: 76302.511 | Y56: 0.2307832 | Z56: 0 | AA56: 0 | AC56: Jordan | AD56: =SUM(H56:K56/4) -> 0.1596349826
C57: Japan | D57: JPN | F57: =SUMPRODUCT(H57:L57,Dashboard!$G$129:$K$129)/SUM(Dashboard!$G$129:$K$129) -> 0.2226682297 | H57: 0.1008660342 | I57: 0.1127675166 | J57: 0.1183119175 | K57: 0.2042562892 | L57: 0.9316105523 | N57: =IFERROR(U57/T57,"") -> 0.1754229417 | O57: =IFERROR(W57/U57,"") -> 0.05718683162 | P57: 0.1101534775 | Q57: 0.220714 | R57: 1.8148174 | T57: 4256410761 | U57: 746672096.6 | V57: 82248528.02 | W57: 42699811.46 | X57: 2450540.301 | Y57: 0.220714 | Z57: 1.8148174 | AA57: 0 | AC57: Japan | AD57: =SUM(H57:K57/4) -> 0.1340504394
C58: Kazakhstan | D58: KAZ | F58: =SUMPRODUCT(H58:L58,Dashboard!$G$129:$K$129)/SUM(Dashboard!$G$129:$K$129) -> 0.4192956999 | H58: 0.1964815168 | I58: 0.1179759944 | J58: 0.4635655817 | K58: 0.6088075566 | L58: 1 | N58: 0.3376542995 | O58: 0.05982816266 | P58: 0.4285991805 | Q58: 0.5384431 | R58: 0 | T58: 225496328.9 | U58: 76139804.97 | V58: 32633458.02 | W58: 4555304.637 | X58: 554379.098 | Y58: 0.5384431 | Z58: 0 | AA58: 0 | AC58: Kazakhstan | AD58: =SUM(H58:K58/4) -> 0.3467076624
C59: Kenya | D59: KEN | F59: =SUMPRODUCT(H59:L59,Dashboard!$G$129:$K$129)/SUM(Dashboard!$G$129:$K$129) -> 0.2053384543 | H59: 0.03577916561 | I59: 0.1010054335 | J59: 0.1977832648 | K59: 0.08945518021 | L59: 1 | N59: 0.06498966492 | O59: 0.05122202644 | P59: 0.1834541017 | Q59: 0.13055076 | R59: 0 | T59: 113419826.1 | U59: 7371116.495 | V59: 1352261.555 | W59: 377563.524 | X59: 243.206 | Y59: 0.13055076 | Z59: 0 | AA59: 0 | AC59: Kenya | AD59: =SUM(H59:K59/4) -> 0.106005761
C60: Kyrgyz Republic | D60: KGZ | F60: =SUMPRODUCT(H60:L60,Dashboard!$G$129:$K$129)/SUM(Dashboard!$G$129:$K$129) -> 0.2292620765 | H60: 0.1069835974 | I60: 0.08699214922 | J60: 0.03495348281 | K60: 0.3027501148 | L60: 1 | N60: 0.1858026476 | O60: 0.04411558877 | P60: 0.0332675873 | Q60: 0.29806972 | R60: 0 | T60: 12134931.02 | U60: 2254702.312 | V60: 75008.506 | W60: 99467.52 | X60: 1297.67 | Y60: 0.29806972 | Z60: 0 | AA60: 0 | AC60: Kyrgyz Republic | AD60: =SUM(H60:K60/4) -> 0.1329198361
C61: Cambodia | D61: KHM | F61: =SUMPRODUCT(H61:L61,Dashboard!$G$129:$K$129)/SUM(Dashboard!$G$129:$K$129) -> 0.3312576926 | H61: 0.4084895908 | I61: 0.00981607056 | J61: 0.2590521822 | K61: 0.3133017732 | L61: 1 | N61: 0.6973696587 | O61: 0.004977940378 | P61: 0.2399656626 | Q61: 0.30635685 | R61: 0 | T61: 29504829.32 | U61: 20575772.75 | V61: 4937478.942 | W61: 102424.97 | X61: 13533.553 | Y61: 0.30635685 | Z61: 0 | AA61: 0 | AC61: Cambodia | AD61: =SUM(H61:K61/4) -> 0.2476649042
C62: Korea, Rep. | D62: KOR | F62: =SUMPRODUCT(H62:L62,Dashboard!$G$129:$K$129)/SUM(Dashboard!$G$129:$K$129) -> 0.2158885749 | H62: 0.2381504655 | I62: 0.1266864267 | J62: 0.1170527348 | K62: 0.2812216823 | L62: 0.4167745558 | N62: 0.4083542524 | O62: 0.06424541014 | P62: 0.1089920668 | Q62: 0.28116158 | R62: 15.476769 | T62: 1673916512 | U62: 683550925.7 | V62: 74501628.14 | W62: 43915009.57 | X62: 5418110.578 | Y62: 0.28116158 | Z62: 0 | AA62: 15.476769 | AC62: Korea, Rep. | AD62: =SUM(H62:K62/4) -> 0.1907778273
C63: Kuwait | D63: KWT | F63: =SUMPRODUCT(H63:L63,Dashboard!$G$129:$K$129)/SUM(Dashboard!$G$129:$K$129) -> 0.3056987894 | H63: 0.3135176038 | I63: 0.003957365111 | J63: 0 | K63: 0.5581695835 | L63: 1 | N63: 0.5362301238 | O63: 0.002006864912 | P63: 0.001028142622 | Q63: 0.49867272 | R63: 0 | T63: 182809482.4 | U63: 98027951.39 | V63: 100786.715 | W63: 196728.856 | X63: 10.587 | Y63: 0.49867272 | Z63: 0 | AA63: 0 | AC63: Kuwait | AD63: =SUM(H63:K63/4) -> 0.2189111381
C64: Lebanon | D64: LBN | F64: =SUMPRODUCT(H64:L64,Dashboard!$G$129:$K$129)/SUM(Dashboard!$G$129:$K$129) -> 0.2956207747 | H64: 0.1059110431 | I64: 0.05347538062 | J64: 0.1232292816 | K64: 0.5476777809 | L64: 1 | N64: 0.1839828384 | O64: 0.02711851497 | P64: 0.1146890223 | Q64: 0.4904326 | R64: 0 | T64: 20992421.95 | U64: 3862245.374 | V64: 442957.146 | W64: 104738.359 | X64: 12075.398 | Y64: 0.4904326 | Z64: 0 | AA64: 0 | AC64: Lebanon | AD64: =SUM(H64:K64/4) -> 0.2075733716
C65: Sri Lanka | D65: LKA | F65: =SUMPRODUCT(H65:L65,Dashboard!$G$129:$K$129)/SUM(Dashboard!$G$129:$K$129) -> 0.2140557811 | H65: 0.1039961951 | I65: 0.01026402777 | J65: 0.3391579644 | K65: 0.009832827657 | L65: 1 | N65: 0.1807339044 | O65: 0.00520510911 | P65: 0.3138514595 | Q65: 0.06801644 | R65: 0 | T65: 74144875.1 | U65: 13400492.77 | V65: 4205764.214 | W65: 69751.027 | X65: 6472.803 | Y65: 0.06801644 | Z65: 0 | AA65: 0 | AC65: Sri Lanka | AD65: =SUM(H65:K65/4) -> 0.1158127537
C66: Lesotho | D66: LSO | F66: =SUMPRODUCT(H66:L66,Dashboard!$G$129:$K$129)/SUM(Dashboard!$G$129:$K$129) -> 0.3799293054 | H66: 0.2290854115 | I66: 0.002937813441 | J66: 0.2162285284 | K66: 0.7614301209 | L66: 1 | N66: 0.3929735214 | O66: 0.001489828344 | P66: 0.2004671432 | Q66: 0.6583108 | R66: 0 | T66: 2289355.249 | U66: 899655.994 | V66: 180351.467 | W66: 1340.333 | X66: 0 | Y66: 0.6583108 | Z66: 0 | AA66: 0 | AC66: Lesotho | AD66: =SUM(H66:K66/4) -> 0.3024204686
C67: Lithuania | D67: LTU | F67: =SUMPRODUCT(H67:L67,Dashboard!$G$129:$K$129)/SUM(Dashboard!$G$129:$K$129) -> 0.349135871 | H67: 0.3834162856 | I67: 0.1448550708 | J67: 0.7106138175 | K67: 0.1133945658 | L67: 0.4376633598 | N67: 0.6548276329 | O67: 0.07345912005 | P67: 0.6564648263 | Q67: 0.14935243 | R67: 14.922453 | T67: 71013953.45 | U67: 46501899.04 | V67: 30526861.07 | W67: 3415988.584 | X67: 2686161.9 | Y67: 0.14935243 | Z67: 0 | AA67: 14.922453 | AC67: Lithuania | AD67: =SUM(H67:K67/4) -> 0.3380699349
C68: Macao | D68: MAC | F68: =SUMPRODUCT(H68:L68,Dashboard!$G$129:$K$129)/SUM(Dashboard!$G$129:$K$129) -> 0.1681292407 | H68: 0.03040168628 | I68: 0 | J68: 0.0002582634425 | K68: 0.2259216333 | L68: 1 | N68: 0.05586566378 | O68: 0 | P68: 0.001266352646 | Q68: 0.2377296686 | R68: 0 | T68: 24464719.19 | U68: 1366737.777 | V68: 1730.772 | W68: 0 | X68: 0 | Y68: 0.2377296686 | Z68: 0 | AA68: 0 | AC68: Macao | AD68: =SUM(H68:K68/4) -> 0.06414539576
C69: Morocco | D69: MAR | F69: =SUMPRODUCT(H69:L69,Dashboard!$G$129:$K$129)/SUM(Dashboard!$G$129:$K$129) -> 0.4211808881 | H69: 0.1873886096 | I69: 0.3481420559 | J69: 0.6570583007 | K69: 0.2027250303 | L69: 1 | N69: 0.3222263097 | O69: 0.1765503199 | P69: 0.6070677424 | Q69: 0.21951137 | R69: 0 | T69: 130912558.8 | U69: 42183470.73 | V69: 25608224.34 | W69: 7447505.25 | X69: 1086860.189 | Y69: 0.21951137 | Z69: 0 | AA69: 0 | AC69: Morocco | AD69: =SUM(H69:K69/4) -> 0.3488284991
C70: Moldova | D70: MDA | F70: =SUMPRODUCT(H70:L70,Dashboard!$G$129:$K$129)/SUM(Dashboard!$G$129:$K$129) -> 0.3124296801 | H70: 0.1734358921 | I70: 0.02156079059 | J70: 0.497973334 | K70: 0.2129635436 | L70: 1 | N70: 0.2985526509 | O70: 0.01093394036 | P70: 0.4603352691 | Q70: 0.22755256 | R70: 0 | T70: 14510490.66 | U70: 4332145.453 | V70: 1994239.343 | W70: 47367.42 | X70: 18016.767 | Y70: 0.22755256 | Z70: 0 | AA70: 0 | AC70: Moldova | AD70: =SUM(H70:K70/4) -> 0.2264833901
C71: Madagascar | D71: MDG | F71: =SUMPRODUCT(H71:L71,Dashboard!$G$129:$K$129)/SUM(Dashboard!$G$129:$K$129) -> 0.2268349809 | H71: 0.1388565902 | I71: 0.01677331015 | J71: 0.2966486249 | K71: 0.06847888866 | L71: 1 | N71: 0.239881744 | O71: 0.008506106119 | P71: 0.2746428488 | Q71: 0.114076264 | R71: 0 | T71: 15302510.5 | U71: 3670792.906 | V71: 1008157.021 | W71: 31224.154 | X71: 363.091 | Y71: 0.114076264 | Z71: 0 | AA71: 0 | AC71: Madagascar | AD71: =SUM(H71:K71/4) -> 0.1301893535
C72: Maldives | D72: MDV | F72: =SUMPRODUCT(H72:L72,Dashboard!$G$129:$K$129)/SUM(Dashboard!$G$129:$K$129) -> 0.2302797241 | H72: 0.01260500828 | I72: 0.00197230131 | J72: 0.2957598154 | K72: 0.2259216333 | L72: 1 | N72: 0.02566993443 | O72: 0.001000196389 | P72: 0.2738230529 | Q72: 0.2377296686 | R72: 0 | T72: 6170638.746 | U72: 158399.892 | V72: 43373.542 | W72: 158.431 | X72: 0.271 | Y72: 0.2377296686 | Z72: 0 | AA72: 0 | AC72: Maldives | AD72: =SUM(H72:K72/4) -> 0.1340646896
C73: Mexico | D73: MEX | F73: =SUMPRODUCT(H73:L73,Dashboard!$G$129:$K$129)/SUM(Dashboard!$G$129:$K$129) -> 0.2286043099 | H73: 0.2301661023 | I73: 0.04627189792 | J73: 0.03745284752 | K73: 0.2438069822 | L73: 0.9420431291 | N73: 0.3948071358 | O73: 0.02346547405 | P73: 0.03557288347 | Q73: =IFERROR(Y73,"") -> 0.25177658 | R73: =IFERROR(MAX(Z73,AA73),"") -> 1.5379732 | T73: 1463323889 | U73: 577730713.4 | V73: 20551547.35 | W73: 13556725.06 | X73: 28844.487 | Y73: 0.25177658 | Z73: 1.5379732 | AA73: 0 | AC73: Mexico | AD73: =SUM(H73:K73/4) -> 0.1394244575
C74: North Macedonia | D74: MKD | F74: =SUMPRODUCT(H74:L74,Dashboard!$G$129:$K$129)/SUM(Dashboard!$G$129:$K$129) -> 0.5015237675 | H74: 0.3727005894 | I74: 0.2559016402 | J74: 0.8691906423 | K74: 0.2590640819 | L74: 1 | N74: 0.6366462474 | O74: 0.1297732224 | P74: 0.8027286134 | Q74: 0.2637593 | R74: 0 | T74: 13711469.68 | U74: 8729355.719 | V74: 7007303.612 | W74: 1132836.621 | X74: 708361.264 | Y74: 0.2637593 | Z74: 0 | AA74: 0 | AC74: North Macedonia | AD74: =SUM(H74:K74/4) -> 0.4392142385
C75: Myanmar | D75: MMR | F75: =SUMPRODUCT(H75:L75,Dashboard!$G$129:$K$129)/SUM(Dashboard!$G$129:$K$129) -> 0.2318663333 | H75: 0.1592224153 | I75: 0.0359804187 | J75: 0.2721778314 | K75: 0.07601783423 | L75: 1 | N75: 0.2744365605 | O75: 0.01824644372 | P75: 0.2520721426 | Q75: 0.11999725 | R75: 0 | T75: 62253049.89 | U75: 17084512.89 | V75: 4306529.769 | W75: 311731.603 | X75: 1374.429 | Y75: 0.11999725 | Z75: 0 | AA75: 0 | AC75: Myanmar | AD75: =SUM(H75:K75/4) -> 0.1358496249
C76: Mongolia | D76: MNG | F76: =SUMPRODUCT(H76:L76,Dashboard!$G$129:$K$129)/SUM(Dashboard!$G$129:$K$129) -> 0.4317984638 | H76: =IFERROR(((N76-MIN(N$12:N$116))/(MAX(N$12:N$116)-MIN(N$12:N$116))),"") -> 0.4291229896 | I76: =IFERROR(((O76-MIN(O$12:O$116))/(MAX(O$12:O$116)-MIN(O$12:O$116))),"") -> 0.002115804213 | J76: =IFERROR(((P76-MIN(P$12:P$116))/(MAX(P$12:P$116)-MIN(P$12:P$116))),"") -> 0.01185429335 | K76: =IFERROR(((Q76-MIN(Q$12:Q$116))/(MAX(Q$12:Q$116)-MIN(Q$12:Q$116))),"") -> 1 | L76: =IFERROR(1-((R76-MIN(R$12:R$116))/(MAX(R$12:R$116)-MIN(R$12:R$116))),"") -> 1 | N76: 0.7323784692 | O76: 0.001072969796 | P76: 0.01196198394 | Q76: 0.84568036 | R76: 0 | T76: 17146471.71 | U76: 12557706.71 | V76: 150215.086 | W76: 13474.04 | X76: 24.557 | Y76: 0.84568036 | Z76: 0 | AA76: 0 | AC76: Mongolia | AD76: =SUM(H76:K76/4) -> 0.3607732718
C77: Montenegro | D77: MNE | F77: =SUMPRODUCT(H77:L77,Dashboard!$G$129:$K$129)/SUM(Dashboard!$G$129:$K$129) -> 0.4724249029 | H77: 0.06714027972 | I77: 1 | J77: 0.3328501501 | K77: 0.2259216333 | L77: 1 | N77: 0.1182002536 | O77: 0.5071214951 | P77: =IFERROR(V77/U77,"") -> 0.308033429 | Q77: 0.2377296686 | R77: 0 | T77: 6229801.581 | U77: 736364.127 | V77: 226824.767 | W77: 373426.077 | X77: 111206.72 | Y77: 0.2377296686 | Z77: 0 | AA77: 0 | AC77: =C77 -> Montenegro | AD77: =SUM(H77:K77/4) -> 0.4064780158
C78: Mozambique | D78: MOZ | F78: =SUMPRODUCT(H78:L78,Dashboard!$G$129:$K$129)/SUM(Dashboard!$G$129:$K$129) -> 0.4211102837 | H78: 0.2632013589 | I78: 0.6041733691 | J78: 0.2802944651 | K78: 0.2473270835 | L78: 1 | N78: 0.450858252 | O78: 0.3063893022 | P78: 0.2595585429 | Q78: 0.25454122 | R78: 0 | T78: 18406835.49 | U78: 8298873.677 | V78: 2154043.559 | W78: 2542686.115 | X78: 1257544.893 | Y78: 0.25454122 | Z78: 0 | AA78: 0 | AC78: Mozambique | AD78: =SUM(H78:K78/4) -> 0.3487490691
C79: Mauritania | D79: MRT | F79: =SUMPRODUCT(H79:L79,Dashboard!$G$129:$K$129)/SUM(Dashboard!$G$129:$K$129) -> 0.2811727074 | H79: 0.2259927076 | I79: 0.00508966888 | J79: 0.2426561401 | K79: 0.2915386665 | L79: 1 | N79: 0.3877261123 | O79: 0.002581080492 | P79: 0.2248427263 | Q79: 0.2892644 | R79: 0 | T79: 9744039.515 | U79: 3778018.559 | V79: 849459.993 | W79: 9751.37 | X79: 5391.949 | Y79: 0.2892644 | Z79: 0 | AA79: 0 | AC79: Mauritania | AD79: =SUM(H79:K79/4) -> 0.1913192958
C80: Mauritius | D80: MUS | F80: =SUMPRODUCT(H80:L80,Dashboard!$G$129:$K$129)/SUM(Dashboard!$G$129:$K$129) -> 0.2536698383 | H80: 0.08321077691 | I80: 0.02396852937 | J80: 0.4106456728 | K80: 0.1236892934 | L80: 1 | N80: 0.1454671618 | O80: 0.01215495645 | P80: 0.3797883515 | Q80: 0.15743777 | R80: 0 | T80: 12927979.29 | U80: 1880596.454 | V80: 714228.627 | W80: 22858.568 | X80: 6200.682 | Y80: 0.15743777 | Z80: 0 | AA80: 0 | AC80: Mauritius | AD80: =SUM(H80:K80/4) -> 0.1603785681
C81: Malawi | D81: MWI | F81: =SUMPRODUCT(H81:L81,Dashboard!$G$129:$K$129)/SUM(Dashboard!$G$129:$K$129) -> 0.2116055714 | H81: 0.03786455176 | I81: 0.04248814013 | J81: 0.3478954329 | K81: 0.02397694669 | L81: 1 | N81: 0.068527952 | O81: 0.02154664915 | P81: 0.3219104885 | Q81: 0.07912504 | R81: 0 | T81: 13129458.33 | U81: 899734.89 | V81: 289634.098 | W81: 19386.272 | X81: 4.957 | Y81: 0.07912504 | Z81: 0 | AA81: 0 | AC81: Malawi | AD81: =SUM(H81:K81/4) -> 0.1130562679
C82: Malaysia | D82: MYS | F82: =SUMPRODUCT(H82:L82,Dashboard!$G$129:$K$129)/SUM(Dashboard!$G$129:$K$129) -> 0.34412166 | H82: 0.5074455533 | I82: 0.1001683617 | J82: 0.09539721896 | K82: 0.3455363359 | L82: 1 | N82: 0.8652688286 | O82: 0.05079752932 | P82: 0.08901803992 | Q82: 0.33167344 | R82: 0 | T82: 407027451.7 | U82: 352188166.3 | V82: 31351100.25 | W82: 17890288.71 | X82: 2179308.283 | Y82: 0.33167344 | Z82: 0 | AA82: 0 | AC82: Malaysia | AD82: =SUM(H82:K82/4) -> 0.2621368674
C83: Namibia | D83: NAM | F83: =SUMPRODUCT(H83:L83,Dashboard!$G$129:$K$129)/SUM(Dashboard!$G$129:$K$129) -> 0.2369505897 | H83: 0.2708063245 | I83: 0.003565614228 | J83: 0.1384171951 | K83: 0.15348852 | L83: 1 | N83: 0.4637616424 | O83: 0.001808199618 | P83: 0.1286976377 | Q83: 0.18084168 | R83: 0 | T83: 12567271 | U83: 5828218.242 | V83: 750077.92 | W83: 10538.582 | X83: 131.307 | Y83: 0.18084168 | Z83: 0 | AA83: 0 | AC83: Namibia | AD83: =SUM(H83:K83/4) -> 0.1415694135
C84: Niger | D84: NER | F84: =SUMPRODUCT(H84:L84,Dashboard!$G$129:$K$129)/SUM(Dashboard!$G$129:$K$129) -> 0.2176611511 | H84: 0.01364229304 | I84: 0.01434580313 | J84: 0.3711004197 | K84: 0.08038666415 | L84: 1 | N84: 0.02742990165 | O84: 0.007275065133 | P84: 0.3433136743 | Q84: 0.12342847 | R84: 0 | T84: 15433852.71 | U84: 423349.062 | V84: 145341.522 | W84: 3079.892 | X84: 20.773 | Y84: 0.12342847 | Z84: 0 | AA84: 0 | AC84: Niger | AD84: =SUM(H84:K84/4) -> 0.119868795
C85: Nigeria | D85: NGA | F85: =SUMPRODUCT(H85:L85,Dashboard!$G$129:$K$129)/SUM(Dashboard!$G$129:$K$129) -> 0.2599101461 | H85: 0.07655830865 | I85: 0.07595456234 | J85: 0.4493381273 | K85: 0.06774465907 | L85: 1 | N85: 0.1341798793 | O85: 0.03851819121 | P85: 0.4154764473 | Q85: 0.11349961 | R85: 0 | T85: 472624596.9 | U85: 63416711.38 | V85: 26348149.95 | W85: 2442697.015 | X85: 172746.463 | Y85: 0.11349961 | Z85: 0 | AA85: 0 | AC85: Nigeria | AD85: =SUM(H85:K85/4) -> 0.1673989143
C86: Nicaragua | D86: NIC | F86: =SUMPRODUCT(H86:L86,Dashboard!$G$129:$K$129)/SUM(Dashboard!$G$129:$K$129) -> 0.2205574808 | H86: 0.2746472582 | I86: 0.006107812538 | J86: 0.07283330159 | K86: 0.1389202913 | L86: 1 | N86: 0.4702785775 | O86: 0.003097403026 | P86: 0.06820614631 | Q86: 0.16939999 | R86: 0 | T86: 15649934.21 | U86: 7359828.801 | V86: 501985.56 | W86: 22796.356 | X86: 0.748 | Y86: 0.16939999 | Z86: 0 | AA86: 0 | AC86: Nicaragua | AD86: =SUM(H86:K86/4) -> 0.1231271659
C87: Nepal | D87: NPL | F87: =SUMPRODUCT(H87:L87,Dashboard!$G$129:$K$129)/SUM(Dashboard!$G$129:$K$129) -> 0.1827453559 | H87: 0.01608701498 | I87: 0.08492644356 | J87: 0.09245973986 | K87: 0.128880903 | L87: 1 | N87: 0.0315778759 | O87: 0.04306802503 | P87: 0.08630864769 | Q87: 0.16151519 | R87: 0 | T87: 41182939.6 | U87: 1300469.756 | V87: 112241.786 | W87: 56008.664 | X87: 719.552 | Y87: 0.16151519 | Z87: 0 | AA87: 0 | AC87: Nepal | AD87: =SUM(H87:K87/4) -> 0.08058852534
C88: New Zealand | D88: NZL | F88: =SUMPRODUCT(H88:L88,Dashboard!$G$129:$K$129)/SUM(Dashboard!$G$129:$K$129) -> 0.08059646199 | H88: 0.1029653091 | I88: 0.05115105931 | J88: 0.0808837597 | K88: 0.1276839509 | L88: 0 | N88: 0.1789847939 | O88: 0.02593980167 | P88: 0.07563150933 | Q88: 0.16057512 | R88: 26.536512 | T88: 246733522.8 | U88: 44161548.74 | V88: 3340004.586 | W88: 1145541.816 | X88: 98956.855 | Y88: 0.16057512 | Z88: 0 | AA88: 26.536512 | AC88: New Zealand | AD88: =SUM(H88:K88/4) -> 0.09067101974
C89: Oman | D89: OMN | F89: =SUMPRODUCT(H89:L89,Dashboard!$G$129:$K$129)/SUM(Dashboard!$G$129:$K$129) -> 0.340507946 | H89: 0.3370339253 | I89: 0.2376900251 | J89: 0.01753032585 | K89: 0.4400314806 | L89: 1 | N89: 0.5761304064 | O89: 0.1205377209 | P89: 0.01719728873 | Q89: 0.40588865 | R89: 0 | T89: 114667360.2 | U89: 66063352.84 | V89: 1136110.553 | W89: 7963125.986 | X89: 408479.948 | Y89: 0.40588865 | Z89: 0 | AA89: 0 | AC89: Oman | AD89: =SUM(H89:K89/4) -> 0.2580714392
C90: Pakistan | D90: PAK | F90: =SUMPRODUCT(H90:L90,Dashboard!$G$129:$K$129)/SUM(Dashboard!$G$129:$K$129) -> 0.240293736 | H90: 0.04565986354 | I90: 0.02542654033 | J90: 0.3937237274 | K90: 0.1165116808 | L90: 1 | N90: 0.08175430383 | O90: 0.01289434515 | P90: 0.3641803468 | Q90: 0.15180057 | R90: 0 | T90: 374787958.9 | U90: 30640528.66 | V90: 11158678.36 | W90: 395089.552 | X90: 22261.321 | Y90: 0.15180057 | Z90: 0 | AA90: 0 | AC90: Pakistan | AD90: =SUM(H90:K90/4) -> 0.145330453
C91: Panama | D91: PAN | F91: =SUMPRODUCT(H91:L91,Dashboard!$G$129:$K$129)/SUM(Dashboard!$G$129:$K$129) -> 0.1865194998 | H91: 0.02560466246 | I91: 0.0178921214 | J91: 0.2127192273 | K91: 0.08312173794 | L91: 1 | N91: 0.04772652495 | O91: 0.009073479355 | P91: 0.1972303293 | Q91: 0.12557656 | R91: 0 | T91: 76522511.78 | U91: 3652153.568 | V91: 720315.451 | W91: 33137.74 | X91: 154.01 | Y91: 0.12557656 | Z91: 0 | AA91: 0 | AC91: Panama | AD91: =SUM(H91:K91/4) -> 0.08483443728
C92: Peru | D92: PER | F92: =SUMPRODUCT(H92:L92,Dashboard!$G$129:$K$129)/SUM(Dashboard!$G$129:$K$129) -> 0.2125140292 | H92: 0.1365713489 | I92: 0.01507032938 | J92: 0.1544191997 | K92: 0.1502522535 | L92: 1 | N92: 0.2360043615 | O92: 0.007642487965 | P92: 0.1434571324 | Q92: 0.17829996 | R92: 0 | T92: 246488757.6 | U92: 58172421.87 | V92: 8345248.826 | W92: 444582.034 | X92: 3192.738 | Y92: 0.17829996 | Z92: 0 | AA92: 0 | AC92: Peru | AD92: =SUM(H92:K92/4) -> 0.1140782829
C93: Philippines | D93: PHL | F93: =SUMPRODUCT(H93:L93,Dashboard!$G$129:$K$129)/SUM(Dashboard!$G$129:$K$129) -> 0.1936876797 | H93: 0.1125203477 | I93: 0.02125447085 | J93: 0.1258912807 | K93: 0.1119284596 | L93: 1 | N93: 0.1951968848 | O93: 0.01077859904 | P93: 0.1171443248 | Q93: 0.14820097 | R93: 0 | T93: 404353369.6 | U93: 78928518.08 | V93: 9246027.96 | W93: 850738.849 | X93: 28670.293 | Y93: 0.14820097 | Z93: 0 | AA93: 0 | AC93: Philippines | AD93: =SUM(H93:K93/4) -> 0.09289863971
C94: Paraguay | D94: PRY | F94: =SUMPRODUCT(H94:L94,Dashboard!$G$129:$K$129)/SUM(Dashboard!$G$129:$K$129) -> 0.2545011251 | H94: 0.137234671 | I94: 0.3513054736 | J94: 0.05717992375 | K94: 0.09953499455 | L94: 1 | N94: 0.2371298239 | O94: 0.178154557 | P94: 0.05376820856 | Q94: 0.13846731 | R94: 0 | T94: 41952910.86 | U94: 9948286.364 | V94: 534901.536 | W94: 1772332.55 | X94: 151.106 | Y94: 0.13846731 | Z94: 0 | AA94: 0 | AC94: Paraguay | AD94: =SUM(H94:K94/4) -> 0.1613137657
C95: French Polynesia | D95: PYF | F95: =SUMPRODUCT(H95:L95,Dashboard!$G$129:$K$129)/SUM(Dashboard!$G$129:$K$129) -> 0.2515585716 | H95: 0.01231941943 | I95: 0.007329794353 | J95: 0.3864427251 | K95: 0.2259216333 | L95: 1 | N95: 0.02518537413 | O95: 0.003717096271 | P95: 0.3574646935 | Q95: 0.2377296686 | R95: 0 | T95: 5814661.209 | U95: 146444.418 | V95: 52348.709 | W95: 544.348 | X95: 102.364 | Y95: 0.2377296686 | Z95: 0 | AA95: 0 | AC95: French Polynesia | AD95: =SUM(H95:K95/4) -> 0.158003393
C96: Qatar | D96: QAT | F96: =SUMPRODUCT(H96:L96,Dashboard!$G$129:$K$129)/SUM(Dashboard!$G$129:$K$129) -> 0.3182962362 | H96: 0.3248598662 | I96: 0.10116983 | J96: 0.2450954232 | K96: 0.2612079436 | L96: 1 | N96: 0.5554746079 | O96: 0.05130539546 | P96: 0.2270926061 | Q96: 0.26544306 | R96: 0 | T96: 235770403.7 | U96: 130964472.6 | V96: 29741063.38 | W96: 6719184.056 | X96: 100556.111 | Y96: 0.26544306 | Z96: 0 | AA96: 0 | AC96: Qatar | AD96: =SUM(H96:K96/4) -> 0.2330832658
C97: Senegal | D97: SEN | F97: =SUMPRODUCT(H97:L97,Dashboard!$G$129:$K$129)/SUM(Dashboard!$G$129:$K$129) -> 0.2346379403 | H97: 0.119328737 | I97: 0.106262921 | J97: 0.1208651578 | K97: 0.2094139154 | L97: 1 | N97: 0.2067487193 | O97: 0.05388821135 | P97: 0.1125084661 | Q97: 0.22476473 | R97: 0 | T97: 27619479.06 | U97: 5710291.923 | V97: 642456.185 | W97: 307717.418 | X97: 4601.733 | Y97: 0.22476473 | Z97: 0 | AA97: 0 | AC97: Senegal | AD97: =SUM(H97:K97/4) -> 0.1389676828
C98: Serbia | D98: SRB | F98: =SUMPRODUCT(H98:L98,Dashboard!$G$129:$K$129)/SUM(Dashboard!$G$129:$K$129) -> 0.432571952 | H98: 0.2669234669 | I98: 0.2418660695 | J98: 0.711862614 | K98: 0.2259216333 | L98: 1 | N98: 0.4571735749 | O98: 0.1226554828 | P98: 0.6576166572 | Q98: 0.2377296686 | R98: 0 | T98: 63563410.72 | U98: 29059511.71 | V98: 19110018.95 | W98: 3564308.439 | X98: 2464851.399 | Y98: 0.2377296686 | Z98: 0 | AA98: 0 | AC98: Serbia | AD98: =SUM(H98:K98/4) -> 0.3616434459
C99: Singapore | D99: SGP | F99: =SUMPRODUCT(H99:L99,Dashboard!$G$129:$K$129)/SUM(Dashboard!$G$129:$K$129) -> 0.2856186228 | H99: 0.6063520733 | I99: 0.01833084164 | J99: 0.09054522628 | K99: 0.07005566139 | L99: 1 | N99: 1.033084109 | O99: 0.00929596382 | P99: 0.08454279062 | Q99: 0.11531464 | R99: 0 | T99: 498474541 | U99: 514966127 | V99: 43536673.45 | W99: 4787106.485 | X99: 269114.004 | Y99: 0.11531464 | Z99: 0 | AA99: 0 | AC99: Singapore | AD99: =SUM(H99:K99/4) -> 0.1963209506
C100: El Salvador | D100: SLV | F100: =SUMPRODUCT(H100:L100,Dashboard!$G$129:$K$129)/SUM(Dashboard!$G$129:$K$129) -> 0.1915018481 | H100: 0.1285674232 | I100: 0.09878752003 | J100: 0.04545270903 | K100: 0.08895066428 | L100: 1 | N100: 0.2224240532 | O100: 0.05009727485 | P100: 0.04295157858 | Q100: 0.13015452 | R100: 0 | T100: 31988920 | U100: 7115105.244 | V100: 305605.002 | W100: 356447.383 | X100: 39.181 | Y100: 0.13015452 | Z100: 0 | AA100: 0 | AC100: El Salvador | AD100: =SUM(H100:K100/4) -> 0.09043957915
C101: Seychelles | D101: SYC | F101: =SUMPRODUCT(H101:L101,Dashboard!$G$129:$K$129)/SUM(Dashboard!$G$129:$K$129) -> 0.3340750158 | H101: 0.170825728 | I101: 0.005404718431 | J101: 0.6291446539 | K101: 0.1979624707 | L101: 1 | N101: 0.2941239701 | O101: 0.002740848891 | P101: 0.5813215106 | Q101: 0.21577092 | R101: 0 | T101: 2057968.52 | U101: 605297.8715 | V101: 351872.673 | W101: 1659.03 | X101: 45.286 | Y101: 0.21577092 | Z101: 0 | AA101: 0 | AC101: Seychelles | AD101: =SUM(H101:K101/4) -> 0.2508343928
C102: Togo | D102: TGO | F102: =SUMPRODUCT(H102:L102,Dashboard!$G$129:$K$129)/SUM(Dashboard!$G$129:$K$129) -> 0.2114756652 | H102: 0.09474442564 | I102: 0.1186558459 | J102: 0.08513244444 | K102: 0.1531077775 | L102: 1 | N102: 0.1650363721 | O102: 0.06017292995 | P102: 0.07955029583 | Q102: 0.18054265 | R102: 0 | T102: 8169476.149 | U102: 1348260.706 | V102: 107254.538 | W102: 81128.797 | X102: 123.856 | Y102: 0.18054265 | Z102: 0 | AA102: 0 | AC102: Togo | AD102: =SUM(H102:K102/4) -> 0.1129101234
C103: Thailand | D103: THA | F103: =SUMPRODUCT(H103:L103,Dashboard!$G$129:$K$129)/SUM(Dashboard!$G$129:$K$129) -> 0.2731138324 | H103: 0.3349698933 | I103: 0.06265966371 | J103: 0.1014922053 | K103: 0.2298904836 | L103: 1 | N103: 0.572628351 | O103: 0.03177606234 | P103: 0.09463976797 | Q103: 0.24084675 | R103: 0 | T103: 495645211 | U103: 283820499.8 | V103: 26860706.25 | W103: 9018697.897 | X103: 537888.131 | Y103: 0.24084675 | Z103: 0 | AA103: 0 | AC103: Thailand | AD103: =SUM(H103:K103/4) -> 0.1822530615
C104: East Timor | D104: TLS | F104: =SUMPRODUCT(H104:L104,Dashboard!$G$129:$K$129)/SUM(Dashboard!$G$129:$K$129) -> 0.18416791 | H104: 0.08423835187 | I104: 0.005612313172 | J104: 0.01298329644 | K104: 0.2259216333 | L104: 1 | N104: 0.1472106543 | O104: 0.002846124647 | P104: 0.01300332316 | Q104: 0.2377296686 | R104: 0 | T104: 3204753 | U104: 471773.786 | V104: 6134.627 | W104: 1342.727 | X104: 0.42 | Y104: 0.2377296686 | Z104: 0 | AA104: 0 | AC104: East Timor | AD104: =SUM(H104:K104/4) -> 0.0821888987
C105: Tunisia | D105: TUN | F105: =SUMPRODUCT(H105:L105,Dashboard!$G$129:$K$129)/SUM(Dashboard!$G$129:$K$129) -> 0.4213706173 | H105: 0.2426593929 | I105: 0.1215582669 | J105: 0.7588113732 | K105: 0.2731387447 | L105: 1 | N105: 0.4160045763 | O105: 0.06164481007 | P105: 0.7009199793 | Q105: 0.27481335 | R105: 0 | T105: 44579761.02 | U105: 18545384.59 | V105: 12998830.59 | W105: 1143226.711 | X105: 546817.325 | Y105: 0.27481335 | Z105: 0 | AA105: 0 | AC105: Tunisia | AD105: =SUM(H105:K105/4) -> 0.3490419444
C106: Turkey | D106: TUR | F106: =SUMPRODUCT(H106:L106,Dashboard!$G$129:$K$129)/SUM(Dashboard!$G$129:$K$129) -> 0.3480916342 | H106: 0.1626161124 | I106: 0.2450502821 | J106: 0.5030177648 | K106: 0.1557281944 | L106: 1 | N106: 0.2801946665 | O106: 0.1242702654 | P106: 0.4649880143 | Q106: 0.18260069 | R106: 0 | T106: 907118436 | U106: 254169747.7 | V106: 118185886.3 | W106: 31585742.01 | X106: 14437523.63 | Y106: 0.18260069 | Z106: 0 | AA106: 0 | AC106: Turkey | AD106: =SUM(H106:K106/4) -> 0.2666030884
C107: Tanzania | D107: TZA | F107: =SUMPRODUCT(H107:L107,Dashboard!$G$129:$K$129)/SUM(Dashboard!$G$129:$K$129) -> 0.1612522656 | H107: 0.04965033106 | I107: 0.05799469418 | J107: 0.09474677803 | K107: 0.02324339193 | L107: 1 | N107: 0.08852495379 | O107: 0.02941035602 | P107: 0.08841810387 | Q107: 0.078548916 | R107: 0 | T107: 75769974.51 | U107: 6707533.492 | V107: 593067.393 | W107: 197270.948 | X107: 508.544 | Y107: 0.078548916 | Z107: 0 | AA107: 0 | AC107: Tanzania | AD107: =SUM(H107:K107/4) -> 0.0564087988
C108: Ukraine | D108: UKR | F108: =SUMPRODUCT(H108:L108,Dashboard!$G$129:$K$129)/SUM(Dashboard!$G$129:$K$129) -> 0.4848098135 | H108: =IFERROR(((N108-MIN(N$12:N$116))/(MAX(N$12:N$116)-MIN(N$12:N$116))),"") -> 0.1591764034 | I108: =IFERROR(((O108-MIN(O$12:O$116))/(MAX(O$12:O$116)-MIN(O$12:O$116))),"") -> 0.3299462996 | J108: =IFERROR(((P108-MIN(P$12:P$116))/(MAX(P$12:P$116)-MIN(P$12:P$116))),"") -> 0.6933964413 | K108: =IFERROR(((Q108-MIN(Q$12:Q$116))/(MAX(Q$12:Q$116)-MIN(Q$12:Q$116))),"") -> 0.5049604049 | L108: =IFERROR(1-((R108-MIN(R$12:R$116))/(MAX(R$12:R$116)-MIN(R$12:R$116))),"") -> 0.9883292235 | N108: =IFERROR(U108/T108,"") -> 0.2743584918 | O108: =IFERROR(W108/U108,"") -> 0.1673228607 | P108: 0.6405843301 | Q108: 0.45688295 | R108: 0.3097017 | T108: 161989520.7 | U108: 44443200.59 | V108: 28469617.88 | W108: 7436363.463 | X108: 4991272.876 | Y108: 0.45688295 | Z108: 0.3097017 | AA108: 0 | AC108: Ukraine | AD108: =SUM(H108:K108/4) -> 0.4218698873
C109: Uruguay | D109: URY | F109: =SUMPRODUCT(H109:L109,Dashboard!$G$129:$K$129)/SUM(Dashboard!$G$129:$K$129) -> 0.1771948738 | H109: 0.0914165097 | I109: 0.0433580969 | J109: 0.0938601701 | K109: 0.06874215522 | L109: 1 | N109: 0.1593898774 | O109: 0.02198782292 | P109: 0.08760033851 | Q109: 0.11428303 | R109: 0 | T109: 70164683.29 | U109: 11183540.27 | V109: 979681.913 | W109: 245901.703 | X109: 1060.153 | Y109: 0.11428303 | Z109: 0 | AA109: 0 | AC109: Uruguay | AD109: =SUM(H109:K109/4) -> 0.07434423298
C110: United States | D110: USA | F110: =SUMPRODUCT(H110:L110,Dashboard!$G$129:$K$129)/SUM(Dashboard!$G$129:$K$129) -> 0.2243603453 | H110: 0.04468455177 | I110: 0.04401308423 | J110: 0.1944183004 | K110: 0.2535642038 | L110: 0.9458828274 | N110: 0.08009948656 | O110: 0.02231998108 | P110: 0.1803504171 | Q110: 0.25943977 | R110: 1.436081 | T110: 25744108000 | U110: 2062089833 | V110: 371898761.5 | W110: 46025806.05 | X110: 4028352.047 | Y110: 0.25943977 | Z110: 0 | AA110: 1.436081 | AC110: United States | AD110: =SUM(H110:K110/4) -> 0.1341700351
C111: Uzbekistan | D111: UZB | F111: =SUMPRODUCT(H111:L111,Dashboard!$G$129:$K$129)/SUM(Dashboard!$G$129:$K$129) -> 0.2336832214 | H111: 0.1085143987 | I111: 0.08871863667 | J111: 0.04092133843 | K111: 0.3134201226 | L111: 1 | N111: 0.1883999672 | O111: 0.04499112767 | P111: 0.03877205597 | Q111: 0.3064498 | R111: 0 | T111: 81140823.25 | U111: 15286928.44 | V111: 592705.645 | W111: 687776.149 | X111: 192537.95 | Y111: 0.3064498 | Z111: 0 | AA111: 0 | AC111: Uzbekistan | AD111: =SUM(H111:K111/4) -> 0.1378936241
C112: Vietnam | D112: VNM | F112: =SUMPRODUCT(H112:L112,Dashboard!$G$129:$K$129)/SUM(Dashboard!$G$129:$K$129) -> 0.3816599615 | H112: 0.5302386924 | I112: 0.08617954171 | J112: 0.1531174677 | K112: 0.4479341248 | L112: 1 | N112: 0.9039420832 | O112: 0.04370349803 | P112: 0.1422564761 | Q112: 0.41209528 | R112: 0 | T112: 410324028.9 | U112: 370909157.4 | V112: 52764229.7 | W112: 16210027.63 | X112: 2998662.108 | Y112: 0.41209528 | Z112: 0 | AA112: 0 | AC112: Vietnam | AD112: =SUM(H112:K112/4) -> 0.3043674566
C113: South Africa | D113: ZAF | F113: =SUMPRODUCT(H113:L113,Dashboard!$G$129:$K$129)/SUM(Dashboard!$G$129:$K$129) -> 0.3713251105 | H113: 0.1743398659 | I113: 0.2341314942 | J113: 0.2817508701 | K113: 0.6342503167 | L113: 0.6929809012 | N113: 0.3000864287 | O113: 0.1187331134 | P113: 0.2609018622 | Q113: 0.5584255 | R113: 8.147216 | T113: 405270850.1 | U113: 121616282.1 | V113: 31729914.46 | W113: 14439879.8 | X113: 2924875.324 | Y113: 0.5584255 | Z113: 8.147216 | AA113: 0 | AC113: South Africa | AD113: =SUM(H113:K113/4) -> 0.3311181367
C114: Congo, Dem. Rep. | D114: COD | F114: =SUMPRODUCT(H114:L114,Dashboard!$G$129:$K$129)/SUM(Dashboard!$G$129:$K$129) -> 0.2132260654 | H114: 0.1378524278 | I114: 0.0003595107574 | J114: 0.09538372261 | K114: 0.2259216333 | L114: 1 | N114: 0.2381779756 | O114: 0.0001823156328 | P114: 0.08900559153 | Q114: 0.2377296686 | R114: 0 | T114: 65801547.62 | U114: 15672479.4 | V114: 1394938.3 | W114: 2857.338 | X114: 58.906 | Y114: 0.2377296686 | Z114: 0 | AA114: 0 | AC114: Congo, Dem. Rep. | AD114: =SUM(H114:K114/4) -> 0.1148793236
C115: Zambia | D115: ZMB | F115: =SUMPRODUCT(H115:L115,Dashboard!$G$129:$K$129)/SUM(Dashboard!$G$129:$K$129) -> 0.2106803209 | H115: 0.2327670313 | I115: 0.1017497083 | J115: 0.02440324231 | K115: 0.08914146206 | L115: 1 | N115: 0.3992201475 | O115: 0.05159946417 | P115: 0.02353654284 | Q115: 0.13030437 | R115: 0 | T115: 29163782.14 | U115: 11642769.41 | V115: 274030.541 | W115: 600760.663 | X115: 20191.407 | Y115: 0.13030437 | Z115: 0 | AA115: 0 | AC115: Zambia | AD115: =SUM(H115:K115/4) -> 0.112015361
C116: Zimbabwe | D116: ZWE | F116: =SUMPRODUCT(H116:L116,Dashboard!$G$129:$K$129)/SUM(Dashboard!$G$129:$K$129) -> 0.2627379478 | H116: 0.1390442517 | I116: 0.1201288838 | J116: 0.06457898404 | K116: 0.3585686456 | L116: 1 | N116: 0.2402001504 | O116: 0.06091993915 | P116: 0.06059275295 | Q116: 0.34190884 | R116: 0 | T116: 27366627.15 | U116: 6573467.958 | V116: 398304.52 | W116: 400455.268 | X116: 97886.404 | Y116: 0.34190884 | Z116: 0 | AA116: 0 | AC116: Zimbabwe | AD116: =SUM(H116:K116/4) -> 0.1705801913

Sheet Trade Data
C2: Trade Data and Emission Intensities
C4: This tab calculates emissions and carbon costs. Trade data, price data, and selected emissions data can be adjusted in the yellow cells. Carbon cost chart data is derived here.
D7: Carbon Cost Chart 1
D8: 0 | E8: 20 | F8: 40 | G8: 60 | H8: 80 | I8: 100 | J8: 120 | K8: 140 | L8: 160 | M8: 180 | N8: 200
C9: =INDEX('Index Calculation'!$D$12:$D$116,MATCH(Dashboard!$D$103,'Index Calculation'!$C$12:$C$116,0),1)&"EU27"&C23 -> IDNEU27Iron & Steel | D9: =IFERROR(INDEX($N$31:$X$1191,MATCH($C9,$C$31:$C$1191,0),MATCH(D$8,$N$30:$X$30,0)),"") -> 0 | E9: =IFERROR(INDEX($N$31:$X$1191,MATCH($C9,$C$31:$C$1191,0),MATCH(E$8,$N$30:$X$30,0)),"") -> 27183.54344 | F9: 54367.08688 | G9: 81550.63031 | H9: 108734.1738 | I9: 135917.7172 | J9: 163101.2606 | K9: 190284.8041 | L9: 217468.3475 | M9: 244651.8909 | N9: 271835.4344
C10: =INDEX('Index Calculation'!$D$12:$D$116,MATCH(Dashboard!$D$103,'Index Calculation'!$C$12:$C$116,0),1)&"EU27"&C24 -> IDNEU27Aluminum | D10: 0 | E10: 1496.220899 | F10: 2992.441799 | G10: 4488.662698 | H10: 5984.883597 | I10: 7481.104496 | J10: 8977.325396 | K10: 10473.54629 | L10: 11969.76719 | M10: 13465.98809 | N10: 14962.20899
C11: =INDEX('Index Calculation'!$D$12:$D$116,MATCH(Dashboard!$D$103,'Index Calculation'!$C$12:$C$116,0),1)&"EU27"&C25 -> IDNEU27Cement | D11: 0 | E11: 0.00243082 | F11: 0.00486164 | G11: 0.00729246 | H11: 0.00972328 | I11: 0.0121541 | J11: 0.01458492 | K11: 0.01701574 | L11: 0.01944656 | M11: 0.02187738 | N11: 0.0243082
C12: =INDEX('Index Calculation'!$D$12:$D$116,MATCH(Dashboard!$D$103,'Index Calculation'!$C$12:$C$116,0),1)&"EU27"&C26 -> IDNEU27Fertilizer | D12: 0 | E12: 8411.910187 | F12: 16823.82037 | G12: 25235.73056 | H12: 33647.64075 | I12: 42059.55093 | J12: 50471.46112 | K12: 58883.37131 | L12: 67295.28149 | M12: 75707.19168 | N12: 84119.10187
C13: =INDEX('Index Calculation'!$D$12:$D$116,MATCH(Dashboard!$D$103,'Index Calculation'!$C$12:$C$116,0),1)&"EU27"&C27 -> IDNEU27Electricity
C14: =INDEX('Index Calculation'!$D$12:$D$116,MATCH(Dashboard!$D$103,'Index Calculation'!$C$12:$C$116,0),1)&"EU27"&C28 -> IDNEU27Hydrogen
D16: Carbon Cost Chart 2
D17: 0 | E17: 20 | F17: 40 | G17: 60 | H17: 80 | I17: 100 | J17: 120 | K17: 140 | L17: 160 | M17: 180 | N17: 200
C18: =INDEX('Index Calculation'!$D$12:$D$116,MATCH(Dashboard!E135,'Index Calculation'!$C$12:$C$116,0),1) -> MKD | D18: =SUMIF($D$31:$D$1184,$C18,N$31:N$1184) -> 0 | E18: =SUMIF($D$31:$D$1184,$C18,O$31:O$1184) -> 46226.93096 | F18: 92453.86193 | G18: 138680.7929 | H18: 184907.7239 | I18: 231134.6548 | J18: 277361.5858 | K18: 323588.5167 | L18: 369815.4477 | M18: 416042.3787 | N18: 462269.3096
C19: =INDEX('Index Calculation'!$D$12:$D$116,MATCH(Dashboard!E136,'Index Calculation'!$C$12:$C$116,0),1) -> BIH | D19: 0 | E19: 76559.41497 | F19: 153118.8299 | G19: 229678.2449 | H19: 306237.6599 | I19: 382797.0749 | J19: 459356.4898 | K19: 535915.9048 | L19: 612475.3198 | M19: 689034.7348 | N19: 765594.1497
C20: =INDEX('Index Calculation'!$D$12:$D$116,MATCH(Dashboard!E137,'Index Calculation'!$C$12:$C$116,0),1) -> BHR | D20: 0 | E20: 180986.7932 | F20: 361973.5864 | G20: 542960.3796 | H20: 723947.1728 | I20: 904933.966 | J20: 1085920.759 | K20: 1266907.552 | L20: 1447894.346 | M20: 1628881.139 | N20: 1809867.932
C22: Commodity | D22: World Price (USD/kg) or (USD/kWh) | E22: Direct Emissions Intensity (kgCO2/kg) or (kgCO2/kWh) | F22: Indirect Emissions Intensity (kgCO2/kg) or (kgCO2/kWh) | I22: Commodity | K22: Direct | L22: Indirect | M22: Unit
C23: Iron & Steel | D23: 0.85 | E23: =AVERAGEIF('Emissions Default Values'!$D$10:$D$793,'Trade Data'!$C23,'Emissions Default Values'!E$10:E$793) -> 2.018389121 | F23: =AVERAGEIF('Emissions Default Values'!$D$10:$D$793,'Trade Data'!$C23,'Emissions Default Values'!F$10:F$793) -> 0.7052719665 | I23: Iron & Steel | J23: =INDEX('Index Calculation'!$D$12:$D$116,MATCH(Dashboard!$D$77,'Index Calculation'!$C$12:$C$116,0),1)&"Total"&I23 -> IDNTotalIron & Steel | K23: =IFERROR(INDEX('Trade Data'!$K$31:$K$1191,MATCH('Trade Data'!$J23,'Trade Data'!$C$31:$C$1191,0),1),0) -> 69196527.19 | L23: =IFERROR(INDEX('Trade Data'!$L$31:$L$1191,MATCH('Trade Data'!$J23,'Trade Data'!$C$31:$C$1191,0),1),0) -> 24178871.3 | M23: tCO2e
C24: Aluminum | D24: 2.8 | E24: =AVERAGEIF('Emissions Default Values'!$D$10:$D$793,'Trade Data'!$C24,'Emissions Default Values'!E$10:E$793) -> 2.696724138 | F24: =AVERAGEIF('Emissions Default Values'!$D$10:$D$793,'Trade Data'!$C24,'Emissions Default Values'!F$10:F$793) -> 8.877068966 | I24: Aluminum | J24: =INDEX('Index Calculation'!$D$12:$D$116,MATCH(Dashboard!$D$77,'Index Calculation'!$C$12:$C$116,0),1)&"Total"&I24 -> IDNTotalAluminum | K24: =IFERROR(INDEX('Trade Data'!$K$31:$K$1191,MATCH('Trade Data'!$J24,'Trade Data'!$C$31:$C$1191,0),1),0) -> 827421.5919 | L24: =IFERROR(INDEX('Trade Data'!$L$31:$L$1191,MATCH('Trade Data'!$J24,'Trade Data'!$C$31:$C$1191,0),1),0) -> 2723704.079 | M24: tCO2e
C25: Cement | D25: 0.1 | E25: =AVERAGEIF('Emissions Default Values'!$D$10:$D$793,'Trade Data'!$C25,'Emissions Default Values'!E$10:E$793) -> 0.895 | F25: =AVERAGEIF('Emissions Default Values'!$D$10:$D$793,'Trade Data'!$C25,'Emissions Default Values'!F$10:F$793) -> 0.07833333333 | I25: Cement | J25: =INDEX('Index Calculation'!$D$12:$D$116,MATCH(Dashboard!$D$77,'Index Calculation'!$C$12:$C$116,0),1)&"Total"&I25 -> IDNTotalCement | K25: =IFERROR(INDEX('Trade Data'!$K$31:$K$1191,MATCH('Trade Data'!$J25,'Trade Data'!$C$31:$C$1191,0),1),0) -> 3481898.352 | L25: =IFERROR(INDEX('Trade Data'!$L$31:$L$1191,MATCH('Trade Data'!$J25,'Trade Data'!$C$31:$C$1191,0),1),0) -> 304747.1556 | M25: tCO2e
C26: Fertilizer | D26: 0.3 | E26: =AVERAGEIF('Emissions Default Values'!$D$10:$D$793,'Trade Data'!$C26,'Emissions Default Values'!E$10:E$793) -> 1.6664 | F26: =AVERAGEIF('Emissions Default Values'!$D$10:$D$793,'Trade Data'!$C26,'Emissions Default Values'!F$10:F$793) -> 0.0872 | I26: Fertilizer | J26: =INDEX('Index Calculation'!$D$12:$D$116,MATCH(Dashboard!$D$77,'Index Calculation'!$C$12:$C$116,0),1)&"Total"&I26 -> IDNTotalFertilizer | K26: =IFERROR(INDEX('Trade Data'!$K$31:$K$1191,MATCH('Trade Data'!$J26,'Trade Data'!$C$31:$C$1191,0),1),0) -> 15867246.48 | L26: =IFERROR(INDEX('Trade Data'!$L$31:$L$1191,MATCH('Trade Data'!$J26,'Trade Data'!$C$31:$C$1191,0),1),0) -> 830307.1849 | M26: tCO2e
C27: Electricity | D27: 0.159 | E27: 0.481 | I27: Electricity | J27: =INDEX('Index Calculation'!$D$12:$D$116,MATCH(Dashboard!$D$77,'Index Calculation'!$C$12:$C$116,0),1)&"Total"&I27 -> IDNTotalElectricity | K27: =IFERROR(INDEX('Trade Data'!$K$31:$K$1191,MATCH('Trade Data'!$J27,'Trade Data'!$C$31:$C$1191,0),1),0) -> 0 | L27: =IFERROR(INDEX('Trade Data'!$L$31:$L$1191,MATCH('Trade Data'!$J27,'Trade Data'!$C$31:$C$1191,0),1),0) -> 0 | M27: tCO2e
C28: Hydrogen | D28: 6.68 | E28: =AVERAGEIF('Emissions Default Values'!$D$10:$D$793,'Trade Data'!$C28,'Emissions Default Values'!E$10:E$793) -> 10.4 | F28: =AVERAGEIF('Emissions Default Values'!$D$10:$D$793,'Trade Data'!$C28,'Emissions Default Values'!F$10:F$793) -> 0 | I28: Hydrogen | J28: =INDEX('Index Calculation'!$D$12:$D$116,MATCH(Dashboard!$D$77,'Index Calculation'!$C$12:$C$116,0),1)&"Total"&I28 -> IDNTotalHydrogen | K28: =IFERROR(INDEX('Trade Data'!$K$31:$K$1191,MATCH('Trade Data'!$J28,'Trade Data'!$C$31:$C$1191,0),1),0) -> 212.7313772 | L28: =IFERROR(INDEX('Trade Data'!$L$31:$L$1191,MATCH('Trade Data'!$J28,'Trade Data'!$C$31:$C$1191,0),1),0) -> 0 | M28: tCO2e
N29: Carbon price (USD) and Carbon Cost (kUSD)
C30: ID | D30: ISO3_Exporter | E30: Destination | F30: Commodity | G30: Exports (kUSD) | H30: Exports (kg) | I30: Applied Emmissions for Emissions Analysis (tCO2) | J30: Applied Emmissions for Carbon Cost Analysis (tCO2) | K30: Direct Emissions (tCO2) | L30: Indirect Emissions (tCO2) | M30: Total Emissions (tCO2) | N30: 0 | O30: 20 | P30: 40 | Q30: 60 | R30: 80 | S30: 100 | T30: 120 | U30: 140 | V30: 160 | W30: 180 | X30: 200
C31: =D31&E31&F31 -> AGOTotalAluminum | D31: AGO | E31: Total | F31: Aluminum | G31: 5432.842 | H31: =(G31*1000/INDEX($D$23:$D$28,MATCH(F31,$C$23:$C$28,0),1)) -> 1940300.714 | I31: =INDEX(K31:M31,1,MATCH(Dashboard!$F$77,'Trade Data'!$K$30:$M$30,0)) -> 22456.63903 | J31: =INDEX(K31:M31,1,MATCH(Dashboard!$F$103,'Trade Data'!$K$30:$M$30,0)) -> 5232.455771 | K31: =H31*INDEX($E$23:$E$28,MATCH(F31,$C$23:$C$28,0),1)/10^3 -> 5232.455771 | L31: =H31*INDEX($F$23:$F$28,MATCH(F31,$C$23:$C$28,0),1)/10^3 -> 17224.18325 | M31: =K31+L31 -> 22456.63903 | N31: =($J31*N$30/10^3)*INDEX(Ranges!$D$56:$D$64,MATCH(Dashboard!$H$103,Ranges!$E$56:$E$64,0),1) -> 0 | O31: =($J31*O$30/10^3)*INDEX(Ranges!$D$56:$D$64,MATCH(Dashboard!$H$103,Ranges!$E$56:$E$64,0),1) -> 50.75482098 | P31: =($J31*P$30/10^3)*INDEX(Ranges!$D$56:$D$64,MATCH(Dashboard!$H$103,Ranges!$E$56:$E$64,0),1) -> 101.509642 | Q31: =($J31*Q$30/10^3)*INDEX(Ranges!$D$56:$D$64,MATCH(Dashboard!$H$103,Ranges!$E$56:$E$64,0),1) -> 152.2644629 | R31: =($J31*R$30/10^3)*INDEX(Ranges!$D$56:$D$64,MATCH(Dashboard!$H$103,Ranges!$E$56:$E$64,0),1) -> 203.0192839 | S31: =($J31*S$30/10^3)*INDEX(Ranges!$D$56:$D$64,MATCH(Dashboard!$H$103,Ranges!$E$56:$E$64,0),1) -> 253.7741049 | T31: =($J31*T$30/10^3)*INDEX(Ranges!$D$56:$D$64,MATCH(Dashboard!$H$103,Ranges!$E$56:$E$64,0),1) -> 304.5289259 | U31: =($J31*U$30/10^3)*INDEX(Ranges!$D$56:$D$64,MATCH(Dashboard!$H$103,Ranges!$E$56:$E$64,0),1) -> 355.2837469 | V31: =($J31*V$30/10^3)*INDEX(Ranges!$D$56:$D$64,MATCH(Dashboard!$H$103,Ranges!$E$56:$E$64,0),1) -> 406.0385678 | W31: =($J31*W$30/10^3)*INDEX(Ranges!$D$56:$D$64,MATCH(Dashboard!$H$103,Ranges!$E$56:$E$64,0),1) -> 456.7933888 | X31: =($J31*X$30/10^3)*INDEX(Ranges!$D$56:$D$64,MATCH(Dashboard!$H$103,Ranges!$E$56:$E$64,0),1) -> 507.5482098
C32: =D32&E32&F32 -> AGOTotalCement | D32: AGO | E32: Total | F32: Cement | G32: 19127.733 | H32: =(G32*1000/INDEX($D$23:$D$28,MATCH(F32,$C$23:$C$28,0),1)) -> 191277330 | I32: =INDEX(K32:M32,1,MATCH(Dashboard!$F$77,'Trade Data'!$K$30:$M$30,0)) -> 186176.6012 | J32: =INDEX(K32:M32,1,MATCH(Dashboard!$F$103,'Trade Data'!$K$30:$M$30,0)) -> 171193.2104 | K32: =H32*INDEX($E$23:$E$28,MATCH(F32,$C$23:$C$28,0),1)/10^3 -> 171193.2104 | L32: =H32*INDEX($F$23:$F$28,MATCH(F32,$C$23:$C$28,0),1)/10^3 -> 14983.39085 | M32: =K32+L32 -> 186176.6012 | N32: =($J32*N$30/10^3)*INDEX(Ranges!$D$56:$D$64,MATCH(Dashboard!$H$103,Ranges!$E$56:$E$64,0),1) -> 0 | O32: =($J32*O$30/10^3)*INDEX(Ranges!$D$56:$D$64,MATCH(Dashboard!$H$103,Ranges!$E$56:$E$64,0),1) -> 1660.57414 | P32: =($J32*P$30/10^3)*INDEX(Ranges!$D$56:$D$64,MATCH(Dashboard!$H$103,Ranges!$E$56:$E$64,0),1) -> 3321.148281 | Q32: =($J32*Q$30/10^3)*INDEX(Ranges!$D$56:$D$64,MATCH(Dashboard!$H$103,Ranges!$E$56:$E$64,0),1) -> 4981.722421 | R32: =($J32*R$30/10^3)*INDEX(Ranges!$D$56:$D$64,MATCH(Dashboard!$H$103,Ranges!$E$56:$E$64,0),1) -> 6642.296562 | S32: =($J32*S$30/10^3)*INDEX(Ranges!$D$56:$D$64,MATCH(Dashboard!$H$103,Ranges!$E$56:$E$64,0),1) -> 8302.870702 | T32: =($J32*T$30/10^3)*INDEX(Ranges!$D$56:$D$64,MATCH(Dashboard!$H$103,Ranges!$E$56:$E$64,0),1) -> 9963.444842 | U32: =($J32*U$30/10^3)*INDEX(Ranges!$D$56:$D$64,MATCH(Dashboard!$H$103,Ranges!$E$56:$E$64,0),1) -> 11624.01898 | V32: =($J32*V$30/10^3)*INDEX(Ranges!$D$56:$D$64,MATCH(Dashboard!$H$103,Ranges!$E$56:$E$64,0),1) -> 13284.59312 | W32: =($J32*W$30/10^3)*INDEX(Ranges!$D$56:$D$64,MATCH(Dashboard!$H$103,Ranges!$E$56:$E$64,0),1) -> 14945.16726 | X32: =($J32*X$30/10^3)*INDEX(Ranges!$D$56:$D$64,MATCH(Dashboard!$H$103,Ranges!$E$56:$E$64,0),1) -> 16605.7414
C33: AGOTotalFertilizer | D33: AGO | E33: Total | F33: Fertilizer | G33: 193.954 | H33: 646513.3333 | I33: =INDEX(K33:M33,1,MATCH(Dashboard!$F$77,'Trade Data'!$K$30:$M$30,0)) -> 1133.725781 | J33: =INDEX(K33:M33,1,MATCH(Dashboard!$F$103,'Trade Data'!$K$30:$M$30,0)) -> 1077.349819 | K33: =H33*INDEX($E$23:$E$28,MATCH(F33,$C$23:$C$28,0),1)/10^3 -> 1077.349819 | L33: 56.37596267 | M33: 1133.725781 | N33: =($J33*N$30/10^3)*INDEX(Ranges!$D$56:$D$64,MATCH(Dashboard!$H$103,Ranges!$E$56:$E$64,0),1) -> 0 | O33: =($J33*O$30/10^3)*INDEX(Ranges!$D$56:$D$64,MATCH(Dashboard!$H$103,Ranges!$E$56:$E$64,0),1) -> 10.45029324 | P33: =($J33*P$30/10^3)*INDEX(Ranges!$D$56:$D$64,MATCH(Dashboard!$H$103,Ranges!$E$56:$E$64,0),1) -> 20.90058648 | Q33: =($J33*Q$30/10^3)*INDEX(Ranges!$D$56:$D$64,MATCH(Dashboard!$H$103,Ranges!$E$56:$E$64,0),1) -> 31.35087972 | R33: =($J33*R$30/10^3)*INDEX(Ranges!$D$56:$D$64,MATCH(Dashboard!$H$103,Ranges!$E$56:$E$64,0),1) -> 41.80117296 | S33: =($J33*S$30/10^3)*INDEX(Ranges!$D$56:$D$64,MATCH(Dashboard!$H$103,Ranges!$E$56:$E$64,0),1) -> 52.25146621 | T33: =($J33*T$30/10^3)*INDEX(Ranges!$D$56:$D$64,MATCH(Dashboard!$H$103,Ranges!$E$56:$E$64,0),1) -> 62.70175945 | U33: =($J33*U$30/10^3)*INDEX(Ranges!$D$56:$D$64,MATCH(Dashboard!$H$103,Ranges!$E$56:$E$64,0),1) -> 73.15205269 | V33: =($J33*V$30/10^3)*INDEX(Ranges!$D$56:$D$64,MATCH(Dashboard!$H$103,Ranges!$E$56:$E$64,0),1) -> 83.60234593 | W33: =($J33*W$30/10^3)*INDEX(Ranges!$D$56:$D$64,MATCH(Dashboard!$H$103,Ranges!$E$56:$E$64,0),1) -> 94.05263917 | X33: =($J33*X$30/10^3)*INDEX(Ranges!$D$56:$D$64,MATCH(Dashboard!$H$103,Ranges!$E$56:$E$64,0),1) -> 104.5029324
C34: AGOTotalIron & Steel | D34: AGO | E34: Total | F34: Iron & Steel | G34: 45405.879 | H34: 53418681.18 | I34: =INDEX(K34:M34,1,MATCH(Dashboard!$F$77,'Trade Data'!$K$30:$M$30,0)) -> 145494.3833 | J34: =INDEX(K34:M34,1,MATCH(Dashboard!$F$103,'Trade Data'!$K$30:$M$30,0)) -> 107819.685 | K34: 107819.685 | L34: 37674.69832 | M34: 145494.3833 | N34: =($J34*N$30/10^3)*INDEX(Ranges!$D$56:$D$64,MATCH(Dashboard!$H$103,Ranges!$E$56:$E$64,0),1) -> 0 | O34: =($J34*O$30/10^3)*INDEX(Ranges!$D$56:$D$64,MATCH(Dashboard!$H$103,Ranges!$E$56:$E$64,0),1) -> 1045.850944 | P34: =($J34*P$30/10^3)*INDEX(Ranges!$D$56:$D$64,MATCH(Dashboard!$H$103,Ranges!$E$56:$E$64,0),1) -> 2091.701888 | Q34: =($J34*Q$30/10^3)*INDEX(Ranges!$D$56:$D$64,MATCH(Dashboard!$H$103,Ranges!$E$56:$E$64,0),1) -> 3137.552832 | R34: =($J34*R$30/10^3)*INDEX(Ranges!$D$56:$D$64,MATCH(Dashboard!$H$103,Ranges!$E$56:$E$64,0),1) -> 4183.403777 | S34: =($J34*S$30/10^3)*INDEX(Ranges!$D$56:$D$64,MATCH(Dashboard!$H$103,Ranges!$E$56:$E$64,0),1) -> 5229.254721 | T34: =($J34*T$30/10^3)*INDEX(Ranges!$D$56:$D$64,MATCH(Dashboard!$H$103,Ranges!$E$56:$E$64,0),1) -> 6275.105665 | U34: =($J34*U$30/10^3)*INDEX(Ranges!$D$56:$D$64,MATCH(Dashboard!$H$103,Ranges!$E$56:$E$64,0),1) -> 7320.956609 | V34: =($J34*V$30/10^3)*INDEX(Ranges!$D$56:$D$64,MATCH(Dashboard!$H$103,Ranges!$E$56:$E$64,0),1) -> 8366.807553 | W34: =($J34*W$30/10^3)*INDEX(Ranges!$D$56:$D$64,MATCH(Dashboard!$H$103,Ranges!$E$56:$E$64,0),1) -> 9412.658497 | X34: =($J34*X$30/10^3)*INDEX(Ranges!$D$56:$D$64,MATCH(Dashboard!$H$103,Ranges!$E$56:$E$64,0),1) -> 10458.50944
C35: ALBTotalAluminum | D35: ALB | E35: Total | F35: Aluminum | G35: 46.335 | H35: 16548.21429 | I35: =INDEX(K35:M35,1,MATCH(Dashboard!$F$77,'Trade Data'!$K$30:$M$30,0)) -> 191.5256084 | J35: =INDEX(K35:M35,1,MATCH(Dashboard!$F$103,'Trade Data'!$K$30:$M$30,0)) -> 44.6259689 | K35: 44.6259689 | L35: 146.8996395 | M35: 191.5256084 | N35: =($J35*N$30/10^3)*INDEX(Ranges!$D$56:$D$64,MATCH(Dashboard!$H$103,Ranges!$E$56:$E$64,0),1) -> 0 | O35: =($J35*O$30/10^3)*INDEX(Ranges!$D$56:$D$64,MATCH(Dashboard!$H$103,Ranges!$E$56:$E$64,0),1) -> 0.4328718984 | P35: =($J35*P$30/10^3)*INDEX(Ranges!$D$56:$D$64,MATCH(Dashboard!$H$103,Ranges!$E$56:$E$64,0),1) -> 0.8657437967 | Q35: =($J35*Q$30/10^3)*INDEX(Ranges!$D$56:$D$64,MATCH(Dashboard!$H$103,Ranges!$E$56:$E$64,0),1) -> 1.298615695 | R35: =($J35*R$30/10^3)*INDEX(Ranges!$D$56:$D$64,MATCH(Dashboard!$H$103,Ranges!$E$56:$E$64,0),1) -> 1.731487593 | S35: =($J35*S$30/10^3)*INDEX(Ranges!$D$56:$D$64,MATCH(Dashboard!$H$103,Ranges!$E$56:$E$64,0),1) -> 2.164359492 | T35: =($J35*T$30/10^3)*INDEX(Ranges!$D$56:$D$64,MATCH(Dashboard!$H$103,Ranges!$E$56:$E$64,0),1) -> 2.59723139 | U35: =($J35*U$30/10^3)*INDEX(Ranges!$D$56:$D$64,MATCH(Dashboard!$H$103,Ranges!$E$56:$E$64,0),1) -> 3.030103289 | V35: =($J35*V$30/10^3)*INDEX(Ranges!$D$56:$D$64,MATCH(Dashboard!$H$103,Ranges!$E$56:$E$64,0),1) -> 3.462975187 | W35: =($J35*W$30/10^3)*INDEX(Ranges!$D$56:$D$64,MATCH(Dashboard!$H$103,Ranges!$E$56:$E$64,0),1) -> 3.895847085 | X35: =($J35*X$30/10^3)*INDEX(Ranges!$D$56:$D$64,MATCH(Dashboard!$H$103,Ranges!$E$56:$E$64,0),1) -> 4.328718984
C36: ALBTotalElectricity | D36: ALB | E36: Total | F36: Electricity | G36: 8466.046 | H36: 53245572.33 | I36: =INDEX(K36:M36,1,MATCH(Dashboard!$F$77,'Trade Data'!$K$30:$M$30,0)) -> 25611.12029 | J36: =INDEX(K36:M36,1,MATCH(Dashboard!$F$103,'Trade Data'!$K$30:$M$30,0)) -> 25611.12029 | K36: 25611.12029 | L36: 0 | M36: 25611.12029 | N36: =($J36*N$30/10^3)*INDEX(Ranges!$D$56:$D$64,MATCH(Dashboard!$H$103,Ranges!$E$56:$E$64,0),1) -> 0 | O36: =($J36*O$30/10^3)*INDEX(Ranges!$D$56:$D$64,MATCH(Dashboard!$H$103,Ranges!$E$56:$E$64,0),1) -> 248.4278668 | P36: =($J36*P$30/10^3)*INDEX(Ranges!$D$56:$D$64,MATCH(Dashboard!$H$103,Ranges!$E$56:$E$64,0),1) -> 496.8557336 | Q36: =($J36*Q$30/10^3)*INDEX(Ranges!$D$56:$D$64,MATCH(Dashboard!$H$103,Ranges!$E$56:$E$64,0),1) -> 745.2836004 | R36: =($J36*R$30/10^3)*INDEX(Ranges!$D$56:$D$64,MATCH(Dashboard!$H$103,Ranges!$E$56:$E$64,0),1) -> 993.7114672 | S36: =($J36*S$30/10^3)*INDEX(Ranges!$D$56:$D$64,MATCH(Dashboard!$H$103,Ranges!$E$56:$E$64,0),1) -> 1242.139334 | T36: =($J36*T$30/10^3)*INDEX(Ranges!$D$56:$D$64,MATCH(Dashboard!$H$103,Ranges!$E$56:$E$64,0),1) -> 1490.567201 | U36: =($J36*U$30/10^3)*INDEX(Ranges!$D$56:$D$64,MATCH(Dashboard!$H$103,Ranges!$E$56:$E$64,0),1) -> 1738.995068 | V36: =($J36*V$30/10^3)*INDEX(Ranges!$D$56:$D$64,MATCH(Dashboard!$H$103,Ranges!$E$56:$E$64,0),1) -> 1987.422934 | W36: =($J36*W$30/10^3)*INDEX(Ranges!$D$56:$D$64,MATCH(Dashboard!$H$103,Ranges!$E$56:$E$64,0),1) -> 2235.850801 | X36: =($J36*X$30/10^3)*INDEX(Ranges!$D$56:$D$64,MATCH(Dashboard!$H$103,Ranges!$E$56:$E$64,0),1) -> 2484.278668
C37: ALBTotalIron & Steel | D37: ALB | E37: Total | F37: Iron & Steel | G37: 213201.152 | H37: 250824884.7 | I37: =INDEX(K37:M37,1,MATCH(Dashboard!$F$77,'Trade Data'!$K$30:$M$30,0)) -> 683161.9783 | J37: =INDEX(K37:M37,1,MATCH(Dashboard!$F$103,'Trade Data'!$K$30:$M$30,0)) -> 506262.2187 | K37: 506262.2187 | L37: 176899.7597 | M37: 683161.9783 | N37: =($J37*N$30/10^3)*INDEX(Ranges!$D$56:$D$64,MATCH(Dashboard!$H$103,Ranges!$E$56:$E$64,0),1) -> 0 | O37: =($J37*O$30/10^3)*INDEX(Ranges!$D$56:$D$64,MATCH(Dashboard!$H$103,Ranges!$E$56:$E$64,0),1) -> 4910.743521 | P37: =($J37*P$30/10^3)*INDEX(Ranges!$D$56:$D$64,MATCH(Dashboard!$H$103,Ranges!$E$56:$E$64,0),1) -> 9821.487042 | Q37: =($J37*Q$30/10^3)*INDEX(Ranges!$D$56:$D$64,MATCH(Dashboard!$H$103,Ranges!$E$56:$E$64,0),1) -> 14732.23056 | R37: =($J37*R$30/10^3)*INDEX(Ranges!$D$56:$D$64,MATCH(Dashboard!$H$103,Ranges!$E$56:$E$64,0),1) -> 19642.97408 | S37: =($J37*S$30/10^3)*INDEX(Ranges!$D$56:$D$64,MATCH(Dashboard!$H$103,Ranges!$E$56:$E$64,0),1) -> 24553.7176 | T37: =($J37*T$30/10^3)*INDEX(Ranges!$D$56:$D$64,MATCH(Dashboard!$H$103,Ranges!$E$56:$E$64,0),1) -> 29464.46113 | U37: =($J37*U$30/10^3)*INDEX(Ranges!$D$56:$D$64,MATCH(Dashboard!$H$103,Ranges!$E$56:$E$64,0),1) -> 34375.20465 | V37: =($J37*V$30/10^3)*INDEX(Ranges!$D$56:$D$64,MATCH(Dashboard!$H$103,Ranges!$E$56:$E$64,0),1) -> 39285.94817 | W37: =($J37*W$30/10^3)*INDEX(Ranges!$D$56:$D$64,MATCH(Dashboard!$H$103,Ranges!$E$56:$E$64,0),1) -> 44196.69169 | X37: =($J37*X$30/10^3)*INDEX(Ranges!$D$56:$D$64,MATCH(Dashboard!$H$103,Ranges!$E$56:$E$64,0),1) -> 49107.43521
C38: ANDTotalAluminum | D38: AND | E38: Total | F38: Aluminum | G38: 234.748 | H38: 83838.57143 | I38: =INDEX(K38:M38,1,MATCH(Dashboard!$F$77,'Trade Data'!$K$30:$M$30,0)) -> 970.3302798 | J38: =INDEX(K38:M38,1,MATCH(Dashboard!$F$103,'Trade Data'!$K$30:$M$30,0)) -> 226.0894993 | K38: 226.0894993 | L38: 744.2407805 | M38: 970.3302798 | N38: =($J38*N$30/10^3)*INDEX(Ranges!$D$56:$D$64,MATCH(Dashboard!$H$103,Ranges!$E$56:$E$64,0),1) -> 0 | O38: =($J38*O$30/10^3)*INDEX(Ranges!$D$56:$D$64,MATCH(Dashboard!$H$103,Ranges!$E$56:$E$64,0),1) -> 2.193068143 | P38: =($J38*P$30/10^3)*INDEX(Ranges!$D$56:$D$64,MATCH(Dashboard!$H$103,Ranges!$E$56:$E$64,0),1) -> 4.386136286 | Q38: =($J38*Q$30/10^3)*INDEX(Ranges!$D$56:$D$64,MATCH(Dashboard!$H$103,Ranges!$E$56:$E$64,0),1) -> 6.579204428 | R38: =($J38*R$30/10^3)*INDEX(Ranges!$D$56:$D$64,MATCH(Dashboard!$H$103,Ranges!$E$56:$E$64,0),1) -> 8.772272571 | S38: =($J38*S$30/10^3)*INDEX(Ranges!$D$56:$D$64,MATCH(Dashboard!$H$103,Ranges!$E$56:$E$64,0),1) -> 10.96534071 | T38: =($J38*T$30/10^3)*INDEX(Ranges!$D$56:$D$64,MATCH(Dashboard!$H$103,Ranges!$E$56:$E$64,0),1) -> 13.15840886 | U38: =($J38*U$30/10^3)*INDEX(Ranges!$D$56:$D$64,MATCH(Dashboard!$H$103,Ranges!$E$56:$E$64,0),1) -> 15.351477 | V38: =($J38*V$30/10^3)*INDEX(Ranges!$D$56:$D$64,MATCH(Dashboard!$H$103,Ranges!$E$56:$E$64,0),1) -> 17.54454514 | W38: =($J38*W$30/10^3)*INDEX(Ranges!$D$56:$D$64,MATCH(Dashboard!$H$103,Ranges!$E$56:$E$64,0),1) -> 19.73761329 | X38: =($J38*X$30/10^3)*INDEX(Ranges!$D$56:$D$64,MATCH(Dashboard!$H$103,Ranges!$E$56:$E$64,0),1) -> 21.93068143
C39: ANDTotalIron & Steel | D39: AND | E39: Total | F39: Iron & Steel | G39: 530.988 | H39: 624691.7647 | I39: =INDEX(K39:M39,1,MATCH(Dashboard!$F$77,'Trade Data'!$K$30:$M$30,0)) -> 1701.448651 | J39: =INDEX(K39:M39,1,MATCH(Dashboard!$F$103,'Trade Data'!$K$30:$M$30,0)) -> 1260.871062 | K39: 1260.871062 | L39: 440.5775894 | M39: 1701.448651 | N39: =($J39*N$30/10^3)*INDEX(Ranges!$D$56:$D$64,MATCH(Dashboard!$H$103,Ranges!$E$56:$E$64,0),1) -> 0 | O39: =($J39*O$30/10^3)*INDEX(Ranges!$D$56:$D$64,MATCH(Dashboard!$H$103,Ranges!$E$56:$E$64,0),1) -> 12.2304493 | P39: =($J39*P$30/10^3)*INDEX(Ranges!$D$56:$D$64,MATCH(Dashboard!$H$103,Ranges!$E$56:$E$64,0),1) -> 24.4608986 | Q39: =($J39*Q$30/10^3)*INDEX(Ranges!$D$56:$D$64,MATCH(Dashboard!$H$103,Ranges!$E$56:$E$64,0),1) -> 36.69134791 | R39: =($J39*R$30/10^3)*INDEX(Ranges!$D$56:$D$64,MATCH(Dashboard!$H$103,Ranges!$E$56:$E$64,0),1) -> 48.92179721 | S39: =($J39*S$30/10^3)*INDEX(Ranges!$D$56:$D$64,MATCH(Dashboard!$H$103,Ranges!$E$56:$E$64,0),1) -> 61.15224651 | T39: =($J39*T$30/10^3)*INDEX(Ranges!$D$56:$D$64,MATCH(Dashboard!$H$103,Ranges!$E$56:$E$64,0),1) -> 73.38269581 | U39: =($J39*U$30/10^3)*INDEX(Ranges!$D$56:$D$64,MATCH(Dashboard!$H$103,Ranges!$E$56:$E$64,0),1) -> 85.61314511 | V39: =($J39*V$30/10^3)*INDEX(Ranges!$D$56:$D$64,MATCH(Dashboard!$H$103,Ranges!$E$56:$E$64,0),1) -> 97.84359442 | W39: =($J39*W$30/10^3)*INDEX(Ranges!$D$56:$D$64,MATCH(Dashboard!$H$103,Ranges!$E$56:$E$64,0),1) -> 110.0740437 | X39: =($J39*X$30/10^3)*INDEX(Ranges!$D$56:$D$64,MATCH(Dashboard!$H$103,Ranges!$E$56:$E$64,0),1) -> 122.304493
C40: ARETotalAluminum | D40: ARE | E40: Total | F40: Aluminum | G40: 7528968.684 | H40: 2688917387 | I40: =INDEX(K40:M40,1,MATCH(Dashboard!$F$77,'Trade Data'!$K$30:$M$30,0)) -> 31120973.51 | J40: =INDEX(K40:M40,1,MATCH(Dashboard!$F$103,'Trade Data'!$K$30:$M$30,0)) -> 7251268.423 | K40: 7251268.423 | L40: 23869705.09 | M40: 31120973.51 | N40: =($J40*N$30/10^3)*INDEX(Ranges!$D$56:$D$64,MATCH(Dashboard!$H$103,Ranges!$E$56:$E$64,0),1) -> 0 | O40: =($J40*O$30/10^3)*INDEX(Ranges!$D$56:$D$64,MATCH(Dashboard!$H$103,Ranges!$E$56:$E$64,0),1) -> 70337.3037 | P40: =($J40*P$30/10^3)*INDEX(Ranges!$D$56:$D$64,MATCH(Dashboard!$H$103,Ranges!$E$56:$E$64,0),1) -> 140674.6074 | Q40: =($J40*Q$30/10^3)*INDEX(Ranges!$D$56:$D$64,MATCH(Dashboard!$H$103,Ranges!$E$56:$E$64,0),1) -> 211011.9111 | R40: =($J40*R$30/10^3)*INDEX(Ranges!$D$56:$D$64,MATCH(Dashboard!$H$103,Ranges!$E$56:$E$64,0),1) -> 281349.2148 | S40: =($J40*S$30/10^3)*INDEX(Ranges!$D$56:$D$64,MATCH(Dashboard!$H$103,Ranges!$E$56:$E$64,0),1) -> 351686.5185 | T40: =($J40*T$30/10^3)*INDEX(Ranges!$D$56:$D$64,MATCH(Dashboard!$H$103,Ranges!$E$56:$E$64,0),1) -> 422023.8222 | U40: =($J40*U$30/10^3)*INDEX(Ranges!$D$56:$D$64,MATCH(Dashboard!$H$103,Ranges!$E$56:$E$64,0),1) -> 492361.1259 | V40: =($J40*V$30/10^3)*INDEX(Ranges!$D$56:$D$64,MATCH(Dashboard!$H$103,Ranges!$E$56:$E$64,0),1) -> 562698.4296 | W40: =($J40*W$30/10^3)*INDEX(Ranges!$D$56:$D$64,MATCH(Dashboard!$H$103,Ranges!$E$56:$E$64,0),1) -> 633035.7333 | X40: =($J40*X$30/10^3)*INDEX(Ranges!$D$56:$D$64,MATCH(Dashboard!$H$103,Ranges!$E$56:$E$64,0),1) -> 703373.037
C41: ARETotalCement | D41: ARE | E41: Total | F41: Cement | G41: 581594.701 | H41: 5815947010 | I41: =INDEX(K41:M41,1,MATCH(Dashboard!$F$77,'Trade Data'!$K$30:$M$30,0)) -> 5660855.09 | J41: =INDEX(K41:M41,1,MATCH(Dashboard!$F$103,'Trade Data'!$K$30:$M$30,0)) -> 5205272.574 | K41: 5205272.574 | L41: 455582.5158 | M41: 5660855.09 | N41: =($J41*N$30/10^3)*INDEX(Ranges!$D$56:$D$64,MATCH(Dashboard!$H$103,Ranges!$E$56:$E$64,0),1) -> 0 | O41: =($J41*O$30/10^3)*INDEX(Ranges!$D$56:$D$64,MATCH(Dashboard!$H$103,Ranges!$E$56:$E$64,0),1) -> 50491.14397 | P41: =($J41*P$30/10^3)*INDEX(Ranges!$D$56:$D$64,MATCH(Dashboard!$H$103,Ranges!$E$56:$E$64,0),1) -> 100982.2879 | Q41: =($J41*Q$30/10^3)*INDEX(Ranges!$D$56:$D$64,MATCH(Dashboard!$H$103,Ranges!$E$56:$E$64,0),1) -> 151473.4319 | R41: =($J41*R$30/10^3)*INDEX(Ranges!$D$56:$D$64,MATCH(Dashboard!$H$103,Ranges!$E$56:$E$64,0),1) -> 201964.5759 | S41: =($J41*S$30/10^3)*INDEX(Ranges!$D$56:$D$64,MATCH(Dashboard!$H$103,Ranges!$E$56:$E$64,0),1) -> 252455.7198 | T41: =($J41*T$30/10^3)*INDEX(Ranges!$D$56:$D$64,MATCH(Dashboard!$H$103,Ranges!$E$56:$E$64,0),1) -> 302946.8638 | U41: =($J41*U$30/10^3)*INDEX(Ranges!$D$56:$D$64,MATCH(Dashboard!$H$103,Ranges!$E$56:$E$64,0),1) -> 353438.0078 | V41: =($J41*V$30/10^3)*INDEX(Ranges!$D$56:$D$64,MATCH(Dashboard!$H$103,Ranges!$E$56:$E$64,0),1) -> 403929.1517 | W41: =($J41*W$30/10^3)*INDEX(Ranges!$D$56:$D$64,MATCH(Dashboard!$H$103,Ranges!$E$56:$E$64,0),1) -> 454420.2957 | X41: =($J41*X$30/10^3)*INDEX(Ranges!$D$56:$D$64,MATCH(Dashboard!$H$103,Ranges!$E$56:$E$64,0),1) -> 504911.4397
C42: ARETotalElectricity | D42: ARE | E42: Total | F42: Electricity | G42: 2.725 | H42: 17138.36478 | I42: =INDEX(K42:M42,1,MATCH(Dashboard!$F$77,'Trade Data'!$K$30:$M$30,0)) -> 8.243553459 | J42: =INDEX(K42:M42,1,MATCH(Dashboard!$F$103,'Trade Data'!$K$30:$M$30,0)) -> 8.243553459 | K42: 8.243553459 | L42: 0 | M42: 8.243553459 | N42: =($J42*N$30/10^3)*INDEX(Ranges!$D$56:$D$64,MATCH(Dashboard!$H$103,Ranges!$E$56:$E$64,0),1) -> 0 | O42: =($J42*O$30/10^3)*INDEX(Ranges!$D$56:$D$64,MATCH(Dashboard!$H$103,Ranges!$E$56:$E$64,0),1) -> 0.07996246855 | P42: =($J42*P$30/10^3)*INDEX(Ranges!$D$56:$D$64,MATCH(Dashboard!$H$103,Ranges!$E$56:$E$64,0),1) -> 0.1599249371 | Q42: =($J42*Q$30/10^3)*INDEX(Ranges!$D$56:$D$64,MATCH(Dashboard!$H$103,Ranges!$E$56:$E$64,0),1) -> 0.2398874057 | R42: =($J42*R$30/10^3)*INDEX(Ranges!$D$56:$D$64,MATCH(Dashboard!$H$103,Ranges!$E$56:$E$64,0),1) -> 0.3198498742 | S42: =($J42*S$30/10^3)*INDEX(Ranges!$D$56:$D$64,MATCH(Dashboard!$H$103,Ranges!$E$56:$E$64,0),1) -> 0.3998123428 | T42: =($J42*T$30/10^3)*INDEX(Ranges!$D$56:$D$64,MATCH(Dashboard!$H$103,Ranges!$E$56:$E$64,0),1) -> 0.4797748113 | U42: =($J42*U$30/10^3)*INDEX(Ranges!$D$56:$D$64,MATCH(Dashboard!$H$103,Ranges!$E$56:$E$64,0),1) -> 0.5597372799 | V42: =($J42*V$30/10^3)*INDEX(Ranges!$D$56:$D$64,MATCH(Dashboard!$H$103,Ranges!$E$56:$E$64,0),1) -> 0.6396997484 | W42: =($J42*W$30/10^3)*INDEX(Ranges!$D$56:$D$64,MATCH(Dashboard!$H$103,Ranges!$E$56:$E$64,0),1) -> 0.719662217 | X42: =($J42*X$30/10^3)*INDEX(Ranges!$D$56:$D$64,MATCH(Dashboard!$H$103,Ranges!$E$56:$E$64,0),1) -> 0.7996246855
C43: ARETotalFertilizer | D43: ARE | E43: Total | F43: Fertilizer | G43: 29539.023 | H43: 98463410 | I43: =INDEX(K43:M43,1,MATCH(Dashboard!$F$77,'Trade Data'!$K$30:$M$30,0)) -> 172665.4358 | J43: =INDEX(K43:M43,1,MATCH(Dashboard!$F$103,'Trade Data'!$K$30:$M$30,0)) -> 164079.4264 | K43: 164079.4264 | L43: 8586.009352 | M43: 172665.4358 | N43: =($J43*N$30/10^3)*INDEX(Ranges!$D$56:$D$64,MATCH(Dashboard!$H$103,Ranges!$E$56:$E$64,0),1) -> 0 | O43: =($J43*O$30/10^3)*INDEX(Ranges!$D$56:$D$64,MATCH(Dashboard!$H$103,Ranges!$E$56:$E$64,0),1) -> 1591.570436 | P43: =($J43*P$30/10^3)*INDEX(Ranges!$D$56:$D$64,MATCH(Dashboard!$H$103,Ranges!$E$56:$E$64,0),1) -> 3183.140873 | Q43: =($J43*Q$30/10^3)*INDEX(Ranges!$D$56:$D$64,MATCH(Dashboard!$H$103,Ranges!$E$56:$E$64,0),1) -> 4774.711309 | R43: =($J43*R$30/10^3)*INDEX(Ranges!$D$56:$D$64,MATCH(Dashboard!$H$103,Ranges!$E$56:$E$64,0),1) -> 6366.281745 | S43: =($J43*S$30/10^3)*INDEX(Ranges!$D$56:$D$64,MATCH(Dashboard!$H$103,Ranges!$E$56:$E$64,0),1) -> 7957.852182 | T43: =($J43*T$30/10^3)*INDEX(Ranges!$D$56:$D$64,MATCH(Dashboard!$H$103,Ranges!$E$56:$E$64,0),1) -> 9549.422618 | U43: =($J43*U$30/10^3)*INDEX(Ranges!$D$56:$D$64,MATCH(Dashboard!$H$103,Ranges!$E$56:$E$64,0),1) -> 11140.99305 | V43: =($J43*V$30/10^3)*INDEX(Ranges!$D$56:$D$64,MATCH(Dashboard!$H$103,Ranges!$E$56:$E$64,0),1) -> 12732.56349 | W43: =($J43*W$30/10^3)*INDEX(Ranges!$D$56:$D$64,MATCH(Dashboard!$H$103,Ranges!$E$56:$E$64,0),1) -> 14324.13393 | X43: =($J43*X$30/10^3)*INDEX(Ranges!$D$56:$D$64,MATCH(Dashboard!$H$103,Ranges!$E$56:$E$64,0),1) -> 15915.70436
C44: ARETotalHydrogen | D44: ARE | E44: Total | F44: Hydrogen | G44: 1084.831 | H44: 162399.8503 | I44: =INDEX(K44:M44,1,MATCH(Dashboard!$F$77,'Trade Data'!$K$30:$M$30,0)) -> 1688.958443 | J44: =INDEX(K44:M44,1,MATCH(Dashboard!$F$103,'Trade Data'!$K$30:$M$30,0)) -> 1688.958443 | K44: 1688.958443 | L44: 0 | M44: 1688.958443 | N44: =($J44*N$30/10^3)*INDEX(Ranges!$D$56:$D$64,MATCH(Dashboard!$H$103,Ranges!$E$56:$E$64,0),1) -> 0 | O44: =($J44*O$30/10^3)*INDEX(Ranges!$D$56:$D$64,MATCH(Dashboard!$H$103,Ranges!$E$56:$E$64,0),1) -> 16.3828969 | P44: =($J44*P$30/10^3)*INDEX(Ranges!$D$56:$D$64,MATCH(Dashboard!$H$103,Ranges!$E$56:$E$64,0),1) -> 32.7657938 | Q44: =($J44*Q$30/10^3)*INDEX(Ranges!$D$56:$D$64,MATCH(Dashboard!$H$103,Ranges!$E$56:$E$64,0),1) -> 49.14869069 | R44: =($J44*R$30/10^3)*INDEX(Ranges!$D$56:$D$64,MATCH(Dashboard!$H$103,Ranges!$E$56:$E$64,0),1) -> 65.53158759 | S44: =($J44*S$30/10^3)*INDEX(Ranges!$D$56:$D$64,MATCH(Dashboard!$H$103,Ranges!$E$56:$E$64,0),1) -> 81.91448449 | T44: =($J44*T$30/10^3)*INDEX(Ranges!$D$56:$D$64,MATCH(Dashboard!$H$103,Ranges!$E$56:$E$64,0),1) -> 98.29738139 | U44: =($J44*U$30/10^3)*INDEX(Ranges!$D$56:$D$64,MATCH(Dashboard!$H$103,Ranges!$E$56:$E$64,0),1) -> 114.6802783 | V44: =($J44*V$30/10^3)*INDEX(Ranges!$D$56:$D$64,MATCH(Dashboard!$H$103,Ranges!$E$56:$E$64,0),1) -> 131.0631752 | W44: =($J44*W$30/10^3)*INDEX(Ranges!$D$56:$D$64,MATCH(Dashboard!$H$103,Ranges!$E$56:$E$64,0),1) -> 147.4460721 | X44: =($J44*X$30/10^3)*INDEX(Ranges!$D$56:$D$64,MATCH(Dashboard!$H$103,Ranges!$E$56:$E$64,0),1) -> 163.828969
C45: ARETotalIron & Steel | D45: ARE | E45: Total | F45: Iron & Steel | G45: 5485950.267 | H45: 6454059138 | I45: =INDEX(K45:M45,1,MATCH(Dashboard!$F$77,'Trade Data'!$K$30:$M$30,0)) -> 17578669.73 | J45: =INDEX(K45:M45,1,MATCH(Dashboard!$F$103,'Trade Data'!$K$30:$M$30,0)) -> 13026802.75 | K45: 13026802.75 | L45: 4551866.98 | M45: 17578669.73 | N45: =($J45*N$30/10^3)*INDEX(Ranges!$D$56:$D$64,MATCH(Dashboard!$H$103,Ranges!$E$56:$E$64,0),1) -> 0 | O45: =($J45*O$30/10^3)*INDEX(Ranges!$D$56:$D$64,MATCH(Dashboard!$H$103,Ranges!$E$56:$E$64,0),1) -> 126359.9867 | P45: =($J45*P$30/10^3)*INDEX(Ranges!$D$56:$D$64,MATCH(Dashboard!$H$103,Ranges!$E$56:$E$64,0),1) -> 252719.9734 | Q45: =($J45*Q$30/10^3)*INDEX(Ranges!$D$56:$D$64,MATCH(Dashboard!$H$103,Ranges!$E$56:$E$64,0),1) -> 379079.9601 | R45: =($J45*R$30/10^3)*INDEX(Ranges!$D$56:$D$64,MATCH(Dashboard!$H$103,Ranges!$E$56:$E$64,0),1) -> 505439.9468 | S45: =($J45*S$30/10^3)*INDEX(Ranges!$D$56:$D$64,MATCH(Dashboard!$H$103,Ranges!$E$56:$E$64,0),1) -> 631799.9335 | T45: =($J45*T$30/10^3)*INDEX(Ranges!$D$56:$D$64,MATCH(Dashboard!$H$103,Ranges!$E$56:$E$64,0),1) -> 758159.9202 | U45: =($J45*U$30/10^3)*INDEX(Ranges!$D$56:$D$64,MATCH(Dashboard!$H$103,Ranges!$E$56:$E$64,0),1) -> 884519.9069 | V45: =($J45*V$30/10^3)*INDEX(Ranges!$D$56:$D$64,MATCH(Dashboard!$H$103,Ranges!$E$56:$E$64,0),1) -> 1010879.894 | W45: =($J45*W$30/10^3)*INDEX(Ranges!$D$56:$D$64,MATCH(Dashboard!$H$103,Ranges!$E$56:$E$64,0),1) -> 1137239.88 | X45: =($J45*X$30/10^3)*INDEX(Ranges!$D$56:$D$64,MATCH(Dashboard!$H$103,Ranges!$E$56:$E$64,0),1) -> 1263599.867
C46: ARGTotalAluminum | D46: ARG | E46: Total | F46: Aluminum | G46: 124588.687 | H46: 44495959.64 | I46: =INDEX(K46:M46,1,MATCH(Dashboard!$F$77,'Trade Data'!$K$30:$M$30,0)) -> 514987.0308 | J46: =INDEX(K46:M46,1,MATCH(Dashboard!$F$103,'Trade Data'!$K$30:$M$30,0)) -> 119993.3284 | K46: 119993.3284 | L46: 394993.7024 | M46: 514987.0308 | N46: =($J46*N$30/10^3)*INDEX(Ranges!$D$56:$D$64,MATCH(Dashboard!$H$103,Ranges!$E$56:$E$64,0),1) -> 0 | O46: =($J46*O$30/10^3)*INDEX(Ranges!$D$56:$D$64,MATCH(Dashboard!$H$103,Ranges!$E$56:$E$64,0),1) -> 1163.935286 | P46: =($J46*P$30/10^3)*INDEX(Ranges!$D$56:$D$64,MATCH(Dashboard!$H$103,Ranges!$E$56:$E$64,0),1) -> 2327.870571 | Q46: =($J46*Q$30/10^3)*INDEX(Ranges!$D$56:$D$64,MATCH(Dashboard!$H$103,Ranges!$E$56:$E$64,0),1) -> 3491.805857 | R46: =($J46*R$30/10^3)*INDEX(Ranges!$D$56:$D$64,MATCH(Dashboard!$H$103,Ranges!$E$56:$E$64,0),1) -> 4655.741142 | S46: =($J46*S$30/10^3)*INDEX(Ranges!$D$56:$D$64,MATCH(Dashboard!$H$103,Ranges!$E$56:$E$64,0),1) -> 5819.676428 | T46: =($J46*T$30/10^3)*INDEX(Ranges!$D$56:$D$64,MATCH(Dashboard!$H$103,Ranges!$E$56:$E$64,0),1) -> 6983.611713 | U46: =($J46*U$30/10^3)*INDEX(Ranges!$D$56:$D$64,MATCH(Dashboard!$H$103,Ranges!$E$56:$E$64,0),1) -> 8147.546999 | V46: =($J46*V$30/10^3)*INDEX(Ranges!$D$56:$D$64,MATCH(Dashboard!$H$103,Ranges!$E$56:$E$64,0),1) -> 9311.482285 | W46: =($J46*W$30/10^3)*INDEX(Ranges!$D$56:$D$64,MATCH(Dashboard!$H$103,Ranges!$E$56:$E$64,0),1) -> 10475.41757 | X46: =($J46*X$30/10^3)*INDEX(Ranges!$D$56:$D$64,MATCH(Dashboard!$H$103,Ranges!$E$56:$E$64,0),1) -> 11639.35286
C47: ARGTotalCement | D47: ARG | E47: Total | F47: Cement | G47: 29.968 | H47: 299680 | I47: =INDEX(K47:M47,1,MATCH(Dashboard!$F$77,'Trade Data'!$K$30:$M$30,0)) -> 291.6885333 | J47: =INDEX(K47:M47,1,MATCH(Dashboard!$F$103,'Trade Data'!$K$30:$M$30,0)) -> 268.2136 | K47: 268.2136 | L47: 23.47493333 | M47: 291.6885333 | N47: =($J47*N$30/10^3)*INDEX(Ranges!$D$56:$D$64,MATCH(Dashboard!$H$103,Ranges!$E$56:$E$64,0),1) -> 0 | O47: =($J47*O$30/10^3)*INDEX(Ranges!$D$56:$D$64,MATCH(Dashboard!$H$103,Ranges!$E$56:$E$64,0),1) -> 2.60167192 | P47: =($J47*P$30/10^3)*INDEX(Ranges!$D$56:$D$64,MATCH(Dashboard!$H$103,Ranges!$E$56:$E$64,0),1) -> 5.20334384 | Q47: =($J47*Q$30/10^3)*INDEX(Ranges!$D$56:$D$64,MATCH(Dashboard!$H$103,Ranges!$E$56:$E$64,0),1) -> 7.80501576 | R47: =($J47*R$30/10^3)*INDEX(Ranges!$D$56:$D$64,MATCH(Dashboard!$H$103,Ranges!$E$56:$E$64,0),1) -> 10.40668768 | S47: =($J47*S$30/10^3)*INDEX(Ranges!$D$56:$D$64,MATCH(Dashboard!$H$103,Ranges!$E$56:$E$64,0),1) -> 13.0083596 | T47: =($J47*T$30/10^3)*INDEX(Ranges!$D$56:$D$64,MATCH(Dashboard!$H$103,Ranges!$E$56:$E$64,0),1) -> 15.61003152 | U47: =($J47*U$30/10^3)*INDEX(Ranges!$D$56:$D$64,MATCH(Dashboard!$H$103,Ranges!$E$56:$E$64,0),1) -> 18.21170344 | V47: =($J47*V$30/10^3)*INDEX(Ranges!$D$56:$D$64,MATCH(Dashboard!$H$103,Ranges!$E$56:$E$64,0),1) -> 20.81337536 | W47: =($J47*W$30/10^3)*INDEX(Ranges!$D$56:$D$64,MATCH(Dashboard!$H$103,Ranges!$E$56:$E$64,0),1) -> 23.41504728 | X47: =($J47*X$30/10^3)*INDEX(Ranges!$D$56:$D$64,MATCH(Dashboard!$H$103,Ranges!$E$56:$E$64,0),1) -> 26.0167192
C48: ARGTotalFertilizer | D48: ARG | E48: Total | F48: Fertilizer | G48: 6145.674 | H48: 20485580 | I48: =INDEX(K48:M48,1,MATCH(Dashboard!$F$77,'Trade Data'!$K$30:$M$30,0)) -> 35923.51309 | J48: =INDEX(K48:M48,1,MATCH(Dashboard!$F$103,'Trade Data'!$K$30:$M$30,0)) -> 34137.17051 | K48: 34137.17051 | L48: 1786.342576 | M48: 35923.51309 | N48: =($J48*N$30/10^3)*INDEX(Ranges!$D$56:$D$64,MATCH(Dashboard!$H$103,Ranges!$E$56:$E$64,0),1) -> 0 | O48: =($J48*O$30/10^3)*INDEX(Ranges!$D$56:$D$64,MATCH(Dashboard!$H$103,Ranges!$E$56:$E$64,0),1) -> 331.130554 | P48: =($J48*P$30/10^3)*INDEX(Ranges!$D$56:$D$64,MATCH(Dashboard!$H$103,Ranges!$E$56:$E$64,0),1) -> 662.2611079 | Q48: =($J48*Q$30/10^3)*INDEX(Ranges!$D$56:$D$64,MATCH(Dashboard!$H$103,Ranges!$E$56:$E$64,0),1) -> 993.3916619 | R48: =($J48*R$30/10^3)*INDEX(Ranges!$D$56:$D$64,MATCH(Dashboard!$H$103,Ranges!$E$56:$E$64,0),1) -> 1324.522216 | S48: =($J48*S$30/10^3)*INDEX(Ranges!$D$56:$D$64,MATCH(Dashboard!$H$103,Ranges!$E$56:$E$64,0),1) -> 1655.65277 | T48: =($J48*T$30/10^3)*INDEX(Ranges!$D$56:$D$64,MATCH(Dashboard!$H$103,Ranges!$E$56:$E$64,0),1) -> 1986.783324 | U48: =($J48*U$30/10^3)*INDEX(Ranges!$D$56:$D$64,MATCH(Dashboard!$H$103,Ranges!$E$56:$E$64,0),1) -> 2317.913878 | V48: =($J48*V$30/10^3)*INDEX(Ranges!$D$56:$D$64,MATCH(Dashboard!$H$103,Ranges!$E$56:$E$64,0),1) -> 2649.044432 | W48: =($J48*W$30/10^3)*INDEX(Ranges!$D$56:$D$64,MATCH(Dashboard!$H$103,Ranges!$E$56:$E$64,0),1) -> 2980.174986 | X48: =($J48*X$30/10^3)*INDEX(Ranges!$D$56:$D$64,MATCH(Dashboard!$H$103,Ranges!$E$56:$E$64,0),1) -> 3311.30554
C49: ARGTotalIron & Steel | D49: ARG | E49: Total | F49: Iron & Steel | G49: 142341.092 | H49: 167460108.2 | I49: =INDEX(K49:M49,1,MATCH(Dashboard!$F$77,'Trade Data'!$K$30:$M$30,0)) -> 456104.5806 | J49: =INDEX(K49:M49,1,MATCH(Dashboard!$F$103,'Trade Data'!$K$30:$M$30,0)) -> 337999.6607 | K49: 337999.6607 | L49: 118104.9198 | M49: 456104.5806 | N49: =($J49*N$30/10^3)*INDEX(Ranges!$D$56:$D$64,MATCH(Dashboard!$H$103,Ranges!$E$56:$E$64,0),1) -> 0 | O49: =($J49*O$30/10^3)*INDEX(Ranges!$D$56:$D$64,MATCH(Dashboard!$H$103,Ranges!$E$56:$E$64,0),1) -> 3278.596709 | P49: =($J49*P$30/10^3)*INDEX(Ranges!$D$56:$D$64,MATCH(Dashboard!$H$103,Ranges!$E$56:$E$64,0),1) -> 6557.193418 | Q49: =($J49*Q$30/10^3)*INDEX(Ranges!$D$56:$D$64,MATCH(Dashboard!$H$103,Ranges!$E$56:$E$64,0),1) -> 9835.790127 | R49: =($J49*R$30/10^3)*INDEX(Ranges!$D$56:$D$64,MATCH(Dashboard!$H$103,Ranges!$E$56:$E$64,0),1) -> 13114.38684 | S49: =($J49*S$30/10^3)*INDEX(Ranges!$D$56:$D$64,MATCH(Dashboard!$H$103,Ranges!$E$56:$E$64,0),1) -> 16392.98354 | T49: =($J49*T$30/10^3)*INDEX(Ranges!$D$56:$D$64,MATCH(Dashboard!$H$103,Ranges!$E$56:$E$64,0),1) -> 19671.58025 | U49: =($J49*U$30/10^3)*INDEX(Ranges!$D$56:$D$64,MATCH(Dashboard!$H$103,Ranges!$E$56:$E$64,0),1) -> 22950.17696 | V49: =($J49*V$30/10^3)*INDEX(Ranges!$D$56:$D$64,MATCH(Dashboard!$H$103,Ranges!$E$56:$E$64,0),1) -> 26228.77367 | W49: =($J49*W$30/10^3)*INDEX(Ranges!$D$56:$D$64,MATCH(Dashboard!$H$103,Ranges!$E$56:$E$64,0),1) -> 29507.37038 | X49: =($J49*X$30/10^3)*INDEX(Ranges!$D$56:$D$64,MATCH(Dashboard!$H$103,Ranges!$E$56:$E$64,0),1) -> 32785.96709
C50: ARMTotalAluminum | D50: ARM | E50: Total | F50: Aluminum | G50: 145985.399 | H50: 52137642.5 | I50: =INDEX(K50:M50,1,MATCH(Dashboard!$F$77,'Trade Data'!$K$30:$M$30,0)) -> 603430.2872 | J50: =INDEX(K50:M50,1,MATCH(Dashboard!$F$103,'Trade Data'!$K$30:$M$30,0)) -> 140600.839 | K50: 140600.839 | L50: 462829.4482 | M50: 603430.2872 | N50: =($J50*N$30/10^3)*INDEX(Ranges!$D$56:$D$64,MATCH(Dashboard!$H$103,Ranges!$E$56:$E$64,0),1) -> 0 | O50: =($J50*O$30/10^3)*INDEX(Ranges!$D$56:$D$64,MATCH(Dashboard!$H$103,Ranges!$E$56:$E$64,0),1) -> 1363.828139 | P50: =($J50*P$30/10^3)*INDEX(Ranges!$D$56:$D$64,MATCH(Dashboard!$H$103,Ranges!$E$56:$E$64,0),1) -> 2727.656277 | Q50: =($J50*Q$30/10^3)*INDEX(Ranges!$D$56:$D$64,MATCH(Dashboard!$H$103,Ranges!$E$56:$E$64,0),1) -> 4091.484416 | R50: =($J50*R$30/10^3)*INDEX(Ranges!$D$56:$D$64,MATCH(Dashboard!$H$103,Ranges!$E$56:$E$64,0),1) -> 5455.312554 | S50: =($J50*S$30/10^3)*INDEX(Ranges!$D$56:$D$64,MATCH(Dashboard!$H$103,Ranges!$E$56:$E$64,0),1) -> 6819.140693 | T50: =($J50*T$30/10^3)*INDEX(Ranges!$D$56:$D$64,MATCH(Dashboard!$H$103,Ranges!$E$56:$E$64,0),1) -> 8182.968831 | U50: =($J50*U$30/10^3)*INDEX(Ranges!$D$56:$D$64,MATCH(Dashboard!$H$103,Ranges!$E$56:$E$64,0),1) -> 9546.79697 | V50: =($J50*V$30/10^3)*INDEX(Ranges!$D$56:$D$64,MATCH(Dashboard!$H$103,Ranges!$E$56:$E$64,0),1) -> 10910.62511 | W50: =($J50*W$30/10^3)*INDEX(Ranges!$D$56:$D$64,MATCH(Dashboard!$H$103,Ranges!$E$56:$E$64,0),1) -> 12274.45325 | X50: =($J50*X$30/10^3)*INDEX(Ranges!$D$56:$D$64,MATCH(Dashboard!$H$103,Ranges!$E$56:$E$64,0),1) -> 13638.28139
C51: ARMTotalCement | D51: ARM | E51: Total | F51: Cement | G51: 44.923 | H51: 449230 | I51: =INDEX(K51:M51,1,MATCH(Dashboard!$F$77,'Trade Data'!$K$30:$M$30,0)) -> 437.2505333 | J51: =INDEX(K51:M51,1,MATCH(Dashboard!$F$103,'Trade Data'!$K$30:$M$30,0)) -> 402.06085 | K51: 402.06085 | L51: 35.18968333 | M51: 437.2505333 | N51: =($J51*N$30/10^3)*INDEX(Ranges!$D$56:$D$64,MATCH(Dashboard!$H$103,Ranges!$E$56:$E$64,0),1) -> 0 | O51: =($J51*O$30/10^3)*INDEX(Ranges!$D$56:$D$64,MATCH(Dashboard!$H$103,Ranges!$E$56:$E$64,0),1) -> 3.899990245 | P51: =($J51*P$30/10^3)*INDEX(Ranges!$D$56:$D$64,MATCH(Dashboard!$H$103,Ranges!$E$56:$E$64,0),1) -> 7.79998049 | Q51: =($J51*Q$30/10^3)*INDEX(Ranges!$D$56:$D$64,MATCH(Dashboard!$H$103,Ranges!$E$56:$E$64,0),1) -> 11.69997073 | R51: =($J51*R$30/10^3)*INDEX(Ranges!$D$56:$D$64,MATCH(Dashboard!$H$103,Ranges!$E$56:$E$64,0),1) -> 15.59996098 | S51: =($J51*S$30/10^3)*INDEX(Ranges!$D$56:$D$64,MATCH(Dashboard!$H$103,Ranges!$E$56:$E$64,0),1) -> 19.49995123 | T51: =($J51*T$30/10^3)*INDEX(Ranges!$D$56:$D$64,MATCH(Dashboard!$H$103,Ranges!$E$56:$E$64,0),1) -> 23.39994147 | U51: =($J51*U$30/10^3)*INDEX(Ranges!$D$56:$D$64,MATCH(Dashboard!$H$103,Ranges!$E$56:$E$64,0),1) -> 27.29993171 | V51: =($J51*V$30/10^3)*INDEX(Ranges!$D$56:$D$64,MATCH(Dashboard!$H$103,Ranges!$E$56:$E$64,0),1) -> 31.19992196 | W51: =($J51*W$30/10^3)*INDEX(Ranges!$D$56:$D$64,MATCH(Dashboard!$H$103,Ranges!$E$56:$E$64,0),1) -> 35.09991221 | X51: =($J51*X$30/10^3)*INDEX(Ranges!$D$56:$D$64,MATCH(Dashboard!$H$103,Ranges!$E$56:$E$64,0),1) -> 38.99990245
C52: ARMTotalElectricity | D52: ARM | E52: Total | F52: Electricity | G52: 94171.477 | H52: 592273440.3 | I52: =INDEX(K52:M52,1,MATCH(Dashboard!$F$77,'Trade Data'!$K$30:$M$30,0)) -> 284883.5248 | J52: =INDEX(K52:M52,1,MATCH(Dashboard!$F$103,'Trade Data'!$K$30:$M$30,0)) -> 284883.5248 | K52: 284883.5248 | L52: 0 | M52: 284883.5248 | N52: =($J52*N$30/10^3)*INDEX(Ranges!$D$56:$D$64,MATCH(Dashboard!$H$103,Ranges!$E$56:$E$64,0),1) -> 0 | O52: =($J52*O$30/10^3)*INDEX(Ranges!$D$56:$D$64,MATCH(Dashboard!$H$103,Ranges!$E$56:$E$64,0),1) -> 2763.37019 | P52: =($J52*P$30/10^3)*INDEX(Ranges!$D$56:$D$64,MATCH(Dashboard!$H$103,Ranges!$E$56:$E$64,0),1) -> 5526.74038 | Q52: =($J52*Q$30/10^3)*INDEX(Ranges!$D$56:$D$64,MATCH(Dashboard!$H$103,Ranges!$E$56:$E$64,0),1) -> 8290.110571 | R52: =($J52*R$30/10^3)*INDEX(Ranges!$D$56:$D$64,MATCH(Dashboard!$H$103,Ranges!$E$56:$E$64,0),1) -> 11053.48076 | S52: =($J52*S$30/10^3)*INDEX(Ranges!$D$56:$D$64,MATCH(Dashboard!$H$103,Ranges!$E$56:$E$64,0),1) -> 13816.85095 | T52: =($J52*T$30/10^3)*INDEX(Ranges!$D$56:$D$64,MATCH(Dashboard!$H$103,Ranges!$E$56:$E$64,0),1) -> 16580.22114 | U52: =($J52*U$30/10^3)*INDEX(Ranges!$D$56:$D$64,MATCH(Dashboard!$H$103,Ranges!$E$56:$E$64,0),1) -> 19343.59133 | V52: =($J52*V$30/10^3)*INDEX(Ranges!$D$56:$D$64,MATCH(Dashboard!$H$103,Ranges!$E$56:$E$64,0),1) -> 22106.96152 | W52: =($J52*W$30/10^3)*INDEX(Ranges!$D$56:$D$64,MATCH(Dashboard!$H$103,Ranges!$E$56:$E$64,0),1) -> 24870.33171 | X52: =($J52*X$30/10^3)*INDEX(Ranges!$D$56:$D$64,MATCH(Dashboard!$H$103,Ranges!$E$56:$E$64,0),1) -> 27633.7019
C53: ARMTotalFertilizer | D53: ARM | E53: Total | F53: Fertilizer | G53: 65.305 | H53: 217683.3333 | I53: =INDEX(K53:M53,1,MATCH(Dashboard!$F$77,'Trade Data'!$K$30:$M$30,0)) -> 381.7294933 | J53: =INDEX(K53:M53,1,MATCH(Dashboard!$F$103,'Trade Data'!$K$30:$M$30,0)) -> 362.7475067 | K53: 362.7475067 | L53: 18.98198667 | M53: 381.7294933 | N53: =($J53*N$30/10^3)*INDEX(Ranges!$D$56:$D$64,MATCH(Dashboard!$H$103,Ranges!$E$56:$E$64,0),1) -> 0 | O53: =($J53*O$30/10^3)*INDEX(Ranges!$D$56:$D$64,MATCH(Dashboard!$H$103,Ranges!$E$56:$E$64,0),1) -> 3.518650815 | P53: =($J53*P$30/10^3)*INDEX(Ranges!$D$56:$D$64,MATCH(Dashboard!$H$103,Ranges!$E$56:$E$64,0),1) -> 7.037301629 | Q53: =($J53*Q$30/10^3)*INDEX(Ranges!$D$56:$D$64,MATCH(Dashboard!$H$103,Ranges!$E$56:$E$64,0),1) -> 10.55595244 | R53: =($J53*R$30/10^3)*INDEX(Ranges!$D$56:$D$64,MATCH(Dashboard!$H$103,Ranges!$E$56:$E$64,0),1) -> 14.07460326 | S53: =($J53*S$30/10^3)*INDEX(Ranges!$D$56:$D$64,MATCH(Dashboard!$H$103,Ranges!$E$56:$E$64,0),1) -> 17.59325407 | T53: =($J53*T$30/10^3)*INDEX(Ranges!$D$56:$D$64,MATCH(Dashboard!$H$103,Ranges!$E$56:$E$64,0),1) -> 21.11190489 | U53: =($J53*U$30/10^3)*INDEX(Ranges!$D$56:$D$64,MATCH(Dashboard!$H$103,Ranges!$E$56:$E$64,0),1) -> 24.6305557 | V53: =($J53*V$30/10^3)*INDEX(Ranges!$D$56:$D$64,MATCH(Dashboard!$H$103,Ranges!$E$56:$E$64,0),1) -> 28.14920652 | W53: =($J53*W$30/10^3)*INDEX(Ranges!$D$56:$D$64,MATCH(Dashboard!$H$103,Ranges!$E$56:$E$64,0),1) -> 31.66785733 | X53: =($J53*X$30/10^3)*INDEX(Ranges!$D$56:$D$64,MATCH(Dashboard!$H$103,Ranges!$E$56:$E$64,0),1) -> 35.18650815
C54: ARMTotalIron & Steel | D54: ARM | E54: Total | F54: Iron & Steel | G54: 18417.004 | H54: 21667063.53 | I54: =INDEX(K54:M54,1,MATCH(Dashboard!$F$77,'Trade Data'!$K$30:$M$30,0)) -> 59013.73782 | J54: =INDEX(K54:M54,1,MATCH(Dashboard!$F$103,'Trade Data'!$K$30:$M$30,0)) -> 43732.56532 | K54: 43732.56532 | L54: 15281.1725 | M54: 59013.73782 | N54: =($J54*N$30/10^3)*INDEX(Ranges!$D$56:$D$64,MATCH(Dashboard!$H$103,Ranges!$E$56:$E$64,0),1) -> 0 | O54: =($J54*O$30/10^3)*INDEX(Ranges!$D$56:$D$64,MATCH(Dashboard!$H$103,Ranges!$E$56:$E$64,0),1) -> 424.2058836 | P54: =($J54*P$30/10^3)*INDEX(Ranges!$D$56:$D$64,MATCH(Dashboard!$H$103,Ranges!$E$56:$E$64,0),1) -> 848.4117672 | Q54: =($J54*Q$30/10^3)*INDEX(Ranges!$D$56:$D$64,MATCH(Dashboard!$H$103,Ranges!$E$56:$E$64,0),1) -> 1272.617651 | R54: =($J54*R$30/10^3)*INDEX(Ranges!$D$56:$D$64,MATCH(Dashboard!$H$103,Ranges!$E$56:$E$64,0),1) -> 1696.823534 | S54: =($J54*S$30/10^3)*INDEX(Ranges!$D$56:$D$64,MATCH(Dashboard!$H$103,Ranges!$E$56:$E$64,0),1) -> 2121.029418 | T54: =($J54*T$30/10^3)*INDEX(Ranges!$D$56:$D$64,MATCH(Dashboard!$H$103,Ranges!$E$56:$E$64,0),1) -> 2545.235302 | U54: =($J54*U$30/10^3)*INDEX(Ranges!$D$56:$D$64,MATCH(Dashboard!$H$103,Ranges!$E$56:$E$64,0),1) -> 2969.441185 | V54: =($J54*V$30/10^3)*INDEX(Ranges!$D$56:$D$64,MATCH(Dashboard!$H$103,Ranges!$E$56:$E$64,0),1) -> 3393.647069 | W54: =($J54*W$30/10^3)*INDEX(Ranges!$D$56:$D$64,MATCH(Dashboard!$H$103,Ranges!$E$56:$E$64,0),1) -> 3817.852952 | X54: =($J54*X$30/10^3)*INDEX(Ranges!$D$56:$D$64,MATCH(Dashboard!$H$103,Ranges!$E$56:$E$64,0),1) -> 4242.058836
C55: AUSTotalAluminum | D55: AUS | E55: Total | F55: Aluminum | G55: 4054213.616 | H55: 1447933434 | I55: =INDEX(K55:M55,1,MATCH(Dashboard!$F$77,'Trade Data'!$K$30:$M$30,0)) -> 16758082 | J55: =INDEX(K55:M55,1,MATCH(Dashboard!$F$103,'Trade Data'!$K$30:$M$30,0)) -> 3904677.042 | K55: 3904677.042 | L55: 12853404.95 | M55: 16758082 | N55: =($J55*N$30/10^3)*INDEX(Ranges!$D$56:$D$64,MATCH(Dashboard!$H$103,Ranges!$E$56:$E$64,0),1) -> 0 | O55: =($J55*O$30/10^3)*INDEX(Ranges!$D$56:$D$64,MATCH(Dashboard!$H$103,Ranges!$E$56:$E$64,0),1) -> 37875.36731 | P55: =($J55*P$30/10^3)*INDEX(Ranges!$D$56:$D$64,MATCH(Dashboard!$H$103,Ranges!$E$56:$E$64,0),1) -> 75750.73462 | Q55: =($J55*Q$30/10^3)*INDEX(Ranges!$D$56:$D$64,MATCH(Dashboard!$H$103,Ranges!$E$56:$E$64,0),1) -> 113626.1019 | R55: =($J55*R$30/10^3)*INDEX(Ranges!$D$56:$D$64,MATCH(Dashboard!$H$103,Ranges!$E$56:$E$64,0),1) -> 151501.4692 | S55: =($J55*S$30/10^3)*INDEX(Ranges!$D$56:$D$64,MATCH(Dashboard!$H$103,Ranges!$E$56:$E$64,0),1) -> 189376.8366 | T55: =($J55*T$30/10^3)*INDEX(Ranges!$D$56:$D$64,MATCH(Dashboard!$H$103,Ranges!$E$56:$E$64,0),1) -> 227252.2039 | U55: =($J55*U$30/10^3)*INDEX(Ranges!$D$56:$D$64,MATCH(Dashboard!$H$103,Ranges!$E$56:$E$64,0),1) -> 265127.5712 | V55: =($J55*V$30/10^3)*INDEX(Ranges!$D$56:$D$64,MATCH(Dashboard!$H$103,Ranges!$E$56:$E$64,0),1) -> 303002.9385 | W55: =($J55*W$30/10^3)*INDEX(Ranges!$D$56:$D$64,MATCH(Dashboard!$H$103,Ranges!$E$56:$E$64,0),1) -> 340878.3058 | X55: =($J55*X$30/10^3)*INDEX(Ranges!$D$56:$D$64,MATCH(Dashboard!$H$103,Ranges!$E$56:$E$64,0),1) -> 378753.6731
C56: AUSTotalCement | D56: AUS | E56: Total | F56: Cement | G56: 7508.809 | H56: 75088090 | I56: =INDEX(K56:M56,1,MATCH(Dashboard!$F$77,'Trade Data'!$K$30:$M$30,0)) -> 73085.74093 | J56: =INDEX(K56:M56,1,MATCH(Dashboard!$F$103,'Trade Data'!$K$30:$M$30,0)) -> 67203.84055 | K56: 67203.84055 | L56: 5881.900383 | M56: 73085.74093 | N56: =($J56*N$30/10^3)*INDEX(Ranges!$D$56:$D$64,MATCH(Dashboard!$H$103,Ranges!$E$56:$E$64,0),1) -> 0 | O56: =($J56*O$30/10^3)*INDEX(Ranges!$D$56:$D$64,MATCH(Dashboard!$H$103,Ranges!$E$56:$E$64,0),1) -> 651.8772533 | P56: =($J56*P$30/10^3)*INDEX(Ranges!$D$56:$D$64,MATCH(Dashboard!$H$103,Ranges!$E$56:$E$64,0),1) -> 1303.754507 | Q56: =($J56*Q$30/10^3)*INDEX(Ranges!$D$56:$D$64,MATCH(Dashboard!$H$103,Ranges!$E$56:$E$64,0),1) -> 1955.63176 | R56: =($J56*R$30/10^3)*INDEX(Ranges!$D$56:$D$64,MATCH(Dashboard!$H$103,Ranges!$E$56:$E$64,0),1) -> 2607.509013 | S56: =($J56*S$30/10^3)*INDEX(Ranges!$D$56:$D$64,MATCH(Dashboard!$H$103,Ranges!$E$56:$E$64,0),1) -> 3259.386267 | T56: =($J56*T$30/10^3)*INDEX(Ranges!$D$56:$D$64,MATCH(Dashboard!$H$103,Ranges!$E$56:$E$64,0),1) -> 3911.26352 | U56: =($J56*U$30/10^3)*INDEX(Ranges!$D$56:$D$64,MATCH(Dashboard!$H$103,Ranges!$E$56:$E$64,0),1) -> 4563.140773 | V56: =($J56*V$30/10^3)*INDEX(Ranges!$D$56:$D$64,MATCH(Dashboard!$H$103,Ranges!$E$56:$E$64,0),1) -> 5215.018027 | W56: =($J56*W$30/10^3)*INDEX(Ranges!$D$56:$D$64,MATCH(Dashboard!$H$103,Ranges!$E$56:$E$64,0),1) -> 5866.89528 | X56: =($J56*X$30/10^3)*INDEX(Ranges!$D$56:$D$64,MATCH(Dashboard!$H$103,Ranges!$E$56:$E$64,0),1) -> 6518.772533
C57: AUSTotalFertilizer | D57: AUS | E57: Total | F57: Fertilizer | G57: 685356.609 | H57: 2284522030 | I57: =INDEX(K57:M57,1,MATCH(Dashboard!$F$77,'Trade Data'!$K$30:$M$30,0)) -> 4006137.832 | J57: =INDEX(K57:M57,1,MATCH(Dashboard!$F$103,'Trade Data'!$K$30:$M$30,0)) -> 3806927.511 | K57: 3806927.511 | L57: 199210.321 | M57: 4006137.832 | N57: =($J57*N$30/10^3)*INDEX(Ranges!$D$56:$D$64,MATCH(Dashboard!$H$103,Ranges!$E$56:$E$64,0),1) -> 0 | O57: =($J57*O$30/10^3)*INDEX(Ranges!$D$56:$D$64,MATCH(Dashboard!$H$103,Ranges!$E$56:$E$64,0),1) -> 36927.19685 | P57: =($J57*P$30/10^3)*INDEX(Ranges!$D$56:$D$64,MATCH(Dashboard!$H$103,Ranges!$E$56:$E$64,0),1) -> 73854.39371 | Q57: =($J57*Q$30/10^3)*INDEX(Ranges!$D$56:$D$64,MATCH(Dashboard!$H$103,Ranges!$E$56:$E$64,0),1) -> 110781.5906 | R57: =($J57*R$30/10^3)*INDEX(Ranges!$D$56:$D$64,MATCH(Dashboard!$H$103,Ranges!$E$56:$E$64,0),1) -> 147708.7874 | S57: =($J57*S$30/10^3)*INDEX(Ranges!$D$56:$D$64,MATCH(Dashboard!$H$103,Ranges!$E$56:$E$64,0),1) -> 184635.9843 | T57: =($J57*T$30/10^3)*INDEX(Ranges!$D$56:$D$64,MATCH(Dashboard!$H$103,Ranges!$E$56:$E$64,0),1) -> 221563.1811 | U57: =($J57*U$30/10^3)*INDEX(Ranges!$D$56:$D$64,MATCH(Dashboard!$H$103,Ranges!$E$56:$E$64,0),1) -> 258490.378 | V57: =($J57*V$30/10^3)*INDEX(Ranges!$D$56:$D$64,MATCH(Dashboard!$H$103,Ranges!$E$56:$E$64,0),1) -> 295417.5748 | W57: =($J57*W$30/10^3)*INDEX(Ranges!$D$56:$D$64,MATCH(Dashboard!$H$103,Ranges!$E$56:$E$64,0),1) -> 332344.7717 | X57: =($J57*X$30/10^3)*INDEX(Ranges!$D$56:$D$64,MATCH(Dashboard!$H$103,Ranges!$E$56:$E$64,0),1) -> 369271.9685
C58: AUSTotalHydrogen | D58: AUS | E58: Total | F58: Hydrogen | G58: 146.142 | H58: 21877.54491 | I58: =INDEX(K58:M58,1,MATCH(Dashboard!$F$77,'Trade Data'!$K$30:$M$30,0)) -> 227.5264671 | J58: =INDEX(K58:M58,1,MATCH(Dashboard!$F$103,'Trade Data'!$K$30:$M$30,0)) -> 227.5264671 | K58: 227.5264671 | L58: 0 | M58: 227.5264671 | N58: =($J58*N$30/10^3)*INDEX(Ranges!$D$56:$D$64,MATCH(Dashboard!$H$103,Ranges!$E$56:$E$64,0),1) -> 0 | O58: =($J58*O$30/10^3)*INDEX(Ranges!$D$56:$D$64,MATCH(Dashboard!$H$103,Ranges!$E$56:$E$64,0),1) -> 2.207006731 | P58: =($J58*P$30/10^3)*INDEX(Ranges!$D$56:$D$64,MATCH(Dashboard!$H$103,Ranges!$E$56:$E$64,0),1) -> 4.414013461 | Q58: =($J58*Q$30/10^3)*INDEX(Ranges!$D$56:$D$64,MATCH(Dashboard!$H$103,Ranges!$E$56:$E$64,0),1) -> 6.621020192 | R58: =($J58*R$30/10^3)*INDEX(Ranges!$D$56:$D$64,MATCH(Dashboard!$H$103,Ranges!$E$56:$E$64,0),1) -> 8.828026922 | S58: =($J58*S$30/10^3)*INDEX(Ranges!$D$56:$D$64,MATCH(Dashboard!$H$103,Ranges!$E$56:$E$64,0),1) -> 11.03503365 | T58: =($J58*T$30/10^3)*INDEX(Ranges!$D$56:$D$64,MATCH(Dashboard!$H$103,Ranges!$E$56:$E$64,0),1) -> 13.24204038 | U58: =($J58*U$30/10^3)*INDEX(Ranges!$D$56:$D$64,MATCH(Dashboard!$H$103,Ranges!$E$56:$E$64,0),1) -> 15.44904711 | V58: =($J58*V$30/10^3)*INDEX(Ranges!$D$56:$D$64,MATCH(Dashboard!$H$103,Ranges!$E$56:$E$64,0),1) -> 17.65605384 | W58: =($J58*W$30/10^3)*INDEX(Ranges!$D$56:$D$64,MATCH(Dashboard!$H$103,Ranges!$E$56:$E$64,0),1) -> 19.86306057 | X58: =($J58*X$30/10^3)*INDEX(Ranges!$D$56:$D$64,MATCH(Dashboard!$H$103,Ranges!$E$56:$E$64,0),1) -> 22.07006731
C59: AUSTotalIron & Steel | D59: AUS | E59: Total | F59: Iron & Steel | G59: 1723125.166 | H59: 2027206078 | I59: =INDEX(K59:M59,1,MATCH(Dashboard!$F$77,'Trade Data'!$K$30:$M$30,0)) -> 5521422.311 | J59: =INDEX(K59:M59,1,MATCH(Dashboard!$F$103,'Trade Data'!$K$30:$M$30,0)) -> 4091690.694 | K59: 4091690.694 | L59: 1429731.617 | M59: 5521422.311 | N59: =($J59*N$30/10^3)*INDEX(Ranges!$D$56:$D$64,MATCH(Dashboard!$H$103,Ranges!$E$56:$E$64,0),1) -> 0 | O59: =($J59*O$30/10^3)*INDEX(Ranges!$D$56:$D$64,MATCH(Dashboard!$H$103,Ranges!$E$56:$E$64,0),1) -> 39689.39973 | P59: =($J59*P$30/10^3)*INDEX(Ranges!$D$56:$D$64,MATCH(Dashboard!$H$103,Ranges!$E$56:$E$64,0),1) -> 79378.79946 | Q59: =($J59*Q$30/10^3)*INDEX(Ranges!$D$56:$D$64,MATCH(Dashboard!$H$103,Ranges!$E$56:$E$64,0),1) -> 119068.1992 | R59: =($J59*R$30/10^3)*INDEX(Ranges!$D$56:$D$64,MATCH(Dashboard!$H$103,Ranges!$E$56:$E$64,0),1) -> 158757.5989 | S59: =($J59*S$30/10^3)*INDEX(Ranges!$D$56:$D$64,MATCH(Dashboard!$H$103,Ranges!$E$56:$E$64,0),1) -> 198446.9987 | T59: =($J59*T$30/10^3)*INDEX(Ranges!$D$56:$D$64,MATCH(Dashboard!$H$103,Ranges!$E$56:$E$64,0),1) -> 238136.3984 | U59: =($J59*U$30/10^3)*INDEX(Ranges!$D$56:$D$64,MATCH(Dashboard!$H$103,Ranges!$E$56:$E$64,0),1) -> 277825.7981 | V59: =($J59*V$30/10^3)*INDEX(Ranges!$D$56:$D$64,MATCH(Dashboard!$H$103,Ranges!$E$56:$E$64,0),1) -> 317515.1978 | W59: =($J59*W$30/10^3)*INDEX(Ranges!$D$56:$D$64,MATCH(Dashboard!$H$103,Ranges!$E$56:$E$64,0),1) -> 357204.5976 | X59: =($J59*X$30/10^3)*INDEX(Ranges!$D$56:$D$64,MATCH(Dashboard!$H$103,Ranges!$E$56:$E$64,0),1) -> 396893.9973
C60: AUTTotalAluminum | D60: AUT | E60: Total | F60: Aluminum | G60: 4462370.801 | H60: 1593703858 | I60: =INDEX(K60:M60,1,MATCH(Dashboard!$F$77,'Trade Data'!$K$30:$M$30,0)) -> 18445198.71 | J60: =INDEX(K60:M60,1,MATCH(Dashboard!$F$103,'Trade Data'!$K$30:$M$30,0)) -> 4297779.661 | K60: 4297779.661 | L60: 14147419.05 | M60: 18445198.71 | N60: =($J60*N$30/10^3)*INDEX(Ranges!$D$56:$D$64,MATCH(Dashboard!$H$103,Ranges!$E$56:$E$64,0),1) -> 0 | O60: =($J60*O$30/10^3)*INDEX(Ranges!$D$56:$D$64,MATCH(Dashboard!$H$103,Ranges!$E$56:$E$64,0),1) -> 41688.46271 | P60: =($J60*P$30/10^3)*INDEX(Ranges!$D$56:$D$64,MATCH(Dashboard!$H$103,Ranges!$E$56:$E$64,0),1) -> 83376.92543 | Q60: =($J60*Q$30/10^3)*INDEX(Ranges!$D$56:$D$64,MATCH(Dashboard!$H$103,Ranges!$E$56:$E$64,0),1) -> 125065.3881 | R60: =($J60*R$30/10^3)*INDEX(Ranges!$D$56:$D$64,MATCH(Dashboard!$H$103,Ranges!$E$56:$E$64,0),1) -> 166753.8509 | S60: =($J60*S$30/10^3)*INDEX(Ranges!$D$56:$D$64,MATCH(Dashboard!$H$103,Ranges!$E$56:$E$64,0),1) -> 208442.3136 | T60: =($J60*T$30/10^3)*INDEX(Ranges!$D$56:$D$64,MATCH(Dashboard!$H$103,Ranges!$E$56:$E$64,0),1) -> 250130.7763 | U60: =($J60*U$30/10^3)*INDEX(Ranges!$D$56:$D$64,MATCH(Dashboard!$H$103,Ranges!$E$56:$E$64,0),1) -> 291819.239 | V60: =($J60*V$30/10^3)*INDEX(Ranges!$D$56:$D$64,MATCH(Dashboard!$H$103,Ranges!$E$56:$E$64,0),1) -> 333507.7017 | W60: =($J60*W$30/10^3)*INDEX(Ranges!$D$56:$D$64,MATCH(Dashboard!$H$103,Ranges!$E$56:$E$64,0),1) -> 375196.1644 | X60: =($J60*X$30/10^3)*INDEX(Ranges!$D$56:$D$64,MATCH(Dashboard!$H$103,Ranges!$E$56:$E$64,0),1) -> 416884.6271
C61: AUTTotalCement | D61: AUT | E61: Total | F61: Cement | G61: 46598.575 | H61: 465985750 | I61: =INDEX(K61:M61,1,MATCH(Dashboard!$F$77,'Trade Data'!$K$30:$M$30,0)) -> 453559.4633 | J61: =INDEX(K61:M61,1,MATCH(Dashboard!$F$103,'Trade Data'!$K$30:$M$30,0)) -> 417057.2462 | K61: 417057.2462 | L61: 36502.21708 | M61: 453559.4633 | N61: =($J61*N$30/10^3)*INDEX(Ranges!$D$56:$D$64,MATCH(Dashboard!$H$103,Ranges!$E$56:$E$64,0),1) -> 0 | O61: =($J61*O$30/10^3)*INDEX(Ranges!$D$56:$D$64,MATCH(Dashboard!$H$103,Ranges!$E$56:$E$64,0),1) -> 4045.455289 | P61: =($J61*P$30/10^3)*INDEX(Ranges!$D$56:$D$64,MATCH(Dashboard!$H$103,Ranges!$E$56:$E$64,0),1) -> 8090.910577 | Q61: =($J61*Q$30/10^3)*INDEX(Ranges!$D$56:$D$64,MATCH(Dashboard!$H$103,Ranges!$E$56:$E$64,0),1) -> 12136.36587 | R61: =($J61*R$30/10^3)*INDEX(Ranges!$D$56:$D$64,MATCH(Dashboard!$H$103,Ranges!$E$56:$E$64,0),1) -> 16181.82115 | S61: =($J61*S$30/10^3)*INDEX(Ranges!$D$56:$D$64,MATCH(Dashboard!$H$103,Ranges!$E$56:$E$64,0),1) -> 20227.27644 | T61: =($J61*T$30/10^3)*INDEX(Ranges!$D$56:$D$64,MATCH(Dashboard!$H$103,Ranges!$E$56:$E$64,0),1) -> 24272.73173 | U61: =($J61*U$30/10^3)*INDEX(Ranges!$D$56:$D$64,MATCH(Dashboard!$H$103,Ranges!$E$56:$E$64,0),1) -> 28318.18702 | V61: =($J61*V$30/10^3)*INDEX(Ranges!$D$56:$D$64,MATCH(Dashboard!$H$103,Ranges!$E$56:$E$64,0),1) -> 32363.64231 | W61: =($J61*W$30/10^3)*INDEX(Ranges!$D$56:$D$64,MATCH(Dashboard!$H$103,Ranges!$E$56:$E$64,0),1) -> 36409.0976 | X61: =($J61*X$30/10^3)*INDEX(Ranges!$D$56:$D$64,MATCH(Dashboard!$H$103,Ranges!$E$56:$E$64,0),1) -> 40454.55289
C62: AUTTotalElectricity | D62: AUT | E62: Total | F62: Electricity | G62: 4745662.5 | H62: 2.984693396e+10 | I62: =INDEX(K62:M62,1,MATCH(Dashboard!$F$77,'Trade Data'!$K$30:$M$30,0)) -> 14356375.24 | J62: =INDEX(K62:M62,1,MATCH(Dashboard!$F$103,'Trade Data'!$K$30:$M$30,0)) -> 14356375.24 | K62: 14356375.24 | L62: 0 | M62: 14356375.24 | N62: =($J62*N$30/10^3)*INDEX(Ranges!$D$56:$D$64,MATCH(Dashboard!$H$103,Ranges!$E$56:$E$64,0),1) -> 0 | O62: =($J62*O$30/10^3)*INDEX(Ranges!$D$56:$D$64,MATCH(Dashboard!$H$103,Ranges!$E$56:$E$64,0),1) -> 139256.8398 | P62: =($J62*P$30/10^3)*INDEX(Ranges!$D$56:$D$64,MATCH(Dashboard!$H$103,Ranges!$E$56:$E$64,0),1) -> 278513.6796 | Q62: =($J62*Q$30/10^3)*INDEX(Ranges!$D$56:$D$64,MATCH(Dashboard!$H$103,Ranges!$E$56:$E$64,0),1) -> 417770.5194 | R62: =($J62*R$30/10^3)*INDEX(Ranges!$D$56:$D$64,MATCH(Dashboard!$H$103,Ranges!$E$56:$E$64,0),1) -> 557027.3592 | S62: =($J62*S$30/10^3)*INDEX(Ranges!$D$56:$D$64,MATCH(Dashboard!$H$103,Ranges!$E$56:$E$64,0),1) -> 696284.1989 | T62: =($J62*T$30/10^3)*INDEX(Ranges!$D$56:$D$64,MATCH(Dashboard!$H$103,Ranges!$E$56:$E$64,0),1) -> 835541.0387 | U62: =($J62*U$30/10^3)*INDEX(Ranges!$D$56:$D$64,MATCH(Dashboard!$H$103,Ranges!$E$56:$E$64,0),1) -> 974797.8785 | V62: =($J62*V$30/10^3)*INDEX(Ranges!$D$56:$D$64,MATCH(Dashboard!$H$103,Ranges!$E$56:$E$64,0),1) -> 1114054.718 | W62: =($J62*W$30/10^3)*INDEX(Ranges!$D$56:$D$64,MATCH(Dashboard!$H$103,Ranges!$E$56:$E$64,0),1) -> 1253311.558 | X62: =($J62*X$30/10^3)*INDEX(Ranges!$D$56:$D$64,MATCH(Dashboard!$H$103,Ranges!$E$56:$E$64,0),1) -> 1392568.398
C63: AUTTotalFertilizer | D63: AUT | E63: Total | F63: Fertilizer | G63: 19913.592 | H63: 66378640 | I63: =INDEX(K63:M63,1,MATCH(Dashboard!$F$77,'Trade Data'!$K$30:$M$30,0)) -> 116401.5831 | J63: =INDEX(K63:M63,1,MATCH(Dashboard!$F$103,'Trade Data'!$K$30:$M$30,0)) -> 110613.3657 | K63: 110613.3657 | L63: 5788.217408 | M63: 116401.5831 | N63: =($J63*N$30/10^3)*INDEX(Ranges!$D$56:$D$64,MATCH(Dashboard!$H$103,Ranges!$E$56:$E$64,0),1) -> 0 | O63: =($J63*O$30/10^3)*INDEX(Ranges!$D$56:$D$64,MATCH(Dashboard!$H$103,Ranges!$E$56:$E$64,0),1) -> 1072.949647 | P63: =($J63*P$30/10^3)*INDEX(Ranges!$D$56:$D$64,MATCH(Dashboard!$H$103,Ranges!$E$56:$E$64,0),1) -> 2145.899295 | Q63: =($J63*Q$30/10^3)*INDEX(Ranges!$D$56:$D$64,MATCH(Dashboard!$H$103,Ranges!$E$56:$E$64,0),1) -> 3218.848942 | R63: =($J63*R$30/10^3)*INDEX(Ranges!$D$56:$D$64,MATCH(Dashboard!$H$103,Ranges!$E$56:$E$64,0),1) -> 4291.798589 | S63: =($J63*S$30/10^3)*INDEX(Ranges!$D$56:$D$64,MATCH(Dashboard!$H$103,Ranges!$E$56:$E$64,0),1) -> 5364.748236 | T63: =($J63*T$30/10^3)*INDEX(Ranges!$D$56:$D$64,MATCH(Dashboard!$H$103,Ranges!$E$56:$E$64,0),1) -> 6437.697884 | U63: =($J63*U$30/10^3)*INDEX(Ranges!$D$56:$D$64,MATCH(Dashboard!$H$103,Ranges!$E$56:$E$64,0),1) -> 7510.647531 | V63: =($J63*V$30/10^3)*INDEX(Ranges!$D$56:$D$64,MATCH(Dashboard!$H$103,Ranges!$E$56:$E$64,0),1) -> 8583.597178 | W63: =($J63*W$30/10^3)*INDEX(Ranges!$D$56:$D$64,MATCH(Dashboard!$H$103,Ranges!$E$56:$E$64,0),1) -> 9656.546825 | X63: =($J63*X$30/10^3)*INDEX(Ranges!$D$56:$D$64,MATCH(Dashboard!$H$103,Ranges!$E$56:$E$64,0),1) -> 10729.49647
C64: AUTTotalHydrogen | D64: AUT | E64: Total | F64: Hydrogen | G64: 319.193 | H64: 47783.38323 | I64: =INDEX(K64:M64,1,MATCH(Dashboard!$F$77,'Trade Data'!$K$30:$M$30,0)) -> 496.9471856 | J64: =INDEX(K64:M64,1,MATCH(Dashboard!$F$103,'Trade Data'!$K$30:$M$30,0)) -> 496.9471856 | K64: 496.9471856 | L64: 0 | M64: 496.9471856 | N64: =($J64*N$30/10^3)*INDEX(Ranges!$D$56:$D$64,MATCH(Dashboard!$H$103,Ranges!$E$56:$E$64,0),1) -> 0 | O64: =($J64*O$30/10^3)*INDEX(Ranges!$D$56:$D$64,MATCH(Dashboard!$H$103,Ranges!$E$56:$E$64,0),1) -> 4.820387701 | P64: =($J64*P$30/10^3)*INDEX(Ranges!$D$56:$D$64,MATCH(Dashboard!$H$103,Ranges!$E$56:$E$64,0),1) -> 9.640775401 | Q64: =($J64*Q$30/10^3)*INDEX(Ranges!$D$56:$D$64,MATCH(Dashboard!$H$103,Ranges!$E$56:$E$64,0),1) -> 14.4611631 | R64: =($J64*R$30/10^3)*INDEX(Ranges!$D$56:$D$64,MATCH(Dashboard!$H$103,Ranges!$E$56:$E$64,0),1) -> 19.2815508 | S64: =($J64*S$30/10^3)*INDEX(Ranges!$D$56:$D$64,MATCH(Dashboard!$H$103,Ranges!$E$56:$E$64,0),1) -> 24.1019385 | T64: =($J64*T$30/10^3)*INDEX(Ranges!$D$56:$D$64,MATCH(Dashboard!$H$103,Ranges!$E$56:$E$64,0),1) -> 28.9223262 | U64: =($J64*U$30/10^3)*INDEX(Ranges!$D$56:$D$64,MATCH(Dashboard!$H$103,Ranges!$E$56:$E$64,0),1) -> 33.7427139 | V64: =($J64*V$30/10^3)*INDEX(Ranges!$D$56:$D$64,MATCH(Dashboard!$H$103,Ranges!$E$56:$E$64,0),1) -> 38.5631016 | W64: =($J64*W$30/10^3)*INDEX(Ranges!$D$56:$D$64,MATCH(Dashboard!$H$103,Ranges!$E$56:$E$64,0),1) -> 43.38348931 | X64: =($J64*X$30/10^3)*INDEX(Ranges!$D$56:$D$64,MATCH(Dashboard!$H$103,Ranges!$E$56:$E$64,0),1) -> 48.20387701
C65: AUTTotalIron & Steel | D65: AUT | E65: Total | F65: Iron & Steel | G65: 15352184.12 | H65: 1.806139308e+10 | I65: =INDEX(K65:M65,1,MATCH(Dashboard!$F$77,'Trade Data'!$K$30:$M$30,0)) -> 49193113.54 | J65: =INDEX(K65:M65,1,MATCH(Dashboard!$F$103,'Trade Data'!$K$30:$M$30,0)) -> 36454919.32 | K65: 36454919.32 | L65: 12738194.22 | M65: 49193113.54 | N65: =($J65*N$30/10^3)*INDEX(Ranges!$D$56:$D$64,MATCH(Dashboard!$H$103,Ranges!$E$56:$E$64,0),1) -> 0 | O65: =($J65*O$30/10^3)*INDEX(Ranges!$D$56:$D$64,MATCH(Dashboard!$H$103,Ranges!$E$56:$E$64,0),1) -> 353612.7174 | P65: =($J65*P$30/10^3)*INDEX(Ranges!$D$56:$D$64,MATCH(Dashboard!$H$103,Ranges!$E$56:$E$64,0),1) -> 707225.4348 | Q65: =($J65*Q$30/10^3)*INDEX(Ranges!$D$56:$D$64,MATCH(Dashboard!$H$103,Ranges!$E$56:$E$64,0),1) -> 1060838.152 | R65: =($J65*R$30/10^3)*INDEX(Ranges!$D$56:$D$64,MATCH(Dashboard!$H$103,Ranges!$E$56:$E$64,0),1) -> 1414450.87 | S65: =($J65*S$30/10^3)*INDEX(Ranges!$D$56:$D$64,MATCH(Dashboard!$H$103,Ranges!$E$56:$E$64,0),1) -> 1768063.587 | T65: =($J65*T$30/10^3)*INDEX(Ranges!$D$56:$D$64,MATCH(Dashboard!$H$103,Ranges!$E$56:$E$64,0),1) -> 2121676.304 | U65: =($J65*U$30/10^3)*INDEX(Ranges!$D$56:$D$64,MATCH(Dashboard!$H$103,Ranges!$E$56:$E$64,0),1) -> 2475289.022 | V65: =($J65*V$30/10^3)*INDEX(Ranges!$D$56:$D$64,MATCH(Dashboard!$H$103,Ranges!$E$56:$E$64,0),1) -> 2828901.739 | W65: =($J65*W$30/10^3)*INDEX(Ranges!$D$56:$D$64,MATCH(Dashboard!$H$103,Ranges!$E$56:$E$64,0),1) -> 3182514.456 | X65: =($J65*X$30/10^3)*INDEX(Ranges!$D$56:$D$64,MATCH(Dashboard!$H$103,Ranges!$E$56:$E$64,0),1) -> 3536127.174
C66: AZETotalAluminum | D66: AZE | E66: Total | F66: Aluminum | G66: 217555.387 | H66: 77698352.5 | I66: =INDEX(K66:M66,1,MATCH(Dashboard!$F$77,'Trade Data'!$K$30:$M$30,0)) -> 899264.6563 | J66: =INDEX(K66:M66,1,MATCH(Dashboard!$F$103,'Trade Data'!$K$30:$M$30,0)) -> 209531.0227 | K66: 209531.0227 | L66: 689733.6336 | M66: 899264.6563 | N66: =($J66*N$30/10^3)*INDEX(Ranges!$D$56:$D$64,MATCH(Dashboard!$H$103,Ranges!$E$56:$E$64,0),1) -> 0 | O66: =($J66*O$30/10^3)*INDEX(Ranges!$D$56:$D$64,MATCH(Dashboard!$H$103,Ranges!$E$56:$E$64,0),1) -> 2032.45092 | P66: =($J66*P$30/10^3)*INDEX(Ranges!$D$56:$D$64,MATCH(Dashboard!$H$103,Ranges!$E$56:$E$64,0),1) -> 4064.90184 | Q66: =($J66*Q$30/10^3)*INDEX(Ranges!$D$56:$D$64,MATCH(Dashboard!$H$103,Ranges!$E$56:$E$64,0),1) -> 6097.35276 | R66: =($J66*R$30/10^3)*INDEX(Ranges!$D$56:$D$64,MATCH(Dashboard!$H$103,Ranges!$E$56:$E$64,0),1) -> 8129.803679 | S66: =($J66*S$30/10^3)*INDEX(Ranges!$D$56:$D$64,MATCH(Dashboard!$H$103,Ranges!$E$56:$E$64,0),1) -> 10162.2546 | T66: =($J66*T$30/10^3)*INDEX(Ranges!$D$56:$D$64,MATCH(Dashboard!$H$103,Ranges!$E$56:$E$64,0),1) -> 12194.70552 | U66: =($J66*U$30/10^3)*INDEX(Ranges!$D$56:$D$64,MATCH(Dashboard!$H$103,Ranges!$E$56:$E$64,0),1) -> 14227.15644 | V66: =($J66*V$30/10^3)*INDEX(Ranges!$D$56:$D$64,MATCH(Dashboard!$H$103,Ranges!$E$56:$E$64,0),1) -> 16259.60736 | W66: =($J66*W$30/10^3)*INDEX(Ranges!$D$56:$D$64,MATCH(Dashboard!$H$103,Ranges!$E$56:$E$64,0),1) -> 18292.05828 | X66: =($J66*X$30/10^3)*INDEX(Ranges!$D$56:$D$64,MATCH(Dashboard!$H$103,Ranges!$E$56:$E$64,0),1) -> 20324.5092
C67: AZETotalCement | D67: AZE | E67: Total | F67: Cement | G67: 34971.602 | H67: 349716020 | I67: =INDEX(K67:M67,1,MATCH(Dashboard!$F$77,'Trade Data'!$K$30:$M$30,0)) -> 340390.2595 | J67: =INDEX(K67:M67,1,MATCH(Dashboard!$F$103,'Trade Data'!$K$30:$M$30,0)) -> 312995.8379 | K67: 312995.8379 | L67: 27394.42157 | M67: 340390.2595 | N67: =($J67*N$30/10^3)*INDEX(Ranges!$D$56:$D$64,MATCH(Dashboard!$H$103,Ranges!$E$56:$E$64,0),1) -> 0 | O67: =($J67*O$30/10^3)*INDEX(Ranges!$D$56:$D$64,MATCH(Dashboard!$H$103,Ranges!$E$56:$E$64,0),1) -> 3036.059628 | P67: =($J67*P$30/10^3)*INDEX(Ranges!$D$56:$D$64,MATCH(Dashboard!$H$103,Ranges!$E$56:$E$64,0),1) -> 6072.119255 | Q67: =($J67*Q$30/10^3)*INDEX(Ranges!$D$56:$D$64,MATCH(Dashboard!$H$103,Ranges!$E$56:$E$64,0),1) -> 9108.178883 | R67: =($J67*R$30/10^3)*INDEX(Ranges!$D$56:$D$64,MATCH(Dashboard!$H$103,Ranges!$E$56:$E$64,0),1) -> 12144.23851 | S67: =($J67*S$30/10^3)*INDEX(Ranges!$D$56:$D$64,MATCH(Dashboard!$H$103,Ranges!$E$56:$E$64,0),1) -> 15180.29814 | T67: =($J67*T$30/10^3)*INDEX(Ranges!$D$56:$D$64,MATCH(Dashboard!$H$103,Ranges!$E$56:$E$64,0),1) -> 18216.35777 | U67: =($J67*U$30/10^3)*INDEX(Ranges!$D$56:$D$64,MATCH(Dashboard!$H$103,Ranges!$E$56:$E$64,0),1) -> 21252.41739 | V67: =($J67*V$30/10^3)*INDEX(Ranges!$D$56:$D$64,MATCH(Dashboard!$H$103,Ranges!$E$56:$E$64,0),1) -> 24288.47702 | W67: =($J67*W$30/10^3)*INDEX(Ranges!$D$56:$D$64,MATCH(Dashboard!$H$103,Ranges!$E$56:$E$64,0),1) -> 27324.53665 | X67: =($J67*X$30/10^3)*INDEX(Ranges!$D$56:$D$64,MATCH(Dashboard!$H$103,Ranges!$E$56:$E$64,0),1) -> 30360.59628
C68: AZETotalElectricity | D68: AZE | E68: Total | F68: Electricity | G68: 121598.375 | H68: 764769654.1 | I68: =INDEX(K68:M68,1,MATCH(Dashboard!$F$77,'Trade Data'!$K$30:$M$30,0)) -> 367854.2036 | J68: =INDEX(K68:M68,1,MATCH(Dashboard!$F$103,'Trade Data'!$K$30:$M$30,0)) -> 367854.2036 | K68: 367854.2036 | L68: 0 | M68: 367854.2036 | N68: =($J68*N$30/10^3)*INDEX(Ranges!$D$56:$D$64,MATCH(Dashboard!$H$103,Ranges!$E$56:$E$64,0),1) -> 0 | O68: =($J68*O$30/10^3)*INDEX(Ranges!$D$56:$D$64,MATCH(Dashboard!$H$103,Ranges!$E$56:$E$64,0),1) -> 3568.185775 | P68: =($J68*P$30/10^3)*INDEX(Ranges!$D$56:$D$64,MATCH(Dashboard!$H$103,Ranges!$E$56:$E$64,0),1) -> 7136.37155 | Q68: =($J68*Q$30/10^3)*INDEX(Ranges!$D$56:$D$64,MATCH(Dashboard!$H$103,Ranges!$E$56:$E$64,0),1) -> 10704.55733 | R68: =($J68*R$30/10^3)*INDEX(Ranges!$D$56:$D$64,MATCH(Dashboard!$H$103,Ranges!$E$56:$E$64,0),1) -> 14272.7431 | S68: =($J68*S$30/10^3)*INDEX(Ranges!$D$56:$D$64,MATCH(Dashboard!$H$103,Ranges!$E$56:$E$64,0),1) -> 17840.92888 | T68: =($J68*T$30/10^3)*INDEX(Ranges!$D$56:$D$64,MATCH(Dashboard!$H$103,Ranges!$E$56:$E$64,0),1) -> 21409.11465 | U68: =($J68*U$30/10^3)*INDEX(Ranges!$D$56:$D$64,MATCH(Dashboard!$H$103,Ranges!$E$56:$E$64,0),1) -> 24977.30043 | V68: =($J68*V$30/10^3)*INDEX(Ranges!$D$56:$D$64,MATCH(Dashboard!$H$103,Ranges!$E$56:$E$64,0),1) -> 28545.4862 | W68: =($J68*W$30/10^3)*INDEX(Ranges!$D$56:$D$64,MATCH(Dashboard!$H$103,Ranges!$E$56:$E$64,0),1) -> 32113.67198 | X68: =($J68*X$30/10^3)*INDEX(Ranges!$D$56:$D$64,MATCH(Dashboard!$H$103,Ranges!$E$56:$E$64,0),1) -> 35681.85775
C69: AZETotalFertilizer | D69: AZE | E69: Total | F69: Fertilizer | G69: 209762.766 | H69: 699209220 | I69: =INDEX(K69:M69,1,MATCH(Dashboard!$F$77,'Trade Data'!$K$30:$M$30,0)) -> 1226133.288 | J69: =INDEX(K69:M69,1,MATCH(Dashboard!$F$103,'Trade Data'!$K$30:$M$30,0)) -> 1165162.244 | K69: 1165162.244 | L69: 60971.04398 | M69: 1226133.288 | N69: =($J69*N$30/10^3)*INDEX(Ranges!$D$56:$D$64,MATCH(Dashboard!$H$103,Ranges!$E$56:$E$64,0),1) -> 0 | O69: =($J69*O$30/10^3)*INDEX(Ranges!$D$56:$D$64,MATCH(Dashboard!$H$103,Ranges!$E$56:$E$64,0),1) -> 11302.07377 | P69: =($J69*P$30/10^3)*INDEX(Ranges!$D$56:$D$64,MATCH(Dashboard!$H$103,Ranges!$E$56:$E$64,0),1) -> 22604.14754 | Q69: =($J69*Q$30/10^3)*INDEX(Ranges!$D$56:$D$64,MATCH(Dashboard!$H$103,Ranges!$E$56:$E$64,0),1) -> 33906.22131 | R69: =($J69*R$30/10^3)*INDEX(Ranges!$D$56:$D$64,MATCH(Dashboard!$H$103,Ranges!$E$56:$E$64,0),1) -> 45208.29508 | S69: =($J69*S$30/10^3)*INDEX(Ranges!$D$56:$D$64,MATCH(Dashboard!$H$103,Ranges!$E$56:$E$64,0),1) -> 56510.36884 | T69: =($J69*T$30/10^3)*INDEX(Ranges!$D$56:$D$64,MATCH(Dashboard!$H$103,Ranges!$E$56:$E$64,0),1) -> 67812.44261 | U69: =($J69*U$30/10^3)*INDEX(Ranges!$D$56:$D$64,MATCH(Dashboard!$H$103,Ranges!$E$56:$E$64,0),1) -> 79114.51638 | V69: =($J69*V$30/10^3)*INDEX(Ranges!$D$56:$D$64,MATCH(Dashboard!$H$103,Ranges!$E$56:$E$64,0),1) -> 90416.59015 | W69: =($J69*W$30/10^3)*INDEX(Ranges!$D$56:$D$64,MATCH(Dashboard!$H$103,Ranges!$E$56:$E$64,0),1) -> 101718.6639 | X69: =($J69*X$30/10^3)*INDEX(Ranges!$D$56:$D$64,MATCH(Dashboard!$H$103,Ranges!$E$56:$E$64,0),1) -> 113020.7377
C70: AZETotalIron & Steel | D70: AZE | E70: Total | F70: Iron & Steel | G70: 112691.533 | H70: 132578274.1 | I70: =INDEX(K70:M70,1,MATCH(Dashboard!$F$77,'Trade Data'!$K$30:$M$30,0)) -> 361098.2863 | J70: =INDEX(K70:M70,1,MATCH(Dashboard!$F$103,'Trade Data'!$K$30:$M$30,0)) -> 267594.5462 | K70: 267594.5462 | L70: 93503.74011 | M70: 361098.2863 | N70: =($J70*N$30/10^3)*INDEX(Ranges!$D$56:$D$64,MATCH(Dashboard!$H$103,Ranges!$E$56:$E$64,0),1) -> 0 | O70: =($J70*O$30/10^3)*INDEX(Ranges!$D$56:$D$64,MATCH(Dashboard!$H$103,Ranges!$E$56:$E$64,0),1) -> 2595.667098 | P70: =($J70*P$30/10^3)*INDEX(Ranges!$D$56:$D$64,MATCH(Dashboard!$H$103,Ranges!$E$56:$E$64,0),1) -> 5191.334196 | Q70: =($J70*Q$30/10^3)*INDEX(Ranges!$D$56:$D$64,MATCH(Dashboard!$H$103,Ranges!$E$56:$E$64,0),1) -> 7787.001295 | R70: =($J70*R$30/10^3)*INDEX(Ranges!$D$56:$D$64,MATCH(Dashboard!$H$103,Ranges!$E$56:$E$64,0),1) -> 10382.66839 | S70: =($J70*S$30/10^3)*INDEX(Ranges!$D$56:$D$64,MATCH(Dashboard!$H$103,Ranges!$E$56:$E$64,0),1) -> 12978.33549 | T70: =($J70*T$30/10^3)*INDEX(Ranges!$D$56:$D$64,MATCH(Dashboard!$H$103,Ranges!$E$56:$E$64,0),1) -> 15574.00259 | U70: =($J70*U$30/10^3)*INDEX(Ranges!$D$56:$D$64,MATCH(Dashboard!$H$103,Ranges!$E$56:$E$64,0),1) -> 18169.66969 | V70: =($J70*V$30/10^3)*INDEX(Ranges!$D$56:$D$64,MATCH(Dashboard!$H$103,Ranges!$E$56:$E$64,0),1) -> 20765.33679 | W70: =($J70*W$30/10^3)*INDEX(Ranges!$D$56:$D$64,MATCH(Dashboard!$H$103,Ranges!$E$56:$E$64,0),1) -> 23361.00388 | X70: =($J70*X$30/10^3)*INDEX(Ranges!$D$56:$D$64,MATCH(Dashboard!$H$103,Ranges!$E$56:$E$64,0),1) -> 25956.67098
C71: BDITotalAluminum | D71: BDI | E71: Total | F71: Aluminum | G71: 2.527 | H71: 902.5 | I71: =INDEX(K71:M71,1,MATCH(Dashboard!$F$77,'Trade Data'!$K$30:$M$30,0)) -> 10.44534828 | J71: =INDEX(K71:M71,1,MATCH(Dashboard!$F$103,'Trade Data'!$K$30:$M$30,0)) -> 2.433793534 | K71: 2.433793534 | L71: 8.011554741 | M71: 10.44534828 | N71: =($J71*N$30/10^3)*INDEX(Ranges!$D$56:$D$64,MATCH(Dashboard!$H$103,Ranges!$E$56:$E$64,0),1) -> 0 | O71: =($J71*O$30/10^3)*INDEX(Ranges!$D$56:$D$64,MATCH(Dashboard!$H$103,Ranges!$E$56:$E$64,0),1) -> 0.02360779728 | P71: =($J71*P$30/10^3)*INDEX(Ranges!$D$56:$D$64,MATCH(Dashboard!$H$103,Ranges!$E$56:$E$64,0),1) -> 0.04721559457 | Q71: =($J71*Q$30/10^3)*INDEX(Ranges!$D$56:$D$64,MATCH(Dashboard!$H$103,Ranges!$E$56:$E$64,0),1) -> 0.07082339185 | R71: =($J71*R$30/10^3)*INDEX(Ranges!$D$56:$D$64,MATCH(Dashboard!$H$103,Ranges!$E$56:$E$64,0),1) -> 0.09443118914 | S71: =($J71*S$30/10^3)*INDEX(Ranges!$D$56:$D$64,MATCH(Dashboard!$H$103,Ranges!$E$56:$E$64,0),1) -> 0.1180389864 | T71: =($J71*T$30/10^3)*INDEX(Ranges!$D$56:$D$64,MATCH(Dashboard!$H$103,Ranges!$E$56:$E$64,0),1) -> 0.1416467837 | U71: =($J71*U$30/10^3)*INDEX(Ranges!$D$56:$D$64,MATCH(Dashboard!$H$103,Ranges!$E$56:$E$64,0),1) -> 0.165254581 | V71: =($J71*V$30/10^3)*INDEX(Ranges!$D$56:$D$64,MATCH(Dashboard!$H$103,Ranges!$E$56:$E$64,0),1) -> 0.1888623783 | W71: =($J71*W$30/10^3)*INDEX(Ranges!$D$56:$D$64,MATCH(Dashboard!$H$103,Ranges!$E$56:$E$64,0),1) -> 0.2124701756 | X71: =($J71*X$30/10^3)*INDEX(Ranges!$D$56:$D$64,MATCH(Dashboard!$H$103,Ranges!$E$56:$E$64,0),1) -> 0.2360779728
C72: BDITotalFertilizer | D72: BDI | E72: Total | F72: Fertilizer | G72: 0.688 | H72: 2293.333333 | I72: =INDEX(K72:M72,1,MATCH(Dashboard!$F$77,'Trade Data'!$K$30:$M$30,0)) -> 4.021589333 | J72: =INDEX(K72:M72,1,MATCH(Dashboard!$F$103,'Trade Data'!$K$30:$M$30,0)) -> 3.821610667 | K72: 3.821610667 | L72: 0.1999786667 | M72: 4.021589333 | N72: =($J72*N$30/10^3)*INDEX(Ranges!$D$56:$D$64,MATCH(Dashboard!$H$103,Ranges!$E$56:$E$64,0),1) -> 0 | O72: =($J72*O$30/10^3)*INDEX(Ranges!$D$56:$D$64,MATCH(Dashboard!$H$103,Ranges!$E$56:$E$64,0),1) -> 0.03706962347 | P72: =($J72*P$30/10^3)*INDEX(Ranges!$D$56:$D$64,MATCH(Dashboard!$H$103,Ranges!$E$56:$E$64,0),1) -> 0.07413924693 | Q72: =($J72*Q$30/10^3)*INDEX(Ranges!$D$56:$D$64,MATCH(Dashboard!$H$103,Ranges!$E$56:$E$64,0),1) -> 0.1112088704 | R72: =($J72*R$30/10^3)*INDEX(Ranges!$D$56:$D$64,MATCH(Dashboard!$H$103,Ranges!$E$56:$E$64,0),1) -> 0.1482784939 | S72: =($J72*S$30/10^3)*INDEX(Ranges!$D$56:$D$64,MATCH(Dashboard!$H$103,Ranges!$E$56:$E$64,0),1) -> 0.1853481173 | T72: =($J72*T$30/10^3)*INDEX(Ranges!$D$56:$D$64,MATCH(Dashboard!$H$103,Ranges!$E$56:$E$64,0),1) -> 0.2224177408 | U72: =($J72*U$30/10^3)*INDEX(Ranges!$D$56:$D$64,MATCH(Dashboard!$H$103,Ranges!$E$56:$E$64,0),1) -> 0.2594873643 | V72: =($J72*V$30/10^3)*INDEX(Ranges!$D$56:$D$64,MATCH(Dashboard!$H$103,Ranges!$E$56:$E$64,0),1) -> 0.2965569877 | W72: =($J72*W$30/10^3)*INDEX(Ranges!$D$56:$D$64,MATCH(Dashboard!$H$103,Ranges!$E$56:$E$64,0),1) -> 0.3336266112 | X72: =($J72*X$30/10^3)*INDEX(Ranges!$D$56:$D$64,MATCH(Dashboard!$H$103,Ranges!$E$56:$E$64,0),1) -> 0.3706962347
C73: BDITotalIron & Steel | D73: BDI | E73: Total | F73: Iron & Steel | G73: 9157.139 | H73: 10773104.71 | I73: =INDEX(K73:M73,1,MATCH(Dashboard!$F$77,'Trade Data'!$K$30:$M$30,0)) -> 29342.28608 | J73: =INDEX(K73:M73,1,MATCH(Dashboard!$F$103,'Trade Data'!$K$30:$M$30,0)) -> 21744.31734 | K73: 21744.31734 | L73: 7597.968742 | M73: 29342.28608 | N73: =($J73*N$30/10^3)*INDEX(Ranges!$D$56:$D$64,MATCH(Dashboard!$H$103,Ranges!$E$56:$E$64,0),1) -> 0 | O73: =($J73*O$30/10^3)*INDEX(Ranges!$D$56:$D$64,MATCH(Dashboard!$H$103,Ranges!$E$56:$E$64,0),1) -> 210.9198782 | P73: =($J73*P$30/10^3)*INDEX(Ranges!$D$56:$D$64,MATCH(Dashboard!$H$103,Ranges!$E$56:$E$64,0),1) -> 421.8397564 | Q73: =($J73*Q$30/10^3)*INDEX(Ranges!$D$56:$D$64,MATCH(Dashboard!$H$103,Ranges!$E$56:$E$64,0),1) -> 632.7596346 | R73: =($J73*R$30/10^3)*INDEX(Ranges!$D$56:$D$64,MATCH(Dashboard!$H$103,Ranges!$E$56:$E$64,0),1) -> 843.6795128 | S73: =($J73*S$30/10^3)*INDEX(Ranges!$D$56:$D$64,MATCH(Dashboard!$H$103,Ranges!$E$56:$E$64,0),1) -> 1054.599391 | T73: =($J73*T$30/10^3)*INDEX(Ranges!$D$56:$D$64,MATCH(Dashboard!$H$103,Ranges!$E$56:$E$64,0),1) -> 1265.519269 | U73: =($J73*U$30/10^3)*INDEX(Ranges!$D$56:$D$64,MATCH(Dashboard!$H$103,Ranges!$E$56:$E$64,0),1) -> 1476.439147 | V73: =($J73*V$30/10^3)*INDEX(Ranges!$D$56:$D$64,MATCH(Dashboard!$H$103,Ranges!$E$56:$E$64,0),1) -> 1687.359026 | W73: =($J73*W$30/10^3)*INDEX(Ranges!$D$56:$D$64,MATCH(Dashboard!$H$103,Ranges!$E$56:$E$64,0),1) -> 1898.278904 | X73: =($J73*X$30/10^3)*INDEX(Ranges!$D$56:$D$64,MATCH(Dashboard!$H$103,Ranges!$E$56:$E$64,0),1) -> 2109.198782
C74: BELTotalAluminum | D74: BEL | E74: Total | F74: Aluminum | G74: 3159775.947 | H74: 1128491410 | I74: =INDEX(K74:M74,1,MATCH(Dashboard!$F$77,'Trade Data'!$K$30:$M$30,0)) -> 13060926.09 | J74: =INDEX(K74:M74,1,MATCH(Dashboard!$F$103,'Trade Data'!$K$30:$M$30,0)) -> 3043230.024 | K74: 3043230.024 | L74: 10017696.07 | M74: 13060926.09 | N74: =($J74*N$30/10^3)*INDEX(Ranges!$D$56:$D$64,MATCH(Dashboard!$H$103,Ranges!$E$56:$E$64,0),1) -> 0 | O74: =($J74*O$30/10^3)*INDEX(Ranges!$D$56:$D$64,MATCH(Dashboard!$H$103,Ranges!$E$56:$E$64,0),1) -> 29519.33123 | P74: =($J74*P$30/10^3)*INDEX(Ranges!$D$56:$D$64,MATCH(Dashboard!$H$103,Ranges!$E$56:$E$64,0),1) -> 59038.66246 | Q74: =($J74*Q$30/10^3)*INDEX(Ranges!$D$56:$D$64,MATCH(Dashboard!$H$103,Ranges!$E$56:$E$64,0),1) -> 88557.99369 | R74: =($J74*R$30/10^3)*INDEX(Ranges!$D$56:$D$64,MATCH(Dashboard!$H$103,Ranges!$E$56:$E$64,0),1) -> 118077.3249 | S74: =($J74*S$30/10^3)*INDEX(Ranges!$D$56:$D$64,MATCH(Dashboard!$H$103,Ranges!$E$56:$E$64,0),1) -> 147596.6562 | T74: =($J74*T$30/10^3)*INDEX(Ranges!$D$56:$D$64,MATCH(Dashboard!$H$103,Ranges!$E$56:$E$64,0),1) -> 177115.9874 | U74: =($J74*U$30/10^3)*INDEX(Ranges!$D$56:$D$64,MATCH(Dashboard!$H$103,Ranges!$E$56:$E$64,0),1) -> 206635.3186 | V74: =($J74*V$30/10^3)*INDEX(Ranges!$D$56:$D$64,MATCH(Dashboard!$H$103,Ranges!$E$56:$E$64,0),1) -> 236154.6498 | W74: =($J74*W$30/10^3)*INDEX(Ranges!$D$56:$D$64,MATCH(Dashboard!$H$103,Ranges!$E$56:$E$64,0),1) -> 265673.9811 | X74: =($J74*X$30/10^3)*INDEX(Ranges!$D$56:$D$64,MATCH(Dashboard!$H$103,Ranges!$E$56:$E$64,0),1) -> 295193.3123
C75: BELTotalCement | D75: BEL | E75: Total | F75: Cement | G75: 349539.414 | H75: 3495394140 | I75: =INDEX(K75:M75,1,MATCH(Dashboard!$F$77,'Trade Data'!$K$30:$M$30,0)) -> 3402183.63 | J75: =INDEX(K75:M75,1,MATCH(Dashboard!$F$103,'Trade Data'!$K$30:$M$30,0)) -> 3128377.755 | K75: 3128377.755 | L75: 273805.8743 | M75: 3402183.63 | N75: =($J75*N$30/10^3)*INDEX(Ranges!$D$56:$D$64,MATCH(Dashboard!$H$103,Ranges!$E$56:$E$64,0),1) -> 0 | O75: =($J75*O$30/10^3)*INDEX(Ranges!$D$56:$D$64,MATCH(Dashboard!$H$103,Ranges!$E$56:$E$64,0),1) -> 30345.26423 | P75: =($J75*P$30/10^3)*INDEX(Ranges!$D$56:$D$64,MATCH(Dashboard!$H$103,Ranges!$E$56:$E$64,0),1) -> 60690.52845 | Q75: =($J75*Q$30/10^3)*INDEX(Ranges!$D$56:$D$64,MATCH(Dashboard!$H$103,Ranges!$E$56:$E$64,0),1) -> 91035.79268 | R75: =($J75*R$30/10^3)*INDEX(Ranges!$D$56:$D$64,MATCH(Dashboard!$H$103,Ranges!$E$56:$E$64,0),1) -> 121381.0569 | S75: =($J75*S$30/10^3)*INDEX(Ranges!$D$56:$D$64,MATCH(Dashboard!$H$103,Ranges!$E$56:$E$64,0),1) -> 151726.3211 | T75: =($J75*T$30/10^3)*INDEX(Ranges!$D$56:$D$64,MATCH(Dashboard!$H$103,Ranges!$E$56:$E$64,0),1) -> 182071.5854 | U75: =($J75*U$30/10^3)*INDEX(Ranges!$D$56:$D$64,MATCH(Dashboard!$H$103,Ranges!$E$56:$E$64,0),1) -> 212416.8496 | V75: =($J75*V$30/10^3)*INDEX(Ranges!$D$56:$D$64,MATCH(Dashboard!$H$103,Ranges!$E$56:$E$64,0),1) -> 242762.1138 | W75: =($J75*W$30/10^3)*INDEX(Ranges!$D$56:$D$64,MATCH(Dashboard!$H$103,Ranges!$E$56:$E$64,0),1) -> 273107.378 | X75: =($J75*X$30/10^3)*INDEX(Ranges!$D$56:$D$64,MATCH(Dashboard!$H$103,Ranges!$E$56:$E$64,0),1) -> 303452.6423
C76: BELTotalElectricity | D76: BEL | E76: Total | F76: Electricity | G76: 6071649.5 | H76: 3.818647484e+10 | I76: =INDEX(K76:M76,1,MATCH(Dashboard!$F$77,'Trade Data'!$K$30:$M$30,0)) -> 18367694.4 | J76: =INDEX(K76:M76,1,MATCH(Dashboard!$F$103,'Trade Data'!$K$30:$M$30,0)) -> 18367694.4 | K76: 18367694.4 | L76: 0 | M76: 18367694.4 | N76: =($J76*N$30/10^3)*INDEX(Ranges!$D$56:$D$64,MATCH(Dashboard!$H$103,Ranges!$E$56:$E$64,0),1) -> 0 | O76: =($J76*O$30/10^3)*INDEX(Ranges!$D$56:$D$64,MATCH(Dashboard!$H$103,Ranges!$E$56:$E$64,0),1) -> 178166.6357 | P76: =($J76*P$30/10^3)*INDEX(Ranges!$D$56:$D$64,MATCH(Dashboard!$H$103,Ranges!$E$56:$E$64,0),1) -> 356333.2713 | Q76: =($J76*Q$30/10^3)*INDEX(Ranges!$D$56:$D$64,MATCH(Dashboard!$H$103,Ranges!$E$56:$E$64,0),1) -> 534499.907 | R76: =($J76*R$30/10^3)*INDEX(Ranges!$D$56:$D$64,MATCH(Dashboard!$H$103,Ranges!$E$56:$E$64,0),1) -> 712666.5427 | S76: =($J76*S$30/10^3)*INDEX(Ranges!$D$56:$D$64,MATCH(Dashboard!$H$103,Ranges!$E$56:$E$64,0),1) -> 890833.1784 | T76: =($J76*T$30/10^3)*INDEX(Ranges!$D$56:$D$64,MATCH(Dashboard!$H$103,Ranges!$E$56:$E$64,0),1) -> 1068999.814 | U76: =($J76*U$30/10^3)*INDEX(Ranges!$D$56:$D$64,MATCH(Dashboard!$H$103,Ranges!$E$56:$E$64,0),1) -> 1247166.45 | V76: =($J76*V$30/10^3)*INDEX(Ranges!$D$56:$D$64,MATCH(Dashboard!$H$103,Ranges!$E$56:$E$64,0),1) -> 1425333.085 | W76: =($J76*W$30/10^3)*INDEX(Ranges!$D$56:$D$64,MATCH(Dashboard!$H$103,Ranges!$E$56:$E$64,0),1) -> 1603499.721 | X76: =($J76*X$30/10^3)*INDEX(Ranges!$D$56:$D$64,MATCH(Dashboard!$H$103,Ranges!$E$56:$E$64,0),1) -> 1781666.357
C77: BELTotalFertilizer | D77: BEL | E77: Total | F77: Fertilizer | G77: 3272434.902 | H77: 10908116340 | I77: =INDEX(K77:M77,1,MATCH(Dashboard!$F$77,'Trade Data'!$K$30:$M$30,0)) -> 19128472.81 | J77: =INDEX(K77:M77,1,MATCH(Dashboard!$F$103,'Trade Data'!$K$30:$M$30,0)) -> 18177285.07 | K77: 18177285.07 | L77: 951187.7448 | M77: 19128472.81 | N77: =($J77*N$30/10^3)*INDEX(Ranges!$D$56:$D$64,MATCH(Dashboard!$H$103,Ranges!$E$56:$E$64,0),1) -> 0 | O77: =($J77*O$30/10^3)*INDEX(Ranges!$D$56:$D$64,MATCH(Dashboard!$H$103,Ranges!$E$56:$E$64,0),1) -> 176319.6652 | P77: =($J77*P$30/10^3)*INDEX(Ranges!$D$56:$D$64,MATCH(Dashboard!$H$103,Ranges!$E$56:$E$64,0),1) -> 352639.3303 | Q77: =($J77*Q$30/10^3)*INDEX(Ranges!$D$56:$D$64,MATCH(Dashboard!$H$103,Ranges!$E$56:$E$64,0),1) -> 528958.9955 | R77: =($J77*R$30/10^3)*INDEX(Ranges!$D$56:$D$64,MATCH(Dashboard!$H$103,Ranges!$E$56:$E$64,0),1) -> 705278.6607 | S77: =($J77*S$30/10^3)*INDEX(Ranges!$D$56:$D$64,MATCH(Dashboard!$H$103,Ranges!$E$56:$E$64,0),1) -> 881598.3258 | T77: =($J77*T$30/10^3)*INDEX(Ranges!$D$56:$D$64,MATCH(Dashboard!$H$103,Ranges!$E$56:$E$64,0),1) -> 1057917.991 | U77: =($J77*U$30/10^3)*INDEX(Ranges!$D$56:$D$64,MATCH(Dashboard!$H$103,Ranges!$E$56:$E$64,0),1) -> 1234237.656 | V77: =($J77*V$30/10^3)*INDEX(Ranges!$D$56:$D$64,MATCH(Dashboard!$H$103,Ranges!$E$56:$E$64,0),1) -> 1410557.321 | W77: =($J77*W$30/10^3)*INDEX(Ranges!$D$56:$D$64,MATCH(Dashboard!$H$103,Ranges!$E$56:$E$64,0),1) -> 1586876.987 | X77: =($J77*X$30/10^3)*INDEX(Ranges!$D$56:$D$64,MATCH(Dashboard!$H$103,Ranges!$E$56:$E$64,0),1) -> 1763196.652
C78: BELTotalHydrogen | D78: BEL | E78: Total | F78: Hydrogen | G78: 171998.219 | H78: 25748236.38 | I78: =INDEX(K78:M78,1,MATCH(Dashboard!$F$77,'Trade Data'!$K$30:$M$30,0)) -> 267781.6583 | J78: =INDEX(K78:M78,1,MATCH(Dashboard!$F$103,'Trade Data'!$K$30:$M$30,0)) -> 267781.6583 | K78: 267781.6583 | L78: 0 | M78: 267781.6583 | N78: =($J78*N$30/10^3)*INDEX(Ranges!$D$56:$D$64,MATCH(Dashboard!$H$103,Ranges!$E$56:$E$64,0),1) -> 0 | O78: =($J78*O$30/10^3)*INDEX(Ranges!$D$56:$D$64,MATCH(Dashboard!$H$103,Ranges!$E$56:$E$64,0),1) -> 2597.482086 | P78: =($J78*P$30/10^3)*INDEX(Ranges!$D$56:$D$64,MATCH(Dashboard!$H$103,Ranges!$E$56:$E$64,0),1) -> 5194.964171 | Q78: =($J78*Q$30/10^3)*INDEX(Ranges!$D$56:$D$64,MATCH(Dashboard!$H$103,Ranges!$E$56:$E$64,0),1) -> 7792.446257 | R78: =($J78*R$30/10^3)*INDEX(Ranges!$D$56:$D$64,MATCH(Dashboard!$H$103,Ranges!$E$56:$E$64,0),1) -> 10389.92834 | S78: =($J78*S$30/10^3)*INDEX(Ranges!$D$56:$D$64,MATCH(Dashboard!$H$103,Ranges!$E$56:$E$64,0),1) -> 12987.41043 | T78: =($J78*T$30/10^3)*INDEX(Ranges!$D$56:$D$64,MATCH(Dashboard!$H$103,Ranges!$E$56:$E$64,0),1) -> 15584.89251 | U78: =($J78*U$30/10^3)*INDEX(Ranges!$D$56:$D$64,MATCH(Dashboard!$H$103,Ranges!$E$56:$E$64,0),1) -> 18182.3746 | V78: =($J78*V$30/10^3)*INDEX(Ranges!$D$56:$D$64,MATCH(Dashboard!$H$103,Ranges!$E$56:$E$64,0),1) -> 20779.85669 | W78: =($J78*W$30/10^3)*INDEX(Ranges!$D$56:$D$64,MATCH(Dashboard!$H$103,Ranges!$E$56:$E$64,0),1) -> 23377.33877 | X78: =($J78*X$30/10^3)*INDEX(Ranges!$D$56:$D$64,MATCH(Dashboard!$H$103,Ranges!$E$56:$E$64,0),1) -> 25974.82086
C79: BELTotalIron & Steel | D79: BEL | E79: Total | F79: Iron & Steel | G79: 19489601.78 | H79: 2.292894327e+10 | I79: =INDEX(K79:M79,1,MATCH(Dashboard!$F$77,'Trade Data'!$K$30:$M$30,0)) -> 62450670.57 | J79: =INDEX(K79:M79,1,MATCH(Dashboard!$F$103,'Trade Data'!$K$30:$M$30,0)) -> 46279529.66 | K79: 46279529.66 | L79: 16171140.91 | M79: 62450670.57 | N79: =($J79*N$30/10^3)*INDEX(Ranges!$D$56:$D$64,MATCH(Dashboard!$H$103,Ranges!$E$56:$E$64,0),1) -> 0 | O79: =($J79*O$30/10^3)*INDEX(Ranges!$D$56:$D$64,MATCH(Dashboard!$H$103,Ranges!$E$56:$E$64,0),1) -> 448911.4377 | P79: =($J79*P$30/10^3)*INDEX(Ranges!$D$56:$D$64,MATCH(Dashboard!$H$103,Ranges!$E$56:$E$64,0),1) -> 897822.8754 | Q79: =($J79*Q$30/10^3)*INDEX(Ranges!$D$56:$D$64,MATCH(Dashboard!$H$103,Ranges!$E$56:$E$64,0),1) -> 1346734.313 | R79: =($J79*R$30/10^3)*INDEX(Ranges!$D$56:$D$64,MATCH(Dashboard!$H$103,Ranges!$E$56:$E$64,0),1) -> 1795645.751 | S79: =($J79*S$30/10^3)*INDEX(Ranges!$D$56:$D$64,MATCH(Dashboard!$H$103,Ranges!$E$56:$E$64,0),1) -> 2244557.188 | T79: =($J79*T$30/10^3)*INDEX(Ranges!$D$56:$D$64,MATCH(Dashboard!$H$103,Ranges!$E$56:$E$64,0),1) -> 2693468.626 | U79: =($J79*U$30/10^3)*INDEX(Ranges!$D$56:$D$64,MATCH(Dashboard!$H$103,Ranges!$E$56:$E$64,0),1) -> 3142380.064 | V79: =($J79*V$30/10^3)*INDEX(Ranges!$D$56:$D$64,MATCH(Dashboard!$H$103,Ranges!$E$56:$E$64,0),1) -> 3591291.502 | W79: =($J79*W$30/10^3)*INDEX(Ranges!$D$56:$D$64,MATCH(Dashboard!$H$103,Ranges!$E$56:$E$64,0),1) -> 4040202.939 | X79: =($J79*X$30/10^3)*INDEX(Ranges!$D$56:$D$64,MATCH(Dashboard!$H$103,Ranges!$E$56:$E$64,0),1) -> 4489114.377
C80: BENTotalAluminum | D80: BEN | E80: Total | F80: Aluminum | G80: 429.974 | H80: 153562.1429 | I80: =INDEX(K80:M80,1,MATCH(Dashboard!$F$77,'Trade Data'!$K$30:$M$30,0)) -> 1777.29647 | J80: =INDEX(K80:M80,1,MATCH(Dashboard!$F$103,'Trade Data'!$K$30:$M$30,0)) -> 414.1147373 | K80: 414.1147373 | L80: 1363.181733 | M80: 1777.29647 | N80: =($J80*N$30/10^3)*INDEX(Ranges!$D$56:$D$64,MATCH(Dashboard!$H$103,Ranges!$E$56:$E$64,0),1) -> 0 | O80: =($J80*O$30/10^3)*INDEX(Ranges!$D$56:$D$64,MATCH(Dashboard!$H$103,Ranges!$E$56:$E$64,0),1) -> 4.016912952 | P80: =($J80*P$30/10^3)*INDEX(Ranges!$D$56:$D$64,MATCH(Dashboard!$H$103,Ranges!$E$56:$E$64,0),1) -> 8.033825904 | Q80: =($J80*Q$30/10^3)*INDEX(Ranges!$D$56:$D$64,MATCH(Dashboard!$H$103,Ranges!$E$56:$E$64,0),1) -> 12.05073886 | R80: =($J80*R$30/10^3)*INDEX(Ranges!$D$56:$D$64,MATCH(Dashboard!$H$103,Ranges!$E$56:$E$64,0),1) -> 16.06765181 | S80: =($J80*S$30/10^3)*INDEX(Ranges!$D$56:$D$64,MATCH(Dashboard!$H$103,Ranges!$E$56:$E$64,0),1) -> 20.08456476 | T80: =($J80*T$30/10^3)*INDEX(Ranges!$D$56:$D$64,MATCH(Dashboard!$H$103,Ranges!$E$56:$E$64,0),1) -> 24.10147771 | U80: =($J80*U$30/10^3)*INDEX(Ranges!$D$56:$D$64,MATCH(Dashboard!$H$103,Ranges!$E$56:$E$64,0),1) -> 28.11839066 | V80: =($J80*V$30/10^3)*INDEX(Ranges!$D$56:$D$64,MATCH(Dashboard!$H$103,Ranges!$E$56:$E$64,0),1) -> 32.13530362 | W80: =($J80*W$30/10^3)*INDEX(Ranges!$D$56:$D$64,MATCH(Dashboard!$H$103,Ranges!$E$56:$E$64,0),1) -> 36.15221657 | X80: =($J80*X$30/10^3)*INDEX(Ranges!$D$56:$D$64,MATCH(Dashboard!$H$103,Ranges!$E$56:$E$64,0),1) -> 40.16912952
C81: BENTotalCement | D81: BEN | E81: Total | F81: Cement | G81: 1886.995 | H81: 18869950 | I81: =INDEX(K81:M81,1,MATCH(Dashboard!$F$77,'Trade Data'!$K$30:$M$30,0)) -> 18366.75133 | J81: =INDEX(K81:M81,1,MATCH(Dashboard!$F$103,'Trade Data'!$K$30:$M$30,0)) -> 16888.60525 | K81: 16888.60525 | L81: 1478.146083 | M81: 18366.75133 | N81: =($J81*N$30/10^3)*INDEX(Ranges!$D$56:$D$64,MATCH(Dashboard!$H$103,Ranges!$E$56:$E$64,0),1) -> 0 | O81: =($J81*O$30/10^3)*INDEX(Ranges!$D$56:$D$64,MATCH(Dashboard!$H$103,Ranges!$E$56:$E$64,0),1) -> 163.8194709 | P81: =($J81*P$30/10^3)*INDEX(Ranges!$D$56:$D$64,MATCH(Dashboard!$H$103,Ranges!$E$56:$E$64,0),1) -> 327.6389418 | Q81: =($J81*Q$30/10^3)*INDEX(Ranges!$D$56:$D$64,MATCH(Dashboard!$H$103,Ranges!$E$56:$E$64,0),1) -> 491.4584128 | R81: =($J81*R$30/10^3)*INDEX(Ranges!$D$56:$D$64,MATCH(Dashboard!$H$103,Ranges!$E$56:$E$64,0),1) -> 655.2778837 | S81: =($J81*S$30/10^3)*INDEX(Ranges!$D$56:$D$64,MATCH(Dashboard!$H$103,Ranges!$E$56:$E$64,0),1) -> 819.0973546 | T81: =($J81*T$30/10^3)*INDEX(Ranges!$D$56:$D$64,MATCH(Dashboard!$H$103,Ranges!$E$56:$E$64,0),1) -> 982.9168255 | U81: =($J81*U$30/10^3)*INDEX(Ranges!$D$56:$D$64,MATCH(Dashboard!$H$103,Ranges!$E$56:$E$64,0),1) -> 1146.736296 | V81: =($J81*V$30/10^3)*INDEX(Ranges!$D$56:$D$64,MATCH(Dashboard!$H$103,Ranges!$E$56:$E$64,0),1) -> 1310.555767 | W81: =($J81*W$30/10^3)*INDEX(Ranges!$D$56:$D$64,MATCH(Dashboard!$H$103,Ranges!$E$56:$E$64,0),1) -> 1474.375238 | X81: =($J81*X$30/10^3)*INDEX(Ranges!$D$56:$D$64,MATCH(Dashboard!$H$103,Ranges!$E$56:$E$64,0),1) -> 1638.194709
C82: BENTotalFertilizer | D82: BEN | E82: Total | F82: Fertilizer | G82: 50.697 | H82: 168990 | I82: =INDEX(K82:M82,1,MATCH(Dashboard!$F$77,'Trade Data'!$K$30:$M$30,0)) -> 296.340864 | J82: =INDEX(K82:M82,1,MATCH(Dashboard!$F$103,'Trade Data'!$K$30:$M$30,0)) -> 281.604936 | K82: 281.604936 | L82: 14.735928 | M82: 296.340864 | N82: =($J82*N$30/10^3)*INDEX(Ranges!$D$56:$D$64,MATCH(Dashboard!$H$103,Ranges!$E$56:$E$64,0),1) -> 0 | O82: =($J82*O$30/10^3)*INDEX(Ranges!$D$56:$D$64,MATCH(Dashboard!$H$103,Ranges!$E$56:$E$64,0),1) -> 2.731567879 | P82: =($J82*P$30/10^3)*INDEX(Ranges!$D$56:$D$64,MATCH(Dashboard!$H$103,Ranges!$E$56:$E$64,0),1) -> 5.463135758 | Q82: =($J82*Q$30/10^3)*INDEX(Ranges!$D$56:$D$64,MATCH(Dashboard!$H$103,Ranges!$E$56:$E$64,0),1) -> 8.194703638 | R82: =($J82*R$30/10^3)*INDEX(Ranges!$D$56:$D$64,MATCH(Dashboard!$H$103,Ranges!$E$56:$E$64,0),1) -> 10.92627152 | S82: =($J82*S$30/10^3)*INDEX(Ranges!$D$56:$D$64,MATCH(Dashboard!$H$103,Ranges!$E$56:$E$64,0),1) -> 13.6578394 | T82: =($J82*T$30/10^3)*INDEX(Ranges!$D$56:$D$64,MATCH(Dashboard!$H$103,Ranges!$E$56:$E$64,0),1) -> 16.38940728 | U82: =($J82*U$30/10^3)*INDEX(Ranges!$D$56:$D$64,MATCH(Dashboard!$H$103,Ranges!$E$56:$E$64,0),1) -> 19.12097515 | V82: =($J82*V$30/10^3)*INDEX(Ranges!$D$56:$D$64,MATCH(Dashboard!$H$103,Ranges!$E$56:$E$64,0),1) -> 21.85254303 | W82: =($J82*W$30/10^3)*INDEX(Ranges!$D$56:$D$64,MATCH(Dashboard!$H$103,Ranges!$E$56:$E$64,0),1) -> 24.58411091 | X82: =($J82*X$30/10^3)*INDEX(Ranges!$D$56:$D$64,MATCH(Dashboard!$H$103,Ranges!$E$56:$E$64,0),1) -> 27.31567879
C83: BENTotalIron & Steel | D83: BEN | E83: Total | F83: Iron & Steel | G83: 5067.414 | H83: 5961663.529 | I83: =INDEX(K83:M83,1,MATCH(Dashboard!$F$77,'Trade Data'!$K$30:$M$30,0)) -> 16237.55097 | J83: =INDEX(K83:M83,1,MATCH(Dashboard!$F$103,'Trade Data'!$K$30:$M$30,0)) -> 12032.95681 | K83: 12032.95681 | L83: 4204.594161 | M83: 16237.55097 | N83: =($J83*N$30/10^3)*INDEX(Ranges!$D$56:$D$64,MATCH(Dashboard!$H$103,Ranges!$E$56:$E$64,0),1) -> 0 | O83: =($J83*O$30/10^3)*INDEX(Ranges!$D$56:$D$64,MATCH(Dashboard!$H$103,Ranges!$E$56:$E$64,0),1) -> 116.7196811 | P83: =($J83*P$30/10^3)*INDEX(Ranges!$D$56:$D$64,MATCH(Dashboard!$H$103,Ranges!$E$56:$E$64,0),1) -> 233.4393622 | Q83: =($J83*Q$30/10^3)*INDEX(Ranges!$D$56:$D$64,MATCH(Dashboard!$H$103,Ranges!$E$56:$E$64,0),1) -> 350.1590433 | R83: =($J83*R$30/10^3)*INDEX(Ranges!$D$56:$D$64,MATCH(Dashboard!$H$103,Ranges!$E$56:$E$64,0),1) -> 466.8787243 | S83: =($J83*S$30/10^3)*INDEX(Ranges!$D$56:$D$64,MATCH(Dashboard!$H$103,Ranges!$E$56:$E$64,0),1) -> 583.5984054 | T83: =($J83*T$30/10^3)*INDEX(Ranges!$D$56:$D$64,MATCH(Dashboard!$H$103,Ranges!$E$56:$E$64,0),1) -> 700.3180865 | U83: =($J83*U$30/10^3)*INDEX(Ranges!$D$56:$D$64,MATCH(Dashboard!$H$103,Ranges!$E$56:$E$64,0),1) -> 817.0377676 | V83: =($J83*V$30/10^3)*INDEX(Ranges!$D$56:$D$64,MATCH(Dashboard!$H$103,Ranges!$E$56:$E$64,0),1) -> 933.7574487 | W83: =($J83*W$30/10^3)*INDEX(Ranges!$D$56:$D$64,MATCH(Dashboard!$H$103,Ranges!$E$56:$E$64,0),1) -> 1050.47713 | X83: =($J83*X$30/10^3)*INDEX(Ranges!$D$56:$D$64,MATCH(Dashboard!$H$103,Ranges!$E$56:$E$64,0),1) -> 1167.196811
C84: BFATotalAluminum | D84: BFA | E84: Total | F84: Aluminum | G84: 107.28 | H84: 38314.28571 | I84: =INDEX(K84:M84,1,MATCH(Dashboard!$F$77,'Trade Data'!$K$30:$M$30,0)) -> 443.4416158 | J84: =INDEX(K84:M84,1,MATCH(Dashboard!$F$103,'Trade Data'!$K$30:$M$30,0)) -> 103.3230591 | K84: 103.3230591 | L84: 340.1185567 | M84: 443.4416158 | N84: =($J84*N$30/10^3)*INDEX(Ranges!$D$56:$D$64,MATCH(Dashboard!$H$103,Ranges!$E$56:$E$64,0),1) -> 0 | O84: =($J84*O$30/10^3)*INDEX(Ranges!$D$56:$D$64,MATCH(Dashboard!$H$103,Ranges!$E$56:$E$64,0),1) -> 1.002233673 | P84: =($J84*P$30/10^3)*INDEX(Ranges!$D$56:$D$64,MATCH(Dashboard!$H$103,Ranges!$E$56:$E$64,0),1) -> 2.004467347 | Q84: =($J84*Q$30/10^3)*INDEX(Ranges!$D$56:$D$64,MATCH(Dashboard!$H$103,Ranges!$E$56:$E$64,0),1) -> 3.00670102 | R84: =($J84*R$30/10^3)*INDEX(Ranges!$D$56:$D$64,MATCH(Dashboard!$H$103,Ranges!$E$56:$E$64,0),1) -> 4.008934694 | S84: =($J84*S$30/10^3)*INDEX(Ranges!$D$56:$D$64,MATCH(Dashboard!$H$103,Ranges!$E$56:$E$64,0),1) -> 5.011168367 | T84: =($J84*T$30/10^3)*INDEX(Ranges!$D$56:$D$64,MATCH(Dashboard!$H$103,Ranges!$E$56:$E$64,0),1) -> 6.01340204 | U84: =($J84*U$30/10^3)*INDEX(Ranges!$D$56:$D$64,MATCH(Dashboard!$H$103,Ranges!$E$56:$E$64,0),1) -> 7.015635714 | V84: =($J84*V$30/10^3)*INDEX(Ranges!$D$56:$D$64,MATCH(Dashboard!$H$103,Ranges!$E$56:$E$64,0),1) -> 8.017869387 | W84: =($J84*W$30/10^3)*INDEX(Ranges!$D$56:$D$64,MATCH(Dashboard!$H$103,Ranges!$E$56:$E$64,0),1) -> 9.020103061 | X84: =($J84*X$30/10^3)*INDEX(Ranges!$D$56:$D$64,MATCH(Dashboard!$H$103,Ranges!$E$56:$E$64,0),1) -> 10.02233673
C85: BFATotalCement | D85: BFA | E85: Total | F85: Cement | G85: 81492.906 | H85: 814929060 | I85: =INDEX(K85:M85,1,MATCH(Dashboard!$F$77,'Trade Data'!$K$30:$M$30,0)) -> 793197.6184 | J85: =INDEX(K85:M85,1,MATCH(Dashboard!$F$103,'Trade Data'!$K$30:$M$30,0)) -> 729361.5087 | K85: 729361.5087 | L85: 63836.1097 | M85: 793197.6184 | N85: =($J85*N$30/10^3)*INDEX(Ranges!$D$56:$D$64,MATCH(Dashboard!$H$103,Ranges!$E$56:$E$64,0),1) -> 0 | O85: =($J85*O$30/10^3)*INDEX(Ranges!$D$56:$D$64,MATCH(Dashboard!$H$103,Ranges!$E$56:$E$64,0),1) -> 7074.806634 | P85: =($J85*P$30/10^3)*INDEX(Ranges!$D$56:$D$64,MATCH(Dashboard!$H$103,Ranges!$E$56:$E$64,0),1) -> 14149.61327 | Q85: =($J85*Q$30/10^3)*INDEX(Ranges!$D$56:$D$64,MATCH(Dashboard!$H$103,Ranges!$E$56:$E$64,0),1) -> 21224.4199 | R85: =($J85*R$30/10^3)*INDEX(Ranges!$D$56:$D$64,MATCH(Dashboard!$H$103,Ranges!$E$56:$E$64,0),1) -> 28299.22654 | S85: =($J85*S$30/10^3)*INDEX(Ranges!$D$56:$D$64,MATCH(Dashboard!$H$103,Ranges!$E$56:$E$64,0),1) -> 35374.03317 | T85: =($J85*T$30/10^3)*INDEX(Ranges!$D$56:$D$64,MATCH(Dashboard!$H$103,Ranges!$E$56:$E$64,0),1) -> 42448.83981 | U85: =($J85*U$30/10^3)*INDEX(Ranges!$D$56:$D$64,MATCH(Dashboard!$H$103,Ranges!$E$56:$E$64,0),1) -> 49523.64644 | V85: =($J85*V$30/10^3)*INDEX(Ranges!$D$56:$D$64,MATCH(Dashboard!$H$103,Ranges!$E$56:$E$64,0),1) -> 56598.45308 | W85: =($J85*W$30/10^3)*INDEX(Ranges!$D$56:$D$64,MATCH(Dashboard!$H$103,Ranges!$E$56:$E$64,0),1) -> 63673.25971 | X85: =($J85*X$30/10^3)*INDEX(Ranges!$D$56:$D$64,MATCH(Dashboard!$H$103,Ranges!$E$56:$E$64,0),1) -> 70748.06634
C86: BFATotalFertilizer | D86: BFA | E86: Total | F86: Fertilizer | G86: 1837.475 | H86: 6124916.667 | I86: =INDEX(K86:M86,1,MATCH(Dashboard!$F$77,'Trade Data'!$K$30:$M$30,0)) -> 10740.65387 | J86: =INDEX(K86:M86,1,MATCH(Dashboard!$F$103,'Trade Data'!$K$30:$M$30,0)) -> 10206.56113 | K86: 10206.56113 | L86: 534.0927333 | M86: 10740.65387 | N86: =($J86*N$30/10^3)*INDEX(Ranges!$D$56:$D$64,MATCH(Dashboard!$H$103,Ranges!$E$56:$E$64,0),1) -> 0 | O86: =($J86*O$30/10^3)*INDEX(Ranges!$D$56:$D$64,MATCH(Dashboard!$H$103,Ranges!$E$56:$E$64,0),1) -> 99.00364299 | P86: =($J86*P$30/10^3)*INDEX(Ranges!$D$56:$D$64,MATCH(Dashboard!$H$103,Ranges!$E$56:$E$64,0),1) -> 198.007286 | Q86: =($J86*Q$30/10^3)*INDEX(Ranges!$D$56:$D$64,MATCH(Dashboard!$H$103,Ranges!$E$56:$E$64,0),1) -> 297.010929 | R86: =($J86*R$30/10^3)*INDEX(Ranges!$D$56:$D$64,MATCH(Dashboard!$H$103,Ranges!$E$56:$E$64,0),1) -> 396.014572 | S86: =($J86*S$30/10^3)*INDEX(Ranges!$D$56:$D$64,MATCH(Dashboard!$H$103,Ranges!$E$56:$E$64,0),1) -> 495.018215 | T86: =($J86*T$30/10^3)*INDEX(Ranges!$D$56:$D$64,MATCH(Dashboard!$H$103,Ranges!$E$56:$E$64,0),1) -> 594.021858 | U86: =($J86*U$30/10^3)*INDEX(Ranges!$D$56:$D$64,MATCH(Dashboard!$H$103,Ranges!$E$56:$E$64,0),1) -> 693.025501 | V86: =($J86*V$30/10^3)*INDEX(Ranges!$D$56:$D$64,MATCH(Dashboard!$H$103,Ranges!$E$56:$E$64,0),1) -> 792.0291439 | W86: =($J86*W$30/10^3)*INDEX(Ranges!$D$56:$D$64,MATCH(Dashboard!$H$103,Ranges!$E$56:$E$64,0),1) -> 891.0327869 | X86: =($J86*X$30/10^3)*INDEX(Ranges!$D$56:$D$64,MATCH(Dashboard!$H$103,Ranges!$E$56:$E$64,0),1) -> 990.0364299
C87: BFATotalIron & Steel | D87: BFA | E87: Total | F87: Iron & Steel | G87: 31666.138 | H87: 37254280 | I87: =INDEX(K87:M87,1,MATCH(Dashboard!$F$77,'Trade Data'!$K$30:$M$30,0)) -> 101468.0328 | J87: =INDEX(K87:M87,1,MATCH(Dashboard!$F$103,'Trade Data'!$K$30:$M$30,0)) -> 75193.63348 | K87: 75193.63348 | L87: 26274.39932 | M87: 101468.0328 | N87: =($J87*N$30/10^3)*INDEX(Ranges!$D$56:$D$64,MATCH(Dashboard!$H$103,Ranges!$E$56:$E$64,0),1) -> 0 | O87: =($J87*O$30/10^3)*INDEX(Ranges!$D$56:$D$64,MATCH(Dashboard!$H$103,Ranges!$E$56:$E$64,0),1) -> 729.3782447 | P87: =($J87*P$30/10^3)*INDEX(Ranges!$D$56:$D$64,MATCH(Dashboard!$H$103,Ranges!$E$56:$E$64,0),1) -> 1458.756489 | Q87: =($J87*Q$30/10^3)*INDEX(Ranges!$D$56:$D$64,MATCH(Dashboard!$H$103,Ranges!$E$56:$E$64,0),1) -> 2188.134734 | R87: =($J87*R$30/10^3)*INDEX(Ranges!$D$56:$D$64,MATCH(Dashboard!$H$103,Ranges!$E$56:$E$64,0),1) -> 2917.512979 | S87: =($J87*S$30/10^3)*INDEX(Ranges!$D$56:$D$64,MATCH(Dashboard!$H$103,Ranges!$E$56:$E$64,0),1) -> 3646.891224 | T87: =($J87*T$30/10^3)*INDEX(Ranges!$D$56:$D$64,MATCH(Dashboard!$H$103,Ranges!$E$56:$E$64,0),1) -> 4376.269468 | U87: =($J87*U$30/10^3)*INDEX(Ranges!$D$56:$D$64,MATCH(Dashboard!$H$103,Ranges!$E$56:$E$64,0),1) -> 5105.647713 | V87: =($J87*V$30/10^3)*INDEX(Ranges!$D$56:$D$64,MATCH(Dashboard!$H$103,Ranges!$E$56:$E$64,0),1) -> 5835.025958 | W87: =($J87*W$30/10^3)*INDEX(Ranges!$D$56:$D$64,MATCH(Dashboard!$H$103,Ranges!$E$56:$E$64,0),1) -> 6564.404202 | X87: =($J87*X$30/10^3)*INDEX(Ranges!$D$56:$D$64,MATCH(Dashboard!$H$103,Ranges!$E$56:$E$64,0),1) -> 7293.782447
C88: BGRTotalAluminum | D88: BGR | E88: Total | F88: Aluminum | G88: 681977.506 | H88: 243563395 | I88: =INDEX(K88:M88,1,MATCH(Dashboard!$F$77,'Trade Data'!$K$30:$M$30,0)) -> 2818952.341 | J88: =INDEX(K88:M88,1,MATCH(Dashboard!$F$103,'Trade Data'!$K$30:$M$30,0)) -> 656823.2864 | K88: 656823.2864 | L88: 2162129.055 | M88: 2818952.341 | N88: =($J88*N$30/10^3)*INDEX(Ranges!$D$56:$D$64,MATCH(Dashboard!$H$103,Ranges!$E$56:$E$64,0),1) -> 0 | O88: =($J88*O$30/10^3)*INDEX(Ranges!$D$56:$D$64,MATCH(Dashboard!$H$103,Ranges!$E$56:$E$64,0),1) -> 6371.185878 | P88: =($J88*P$30/10^3)*INDEX(Ranges!$D$56:$D$64,MATCH(Dashboard!$H$103,Ranges!$E$56:$E$64,0),1) -> 12742.37176 | Q88: =($J88*Q$30/10^3)*INDEX(Ranges!$D$56:$D$64,MATCH(Dashboard!$H$103,Ranges!$E$56:$E$64,0),1) -> 19113.55763 | R88: =($J88*R$30/10^3)*INDEX(Ranges!$D$56:$D$64,MATCH(Dashboard!$H$103,Ranges!$E$56:$E$64,0),1) -> 25484.74351 | S88: =($J88*S$30/10^3)*INDEX(Ranges!$D$56:$D$64,MATCH(Dashboard!$H$103,Ranges!$E$56:$E$64,0),1) -> 31855.92939 | T88: =($J88*T$30/10^3)*INDEX(Ranges!$D$56:$D$64,MATCH(Dashboard!$H$103,Ranges!$E$56:$E$64,0),1) -> 38227.11527 | U88: =($J88*U$30/10^3)*INDEX(Ranges!$D$56:$D$64,MATCH(Dashboard!$H$103,Ranges!$E$56:$E$64,0),1) -> 44598.30115 | V88: =($J88*V$30/10^3)*INDEX(Ranges!$D$56:$D$64,MATCH(Dashboard!$H$103,Ranges!$E$56:$E$64,0),1) -> 50969.48703 | W88: =($J88*W$30/10^3)*INDEX(Ranges!$D$56:$D$64,MATCH(Dashboard!$H$103,Ranges!$E$56:$E$64,0),1) -> 57340.6729 | X88: =($J88*X$30/10^3)*INDEX(Ranges!$D$56:$D$64,MATCH(Dashboard!$H$103,Ranges!$E$56:$E$64,0),1) -> 63711.85878
C89: BGRTotalCement | D89: BGR | E89: Total | F89: Cement | G89: 70421.033 | H89: 704210330 | I89: =INDEX(K89:M89,1,MATCH(Dashboard!$F$77,'Trade Data'!$K$30:$M$30,0)) -> 685431.3879 | J89: =INDEX(K89:M89,1,MATCH(Dashboard!$F$103,'Trade Data'!$K$30:$M$30,0)) -> 630268.2453 | K89: 630268.2453 | L89: 55163.14252 | M89: 685431.3879 | N89: =($J89*N$30/10^3)*INDEX(Ranges!$D$56:$D$64,MATCH(Dashboard!$H$103,Ranges!$E$56:$E$64,0),1) -> 0 | O89: =($J89*O$30/10^3)*INDEX(Ranges!$D$56:$D$64,MATCH(Dashboard!$H$103,Ranges!$E$56:$E$64,0),1) -> 6113.60198 | P89: =($J89*P$30/10^3)*INDEX(Ranges!$D$56:$D$64,MATCH(Dashboard!$H$103,Ranges!$E$56:$E$64,0),1) -> 12227.20396 | Q89: =($J89*Q$30/10^3)*INDEX(Ranges!$D$56:$D$64,MATCH(Dashboard!$H$103,Ranges!$E$56:$E$64,0),1) -> 18340.80594 | R89: =($J89*R$30/10^3)*INDEX(Ranges!$D$56:$D$64,MATCH(Dashboard!$H$103,Ranges!$E$56:$E$64,0),1) -> 24454.40792 | S89: =($J89*S$30/10^3)*INDEX(Ranges!$D$56:$D$64,MATCH(Dashboard!$H$103,Ranges!$E$56:$E$64,0),1) -> 30568.0099 | T89: =($J89*T$30/10^3)*INDEX(Ranges!$D$56:$D$64,MATCH(Dashboard!$H$103,Ranges!$E$56:$E$64,0),1) -> 36681.61188 | U89: =($J89*U$30/10^3)*INDEX(Ranges!$D$56:$D$64,MATCH(Dashboard!$H$103,Ranges!$E$56:$E$64,0),1) -> 42795.21386 | V89: =($J89*V$30/10^3)*INDEX(Ranges!$D$56:$D$64,MATCH(Dashboard!$H$103,Ranges!$E$56:$E$64,0),1) -> 48908.81584 | W89: =($J89*W$30/10^3)*INDEX(Ranges!$D$56:$D$64,MATCH(Dashboard!$H$103,Ranges!$E$56:$E$64,0),1) -> 55022.41782 | X89: =($J89*X$30/10^3)*INDEX(Ranges!$D$56:$D$64,MATCH(Dashboard!$H$103,Ranges!$E$56:$E$64,0),1) -> 61136.0198
C90: BGRTotalElectricity | D90: BGR | E90: Total | F90: Electricity | G90: 1008388.313 | H90: 6342064862 | I90: =INDEX(K90:M90,1,MATCH(Dashboard!$F$77,'Trade Data'!$K$30:$M$30,0)) -> 3050533.198 | J90: =INDEX(K90:M90,1,MATCH(Dashboard!$F$103,'Trade Data'!$K$30:$M$30,0)) -> 3050533.198 | K90: 3050533.198 | L90: 0 | M90: 3050533.198 | N90: =($J90*N$30/10^3)*INDEX(Ranges!$D$56:$D$64,MATCH(Dashboard!$H$103,Ranges!$E$56:$E$64,0),1) -> 0 | O90: =($J90*O$30/10^3)*INDEX(Ranges!$D$56:$D$64,MATCH(Dashboard!$H$103,Ranges!$E$56:$E$64,0),1) -> 29590.17202 | P90: =($J90*P$30/10^3)*INDEX(Ranges!$D$56:$D$64,MATCH(Dashboard!$H$103,Ranges!$E$56:$E$64,0),1) -> 59180.34405 | Q90: =($J90*Q$30/10^3)*INDEX(Ranges!$D$56:$D$64,MATCH(Dashboard!$H$103,Ranges!$E$56:$E$64,0),1) -> 88770.51607 | R90: =($J90*R$30/10^3)*INDEX(Ranges!$D$56:$D$64,MATCH(Dashboard!$H$103,Ranges!$E$56:$E$64,0),1) -> 118360.6881 | S90: =($J90*S$30/10^3)*INDEX(Ranges!$D$56:$D$64,MATCH(Dashboard!$H$103,Ranges!$E$56:$E$64,0),1) -> 147950.8601 | T90: =($J90*T$30/10^3)*INDEX(Ranges!$D$56:$D$64,MATCH(Dashboard!$H$103,Ranges!$E$56:$E$64,0),1) -> 177541.0321 | U90: =($J90*U$30/10^3)*INDEX(Ranges!$D$56:$D$64,MATCH(Dashboard!$H$103,Ranges!$E$56:$E$64,0),1) -> 207131.2042 | V90: =($J90*V$30/10^3)*INDEX(Ranges!$D$56:$D$64,MATCH(Dashboard!$H$103,Ranges!$E$56:$E$64,0),1) -> 236721.3762 | W90: =($J90*W$30/10^3)*INDEX(Ranges!$D$56:$D$64,MATCH(Dashboard!$H$103,Ranges!$E$56:$E$64,0),1) -> 266311.5482 | X90: =($J90*X$30/10^3)*INDEX(Ranges!$D$56:$D$64,MATCH(Dashboard!$H$103,Ranges!$E$56:$E$64,0),1) -> 295901.7202
C91: BGRTotalFertilizer | D91: BGR | E91: Total | F91: Fertilizer | G91: 587766.13 | H91: 1959220433 | I91: =INDEX(K91:M91,1,MATCH(Dashboard!$F$77,'Trade Data'!$K$30:$M$30,0)) -> 3435688.952 | J91: =INDEX(K91:M91,1,MATCH(Dashboard!$F$103,'Trade Data'!$K$30:$M$30,0)) -> 3264844.93 | K91: 3264844.93 | L91: 170844.0218 | M91: 3435688.952 | N91: =($J91*N$30/10^3)*INDEX(Ranges!$D$56:$D$64,MATCH(Dashboard!$H$103,Ranges!$E$56:$E$64,0),1) -> 0 | O91: =($J91*O$30/10^3)*INDEX(Ranges!$D$56:$D$64,MATCH(Dashboard!$H$103,Ranges!$E$56:$E$64,0),1) -> 31668.99582 | P91: =($J91*P$30/10^3)*INDEX(Ranges!$D$56:$D$64,MATCH(Dashboard!$H$103,Ranges!$E$56:$E$64,0),1) -> 63337.99164 | Q91: =($J91*Q$30/10^3)*INDEX(Ranges!$D$56:$D$64,MATCH(Dashboard!$H$103,Ranges!$E$56:$E$64,0),1) -> 95006.98747 | R91: =($J91*R$30/10^3)*INDEX(Ranges!$D$56:$D$64,MATCH(Dashboard!$H$103,Ranges!$E$56:$E$64,0),1) -> 126675.9833 | S91: =($J91*S$30/10^3)*INDEX(Ranges!$D$56:$D$64,MATCH(Dashboard!$H$103,Ranges!$E$56:$E$64,0),1) -> 158344.9791 | T91: =($J91*T$30/10^3)*INDEX(Ranges!$D$56:$D$64,MATCH(Dashboard!$H$103,Ranges!$E$56:$E$64,0),1) -> 190013.9749 | U91: =($J91*U$30/10^3)*INDEX(Ranges!$D$56:$D$64,MATCH(Dashboard!$H$103,Ranges!$E$56:$E$64,0),1) -> 221682.9708 | V91: =($J91*V$30/10^3)*INDEX(Ranges!$D$56:$D$64,MATCH(Dashboard!$H$103,Ranges!$E$56:$E$64,0),1) -> 253351.9666 | W91: =($J91*W$30/10^3)*INDEX(Ranges!$D$56:$D$64,MATCH(Dashboard!$H$103,Ranges!$E$56:$E$64,0),1) -> 285020.9624 | X91: =($J91*X$30/10^3)*INDEX(Ranges!$D$56:$D$64,MATCH(Dashboard!$H$103,Ranges!$E$56:$E$64,0),1) -> 316689.9582
C92: BGRTotalHydrogen | D92: BGR | E92: Total | F92: Hydrogen | G92: 0.011 | H92: 1.646706587 | I92: =INDEX(K92:M92,1,MATCH(Dashboard!$F$77,'Trade Data'!$K$30:$M$30,0)) -> 0.0171257485 | J92: =INDEX(K92:M92,1,MATCH(Dashboard!$F$103,'Trade Data'!$K$30:$M$30,0)) -> 0.0171257485 | K92: 0.0171257485 | L92: 0 | M92: 0.0171257485 | N92: =($J92*N$30/10^3)*INDEX(Ranges!$D$56:$D$64,MATCH(Dashboard!$H$103,Ranges!$E$56:$E$64,0),1) -> 0 | O92: =($J92*O$30/10^3)*INDEX(Ranges!$D$56:$D$64,MATCH(Dashboard!$H$103,Ranges!$E$56:$E$64,0),1) -> 0.0001661197605 | P92: =($J92*P$30/10^3)*INDEX(Ranges!$D$56:$D$64,MATCH(Dashboard!$H$103,Ranges!$E$56:$E$64,0),1) -> 0.000332239521 | Q92: =($J92*Q$30/10^3)*INDEX(Ranges!$D$56:$D$64,MATCH(Dashboard!$H$103,Ranges!$E$56:$E$64,0),1) -> 0.0004983592814 | R92: =($J92*R$30/10^3)*INDEX(Ranges!$D$56:$D$64,MATCH(Dashboard!$H$103,Ranges!$E$56:$E$64,0),1) -> 0.0006644790419 | S92: =($J92*S$30/10^3)*INDEX(Ranges!$D$56:$D$64,MATCH(Dashboard!$H$103,Ranges!$E$56:$E$64,0),1) -> 0.0008305988024 | T92: =($J92*T$30/10^3)*INDEX(Ranges!$D$56:$D$64,MATCH(Dashboard!$H$103,Ranges!$E$56:$E$64,0),1) -> 0.0009967185629 | U92: =($J92*U$30/10^3)*INDEX(Ranges!$D$56:$D$64,MATCH(Dashboard!$H$103,Ranges!$E$56:$E$64,0),1) -> 0.001162838323 | V92: =($J92*V$30/10^3)*INDEX(Ranges!$D$56:$D$64,MATCH(Dashboard!$H$103,Ranges!$E$56:$E$64,0),1) -> 0.001328958084 | W92: =($J92*W$30/10^3)*INDEX(Ranges!$D$56:$D$64,MATCH(Dashboard!$H$103,Ranges!$E$56:$E$64,0),1) -> 0.001495077844 | X92: =($J92*X$30/10^3)*INDEX(Ranges!$D$56:$D$64,MATCH(Dashboard!$H$103,Ranges!$E$56:$E$64,0),1) -> 0.001661197605
C93: BGRTotalIron & Steel | D93: BGR | E93: Total | F93: Iron & Steel | G93: 1710114.739 | H93: 2011899693 | I93: =INDEX(K93:M93,1,MATCH(Dashboard!$F$77,'Trade Data'!$K$30:$M$30,0)) -> 5479732.906 | J93: =INDEX(K93:M93,1,MATCH(Dashboard!$F$103,'Trade Data'!$K$30:$M$30,0)) -> 4060796.453 | K93: 4060796.453 | L93: 1418936.453 | M93: 5479732.906 | N93: =($J93*N$30/10^3)*INDEX(Ranges!$D$56:$D$64,MATCH(Dashboard!$H$103,Ranges!$E$56:$E$64,0),1) -> 0 | O93: =($J93*O$30/10^3)*INDEX(Ranges!$D$56:$D$64,MATCH(Dashboard!$H$103,Ranges!$E$56:$E$64,0),1) -> 39389.7256 | P93: =($J93*P$30/10^3)*INDEX(Ranges!$D$56:$D$64,MATCH(Dashboard!$H$103,Ranges!$E$56:$E$64,0),1) -> 78779.4512 | Q93: =($J93*Q$30/10^3)*INDEX(Ranges!$D$56:$D$64,MATCH(Dashboard!$H$103,Ranges!$E$56:$E$64,0),1) -> 118169.1768 | R93: =($J93*R$30/10^3)*INDEX(Ranges!$D$56:$D$64,MATCH(Dashboard!$H$103,Ranges!$E$56:$E$64,0),1) -> 157558.9024 | S93: =($J93*S$30/10^3)*INDEX(Ranges!$D$56:$D$64,MATCH(Dashboard!$H$103,Ranges!$E$56:$E$64,0),1) -> 196948.628 | T93: =($J93*T$30/10^3)*INDEX(Ranges!$D$56:$D$64,MATCH(Dashboard!$H$103,Ranges!$E$56:$E$64,0),1) -> 236338.3536 | U93: =($J93*U$30/10^3)*INDEX(Ranges!$D$56:$D$64,MATCH(Dashboard!$H$103,Ranges!$E$56:$E$64,0),1) -> 275728.0792 | V93: =($J93*V$30/10^3)*INDEX(Ranges!$D$56:$D$64,MATCH(Dashboard!$H$103,Ranges!$E$56:$E$64,0),1) -> 315117.8048 | W93: =($J93*W$30/10^3)*INDEX(Ranges!$D$56:$D$64,MATCH(Dashboard!$H$103,Ranges!$E$56:$E$64,0),1) -> 354507.5304 | X93: =($J93*X$30/10^3)*INDEX(Ranges!$D$56:$D$64,MATCH(Dashboard!$H$103,Ranges!$E$56:$E$64,0),1) -> 393897.256
C94: BHRTotalAluminum | D94: BHR | E94: Total | F94: Aluminum | G94: 6836505.583 | H94: 2441609137 | I94: =INDEX(K94:M94,1,MATCH(Dashboard!$F$77,'Trade Data'!$K$30:$M$30,0)) -> 28258678.99 | J94: =INDEX(K94:M94,1,MATCH(Dashboard!$F$103,'Trade Data'!$K$30:$M$30,0)) -> 6584346.295 | K94: 6584346.295 | L94: 21674332.69 | M94: 28258678.99 | N94: =($J94*N$30/10^3)*INDEX(Ranges!$D$56:$D$64,MATCH(Dashboard!$H$103,Ranges!$E$56:$E$64,0),1) -> 0 | O94: =($J94*O$30/10^3)*INDEX(Ranges!$D$56:$D$64,MATCH(Dashboard!$H$103,Ranges!$E$56:$E$64,0),1) -> 63868.15906 | P94: =($J94*P$30/10^3)*INDEX(Ranges!$D$56:$D$64,MATCH(Dashboard!$H$103,Ranges!$E$56:$E$64,0),1) -> 127736.3181 | Q94: =($J94*Q$30/10^3)*INDEX(Ranges!$D$56:$D$64,MATCH(Dashboard!$H$103,Ranges!$E$56:$E$64,0),1) -> 191604.4772 | R94: =($J94*R$30/10^3)*INDEX(Ranges!$D$56:$D$64,MATCH(Dashboard!$H$103,Ranges!$E$56:$E$64,0),1) -> 255472.6362 | S94: =($J94*S$30/10^3)*INDEX(Ranges!$D$56:$D$64,MATCH(Dashboard!$H$103,Ranges!$E$56:$E$64,0),1) -> 319340.7953 | T94: =($J94*T$30/10^3)*INDEX(Ranges!$D$56:$D$64,MATCH(Dashboard!$H$103,Ranges!$E$56:$E$64,0),1) -> 383208.9543 | U94: =($J94*U$30/10^3)*INDEX(Ranges!$D$56:$D$64,MATCH(Dashboard!$H$103,Ranges!$E$56:$E$64,0),1) -> 447077.1134 | V94: =($J94*V$30/10^3)*INDEX(Ranges!$D$56:$D$64,MATCH(Dashboard!$H$103,Ranges!$E$56:$E$64,0),1) -> 510945.2725 | W94: =($J94*W$30/10^3)*INDEX(Ranges!$D$56:$D$64,MATCH(Dashboard!$H$103,Ranges!$E$56:$E$64,0),1) -> 574813.4315 | X94: =($J94*X$30/10^3)*INDEX(Ranges!$D$56:$D$64,MATCH(Dashboard!$H$103,Ranges!$E$56:$E$64,0),1) -> 638681.5906
C95: BHRTotalCement | D95: BHR | E95: Total | F95: Cement | G95: 2606.097 | H95: =(G95*1000/INDEX($D$23:$D$28,MATCH(F95,$C$23:$C$28,0),1)) -> 26060970 | I95: =INDEX(K95:M95,1,MATCH(Dashboard!$F$77,'Trade Data'!$K$30:$M$30,0)) -> 25366.0108 | J95: =INDEX(K95:M95,1,MATCH(Dashboard!$F$103,'Trade Data'!$K$30:$M$30,0)) -> 23324.56815 | K95: =H95*INDEX($E$23:$E$28,MATCH(F95,$C$23:$C$28,0),1)/10^3 -> 23324.56815 | L95: =H95*INDEX($F$23:$F$28,MATCH(F95,$C$23:$C$28,0),1)/10^3 -> 2041.44265 | M95: 25366.0108 | N95: =($J95*N$30/10^3)*INDEX(Ranges!$D$56:$D$64,MATCH(Dashboard!$H$103,Ranges!$E$56:$E$64,0),1) -> 0 | O95: =($J95*O$30/10^3)*INDEX(Ranges!$D$56:$D$64,MATCH(Dashboard!$H$103,Ranges!$E$56:$E$64,0),1) -> 226.2483111 | P95: =($J95*P$30/10^3)*INDEX(Ranges!$D$56:$D$64,MATCH(Dashboard!$H$103,Ranges!$E$56:$E$64,0),1) -> 452.4966221 | Q95: =($J95*Q$30/10^3)*INDEX(Ranges!$D$56:$D$64,MATCH(Dashboard!$H$103,Ranges!$E$56:$E$64,0),1) -> 678.7449332 | R95: =($J95*R$30/10^3)*INDEX(Ranges!$D$56:$D$64,MATCH(Dashboard!$H$103,Ranges!$E$56:$E$64,0),1) -> 904.9932442 | S95: =($J95*S$30/10^3)*INDEX(Ranges!$D$56:$D$64,MATCH(Dashboard!$H$103,Ranges!$E$56:$E$64,0),1) -> 1131.241555 | T95: =($J95*T$30/10^3)*INDEX(Ranges!$D$56:$D$64,MATCH(Dashboard!$H$103,Ranges!$E$56:$E$64,0),1) -> 1357.489866 | U95: =($J95*U$30/10^3)*INDEX(Ranges!$D$56:$D$64,MATCH(Dashboard!$H$103,Ranges!$E$56:$E$64,0),1) -> 1583.738177 | V95: =($J95*V$30/10^3)*INDEX(Ranges!$D$56:$D$64,MATCH(Dashboard!$H$103,Ranges!$E$56:$E$64,0),1) -> 1809.986488 | W95: =($J95*W$30/10^3)*INDEX(Ranges!$D$56:$D$64,MATCH(Dashboard!$H$103,Ranges!$E$56:$E$64,0),1) -> 2036.234799 | X95: =($J95*X$30/10^3)*INDEX(Ranges!$D$56:$D$64,MATCH(Dashboard!$H$103,Ranges!$E$56:$E$64,0),1) -> 2262.483111
C96: =D96&E96&F96 -> BHRTotalFertilizer | D96: BHR | E96: Total | F96: Fertilizer | G96: 462851.852 | H96: 1542839507 | I96: =INDEX(K96:M96,1,MATCH(Dashboard!$F$77,'Trade Data'!$K$30:$M$30,0)) -> 2705523.359 | J96: =INDEX(K96:M96,1,MATCH(Dashboard!$F$103,'Trade Data'!$K$30:$M$30,0)) -> 2570987.754 | K96: 2570987.754 | L96: 134535.605 | M96: =K96+L96 -> 2705523.359 | N96: =($J96*N$30/10^3)*INDEX(Ranges!$D$56:$D$64,MATCH(Dashboard!$H$103,Ranges!$E$56:$E$64,0),1) -> 0 | O96: =($J96*O$30/10^3)*INDEX(Ranges!$D$56:$D$64,MATCH(Dashboard!$H$103,Ranges!$E$56:$E$64,0),1) -> 24938.58121 | P96: =($J96*P$30/10^3)*INDEX(Ranges!$D$56:$D$64,MATCH(Dashboard!$H$103,Ranges!$E$56:$E$64,0),1) -> 49877.16243 | Q96: =($J96*Q$30/10^3)*INDEX(Ranges!$D$56:$D$64,MATCH(Dashboard!$H$103,Ranges!$E$56:$E$64,0),1) -> 74815.74364 | R96: =($J96*R$30/10^3)*INDEX(Ranges!$D$56:$D$64,MATCH(Dashboard!$H$103,Ranges!$E$56:$E$64,0),1) -> 99754.32485 | S96: =($J96*S$30/10^3)*INDEX(Ranges!$D$56:$D$64,MATCH(Dashboard!$H$103,Ranges!$E$56:$E$64,0),1) -> 124692.9061 | T96: =($J96*T$30/10^3)*INDEX(Ranges!$D$56:$D$64,MATCH(Dashboard!$H$103,Ranges!$E$56:$E$64,0),1) -> 149631.4873 | U96: =($J96*U$30/10^3)*INDEX(Ranges!$D$56:$D$64,MATCH(Dashboard!$H$103,Ranges!$E$56:$E$64,0),1) -> 174570.0685 | V96: =($J96*V$30/10^3)*INDEX(Ranges!$D$56:$D$64,MATCH(Dashboard!$H$103,Ranges!$E$56:$E$64,0),1) -> 199508.6497 | W96: =($J96*W$30/10^3)*INDEX(Ranges!$D$56:$D$64,MATCH(Dashboard!$H$103,Ranges!$E$56:$E$64,0),1) -> 224447.2309 | X96: =($J96*X$30/10^3)*INDEX(Ranges!$D$56:$D$64,MATCH(Dashboard!$H$103,Ranges!$E$56:$E$64,0),1) -> 249385.8121
C97: BHRTotalIron & Steel | D97: BHR | E97: Total | F97: Iron & Steel | G97: 3142044.368 | H97: 3696522786 | I97: =INDEX(K97:M97,1,MATCH(Dashboard!$F$77,'Trade Data'!$K$30:$M$30,0)) -> 10068075.27 | J97: =INDEX(K97:M97,1,MATCH(Dashboard!$F$103,'Trade Data'!$K$30:$M$30,0)) -> 7461021.378 | K97: 7461021.378 | L97: 2607053.895 | M97: 10068075.27 | N97: =($J97*N$30/10^3)*INDEX(Ranges!$D$56:$D$64,MATCH(Dashboard!$H$103,Ranges!$E$56:$E$64,0),1) -> 0 | O97: =($J97*O$30/10^3)*INDEX(Ranges!$D$56:$D$64,MATCH(Dashboard!$H$103,Ranges!$E$56:$E$64,0),1) -> 72371.90736 | P97: =($J97*P$30/10^3)*INDEX(Ranges!$D$56:$D$64,MATCH(Dashboard!$H$103,Ranges!$E$56:$E$64,0),1) -> 144743.8147 | Q97: =($J97*Q$30/10^3)*INDEX(Ranges!$D$56:$D$64,MATCH(Dashboard!$H$103,Ranges!$E$56:$E$64,0),1) -> 217115.7221 | R97: =($J97*R$30/10^3)*INDEX(Ranges!$D$56:$D$64,MATCH(Dashboard!$H$103,Ranges!$E$56:$E$64,0),1) -> 289487.6295 | S97: =($J97*S$30/10^3)*INDEX(Ranges!$D$56:$D$64,MATCH(Dashboard!$H$103,Ranges!$E$56:$E$64,0),1) -> 361859.5368 | T97: =($J97*T$30/10^3)*INDEX(Ranges!$D$56:$D$64,MATCH(Dashboard!$H$103,Ranges!$E$56:$E$64,0),1) -> 434231.4442 | U97: =($J97*U$30/10^3)*INDEX(Ranges!$D$56:$D$64,MATCH(Dashboard!$H$103,Ranges!$E$56:$E$64,0),1) -> 506603.3516 | V97: =($J97*V$30/10^3)*INDEX(Ranges!$D$56:$D$64,MATCH(Dashboard!$H$103,Ranges!$E$56:$E$64,0),1) -> 578975.2589 | W97: =($J97*W$30/10^3)*INDEX(Ranges!$D$56:$D$64,MATCH(Dashboard!$H$103,Ranges!$E$56:$E$64,0),1) -> 651347.1663 | X97: =($J97*X$30/10^3)*INDEX(Ranges!$D$56:$D$64,MATCH(Dashboard!$H$103,Ranges!$E$56:$E$64,0),1) -> 723719.0736
C98: BHSTotalAluminum | D98: BHS | E98: Total | F98: Aluminum | G98: 0 | H98: 0 | I98: =INDEX(K98:M98,1,MATCH(Dashboard!$F$77,'Trade Data'!$K$30:$M$30,0)) -> 0 | J98: =INDEX(K98:M98,1,MATCH(Dashboard!$F$103,'Trade Data'!$K$30:$M$30,0)) -> 0 | K98: 0 | L98: 0 | M98: 0 | N98: =($J98*N$30/10^3)*INDEX(Ranges!$D$56:$D$64,MATCH(Dashboard!$H$103,Ranges!$E$56:$E$64,0),1) -> 0 | O98: =($J98*O$30/10^3)*INDEX(Ranges!$D$56:$D$64,MATCH(Dashboard!$H$103,Ranges!$E$56:$E$64,0),1) -> 0 | P98: =($J98*P$30/10^3)*INDEX(Ranges!$D$56:$D$64,MATCH(Dashboard!$H$103,Ranges!$E$56:$E$64,0),1) -> 0 | Q98: =($J98*Q$30/10^3)*INDEX(Ranges!$D$56:$D$64,MATCH(Dashboard!$H$103,Ranges!$E$56:$E$64,0),1) -> 0 | R98: =($J98*R$30/10^3)*INDEX(Ranges!$D$56:$D$64,MATCH(Dashboard!$H$103,Ranges!$E$56:$E$64,0),1) -> 0 | S98: =($J98*S$30/10^3)*INDEX(Ranges!$D$56:$D$64,MATCH(Dashboard!$H$103,Ranges!$E$56:$E$64,0),1) -> 0 | T98: =($J98*T$30/10^3)*INDEX(Ranges!$D$56:$D$64,MATCH(Dashboard!$H$103,Ranges!$E$56:$E$64,0),1) -> 0 | U98: =($J98*U$30/10^3)*INDEX(Ranges!$D$56:$D$64,MATCH(Dashboard!$H$103,Ranges!$E$56:$E$64,0),1) -> 0 | V98: =($J98*V$30/10^3)*INDEX(Ranges!$D$56:$D$64,MATCH(Dashboard!$H$103,Ranges!$E$56:$E$64,0),1) -> 0 | W98: =($J98*W$30/10^3)*INDEX(Ranges!$D$56:$D$64,MATCH(Dashboard!$H$103,Ranges!$E$56:$E$64,0),1) -> 0 | X98: =($J98*X$30/10^3)*INDEX(Ranges!$D$56:$D$64,MATCH(Dashboard!$H$103,Ranges!$E$56:$E$64,0),1) -> 0
C99: BHSTotalCement | D99: BHS | E99: Total | F99: Cement | G99: 29.234 | H99: 292340 | I99: =INDEX(K99:M99,1,MATCH(Dashboard!$F$77,'Trade Data'!$K$30:$M$30,0)) -> 284.5442667 | J99: =INDEX(K99:M99,1,MATCH(Dashboard!$F$103,'Trade Data'!$K$30:$M$30,0)) -> 261.6443 | K99: 261.6443 | L99: 22.89996667 | M99: 284.5442667 | N99: =($J99*N$30/10^3)*INDEX(Ranges!$D$56:$D$64,MATCH(Dashboard!$H$103,Ranges!$E$56:$E$64,0),1) -> 0 | O99: =($J99*O$30/10^3)*INDEX(Ranges!$D$56:$D$64,MATCH(Dashboard!$H$103,Ranges!$E$56:$E$64,0),1) -> 2.53794971 | P99: =($J99*P$30/10^3)*INDEX(Ranges!$D$56:$D$64,MATCH(Dashboard!$H$103,Ranges!$E$56:$E$64,0),1) -> 5.07589942 | Q99: =($J99*Q$30/10^3)*INDEX(Ranges!$D$56:$D$64,MATCH(Dashboard!$H$103,Ranges!$E$56:$E$64,0),1) -> 7.61384913 | R99: =($J99*R$30/10^3)*INDEX(Ranges!$D$56:$D$64,MATCH(Dashboard!$H$103,Ranges!$E$56:$E$64,0),1) -> 10.15179884 | S99: =($J99*S$30/10^3)*INDEX(Ranges!$D$56:$D$64,MATCH(Dashboard!$H$103,Ranges!$E$56:$E$64,0),1) -> 12.68974855 | T99: =($J99*T$30/10^3)*INDEX(Ranges!$D$56:$D$64,MATCH(Dashboard!$H$103,Ranges!$E$56:$E$64,0),1) -> 15.22769826 | U99: =($J99*U$30/10^3)*INDEX(Ranges!$D$56:$D$64,MATCH(Dashboard!$H$103,Ranges!$E$56:$E$64,0),1) -> 17.76564797 | V99: =($J99*V$30/10^3)*INDEX(Ranges!$D$56:$D$64,MATCH(Dashboard!$H$103,Ranges!$E$56:$E$64,0),1) -> 20.30359768 | W99: =($J99*W$30/10^3)*INDEX(Ranges!$D$56:$D$64,MATCH(Dashboard!$H$103,Ranges!$E$56:$E$64,0),1) -> 22.84154739 | X99: =($J99*X$30/10^3)*INDEX(Ranges!$D$56:$D$64,MATCH(Dashboard!$H$103,Ranges!$E$56:$E$64,0),1) -> 25.3794971
C100: BHSTotalFertilizer | D100: BHS | E100: Total | F100: Fertilizer | G100: 0 | H100: 0 | I100: =INDEX(K100:M100,1,MATCH(Dashboard!$F$77,'Trade Data'!$K$30:$M$30,0)) -> 0 | J100: =INDEX(K100:M100,1,MATCH(Dashboard!$F$103,'Trade Data'!$K$30:$M$30,0)) -> 0 | K100: 0 | L100: 0 | M100: 0 | N100: =($J100*N$30/10^3)*INDEX(Ranges!$D$56:$D$64,MATCH(Dashboard!$H$103,Ranges!$E$56:$E$64,0),1) -> 0 | O100: =($J100*O$30/10^3)*INDEX(Ranges!$D$56:$D$64,MATCH(Dashboard!$H$103,Ranges!$E$56:$E$64,0),1) -> 0 | P100: =($J100*P$30/10^3)*INDEX(Ranges!$D$56:$D$64,MATCH(Dashboard!$H$103,Ranges!$E$56:$E$64,0),1) -> 0 | Q100: =($J100*Q$30/10^3)*INDEX(Ranges!$D$56:$D$64,MATCH(Dashboard!$H$103,Ranges!$E$56:$E$64,0),1) -> 0 | R100: =($J100*R$30/10^3)*INDEX(Ranges!$D$56:$D$64,MATCH(Dashboard!$H$103,Ranges!$E$56:$E$64,0),1) -> 0 | S100: =($J100*S$30/10^3)*INDEX(Ranges!$D$56:$D$64,MATCH(Dashboard!$H$103,Ranges!$E$56:$E$64,0),1) -> 0 | T100: =($J100*T$30/10^3)*INDEX(Ranges!$D$56:$D$64,MATCH(Dashboard!$H$103,Ranges!$E$56:$E$64,0),1) -> 0 | U100: =($J100*U$30/10^3)*INDEX(Ranges!$D$56:$D$64,MATCH(Dashboard!$H$103,Ranges!$E$56:$E$64,0),1) -> 0 | V100: =($J100*V$30/10^3)*INDEX(Ranges!$D$56:$D$64,MATCH(Dashboard!$H$103,Ranges!$E$56:$E$64,0),1) -> 0 | W100: =($J100*W$30/10^3)*INDEX(Ranges!$D$56:$D$64,MATCH(Dashboard!$H$103,Ranges!$E$56:$E$64,0),1) -> 0 | X100: =($J100*X$30/10^3)*INDEX(Ranges!$D$56:$D$64,MATCH(Dashboard!$H$103,Ranges!$E$56:$E$64,0),1) -> 0
C101: BHSTotalIron & Steel | D101: BHS | E101: Total | F101: Iron & Steel | G101: 9829.779 | H101: 11564445.88 | I101: =INDEX(K101:M101,1,MATCH(Dashboard!$F$77,'Trade Data'!$K$30:$M$30,0)) -> 31497.63125 | J101: =INDEX(K101:M101,1,MATCH(Dashboard!$F$103,'Trade Data'!$K$30:$M$30,0)) -> 23341.55176 | K101: 23341.55176 | L101: 8156.079489 | M101: 31497.63125 | N101: =($J101*N$30/10^3)*INDEX(Ranges!$D$56:$D$64,MATCH(Dashboard!$H$103,Ranges!$E$56:$E$64,0),1) -> 0 | O101: =($J101*O$30/10^3)*INDEX(Ranges!$D$56:$D$64,MATCH(Dashboard!$H$103,Ranges!$E$56:$E$64,0),1) -> 226.4130521 | P101: =($J101*P$30/10^3)*INDEX(Ranges!$D$56:$D$64,MATCH(Dashboard!$H$103,Ranges!$E$56:$E$64,0),1) -> 452.8261042 | Q101: =($J101*Q$30/10^3)*INDEX(Ranges!$D$56:$D$64,MATCH(Dashboard!$H$103,Ranges!$E$56:$E$64,0),1) -> 679.2391563 | R101: =($J101*R$30/10^3)*INDEX(Ranges!$D$56:$D$64,MATCH(Dashboard!$H$103,Ranges!$E$56:$E$64,0),1) -> 905.6522084 | S101: =($J101*S$30/10^3)*INDEX(Ranges!$D$56:$D$64,MATCH(Dashboard!$H$103,Ranges!$E$56:$E$64,0),1) -> 1132.065261 | T101: =($J101*T$30/10^3)*INDEX(Ranges!$D$56:$D$64,MATCH(Dashboard!$H$103,Ranges!$E$56:$E$64,0),1) -> 1358.478313 | U101: =($J101*U$30/10^3)*INDEX(Ranges!$D$56:$D$64,MATCH(Dashboard!$H$103,Ranges!$E$56:$E$64,0),1) -> 1584.891365 | V101: =($J101*V$30/10^3)*INDEX(Ranges!$D$56:$D$64,MATCH(Dashboard!$H$103,Ranges!$E$56:$E$64,0),1) -> 1811.304417 | W101: =($J101*W$30/10^3)*INDEX(Ranges!$D$56:$D$64,MATCH(Dashboard!$H$103,Ranges!$E$56:$E$64,0),1) -> 2037.717469 | X101: =($J101*X$30/10^3)*INDEX(Ranges!$D$56:$D$64,MATCH(Dashboard!$H$103,Ranges!$E$56:$E$64,0),1) -> 2264.130521
C102: BIHTotalAluminum | D102: BIH | E102: Total | F102: Aluminum | G102: 806643.916 | H102: 288087112.9 | I102: =INDEX(K102:M102,1,MATCH(Dashboard!$F$77,'Trade Data'!$K$30:$M$30,0)) -> 3334260.64 | J102: =INDEX(K102:M102,1,MATCH(Dashboard!$F$103,'Trade Data'!$K$30:$M$30,0)) -> 776891.4711 | K102: 776891.4711 | L102: 2557369.169 | M102: 3334260.64 | N102: =($J102*N$30/10^3)*INDEX(Ranges!$D$56:$D$64,MATCH(Dashboard!$H$103,Ranges!$E$56:$E$64,0),1) -> 0 | O102: =($J102*O$30/10^3)*INDEX(Ranges!$D$56:$D$64,MATCH(Dashboard!$H$103,Ranges!$E$56:$E$64,0),1) -> 7535.847269 | P102: =($J102*P$30/10^3)*INDEX(Ranges!$D$56:$D$64,MATCH(Dashboard!$H$103,Ranges!$E$56:$E$64,0),1) -> 15071.69454 | Q102: =($J102*Q$30/10^3)*INDEX(Ranges!$D$56:$D$64,MATCH(Dashboard!$H$103,Ranges!$E$56:$E$64,0),1) -> 22607.54181 | R102: =($J102*R$30/10^3)*INDEX(Ranges!$D$56:$D$64,MATCH(Dashboard!$H$103,Ranges!$E$56:$E$64,0),1) -> 30143.38908 | S102: =($J102*S$30/10^3)*INDEX(Ranges!$D$56:$D$64,MATCH(Dashboard!$H$103,Ranges!$E$56:$E$64,0),1) -> 37679.23635 | T102: =($J102*T$30/10^3)*INDEX(Ranges!$D$56:$D$64,MATCH(Dashboard!$H$103,Ranges!$E$56:$E$64,0),1) -> 45215.08362 | U102: =($J102*U$30/10^3)*INDEX(Ranges!$D$56:$D$64,MATCH(Dashboard!$H$103,Ranges!$E$56:$E$64,0),1) -> 52750.93089 | V102: =($J102*V$30/10^3)*INDEX(Ranges!$D$56:$D$64,MATCH(Dashboard!$H$103,Ranges!$E$56:$E$64,0),1) -> 60286.77815 | W102: =($J102*W$30/10^3)*INDEX(Ranges!$D$56:$D$64,MATCH(Dashboard!$H$103,Ranges!$E$56:$E$64,0),1) -> 67822.62542 | X102: =($J102*X$30/10^3)*INDEX(Ranges!$D$56:$D$64,MATCH(Dashboard!$H$103,Ranges!$E$56:$E$64,0),1) -> 75358.47269
C103: BIHTotalCement | D103: BIH | E103: Total | F103: Cement | G103: 29763.953 | H103: 297639530 | I103: =INDEX(K103:M103,1,MATCH(Dashboard!$F$77,'Trade Data'!$K$30:$M$30,0)) -> 289702.4759 | J103: =INDEX(K103:M103,1,MATCH(Dashboard!$F$103,'Trade Data'!$K$30:$M$30,0)) -> 266387.3793 | K103: 266387.3793 | L103: 23315.09652 | M103: 289702.4759 | N103: =($J103*N$30/10^3)*INDEX(Ranges!$D$56:$D$64,MATCH(Dashboard!$H$103,Ranges!$E$56:$E$64,0),1) -> 0 | O103: =($J103*O$30/10^3)*INDEX(Ranges!$D$56:$D$64,MATCH(Dashboard!$H$103,Ranges!$E$56:$E$64,0),1) -> 2583.95758 | P103: =($J103*P$30/10^3)*INDEX(Ranges!$D$56:$D$64,MATCH(Dashboard!$H$103,Ranges!$E$56:$E$64,0),1) -> 5167.915159 | Q103: =($J103*Q$30/10^3)*INDEX(Ranges!$D$56:$D$64,MATCH(Dashboard!$H$103,Ranges!$E$56:$E$64,0),1) -> 7751.872739 | R103: =($J103*R$30/10^3)*INDEX(Ranges!$D$56:$D$64,MATCH(Dashboard!$H$103,Ranges!$E$56:$E$64,0),1) -> 10335.83032 | S103: =($J103*S$30/10^3)*INDEX(Ranges!$D$56:$D$64,MATCH(Dashboard!$H$103,Ranges!$E$56:$E$64,0),1) -> 12919.7879 | T103: =($J103*T$30/10^3)*INDEX(Ranges!$D$56:$D$64,MATCH(Dashboard!$H$103,Ranges!$E$56:$E$64,0),1) -> 15503.74548 | U103: =($J103*U$30/10^3)*INDEX(Ranges!$D$56:$D$64,MATCH(Dashboard!$H$103,Ranges!$E$56:$E$64,0),1) -> 18087.70306 | V103: =($J103*V$30/10^3)*INDEX(Ranges!$D$56:$D$64,MATCH(Dashboard!$H$103,Ranges!$E$56:$E$64,0),1) -> 20671.66064 | W103: =($J103*W$30/10^3)*INDEX(Ranges!$D$56:$D$64,MATCH(Dashboard!$H$103,Ranges!$E$56:$E$64,0),1) -> 23255.61822 | X103: =($J103*X$30/10^3)*INDEX(Ranges!$D$56:$D$64,MATCH(Dashboard!$H$103,Ranges!$E$56:$E$64,0),1) -> 25839.5758
C104: BIHTotalElectricity | D104: BIH | E104: Total | F104: Electricity | G104: 588448.875 | H104: 3700936321 | I104: =INDEX(K104:M104,1,MATCH(Dashboard!$F$77,'Trade Data'!$K$30:$M$30,0)) -> 1780150.37 | J104: =INDEX(K104:M104,1,MATCH(Dashboard!$F$103,'Trade Data'!$K$30:$M$30,0)) -> 1780150.37 | K104: 1780150.37 | L104: 0 | M104: 1780150.37 | N104: =($J104*N$30/10^3)*INDEX(Ranges!$D$56:$D$64,MATCH(Dashboard!$H$103,Ranges!$E$56:$E$64,0),1) -> 0 | O104: =($J104*O$30/10^3)*INDEX(Ranges!$D$56:$D$64,MATCH(Dashboard!$H$103,Ranges!$E$56:$E$64,0),1) -> 17267.45859 | P104: =($J104*P$30/10^3)*INDEX(Ranges!$D$56:$D$64,MATCH(Dashboard!$H$103,Ranges!$E$56:$E$64,0),1) -> 34534.91718 | Q104: =($J104*Q$30/10^3)*INDEX(Ranges!$D$56:$D$64,MATCH(Dashboard!$H$103,Ranges!$E$56:$E$64,0),1) -> 51802.37578 | R104: =($J104*R$30/10^3)*INDEX(Ranges!$D$56:$D$64,MATCH(Dashboard!$H$103,Ranges!$E$56:$E$64,0),1) -> 69069.83437 | S104: =($J104*S$30/10^3)*INDEX(Ranges!$D$56:$D$64,MATCH(Dashboard!$H$103,Ranges!$E$56:$E$64,0),1) -> 86337.29296 | T104: =($J104*T$30/10^3)*INDEX(Ranges!$D$56:$D$64,MATCH(Dashboard!$H$103,Ranges!$E$56:$E$64,0),1) -> 103604.7516 | U104: =($J104*U$30/10^3)*INDEX(Ranges!$D$56:$D$64,MATCH(Dashboard!$H$103,Ranges!$E$56:$E$64,0),1) -> 120872.2101 | V104: =($J104*V$30/10^3)*INDEX(Ranges!$D$56:$D$64,MATCH(Dashboard!$H$103,Ranges!$E$56:$E$64,0),1) -> 138139.6687 | W104: =($J104*W$30/10^3)*INDEX(Ranges!$D$56:$D$64,MATCH(Dashboard!$H$103,Ranges!$E$56:$E$64,0),1) -> 155407.1273 | X104: =($J104*X$30/10^3)*INDEX(Ranges!$D$56:$D$64,MATCH(Dashboard!$H$103,Ranges!$E$56:$E$64,0),1) -> 172674.5859
C105: BIHTotalFertilizer | D105: BIH | E105: Total | F105: Fertilizer | G105: 2509.296 | H105: 8364320 | I105: =INDEX(K105:M105,1,MATCH(Dashboard!$F$77,'Trade Data'!$K$30:$M$30,0)) -> 14667.67155 | J105: =INDEX(K105:M105,1,MATCH(Dashboard!$F$103,'Trade Data'!$K$30:$M$30,0)) -> 13938.30285 | K105: 13938.30285 | L105: 729.368704 | M105: 14667.67155 | N105: =($J105*N$30/10^3)*INDEX(Ranges!$D$56:$D$64,MATCH(Dashboard!$H$103,Ranges!$E$56:$E$64,0),1) -> 0 | O105: =($J105*O$30/10^3)*INDEX(Ranges!$D$56:$D$64,MATCH(Dashboard!$H$103,Ranges!$E$56:$E$64,0),1) -> 135.2015376 | P105: =($J105*P$30/10^3)*INDEX(Ranges!$D$56:$D$64,MATCH(Dashboard!$H$103,Ranges!$E$56:$E$64,0),1) -> 270.4030753 | Q105: =($J105*Q$30/10^3)*INDEX(Ranges!$D$56:$D$64,MATCH(Dashboard!$H$103,Ranges!$E$56:$E$64,0),1) -> 405.6046129 | R105: =($J105*R$30/10^3)*INDEX(Ranges!$D$56:$D$64,MATCH(Dashboard!$H$103,Ranges!$E$56:$E$64,0),1) -> 540.8061505 | S105: =($J105*S$30/10^3)*INDEX(Ranges!$D$56:$D$64,MATCH(Dashboard!$H$103,Ranges!$E$56:$E$64,0),1) -> 676.0076881 | T105: =($J105*T$30/10^3)*INDEX(Ranges!$D$56:$D$64,MATCH(Dashboard!$H$103,Ranges!$E$56:$E$64,0),1) -> 811.2092258 | U105: =($J105*U$30/10^3)*INDEX(Ranges!$D$56:$D$64,MATCH(Dashboard!$H$103,Ranges!$E$56:$E$64,0),1) -> 946.4107634 | V105: =($J105*V$30/10^3)*INDEX(Ranges!$D$56:$D$64,MATCH(Dashboard!$H$103,Ranges!$E$56:$E$64,0),1) -> 1081.612301 | W105: =($J105*W$30/10^3)*INDEX(Ranges!$D$56:$D$64,MATCH(Dashboard!$H$103,Ranges!$E$56:$E$64,0),1) -> 1216.813839 | X105: =($J105*X$30/10^3)*INDEX(Ranges!$D$56:$D$64,MATCH(Dashboard!$H$103,Ranges!$E$56:$E$64,0),1) -> 1352.015376
C106: BIHTotalIron & Steel | D106: BIH | E106: Total | F106: Iron & Steel | G106: 848263.033 | H106: 997956509.4 | I106: =INDEX(K106:M106,1,MATCH(Dashboard!$F$77,'Trade Data'!$K$30:$M$30,0)) -> 2718095.312 | J106: =INDEX(K106:M106,1,MATCH(Dashboard!$F$103,'Trade Data'!$K$30:$M$30,0)) -> 2014264.562 | K106: 2014264.562 | L106: 703830.7499 | M106: 2718095.312 | N106: =($J106*N$30/10^3)*INDEX(Ranges!$D$56:$D$64,MATCH(Dashboard!$H$103,Ranges!$E$56:$E$64,0),1) -> 0 | O106: =($J106*O$30/10^3)*INDEX(Ranges!$D$56:$D$64,MATCH(Dashboard!$H$103,Ranges!$E$56:$E$64,0),1) -> 19538.36625 | P106: =($J106*P$30/10^3)*INDEX(Ranges!$D$56:$D$64,MATCH(Dashboard!$H$103,Ranges!$E$56:$E$64,0),1) -> 39076.73251 | Q106: =($J106*Q$30/10^3)*INDEX(Ranges!$D$56:$D$64,MATCH(Dashboard!$H$103,Ranges!$E$56:$E$64,0),1) -> 58615.09876 | R106: =($J106*R$30/10^3)*INDEX(Ranges!$D$56:$D$64,MATCH(Dashboard!$H$103,Ranges!$E$56:$E$64,0),1) -> 78153.46501 | S106: =($J106*S$30/10^3)*INDEX(Ranges!$D$56:$D$64,MATCH(Dashboard!$H$103,Ranges!$E$56:$E$64,0),1) -> 97691.83127 | T106: =($J106*T$30/10^3)*INDEX(Ranges!$D$56:$D$64,MATCH(Dashboard!$H$103,Ranges!$E$56:$E$64,0),1) -> 117230.1975 | U106: =($J106*U$30/10^3)*INDEX(Ranges!$D$56:$D$64,MATCH(Dashboard!$H$103,Ranges!$E$56:$E$64,0),1) -> 136768.5638 | V106: =($J106*V$30/10^3)*INDEX(Ranges!$D$56:$D$64,MATCH(Dashboard!$H$103,Ranges!$E$56:$E$64,0),1) -> 156306.93 | W106: =($J106*W$30/10^3)*INDEX(Ranges!$D$56:$D$64,MATCH(Dashboard!$H$103,Ranges!$E$56:$E$64,0),1) -> 175845.2963 | X106: =($J106*X$30/10^3)*INDEX(Ranges!$D$56:$D$64,MATCH(Dashboard!$H$103,Ranges!$E$56:$E$64,0),1) -> 195383.6625
C107: BLZTotalAluminum | D107: BLZ | E107: Total | F107: Aluminum | G107: 0 | H107: 0 | I107: =INDEX(K107:M107,1,MATCH(Dashboard!$F$77,'Trade Data'!$K$30:$M$30,0)) -> 0 | J107: =INDEX(K107:M107,1,MATCH(Dashboard!$F$103,'Trade Data'!$K$30:$M$30,0)) -> 0 | K107: 0 | L107: 0 | M107: 0 | N107: =($J107*N$30/10^3)*INDEX(Ranges!$D$56:$D$64,MATCH(Dashboard!$H$103,Ranges!$E$56:$E$64,0),1) -> 0 | O107: =($J107*O$30/10^3)*INDEX(Ranges!$D$56:$D$64,MATCH(Dashboard!$H$103,Ranges!$E$56:$E$64,0),1) -> 0 | P107: =($J107*P$30/10^3)*INDEX(Ranges!$D$56:$D$64,MATCH(Dashboard!$H$103,Ranges!$E$56:$E$64,0),1) -> 0 | Q107: =($J107*Q$30/10^3)*INDEX(Ranges!$D$56:$D$64,MATCH(Dashboard!$H$103,Ranges!$E$56:$E$64,0),1) -> 0 | R107: =($J107*R$30/10^3)*INDEX(Ranges!$D$56:$D$64,MATCH(Dashboard!$H$103,Ranges!$E$56:$E$64,0),1) -> 0 | S107: =($J107*S$30/10^3)*INDEX(Ranges!$D$56:$D$64,MATCH(Dashboard!$H$103,Ranges!$E$56:$E$64,0),1) -> 0 | T107: =($J107*T$30/10^3)*INDEX(Ranges!$D$56:$D$64,MATCH(Dashboard!$H$103,Ranges!$E$56:$E$64,0),1) -> 0 | U107: =($J107*U$30/10^3)*INDEX(Ranges!$D$56:$D$64,MATCH(Dashboard!$H$103,Ranges!$E$56:$E$64,0),1) -> 0 | V107: =($J107*V$30/10^3)*INDEX(Ranges!$D$56:$D$64,MATCH(Dashboard!$H$103,Ranges!$E$56:$E$64,0),1) -> 0 | W107: =($J107*W$30/10^3)*INDEX(Ranges!$D$56:$D$64,MATCH(Dashboard!$H$103,Ranges!$E$56:$E$64,0),1) -> 0 | X107: =($J107*X$30/10^3)*INDEX(Ranges!$D$56:$D$64,MATCH(Dashboard!$H$103,Ranges!$E$56:$E$64,0),1) -> 0
C108: BLZTotalFertilizer | D108: BLZ | E108: Total | F108: Fertilizer | G108: 0 | H108: 0 | I108: =INDEX(K108:M108,1,MATCH(Dashboard!$F$77,'Trade Data'!$K$30:$M$30,0)) -> 0 | J108: =INDEX(K108:M108,1,MATCH(Dashboard!$F$103,'Trade Data'!$K$30:$M$30,0)) -> 0 | K108: 0 | L108: 0 | M108: 0 | N108: =($J108*N$30/10^3)*INDEX(Ranges!$D$56:$D$64,MATCH(Dashboard!$H$103,Ranges!$E$56:$E$64,0),1) -> 0 | O108: =($J108*O$30/10^3)*INDEX(Ranges!$D$56:$D$64,MATCH(Dashboard!$H$103,Ranges!$E$56:$E$64,0),1) -> 0 | P108: =($J108*P$30/10^3)*INDEX(Ranges!$D$56:$D$64,MATCH(Dashboard!$H$103,Ranges!$E$56:$E$64,0),1) -> 0 | Q108: =($J108*Q$30/10^3)*INDEX(Ranges!$D$56:$D$64,MATCH(Dashboard!$H$103,Ranges!$E$56:$E$64,0),1) -> 0 | R108: =($J108*R$30/10^3)*INDEX(Ranges!$D$56:$D$64,MATCH(Dashboard!$H$103,Ranges!$E$56:$E$64,0),1) -> 0 | S108: =($J108*S$30/10^3)*INDEX(Ranges!$D$56:$D$64,MATCH(Dashboard!$H$103,Ranges!$E$56:$E$64,0),1) -> 0 | T108: =($J108*T$30/10^3)*INDEX(Ranges!$D$56:$D$64,MATCH(Dashboard!$H$103,Ranges!$E$56:$E$64,0),1) -> 0 | U108: =($J108*U$30/10^3)*INDEX(Ranges!$D$56:$D$64,MATCH(Dashboard!$H$103,Ranges!$E$56:$E$64,0),1) -> 0 | V108: =($J108*V$30/10^3)*INDEX(Ranges!$D$56:$D$64,MATCH(Dashboard!$H$103,Ranges!$E$56:$E$64,0),1) -> 0 | W108: =($J108*W$30/10^3)*INDEX(Ranges!$D$56:$D$64,MATCH(Dashboard!$H$103,Ranges!$E$56:$E$64,0),1) -> 0 | X108: =($J108*X$30/10^3)*INDEX(Ranges!$D$56:$D$64,MATCH(Dashboard!$H$103,Ranges!$E$56:$E$64,0),1) -> 0
C109: BLZTotalIron & Steel | D109: BLZ | E109: Total | F109: Iron & Steel | G109: 0 | H109: 0 | I109: =INDEX(K109:M109,1,MATCH(Dashboard!$F$77,'Trade Data'!$K$30:$M$30,0)) -> 0 | J109: =INDEX(K109:M109,1,MATCH(Dashboard!$F$103,'Trade Data'!$K$30:$M$30,0)) -> 0 | K109: 0 | L109: 0 | M109: 0 | N109: =($J109*N$30/10^3)*INDEX(Ranges!$D$56:$D$64,MATCH(Dashboard!$H$103,Ranges!$E$56:$E$64,0),1) -> 0 | O109: =($J109*O$30/10^3)*INDEX(Ranges!$D$56:$D$64,MATCH(Dashboard!$H$103,Ranges!$E$56:$E$64,0),1) -> 0 | P109: =($J109*P$30/10^3)*INDEX(Ranges!$D$56:$D$64,MATCH(Dashboard!$H$103,Ranges!$E$56:$E$64,0),1) -> 0 | Q109: =($J109*Q$30/10^3)*INDEX(Ranges!$D$56:$D$64,MATCH(Dashboard!$H$103,Ranges!$E$56:$E$64,0),1) -> 0 | R109: =($J109*R$30/10^3)*INDEX(Ranges!$D$56:$D$64,MATCH(Dashboard!$H$103,Ranges!$E$56:$E$64,0),1) -> 0 | S109: =($J109*S$30/10^3)*INDEX(Ranges!$D$56:$D$64,MATCH(Dashboard!$H$103,Ranges!$E$56:$E$64,0),1) -> 0 | T109: =($J109*T$30/10^3)*INDEX(Ranges!$D$56:$D$64,MATCH(Dashboard!$H$103,Ranges!$E$56:$E$64,0),1) -> 0 | U109: =($J109*U$30/10^3)*INDEX(Ranges!$D$56:$D$64,MATCH(Dashboard!$H$103,Ranges!$E$56:$E$64,0),1) -> 0 | V109: =($J109*V$30/10^3)*INDEX(Ranges!$D$56:$D$64,MATCH(Dashboard!$H$103,Ranges!$E$56:$E$64,0),1) -> 0 | W109: =($J109*W$30/10^3)*INDEX(Ranges!$D$56:$D$64,MATCH(Dashboard!$H$103,Ranges!$E$56:$E$64,0),1) -> 0 | X109: =($J109*X$30/10^3)*INDEX(Ranges!$D$56:$D$64,MATCH(Dashboard!$H$103,Ranges!$E$56:$E$64,0),1) -> 0
C110: BMUTotalAluminum | D110: BMU | E110: Total | F110: Aluminum | G110: 104.943 | H110: 37479.64286 | I110: =INDEX(K110:M110,1,MATCH(Dashboard!$F$77,'Trade Data'!$K$30:$M$30,0)) -> 433.781632 | J110: =INDEX(K110:M110,1,MATCH(Dashboard!$F$103,'Trade Data'!$K$30:$M$30,0)) -> 101.0722576 | K110: 101.0722576 | L110: 332.7093744 | M110: 433.781632 | N110: =($J110*N$30/10^3)*INDEX(Ranges!$D$56:$D$64,MATCH(Dashboard!$H$103,Ranges!$E$56:$E$64,0),1) -> 0 | O110: =($J110*O$30/10^3)*INDEX(Ranges!$D$56:$D$64,MATCH(Dashboard!$H$103,Ranges!$E$56:$E$64,0),1) -> 0.9804008985 | P110: =($J110*P$30/10^3)*INDEX(Ranges!$D$56:$D$64,MATCH(Dashboard!$H$103,Ranges!$E$56:$E$64,0),1) -> 1.960801797 | Q110: =($J110*Q$30/10^3)*INDEX(Ranges!$D$56:$D$64,MATCH(Dashboard!$H$103,Ranges!$E$56:$E$64,0),1) -> 2.941202695 | R110: =($J110*R$30/10^3)*INDEX(Ranges!$D$56:$D$64,MATCH(Dashboard!$H$103,Ranges!$E$56:$E$64,0),1) -> 3.921603594 | S110: =($J110*S$30/10^3)*INDEX(Ranges!$D$56:$D$64,MATCH(Dashboard!$H$103,Ranges!$E$56:$E$64,0),1) -> 4.902004492 | T110: =($J110*T$30/10^3)*INDEX(Ranges!$D$56:$D$64,MATCH(Dashboard!$H$103,Ranges!$E$56:$E$64,0),1) -> 5.882405391 | U110: =($J110*U$30/10^3)*INDEX(Ranges!$D$56:$D$64,MATCH(Dashboard!$H$103,Ranges!$E$56:$E$64,0),1) -> 6.862806289 | V110: =($J110*V$30/10^3)*INDEX(Ranges!$D$56:$D$64,MATCH(Dashboard!$H$103,Ranges!$E$56:$E$64,0),1) -> 7.843207188 | W110: =($J110*W$30/10^3)*INDEX(Ranges!$D$56:$D$64,MATCH(Dashboard!$H$103,Ranges!$E$56:$E$64,0),1) -> 8.823608086 | X110: =($J110*X$30/10^3)*INDEX(Ranges!$D$56:$D$64,MATCH(Dashboard!$H$103,Ranges!$E$56:$E$64,0),1) -> 9.804008985
C111: BMUTotalIron & Steel | D111: BMU | E111: Total | F111: Iron & Steel | G111: 113.418 | H111: 133432.9412 | I111: =INDEX(K111:M111,1,MATCH(Dashboard!$F$77,'Trade Data'!$K$30:$M$30,0)) -> 363.4261097 | J111: =INDEX(K111:M111,1,MATCH(Dashboard!$F$103,'Trade Data'!$K$30:$M$30,0)) -> 269.3195969 | K111: 269.3195969 | L111: 94.10651282 | M111: 363.4261097 | N111: =($J111*N$30/10^3)*INDEX(Ranges!$D$56:$D$64,MATCH(Dashboard!$H$103,Ranges!$E$56:$E$64,0),1) -> 0 | O111: =($J111*O$30/10^3)*INDEX(Ranges!$D$56:$D$64,MATCH(Dashboard!$H$103,Ranges!$E$56:$E$64,0),1) -> 2.61240009 | P111: =($J111*P$30/10^3)*INDEX(Ranges!$D$56:$D$64,MATCH(Dashboard!$H$103,Ranges!$E$56:$E$64,0),1) -> 5.22480018 | Q111: =($J111*Q$30/10^3)*INDEX(Ranges!$D$56:$D$64,MATCH(Dashboard!$H$103,Ranges!$E$56:$E$64,0),1) -> 7.83720027 | R111: =($J111*R$30/10^3)*INDEX(Ranges!$D$56:$D$64,MATCH(Dashboard!$H$103,Ranges!$E$56:$E$64,0),1) -> 10.44960036 | S111: =($J111*S$30/10^3)*INDEX(Ranges!$D$56:$D$64,MATCH(Dashboard!$H$103,Ranges!$E$56:$E$64,0),1) -> 13.06200045 | T111: =($J111*T$30/10^3)*INDEX(Ranges!$D$56:$D$64,MATCH(Dashboard!$H$103,Ranges!$E$56:$E$64,0),1) -> 15.67440054 | U111: =($J111*U$30/10^3)*INDEX(Ranges!$D$56:$D$64,MATCH(Dashboard!$H$103,Ranges!$E$56:$E$64,0),1) -> 18.28680063 | V111: =($J111*V$30/10^3)*INDEX(Ranges!$D$56:$D$64,MATCH(Dashboard!$H$103,Ranges!$E$56:$E$64,0),1) -> 20.89920072 | W111: =($J111*W$30/10^3)*INDEX(Ranges!$D$56:$D$64,MATCH(Dashboard!$H$103,Ranges!$E$56:$E$64,0),1) -> 23.51160081 | X111: =($J111*X$30/10^3)*INDEX(Ranges!$D$56:$D$64,MATCH(Dashboard!$H$103,Ranges!$E$56:$E$64,0),1) -> 26.1240009
C112: BOLTotalAluminum | D112: BOL | E112: Total | F112: Aluminum | G112: 40.656 | H112: 14520 | I112: =INDEX(K112:M112,1,MATCH(Dashboard!$F$77,'Trade Data'!$K$30:$M$30,0)) -> 168.0514759 | J112: =INDEX(K112:M112,1,MATCH(Dashboard!$F$103,'Trade Data'!$K$30:$M$30,0)) -> 39.15643448 | K112: 39.15643448 | L112: 128.8950414 | M112: 168.0514759 | N112: =($J112*N$30/10^3)*INDEX(Ranges!$D$56:$D$64,MATCH(Dashboard!$H$103,Ranges!$E$56:$E$64,0),1) -> 0 | O112: =($J112*O$30/10^3)*INDEX(Ranges!$D$56:$D$64,MATCH(Dashboard!$H$103,Ranges!$E$56:$E$64,0),1) -> 0.3798174145 | P112: =($J112*P$30/10^3)*INDEX(Ranges!$D$56:$D$64,MATCH(Dashboard!$H$103,Ranges!$E$56:$E$64,0),1) -> 0.759634829 | Q112: =($J112*Q$30/10^3)*INDEX(Ranges!$D$56:$D$64,MATCH(Dashboard!$H$103,Ranges!$E$56:$E$64,0),1) -> 1.139452243 | R112: =($J112*R$30/10^3)*INDEX(Ranges!$D$56:$D$64,MATCH(Dashboard!$H$103,Ranges!$E$56:$E$64,0),1) -> 1.519269658 | S112: =($J112*S$30/10^3)*INDEX(Ranges!$D$56:$D$64,MATCH(Dashboard!$H$103,Ranges!$E$56:$E$64,0),1) -> 1.899087072 | T112: =($J112*T$30/10^3)*INDEX(Ranges!$D$56:$D$64,MATCH(Dashboard!$H$103,Ranges!$E$56:$E$64,0),1) -> 2.278904487 | U112: =($J112*U$30/10^3)*INDEX(Ranges!$D$56:$D$64,MATCH(Dashboard!$H$103,Ranges!$E$56:$E$64,0),1) -> 2.658721901 | V112: =($J112*V$30/10^3)*INDEX(Ranges!$D$56:$D$64,MATCH(Dashboard!$H$103,Ranges!$E$56:$E$64,0),1) -> 3.038539316 | W112: =($J112*W$30/10^3)*INDEX(Ranges!$D$56:$D$64,MATCH(Dashboard!$H$103,Ranges!$E$56:$E$64,0),1) -> 3.41835673 | X112: =($J112*X$30/10^3)*INDEX(Ranges!$D$56:$D$64,MATCH(Dashboard!$H$103,Ranges!$E$56:$E$64,0),1) -> 3.798174145
C113: BOLTotalCement | D113: BOL | E113: Total | F113: Cement | G113: 1448.302 | H113: 14483020 | I113: =INDEX(K113:M113,1,MATCH(Dashboard!$F$77,'Trade Data'!$K$30:$M$30,0)) -> 14096.80613 | J113: =INDEX(K113:M113,1,MATCH(Dashboard!$F$103,'Trade Data'!$K$30:$M$30,0)) -> 12962.3029 | K113: 12962.3029 | L113: 1134.503233 | M113: 14096.80613 | N113: =($J113*N$30/10^3)*INDEX(Ranges!$D$56:$D$64,MATCH(Dashboard!$H$103,Ranges!$E$56:$E$64,0),1) -> 0 | O113: =($J113*O$30/10^3)*INDEX(Ranges!$D$56:$D$64,MATCH(Dashboard!$H$103,Ranges!$E$56:$E$64,0),1) -> 125.7343381 | P113: =($J113*P$30/10^3)*INDEX(Ranges!$D$56:$D$64,MATCH(Dashboard!$H$103,Ranges!$E$56:$E$64,0),1) -> 251.4686763 | Q113: =($J113*Q$30/10^3)*INDEX(Ranges!$D$56:$D$64,MATCH(Dashboard!$H$103,Ranges!$E$56:$E$64,0),1) -> 377.2030144 | R113: =($J113*R$30/10^3)*INDEX(Ranges!$D$56:$D$64,MATCH(Dashboard!$H$103,Ranges!$E$56:$E$64,0),1) -> 502.9373525 | S113: =($J113*S$30/10^3)*INDEX(Ranges!$D$56:$D$64,MATCH(Dashboard!$H$103,Ranges!$E$56:$E$64,0),1) -> 628.6716906 | T113: =($J113*T$30/10^3)*INDEX(Ranges!$D$56:$D$64,MATCH(Dashboard!$H$103,Ranges!$E$56:$E$64,0),1) -> 754.4060288 | U113: =($J113*U$30/10^3)*INDEX(Ranges!$D$56:$D$64,MATCH(Dashboard!$H$103,Ranges!$E$56:$E$64,0),1) -> 880.1403669 | V113: =($J113*V$30/10^3)*INDEX(Ranges!$D$56:$D$64,MATCH(Dashboard!$H$103,Ranges!$E$56:$E$64,0),1) -> 1005.874705 | W113: =($J113*W$30/10^3)*INDEX(Ranges!$D$56:$D$64,MATCH(Dashboard!$H$103,Ranges!$E$56:$E$64,0),1) -> 1131.609043 | X113: =($J113*X$30/10^3)*INDEX(Ranges!$D$56:$D$64,MATCH(Dashboard!$H$103,Ranges!$E$56:$E$64,0),1) -> 1257.343381
C114: BOLTotalFertilizer | D114: BOL | E114: Total | F114: Fertilizer | G114: 199529.274 | H114: 665097580 | I114: =INDEX(K114:M114,1,MATCH(Dashboard!$F$77,'Trade Data'!$K$30:$M$30,0)) -> 1166315.116 | J114: =INDEX(K114:M114,1,MATCH(Dashboard!$F$103,'Trade Data'!$K$30:$M$30,0)) -> 1108318.607 | K114: 1108318.607 | L114: 57996.50898 | M114: 1166315.116 | N114: =($J114*N$30/10^3)*INDEX(Ranges!$D$56:$D$64,MATCH(Dashboard!$H$103,Ranges!$E$56:$E$64,0),1) -> 0 | O114: =($J114*O$30/10^3)*INDEX(Ranges!$D$56:$D$64,MATCH(Dashboard!$H$103,Ranges!$E$56:$E$64,0),1) -> 10750.69049 | P114: =($J114*P$30/10^3)*INDEX(Ranges!$D$56:$D$64,MATCH(Dashboard!$H$103,Ranges!$E$56:$E$64,0),1) -> 21501.38098 | Q114: =($J114*Q$30/10^3)*INDEX(Ranges!$D$56:$D$64,MATCH(Dashboard!$H$103,Ranges!$E$56:$E$64,0),1) -> 32252.07147 | R114: =($J114*R$30/10^3)*INDEX(Ranges!$D$56:$D$64,MATCH(Dashboard!$H$103,Ranges!$E$56:$E$64,0),1) -> 43002.76196 | S114: =($J114*S$30/10^3)*INDEX(Ranges!$D$56:$D$64,MATCH(Dashboard!$H$103,Ranges!$E$56:$E$64,0),1) -> 53753.45245 | T114: =($J114*T$30/10^3)*INDEX(Ranges!$D$56:$D$64,MATCH(Dashboard!$H$103,Ranges!$E$56:$E$64,0),1) -> 64504.14295 | U114: =($J114*U$30/10^3)*INDEX(Ranges!$D$56:$D$64,MATCH(Dashboard!$H$103,Ranges!$E$56:$E$64,0),1) -> 75254.83344 | V114: =($J114*V$30/10^3)*INDEX(Ranges!$D$56:$D$64,MATCH(Dashboard!$H$103,Ranges!$E$56:$E$64,0),1) -> 86005.52393 | W114: =($J114*W$30/10^3)*INDEX(Ranges!$D$56:$D$64,MATCH(Dashboard!$H$103,Ranges!$E$56:$E$64,0),1) -> 96756.21442 | X114: =($J114*X$30/10^3)*INDEX(Ranges!$D$56:$D$64,MATCH(Dashboard!$H$103,Ranges!$E$56:$E$64,0),1) -> 107506.9049
C115: BOLTotalIron & Steel | D115: BOL | E115: Total | F115: Iron & Steel | G115: 826.887 | H115: 972808.2353 | I115: =INDEX(K115:M115,1,MATCH(Dashboard!$F$77,'Trade Data'!$K$30:$M$30,0)) -> 2649.599936 | J115: =INDEX(K115:M115,1,MATCH(Dashboard!$F$103,'Trade Data'!$K$30:$M$30,0)) -> 1963.505559 | K115: 1963.505559 | L115: 686.0943772 | M115: 2649.599936 | N115: =($J115*N$30/10^3)*INDEX(Ranges!$D$56:$D$64,MATCH(Dashboard!$H$103,Ranges!$E$56:$E$64,0),1) -> 0 | O115: =($J115*O$30/10^3)*INDEX(Ranges!$D$56:$D$64,MATCH(Dashboard!$H$103,Ranges!$E$56:$E$64,0),1) -> 19.04600392 | P115: =($J115*P$30/10^3)*INDEX(Ranges!$D$56:$D$64,MATCH(Dashboard!$H$103,Ranges!$E$56:$E$64,0),1) -> 38.09200785 | Q115: =($J115*Q$30/10^3)*INDEX(Ranges!$D$56:$D$64,MATCH(Dashboard!$H$103,Ranges!$E$56:$E$64,0),1) -> 57.13801177 | R115: =($J115*R$30/10^3)*INDEX(Ranges!$D$56:$D$64,MATCH(Dashboard!$H$103,Ranges!$E$56:$E$64,0),1) -> 76.1840157 | S115: =($J115*S$30/10^3)*INDEX(Ranges!$D$56:$D$64,MATCH(Dashboard!$H$103,Ranges!$E$56:$E$64,0),1) -> 95.23001962 | T115: =($J115*T$30/10^3)*INDEX(Ranges!$D$56:$D$64,MATCH(Dashboard!$H$103,Ranges!$E$56:$E$64,0),1) -> 114.2760235 | U115: =($J115*U$30/10^3)*INDEX(Ranges!$D$56:$D$64,MATCH(Dashboard!$H$103,Ranges!$E$56:$E$64,0),1) -> 133.3220275 | V115: =($J115*V$30/10^3)*INDEX(Ranges!$D$56:$D$64,MATCH(Dashboard!$H$103,Ranges!$E$56:$E$64,0),1) -> 152.3680314 | W115: =($J115*W$30/10^3)*INDEX(Ranges!$D$56:$D$64,MATCH(Dashboard!$H$103,Ranges!$E$56:$E$64,0),1) -> 171.4140353 | X115: =($J115*X$30/10^3)*INDEX(Ranges!$D$56:$D$64,MATCH(Dashboard!$H$103,Ranges!$E$56:$E$64,0),1) -> 190.4600392
C116: BRATotalAluminum | D116: BRA | E116: Total | F116: Aluminum | G116: 1437407.504 | H116: 513359822.9 | I116: =INDEX(K116:M116,1,MATCH(Dashboard!$F$77,'Trade Data'!$K$30:$M$30,0)) -> 5941520.377 | J116: =INDEX(K116:M116,1,MATCH(Dashboard!$F$103,'Trade Data'!$K$30:$M$30,0)) -> 1384389.826 | K116: 1384389.826 | L116: 4557130.552 | M116: 5941520.377 | N116: =($J116*N$30/10^3)*INDEX(Ranges!$D$56:$D$64,MATCH(Dashboard!$H$103,Ranges!$E$56:$E$64,0),1) -> 0 | O116: =($J116*O$30/10^3)*INDEX(Ranges!$D$56:$D$64,MATCH(Dashboard!$H$103,Ranges!$E$56:$E$64,0),1) -> 13428.58131 | P116: =($J116*P$30/10^3)*INDEX(Ranges!$D$56:$D$64,MATCH(Dashboard!$H$103,Ranges!$E$56:$E$64,0),1) -> 26857.16262 | Q116: =($J116*Q$30/10^3)*INDEX(Ranges!$D$56:$D$64,MATCH(Dashboard!$H$103,Ranges!$E$56:$E$64,0),1) -> 40285.74393 | R116: =($J116*R$30/10^3)*INDEX(Ranges!$D$56:$D$64,MATCH(Dashboard!$H$103,Ranges!$E$56:$E$64,0),1) -> 53714.32524 | S116: =($J116*S$30/10^3)*INDEX(Ranges!$D$56:$D$64,MATCH(Dashboard!$H$103,Ranges!$E$56:$E$64,0),1) -> 67142.90655 | T116: =($J116*T$30/10^3)*INDEX(Ranges!$D$56:$D$64,MATCH(Dashboard!$H$103,Ranges!$E$56:$E$64,0),1) -> 80571.48786 | U116: =($J116*U$30/10^3)*INDEX(Ranges!$D$56:$D$64,MATCH(Dashboard!$H$103,Ranges!$E$56:$E$64,0),1) -> 94000.06917 | V116: =($J116*V$30/10^3)*INDEX(Ranges!$D$56:$D$64,MATCH(Dashboard!$H$103,Ranges!$E$56:$E$64,0),1) -> 107428.6505 | W116: =($J116*W$30/10^3)*INDEX(Ranges!$D$56:$D$64,MATCH(Dashboard!$H$103,Ranges!$E$56:$E$64,0),1) -> 120857.2318 | X116: =($J116*X$30/10^3)*INDEX(Ranges!$D$56:$D$64,MATCH(Dashboard!$H$103,Ranges!$E$56:$E$64,0),1) -> 134285.8131
C117: BRATotalCement | D117: BRA | E117: Total | F117: Cement | G117: 186822.14 | H117: 1868221400 | I117: =INDEX(K117:M117,1,MATCH(Dashboard!$F$77,'Trade Data'!$K$30:$M$30,0)) -> 1818402.163 | J117: =INDEX(K117:M117,1,MATCH(Dashboard!$F$103,'Trade Data'!$K$30:$M$30,0)) -> 1672058.153 | K117: 1672058.153 | L117: 146344.0097 | M117: 1818402.163 | N117: =($J117*N$30/10^3)*INDEX(Ranges!$D$56:$D$64,MATCH(Dashboard!$H$103,Ranges!$E$56:$E$64,0),1) -> 0 | O117: =($J117*O$30/10^3)*INDEX(Ranges!$D$56:$D$64,MATCH(Dashboard!$H$103,Ranges!$E$56:$E$64,0),1) -> 16218.96408 | P117: =($J117*P$30/10^3)*INDEX(Ranges!$D$56:$D$64,MATCH(Dashboard!$H$103,Ranges!$E$56:$E$64,0),1) -> 32437.92817 | Q117: =($J117*Q$30/10^3)*INDEX(Ranges!$D$56:$D$64,MATCH(Dashboard!$H$103,Ranges!$E$56:$E$64,0),1) -> 48656.89225 | R117: =($J117*R$30/10^3)*INDEX(Ranges!$D$56:$D$64,MATCH(Dashboard!$H$103,Ranges!$E$56:$E$64,0),1) -> 64875.85634 | S117: =($J117*S$30/10^3)*INDEX(Ranges!$D$56:$D$64,MATCH(Dashboard!$H$103,Ranges!$E$56:$E$64,0),1) -> 81094.82042 | T117: =($J117*T$30/10^3)*INDEX(Ranges!$D$56:$D$64,MATCH(Dashboard!$H$103,Ranges!$E$56:$E$64,0),1) -> 97313.7845 | U117: =($J117*U$30/10^3)*INDEX(Ranges!$D$56:$D$64,MATCH(Dashboard!$H$103,Ranges!$E$56:$E$64,0),1) -> 113532.7486 | V117: =($J117*V$30/10^3)*INDEX(Ranges!$D$56:$D$64,MATCH(Dashboard!$H$103,Ranges!$E$56:$E$64,0),1) -> 129751.7127 | W117: =($J117*W$30/10^3)*INDEX(Ranges!$D$56:$D$64,MATCH(Dashboard!$H$103,Ranges!$E$56:$E$64,0),1) -> 145970.6768 | X117: =($J117*X$30/10^3)*INDEX(Ranges!$D$56:$D$64,MATCH(Dashboard!$H$103,Ranges!$E$56:$E$64,0),1) -> 162189.6408
C118: BRATotalElectricity | D118: BRA | E118: Total | F118: Electricity | G118: 343874.688 | H118: 2162733887 | I118: =INDEX(K118:M118,1,MATCH(Dashboard!$F$77,'Trade Data'!$K$30:$M$30,0)) -> 1040275 | J118: =INDEX(K118:M118,1,MATCH(Dashboard!$F$103,'Trade Data'!$K$30:$M$30,0)) -> 1040275 | K118: 1040275 | L118: 0 | M118: 1040275 | N118: =($J118*N$30/10^3)*INDEX(Ranges!$D$56:$D$64,MATCH(Dashboard!$H$103,Ranges!$E$56:$E$64,0),1) -> 0 | O118: =($J118*O$30/10^3)*INDEX(Ranges!$D$56:$D$64,MATCH(Dashboard!$H$103,Ranges!$E$56:$E$64,0),1) -> 10090.6675 | P118: =($J118*P$30/10^3)*INDEX(Ranges!$D$56:$D$64,MATCH(Dashboard!$H$103,Ranges!$E$56:$E$64,0),1) -> 20181.33499 | Q118: =($J118*Q$30/10^3)*INDEX(Ranges!$D$56:$D$64,MATCH(Dashboard!$H$103,Ranges!$E$56:$E$64,0),1) -> 30272.00249 | R118: =($J118*R$30/10^3)*INDEX(Ranges!$D$56:$D$64,MATCH(Dashboard!$H$103,Ranges!$E$56:$E$64,0),1) -> 40362.66998 | S118: =($J118*S$30/10^3)*INDEX(Ranges!$D$56:$D$64,MATCH(Dashboard!$H$103,Ranges!$E$56:$E$64,0),1) -> 50453.33748 | T118: =($J118*T$30/10^3)*INDEX(Ranges!$D$56:$D$64,MATCH(Dashboard!$H$103,Ranges!$E$56:$E$64,0),1) -> 60544.00497 | U118: =($J118*U$30/10^3)*INDEX(Ranges!$D$56:$D$64,MATCH(Dashboard!$H$103,Ranges!$E$56:$E$64,0),1) -> 70634.67247 | V118: =($J118*V$30/10^3)*INDEX(Ranges!$D$56:$D$64,MATCH(Dashboard!$H$103,Ranges!$E$56:$E$64,0),1) -> 80725.33996 | W118: =($J118*W$30/10^3)*INDEX(Ranges!$D$56:$D$64,MATCH(Dashboard!$H$103,Ranges!$E$56:$E$64,0),1) -> 90816.00746 | X118: =($J118*X$30/10^3)*INDEX(Ranges!$D$56:$D$64,MATCH(Dashboard!$H$103,Ranges!$E$56:$E$64,0),1) -> 100906.675
C119: BRATotalFertilizer | D119: BRA | E119: Total | F119: Fertilizer | G119: 377135.748 | H119: 1257119160 | I119: =INDEX(K119:M119,1,MATCH(Dashboard!$F$77,'Trade Data'!$K$30:$M$30,0)) -> 2204484.159 | J119: =INDEX(K119:M119,1,MATCH(Dashboard!$F$103,'Trade Data'!$K$30:$M$30,0)) -> 2094863.368 | K119: 2094863.368 | L119: 109620.7908 | M119: 2204484.159 | N119: =($J119*N$30/10^3)*INDEX(Ranges!$D$56:$D$64,MATCH(Dashboard!$H$103,Ranges!$E$56:$E$64,0),1) -> 0 | O119: =($J119*O$30/10^3)*INDEX(Ranges!$D$56:$D$64,MATCH(Dashboard!$H$103,Ranges!$E$56:$E$64,0),1) -> 20320.17467 | P119: =($J119*P$30/10^3)*INDEX(Ranges!$D$56:$D$64,MATCH(Dashboard!$H$103,Ranges!$E$56:$E$64,0),1) -> 40640.34934 | Q119: =($J119*Q$30/10^3)*INDEX(Ranges!$D$56:$D$64,MATCH(Dashboard!$H$103,Ranges!$E$56:$E$64,0),1) -> 60960.52402 | R119: =($J119*R$30/10^3)*INDEX(Ranges!$D$56:$D$64,MATCH(Dashboard!$H$103,Ranges!$E$56:$E$64,0),1) -> 81280.69869 | S119: =($J119*S$30/10^3)*INDEX(Ranges!$D$56:$D$64,MATCH(Dashboard!$H$103,Ranges!$E$56:$E$64,0),1) -> 101600.8734 | T119: =($J119*T$30/10^3)*INDEX(Ranges!$D$56:$D$64,MATCH(Dashboard!$H$103,Ranges!$E$56:$E$64,0),1) -> 121921.048 | U119: =($J119*U$30/10^3)*INDEX(Ranges!$D$56:$D$64,MATCH(Dashboard!$H$103,Ranges!$E$56:$E$64,0),1) -> 142241.2227 | V119: =($J119*V$30/10^3)*INDEX(Ranges!$D$56:$D$64,MATCH(Dashboard!$H$103,Ranges!$E$56:$E$64,0),1) -> 162561.3974 | W119: =($J119*W$30/10^3)*INDEX(Ranges!$D$56:$D$64,MATCH(Dashboard!$H$103,Ranges!$E$56:$E$64,0),1) -> 182881.572 | X119: =($J119*X$30/10^3)*INDEX(Ranges!$D$56:$D$64,MATCH(Dashboard!$H$103,Ranges!$E$56:$E$64,0),1) -> 203201.7467
C120: BRATotalHydrogen | D120: BRA | E120: Total | F120: Hydrogen | G120: 34.494 | H120: 5163.772455 | I120: =INDEX(K120:M120,1,MATCH(Dashboard!$F$77,'Trade Data'!$K$30:$M$30,0)) -> 53.70323353 | J120: =INDEX(K120:M120,1,MATCH(Dashboard!$F$103,'Trade Data'!$K$30:$M$30,0)) -> 53.70323353 | K120: 53.70323353 | L120: 0 | M120: 53.70323353 | N120: =($J120*N$30/10^3)*INDEX(Ranges!$D$56:$D$64,MATCH(Dashboard!$H$103,Ranges!$E$56:$E$64,0),1) -> 0 | O120: =($J120*O$30/10^3)*INDEX(Ranges!$D$56:$D$64,MATCH(Dashboard!$H$103,Ranges!$E$56:$E$64,0),1) -> 0.5209213653 | P120: =($J120*P$30/10^3)*INDEX(Ranges!$D$56:$D$64,MATCH(Dashboard!$H$103,Ranges!$E$56:$E$64,0),1) -> 1.041842731 | Q120: =($J120*Q$30/10^3)*INDEX(Ranges!$D$56:$D$64,MATCH(Dashboard!$H$103,Ranges!$E$56:$E$64,0),1) -> 1.562764096 | R120: =($J120*R$30/10^3)*INDEX(Ranges!$D$56:$D$64,MATCH(Dashboard!$H$103,Ranges!$E$56:$E$64,0),1) -> 2.083685461 | S120: =($J120*S$30/10^3)*INDEX(Ranges!$D$56:$D$64,MATCH(Dashboard!$H$103,Ranges!$E$56:$E$64,0),1) -> 2.604606826 | T120: =($J120*T$30/10^3)*INDEX(Ranges!$D$56:$D$64,MATCH(Dashboard!$H$103,Ranges!$E$56:$E$64,0),1) -> 3.125528192 | U120: =($J120*U$30/10^3)*INDEX(Ranges!$D$56:$D$64,MATCH(Dashboard!$H$103,Ranges!$E$56:$E$64,0),1) -> 3.646449557 | V120: =($J120*V$30/10^3)*INDEX(Ranges!$D$56:$D$64,MATCH(Dashboard!$H$103,Ranges!$E$56:$E$64,0),1) -> 4.167370922 | W120: =($J120*W$30/10^3)*INDEX(Ranges!$D$56:$D$64,MATCH(Dashboard!$H$103,Ranges!$E$56:$E$64,0),1) -> 4.688292287 | X120: =($J120*X$30/10^3)*INDEX(Ranges!$D$56:$D$64,MATCH(Dashboard!$H$103,Ranges!$E$56:$E$64,0),1) -> 5.209213653
C121: BRATotalIron & Steel | D121: BRA | E121: Total | F121: Iron & Steel | G121: 18267536.09 | H121: 2.149121892e+10 | I121: =INDEX(K121:M121,1,MATCH(Dashboard!$F$77,'Trade Data'!$K$30:$M$30,0)) -> 58534796.71 | J121: =INDEX(K121:M121,1,MATCH(Dashboard!$F$103,'Trade Data'!$K$30:$M$30,0)) -> 43377642.48 | K121: 43377642.48 | L121: 15157154.23 | M121: 58534796.71 | N121: =($J121*N$30/10^3)*INDEX(Ranges!$D$56:$D$64,MATCH(Dashboard!$H$103,Ranges!$E$56:$E$64,0),1) -> 0 | O121: =($J121*O$30/10^3)*INDEX(Ranges!$D$56:$D$64,MATCH(Dashboard!$H$103,Ranges!$E$56:$E$64,0),1) -> 420763.1321 | P121: =($J121*P$30/10^3)*INDEX(Ranges!$D$56:$D$64,MATCH(Dashboard!$H$103,Ranges!$E$56:$E$64,0),1) -> 841526.2641 | Q121: =($J121*Q$30/10^3)*INDEX(Ranges!$D$56:$D$64,MATCH(Dashboard!$H$103,Ranges!$E$56:$E$64,0),1) -> 1262289.396 | R121: =($J121*R$30/10^3)*INDEX(Ranges!$D$56:$D$64,MATCH(Dashboard!$H$103,Ranges!$E$56:$E$64,0),1) -> 1683052.528 | S121: =($J121*S$30/10^3)*INDEX(Ranges!$D$56:$D$64,MATCH(Dashboard!$H$103,Ranges!$E$56:$E$64,0),1) -> 2103815.66 | T121: =($J121*T$30/10^3)*INDEX(Ranges!$D$56:$D$64,MATCH(Dashboard!$H$103,Ranges!$E$56:$E$64,0),1) -> 2524578.792 | U121: =($J121*U$30/10^3)*INDEX(Ranges!$D$56:$D$64,MATCH(Dashboard!$H$103,Ranges!$E$56:$E$64,0),1) -> 2945341.924 | V121: =($J121*V$30/10^3)*INDEX(Ranges!$D$56:$D$64,MATCH(Dashboard!$H$103,Ranges!$E$56:$E$64,0),1) -> 3366105.056 | W121: =($J121*W$30/10^3)*INDEX(Ranges!$D$56:$D$64,MATCH(Dashboard!$H$103,Ranges!$E$56:$E$64,0),1) -> 3786868.188 | X121: =($J121*X$30/10^3)*INDEX(Ranges!$D$56:$D$64,MATCH(Dashboard!$H$103,Ranges!$E$56:$E$64,0),1) -> 4207631.321
C122: BRBTotalAluminum | D122: BRB | E122: Total | F122: Aluminum | G122: 7570.211 | H122: 2703646.786 | I122: =INDEX(K122:M122,1,MATCH(Dashboard!$F$77,'Trade Data'!$K$30:$M$30,0)) -> 31291.44852 | J122: =INDEX(K122:M122,1,MATCH(Dashboard!$F$103,'Trade Data'!$K$30:$M$30,0)) -> 7290.989547 | K122: 7290.989547 | L122: 24000.45898 | M122: 31291.44852 | N122: =($J122*N$30/10^3)*INDEX(Ranges!$D$56:$D$64,MATCH(Dashboard!$H$103,Ranges!$E$56:$E$64,0),1) -> 0 | O122: =($J122*O$30/10^3)*INDEX(Ranges!$D$56:$D$64,MATCH(Dashboard!$H$103,Ranges!$E$56:$E$64,0),1) -> 70.72259861 | P122: =($J122*P$30/10^3)*INDEX(Ranges!$D$56:$D$64,MATCH(Dashboard!$H$103,Ranges!$E$56:$E$64,0),1) -> 141.4451972 | Q122: =($J122*Q$30/10^3)*INDEX(Ranges!$D$56:$D$64,MATCH(Dashboard!$H$103,Ranges!$E$56:$E$64,0),1) -> 212.1677958 | R122: =($J122*R$30/10^3)*INDEX(Ranges!$D$56:$D$64,MATCH(Dashboard!$H$103,Ranges!$E$56:$E$64,0),1) -> 282.8903944 | S122: =($J122*S$30/10^3)*INDEX(Ranges!$D$56:$D$64,MATCH(Dashboard!$H$103,Ranges!$E$56:$E$64,0),1) -> 353.6129931 | T122: =($J122*T$30/10^3)*INDEX(Ranges!$D$56:$D$64,MATCH(Dashboard!$H$103,Ranges!$E$56:$E$64,0),1) -> 424.3355917 | U122: =($J122*U$30/10^3)*INDEX(Ranges!$D$56:$D$64,MATCH(Dashboard!$H$103,Ranges!$E$56:$E$64,0),1) -> 495.0581903 | V122: =($J122*V$30/10^3)*INDEX(Ranges!$D$56:$D$64,MATCH(Dashboard!$H$103,Ranges!$E$56:$E$64,0),1) -> 565.7807889 | W122: =($J122*W$30/10^3)*INDEX(Ranges!$D$56:$D$64,MATCH(Dashboard!$H$103,Ranges!$E$56:$E$64,0),1) -> 636.5033875 | X122: =($J122*X$30/10^3)*INDEX(Ranges!$D$56:$D$64,MATCH(Dashboard!$H$103,Ranges!$E$56:$E$64,0),1) -> 707.2259861
C123: BRBTotalCement | D123: BRB | E123: Total | F123: Cement | G123: 12100.458 | H123: 121004580 | I123: =INDEX(K123:M123,1,MATCH(Dashboard!$F$77,'Trade Data'!$K$30:$M$30,0)) -> 117777.7912 | J123: =INDEX(K123:M123,1,MATCH(Dashboard!$F$103,'Trade Data'!$K$30:$M$30,0)) -> 108299.0991 | K123: 108299.0991 | L123: 9478.6921 | M123: 117777.7912 | N123: =($J123*N$30/10^3)*INDEX(Ranges!$D$56:$D$64,MATCH(Dashboard!$H$103,Ranges!$E$56:$E$64,0),1) -> 0 | O123: =($J123*O$30/10^3)*INDEX(Ranges!$D$56:$D$64,MATCH(Dashboard!$H$103,Ranges!$E$56:$E$64,0),1) -> 1050.501261 | P123: =($J123*P$30/10^3)*INDEX(Ranges!$D$56:$D$64,MATCH(Dashboard!$H$103,Ranges!$E$56:$E$64,0),1) -> 2101.002523 | Q123: =($J123*Q$30/10^3)*INDEX(Ranges!$D$56:$D$64,MATCH(Dashboard!$H$103,Ranges!$E$56:$E$64,0),1) -> 3151.503784 | R123: =($J123*R$30/10^3)*INDEX(Ranges!$D$56:$D$64,MATCH(Dashboard!$H$103,Ranges!$E$56:$E$64,0),1) -> 4202.005045 | S123: =($J123*S$30/10^3)*INDEX(Ranges!$D$56:$D$64,MATCH(Dashboard!$H$103,Ranges!$E$56:$E$64,0),1) -> 5252.506306 | T123: =($J123*T$30/10^3)*INDEX(Ranges!$D$56:$D$64,MATCH(Dashboard!$H$103,Ranges!$E$56:$E$64,0),1) -> 6303.007568 | U123: =($J123*U$30/10^3)*INDEX(Ranges!$D$56:$D$64,MATCH(Dashboard!$H$103,Ranges!$E$56:$E$64,0),1) -> 7353.508829 | V123: =($J123*V$30/10^3)*INDEX(Ranges!$D$56:$D$64,MATCH(Dashboard!$H$103,Ranges!$E$56:$E$64,0),1) -> 8404.01009 | W123: =($J123*W$30/10^3)*INDEX(Ranges!$D$56:$D$64,MATCH(Dashboard!$H$103,Ranges!$E$56:$E$64,0),1) -> 9454.511351 | X123: =($J123*X$30/10^3)*INDEX(Ranges!$D$56:$D$64,MATCH(Dashboard!$H$103,Ranges!$E$56:$E$64,0),1) -> 10505.01261
C124: BRBTotalFertilizer | D124: BRB | E124: Total | F124: Fertilizer | G124: 14.348 | H124: 47826.66667 | I124: =INDEX(K124:M124,1,MATCH(Dashboard!$F$77,'Trade Data'!$K$30:$M$30,0)) -> 83.86884267 | J124: =INDEX(K124:M124,1,MATCH(Dashboard!$F$103,'Trade Data'!$K$30:$M$30,0)) -> 79.69835733 | K124: 79.69835733 | L124: 4.170485333 | M124: 83.86884267 | N124: =($J124*N$30/10^3)*INDEX(Ranges!$D$56:$D$64,MATCH(Dashboard!$H$103,Ranges!$E$56:$E$64,0),1) -> 0 | O124: =($J124*O$30/10^3)*INDEX(Ranges!$D$56:$D$64,MATCH(Dashboard!$H$103,Ranges!$E$56:$E$64,0),1) -> 0.7730740661 | P124: =($J124*P$30/10^3)*INDEX(Ranges!$D$56:$D$64,MATCH(Dashboard!$H$103,Ranges!$E$56:$E$64,0),1) -> 1.546148132 | Q124: =($J124*Q$30/10^3)*INDEX(Ranges!$D$56:$D$64,MATCH(Dashboard!$H$103,Ranges!$E$56:$E$64,0),1) -> 2.319222198 | R124: =($J124*R$30/10^3)*INDEX(Ranges!$D$56:$D$64,MATCH(Dashboard!$H$103,Ranges!$E$56:$E$64,0),1) -> 3.092296265 | S124: =($J124*S$30/10^3)*INDEX(Ranges!$D$56:$D$64,MATCH(Dashboard!$H$103,Ranges!$E$56:$E$64,0),1) -> 3.865370331 | T124: =($J124*T$30/10^3)*INDEX(Ranges!$D$56:$D$64,MATCH(Dashboard!$H$103,Ranges!$E$56:$E$64,0),1) -> 4.638444397 | U124: =($J124*U$30/10^3)*INDEX(Ranges!$D$56:$D$64,MATCH(Dashboard!$H$103,Ranges!$E$56:$E$64,0),1) -> 5.411518463 | V124: =($J124*V$30/10^3)*INDEX(Ranges!$D$56:$D$64,MATCH(Dashboard!$H$103,Ranges!$E$56:$E$64,0),1) -> 6.184592529 | W124: =($J124*W$30/10^3)*INDEX(Ranges!$D$56:$D$64,MATCH(Dashboard!$H$103,Ranges!$E$56:$E$64,0),1) -> 6.957666595 | X124: =($J124*X$30/10^3)*INDEX(Ranges!$D$56:$D$64,MATCH(Dashboard!$H$103,Ranges!$E$56:$E$64,0),1) -> 7.730740661
C125: BRBTotalIron & Steel | D125: BRB | E125: Total | F125: Iron & Steel | G125: 7061.428 | H125: 8307562.353 | I125: =INDEX(K125:M125,1,MATCH(Dashboard!$F$77,'Trade Data'!$K$30:$M$30,0)) -> 22626.98432 | J125: =INDEX(K125:M125,1,MATCH(Dashboard!$F$103,'Trade Data'!$K$30:$M$30,0)) -> 16767.89348 | K125: 16767.89348 | L125: 5859.090838 | M125: 22626.98432 | N125: =($J125*N$30/10^3)*INDEX(Ranges!$D$56:$D$64,MATCH(Dashboard!$H$103,Ranges!$E$56:$E$64,0),1) -> 0 | O125: =($J125*O$30/10^3)*INDEX(Ranges!$D$56:$D$64,MATCH(Dashboard!$H$103,Ranges!$E$56:$E$64,0),1) -> 162.6485667 | P125: =($J125*P$30/10^3)*INDEX(Ranges!$D$56:$D$64,MATCH(Dashboard!$H$103,Ranges!$E$56:$E$64,0),1) -> 325.2971335 | Q125: =($J125*Q$30/10^3)*INDEX(Ranges!$D$56:$D$64,MATCH(Dashboard!$H$103,Ranges!$E$56:$E$64,0),1) -> 487.9457002 | R125: =($J125*R$30/10^3)*INDEX(Ranges!$D$56:$D$64,MATCH(Dashboard!$H$103,Ranges!$E$56:$E$64,0),1) -> 650.5942669 | S125: =($J125*S$30/10^3)*INDEX(Ranges!$D$56:$D$64,MATCH(Dashboard!$H$103,Ranges!$E$56:$E$64,0),1) -> 813.2428337 | T125: =($J125*T$30/10^3)*INDEX(Ranges!$D$56:$D$64,MATCH(Dashboard!$H$103,Ranges!$E$56:$E$64,0),1) -> 975.8914004 | U125: =($J125*U$30/10^3)*INDEX(Ranges!$D$56:$D$64,MATCH(Dashboard!$H$103,Ranges!$E$56:$E$64,0),1) -> 1138.539967 | V125: =($J125*V$30/10^3)*INDEX(Ranges!$D$56:$D$64,MATCH(Dashboard!$H$103,Ranges!$E$56:$E$64,0),1) -> 1301.188534 | W125: =($J125*W$30/10^3)*INDEX(Ranges!$D$56:$D$64,MATCH(Dashboard!$H$103,Ranges!$E$56:$E$64,0),1) -> 1463.837101 | X125: =($J125*X$30/10^3)*INDEX(Ranges!$D$56:$D$64,MATCH(Dashboard!$H$103,Ranges!$E$56:$E$64,0),1) -> 1626.485667
C126: BRNTotalAluminum | D126: BRN | E126: Total | F126: Aluminum | G126: 876.963 | H126: 313201.0714 | I126: =INDEX(K126:M126,1,MATCH(Dashboard!$F$77,'Trade Data'!$K$30:$M$30,0)) -> 3624.9244 | J126: =INDEX(K126:M126,1,MATCH(Dashboard!$F$103,'Trade Data'!$K$30:$M$30,0)) -> 844.6168893 | K126: 844.6168893 | L126: 2780.307511 | M126: 3624.9244 | N126: =($J126*N$30/10^3)*INDEX(Ranges!$D$56:$D$64,MATCH(Dashboard!$H$103,Ranges!$E$56:$E$64,0),1) -> 0 | O126: =($J126*O$30/10^3)*INDEX(Ranges!$D$56:$D$64,MATCH(Dashboard!$H$103,Ranges!$E$56:$E$64,0),1) -> 8.192783827 | P126: =($J126*P$30/10^3)*INDEX(Ranges!$D$56:$D$64,MATCH(Dashboard!$H$103,Ranges!$E$56:$E$64,0),1) -> 16.38556765 | Q126: =($J126*Q$30/10^3)*INDEX(Ranges!$D$56:$D$64,MATCH(Dashboard!$H$103,Ranges!$E$56:$E$64,0),1) -> 24.57835148 | R126: =($J126*R$30/10^3)*INDEX(Ranges!$D$56:$D$64,MATCH(Dashboard!$H$103,Ranges!$E$56:$E$64,0),1) -> 32.77113531 | S126: =($J126*S$30/10^3)*INDEX(Ranges!$D$56:$D$64,MATCH(Dashboard!$H$103,Ranges!$E$56:$E$64,0),1) -> 40.96391913 | T126: =($J126*T$30/10^3)*INDEX(Ranges!$D$56:$D$64,MATCH(Dashboard!$H$103,Ranges!$E$56:$E$64,0),1) -> 49.15670296 | U126: =($J126*U$30/10^3)*INDEX(Ranges!$D$56:$D$64,MATCH(Dashboard!$H$103,Ranges!$E$56:$E$64,0),1) -> 57.34948679 | V126: =($J126*V$30/10^3)*INDEX(Ranges!$D$56:$D$64,MATCH(Dashboard!$H$103,Ranges!$E$56:$E$64,0),1) -> 65.54227061 | W126: =($J126*W$30/10^3)*INDEX(Ranges!$D$56:$D$64,MATCH(Dashboard!$H$103,Ranges!$E$56:$E$64,0),1) -> 73.73505444 | X126: =($J126*X$30/10^3)*INDEX(Ranges!$D$56:$D$64,MATCH(Dashboard!$H$103,Ranges!$E$56:$E$64,0),1) -> 81.92783827
C127: BRNTotalCement | D127: BRN | E127: Total | F127: Cement | G127: 23.936 | H127: 239360 | I127: =INDEX(K127:M127,1,MATCH(Dashboard!$F$77,'Trade Data'!$K$30:$M$30,0)) -> 232.9770667 | J127: =INDEX(K127:M127,1,MATCH(Dashboard!$F$103,'Trade Data'!$K$30:$M$30,0)) -> 214.2272 | K127: 214.2272 | L127: 18.74986667 | M127: 232.9770667 | N127: =($J127*N$30/10^3)*INDEX(Ranges!$D$56:$D$64,MATCH(Dashboard!$H$103,Ranges!$E$56:$E$64,0),1) -> 0 | O127: =($J127*O$30/10^3)*INDEX(Ranges!$D$56:$D$64,MATCH(Dashboard!$H$103,Ranges!$E$56:$E$64,0),1) -> 2.07800384 | P127: =($J127*P$30/10^3)*INDEX(Ranges!$D$56:$D$64,MATCH(Dashboard!$H$103,Ranges!$E$56:$E$64,0),1) -> 4.15600768 | Q127: =($J127*Q$30/10^3)*INDEX(Ranges!$D$56:$D$64,MATCH(Dashboard!$H$103,Ranges!$E$56:$E$64,0),1) -> 6.23401152 | R127: =($J127*R$30/10^3)*INDEX(Ranges!$D$56:$D$64,MATCH(Dashboard!$H$103,Ranges!$E$56:$E$64,0),1) -> 8.31201536 | S127: =($J127*S$30/10^3)*INDEX(Ranges!$D$56:$D$64,MATCH(Dashboard!$H$103,Ranges!$E$56:$E$64,0),1) -> 10.3900192 | T127: =($J127*T$30/10^3)*INDEX(Ranges!$D$56:$D$64,MATCH(Dashboard!$H$103,Ranges!$E$56:$E$64,0),1) -> 12.46802304 | U127: =($J127*U$30/10^3)*INDEX(Ranges!$D$56:$D$64,MATCH(Dashboard!$H$103,Ranges!$E$56:$E$64,0),1) -> 14.54602688 | V127: =($J127*V$30/10^3)*INDEX(Ranges!$D$56:$D$64,MATCH(Dashboard!$H$103,Ranges!$E$56:$E$64,0),1) -> 16.62403072 | W127: =($J127*W$30/10^3)*INDEX(Ranges!$D$56:$D$64,MATCH(Dashboard!$H$103,Ranges!$E$56:$E$64,0),1) -> 18.70203456 | X127: =($J127*X$30/10^3)*INDEX(Ranges!$D$56:$D$64,MATCH(Dashboard!$H$103,Ranges!$E$56:$E$64,0),1) -> 20.7800384
C128: BRNTotalFertilizer | D128: BRN | E128: Total | F128: Fertilizer | G128: 248515.054 | H128: 828383513.3 | I128: =INDEX(K128:M128,1,MATCH(Dashboard!$F$77,'Trade Data'!$K$30:$M$30,0)) -> 1452653.329 | J128: =INDEX(K128:M128,1,MATCH(Dashboard!$F$103,'Trade Data'!$K$30:$M$30,0)) -> 1380418.287 | K128: 1380418.287 | L128: 72235.04236 | M128: 1452653.329 | N128: =($J128*N$30/10^3)*INDEX(Ranges!$D$56:$D$64,MATCH(Dashboard!$H$103,Ranges!$E$56:$E$64,0),1) -> 0 | O128: =($J128*O$30/10^3)*INDEX(Ranges!$D$56:$D$64,MATCH(Dashboard!$H$103,Ranges!$E$56:$E$64,0),1) -> 13390.05738 | P128: =($J128*P$30/10^3)*INDEX(Ranges!$D$56:$D$64,MATCH(Dashboard!$H$103,Ranges!$E$56:$E$64,0),1) -> 26780.11476 | Q128: =($J128*Q$30/10^3)*INDEX(Ranges!$D$56:$D$64,MATCH(Dashboard!$H$103,Ranges!$E$56:$E$64,0),1) -> 40170.17214 | R128: =($J128*R$30/10^3)*INDEX(Ranges!$D$56:$D$64,MATCH(Dashboard!$H$103,Ranges!$E$56:$E$64,0),1) -> 53560.22952 | S128: =($J128*S$30/10^3)*INDEX(Ranges!$D$56:$D$64,MATCH(Dashboard!$H$103,Ranges!$E$56:$E$64,0),1) -> 66950.2869 | T128: =($J128*T$30/10^3)*INDEX(Ranges!$D$56:$D$64,MATCH(Dashboard!$H$103,Ranges!$E$56:$E$64,0),1) -> 80340.34428 | U128: =($J128*U$30/10^3)*INDEX(Ranges!$D$56:$D$64,MATCH(Dashboard!$H$103,Ranges!$E$56:$E$64,0),1) -> 93730.40166 | V128: =($J128*V$30/10^3)*INDEX(Ranges!$D$56:$D$64,MATCH(Dashboard!$H$103,Ranges!$E$56:$E$64,0),1) -> 107120.459 | W128: =($J128*W$30/10^3)*INDEX(Ranges!$D$56:$D$64,MATCH(Dashboard!$H$103,Ranges!$E$56:$E$64,0),1) -> 120510.5164 | X128: =($J128*X$30/10^3)*INDEX(Ranges!$D$56:$D$64,MATCH(Dashboard!$H$103,Ranges!$E$56:$E$64,0),1) -> 133900.5738
C129: BRNTotalHydrogen | D129: BRN | E129: Total | F129: Hydrogen | G129: 15.148 | H129: 2267.664671 | I129: =INDEX(K129:M129,1,MATCH(Dashboard!$F$77,'Trade Data'!$K$30:$M$30,0)) -> 23.58371257 | J129: =INDEX(K129:M129,1,MATCH(Dashboard!$F$103,'Trade Data'!$K$30:$M$30,0)) -> 23.58371257 | K129: 23.58371257 | L129: 0 | M129: 23.58371257 | N129: =($J129*N$30/10^3)*INDEX(Ranges!$D$56:$D$64,MATCH(Dashboard!$H$103,Ranges!$E$56:$E$64,0),1) -> 0 | O129: =($J129*O$30/10^3)*INDEX(Ranges!$D$56:$D$64,MATCH(Dashboard!$H$103,Ranges!$E$56:$E$64,0),1) -> 0.228762012 | P129: =($J129*P$30/10^3)*INDEX(Ranges!$D$56:$D$64,MATCH(Dashboard!$H$103,Ranges!$E$56:$E$64,0),1) -> 0.457524024 | Q129: =($J129*Q$30/10^3)*INDEX(Ranges!$D$56:$D$64,MATCH(Dashboard!$H$103,Ranges!$E$56:$E$64,0),1) -> 0.6862860359 | R129: =($J129*R$30/10^3)*INDEX(Ranges!$D$56:$D$64,MATCH(Dashboard!$H$103,Ranges!$E$56:$E$64,0),1) -> 0.9150480479 | S129: =($J129*S$30/10^3)*INDEX(Ranges!$D$56:$D$64,MATCH(Dashboard!$H$103,Ranges!$E$56:$E$64,0),1) -> 1.14381006 | T129: =($J129*T$30/10^3)*INDEX(Ranges!$D$56:$D$64,MATCH(Dashboard!$H$103,Ranges!$E$56:$E$64,0),1) -> 1.372572072 | U129: =($J129*U$30/10^3)*INDEX(Ranges!$D$56:$D$64,MATCH(Dashboard!$H$103,Ranges!$E$56:$E$64,0),1) -> 1.601334084 | V129: =($J129*V$30/10^3)*INDEX(Ranges!$D$56:$D$64,MATCH(Dashboard!$H$103,Ranges!$E$56:$E$64,0),1) -> 1.830096096 | W129: =($J129*W$30/10^3)*INDEX(Ranges!$D$56:$D$64,MATCH(Dashboard!$H$103,Ranges!$E$56:$E$64,0),1) -> 2.058858108 | X129: =($J129*X$30/10^3)*INDEX(Ranges!$D$56:$D$64,MATCH(Dashboard!$H$103,Ranges!$E$56:$E$64,0),1) -> 2.28762012
C130: BRNTotalIron & Steel | D130: BRN | E130: Total | F130: Iron & Steel | G130: 53043.796 | H130: 62404465.88 | I130: =INDEX(K130:M130,1,MATCH(Dashboard!$F$77,'Trade Data'!$K$30:$M$30,0)) -> 169968.6154 | J130: =INDEX(K130:M130,1,MATCH(Dashboard!$F$103,'Trade Data'!$K$30:$M$30,0)) -> 125956.4951 | K130: 125956.4951 | L130: 44012.12037 | M130: 169968.6154 | N130: =($J130*N$30/10^3)*INDEX(Ranges!$D$56:$D$64,MATCH(Dashboard!$H$103,Ranges!$E$56:$E$64,0),1) -> 0 | O130: =($J130*O$30/10^3)*INDEX(Ranges!$D$56:$D$64,MATCH(Dashboard!$H$103,Ranges!$E$56:$E$64,0),1) -> 1221.778002 | P130: =($J130*P$30/10^3)*INDEX(Ranges!$D$56:$D$64,MATCH(Dashboard!$H$103,Ranges!$E$56:$E$64,0),1) -> 2443.556004 | Q130: =($J130*Q$30/10^3)*INDEX(Ranges!$D$56:$D$64,MATCH(Dashboard!$H$103,Ranges!$E$56:$E$64,0),1) -> 3665.334006 | R130: =($J130*R$30/10^3)*INDEX(Ranges!$D$56:$D$64,MATCH(Dashboard!$H$103,Ranges!$E$56:$E$64,0),1) -> 4887.112008 | S130: =($J130*S$30/10^3)*INDEX(Ranges!$D$56:$D$64,MATCH(Dashboard!$H$103,Ranges!$E$56:$E$64,0),1) -> 6108.89001 | T130: =($J130*T$30/10^3)*INDEX(Ranges!$D$56:$D$64,MATCH(Dashboard!$H$103,Ranges!$E$56:$E$64,0),1) -> 7330.668012 | U130: =($J130*U$30/10^3)*INDEX(Ranges!$D$56:$D$64,MATCH(Dashboard!$H$103,Ranges!$E$56:$E$64,0),1) -> 8552.446015 | V130: =($J130*V$30/10^3)*INDEX(Ranges!$D$56:$D$64,MATCH(Dashboard!$H$103,Ranges!$E$56:$E$64,0),1) -> 9774.224017 | W130: =($J130*W$30/10^3)*INDEX(Ranges!$D$56:$D$64,MATCH(Dashboard!$H$103,Ranges!$E$56:$E$64,0),1) -> 10996.00202 | X130: =($J130*X$30/10^3)*INDEX(Ranges!$D$56:$D$64,MATCH(Dashboard!$H$103,Ranges!$E$56:$E$64,0),1) -> 12217.78002
C131: BWATotalAluminum | D131: BWA | E131: Total | F131: Aluminum | G131: 599.571 | H131: 214132.5 | I131: =INDEX(K131:M131,1,MATCH(Dashboard!$F$77,'Trade Data'!$K$30:$M$30,0)) -> 2478.325252 | J131: =INDEX(K131:M131,1,MATCH(Dashboard!$F$103,'Trade Data'!$K$30:$M$30,0)) -> 577.4562815 | K131: 577.4562815 | L131: 1900.86897 | M131: 2478.325252 | N131: =($J131*N$30/10^3)*INDEX(Ranges!$D$56:$D$64,MATCH(Dashboard!$H$103,Ranges!$E$56:$E$64,0),1) -> 0 | O131: =($J131*O$30/10^3)*INDEX(Ranges!$D$56:$D$64,MATCH(Dashboard!$H$103,Ranges!$E$56:$E$64,0),1) -> 5.60132593 | P131: =($J131*P$30/10^3)*INDEX(Ranges!$D$56:$D$64,MATCH(Dashboard!$H$103,Ranges!$E$56:$E$64,0),1) -> 11.20265186 | Q131: =($J131*Q$30/10^3)*INDEX(Ranges!$D$56:$D$64,MATCH(Dashboard!$H$103,Ranges!$E$56:$E$64,0),1) -> 16.80397779 | R131: =($J131*R$30/10^3)*INDEX(Ranges!$D$56:$D$64,MATCH(Dashboard!$H$103,Ranges!$E$56:$E$64,0),1) -> 22.40530372 | S131: =($J131*S$30/10^3)*INDEX(Ranges!$D$56:$D$64,MATCH(Dashboard!$H$103,Ranges!$E$56:$E$64,0),1) -> 28.00662965 | T131: =($J131*T$30/10^3)*INDEX(Ranges!$D$56:$D$64,MATCH(Dashboard!$H$103,Ranges!$E$56:$E$64,0),1) -> 33.60795558 | U131: =($J131*U$30/10^3)*INDEX(Ranges!$D$56:$D$64,MATCH(Dashboard!$H$103,Ranges!$E$56:$E$64,0),1) -> 39.20928151 | V131: =($J131*V$30/10^3)*INDEX(Ranges!$D$56:$D$64,MATCH(Dashboard!$H$103,Ranges!$E$56:$E$64,0),1) -> 44.81060744 | W131: =($J131*W$30/10^3)*INDEX(Ranges!$D$56:$D$64,MATCH(Dashboard!$H$103,Ranges!$E$56:$E$64,0),1) -> 50.41193337 | X131: =($J131*X$30/10^3)*INDEX(Ranges!$D$56:$D$64,MATCH(Dashboard!$H$103,Ranges!$E$56:$E$64,0),1) -> 56.0132593
C132: BWATotalCement | D132: BWA | E132: Total | F132: Cement | G132: 9.786 | H132: 97860 | I132: =INDEX(K132:M132,1,MATCH(Dashboard!$F$77,'Trade Data'!$K$30:$M$30,0)) -> 95.2504 | J132: =INDEX(K132:M132,1,MATCH(Dashboard!$F$103,'Trade Data'!$K$30:$M$30,0)) -> 87.5847 | K132: 87.5847 | L132: 7.6657 | M132: 95.2504 | N132: =($J132*N$30/10^3)*INDEX(Ranges!$D$56:$D$64,MATCH(Dashboard!$H$103,Ranges!$E$56:$E$64,0),1) -> 0 | O132: =($J132*O$30/10^3)*INDEX(Ranges!$D$56:$D$64,MATCH(Dashboard!$H$103,Ranges!$E$56:$E$64,0),1) -> 0.84957159 | P132: =($J132*P$30/10^3)*INDEX(Ranges!$D$56:$D$64,MATCH(Dashboard!$H$103,Ranges!$E$56:$E$64,0),1) -> 1.69914318 | Q132: =($J132*Q$30/10^3)*INDEX(Ranges!$D$56:$D$64,MATCH(Dashboard!$H$103,Ranges!$E$56:$E$64,0),1) -> 2.54871477 | R132: =($J132*R$30/10^3)*INDEX(Ranges!$D$56:$D$64,MATCH(Dashboard!$H$103,Ranges!$E$56:$E$64,0),1) -> 3.39828636 | S132: =($J132*S$30/10^3)*INDEX(Ranges!$D$56:$D$64,MATCH(Dashboard!$H$103,Ranges!$E$56:$E$64,0),1) -> 4.24785795 | T132: =($J132*T$30/10^3)*INDEX(Ranges!$D$56:$D$64,MATCH(Dashboard!$H$103,Ranges!$E$56:$E$64,0),1) -> 5.09742954 | U132: =($J132*U$30/10^3)*INDEX(Ranges!$D$56:$D$64,MATCH(Dashboard!$H$103,Ranges!$E$56:$E$64,0),1) -> 5.94700113 | V132: =($J132*V$30/10^3)*INDEX(Ranges!$D$56:$D$64,MATCH(Dashboard!$H$103,Ranges!$E$56:$E$64,0),1) -> 6.79657272 | W132: =($J132*W$30/10^3)*INDEX(Ranges!$D$56:$D$64,MATCH(Dashboard!$H$103,Ranges!$E$56:$E$64,0),1) -> 7.64614431 | X132: =($J132*X$30/10^3)*INDEX(Ranges!$D$56:$D$64,MATCH(Dashboard!$H$103,Ranges!$E$56:$E$64,0),1) -> 8.4957159
C133: BWATotalElectricity | D133: BWA | E133: Total | F133: Electricity | G133: 3.117 | H133: 19603.77358 | I133: =INDEX(K133:M133,1,MATCH(Dashboard!$F$77,'Trade Data'!$K$30:$M$30,0)) -> 9.429415094 | J133: =INDEX(K133:M133,1,MATCH(Dashboard!$F$103,'Trade Data'!$K$30:$M$30,0)) -> 9.429415094 | K133: 9.429415094 | L133: 0 | M133: 9.429415094 | N133: =($J133*N$30/10^3)*INDEX(Ranges!$D$56:$D$64,MATCH(Dashboard!$H$103,Ranges!$E$56:$E$64,0),1) -> 0 | O133: =($J133*O$30/10^3)*INDEX(Ranges!$D$56:$D$64,MATCH(Dashboard!$H$103,Ranges!$E$56:$E$64,0),1) -> 0.09146532642 | P133: =($J133*P$30/10^3)*INDEX(Ranges!$D$56:$D$64,MATCH(Dashboard!$H$103,Ranges!$E$56:$E$64,0),1) -> 0.1829306528 | Q133: =($J133*Q$30/10^3)*INDEX(Ranges!$D$56:$D$64,MATCH(Dashboard!$H$103,Ranges!$E$56:$E$64,0),1) -> 0.2743959792 | R133: =($J133*R$30/10^3)*INDEX(Ranges!$D$56:$D$64,MATCH(Dashboard!$H$103,Ranges!$E$56:$E$64,0),1) -> 0.3658613057 | S133: =($J133*S$30/10^3)*INDEX(Ranges!$D$56:$D$64,MATCH(Dashboard!$H$103,Ranges!$E$56:$E$64,0),1) -> 0.4573266321 | T133: =($J133*T$30/10^3)*INDEX(Ranges!$D$56:$D$64,MATCH(Dashboard!$H$103,Ranges!$E$56:$E$64,0),1) -> 0.5487919585 | U133: =($J133*U$30/10^3)*INDEX(Ranges!$D$56:$D$64,MATCH(Dashboard!$H$103,Ranges!$E$56:$E$64,0),1) -> 0.6402572849 | V133: =($J133*V$30/10^3)*INDEX(Ranges!$D$56:$D$64,MATCH(Dashboard!$H$103,Ranges!$E$56:$E$64,0),1) -> 0.7317226113 | W133: =($J133*W$30/10^3)*INDEX(Ranges!$D$56:$D$64,MATCH(Dashboard!$H$103,Ranges!$E$56:$E$64,0),1) -> 0.8231879377 | X133: =($J133*X$30/10^3)*INDEX(Ranges!$D$56:$D$64,MATCH(Dashboard!$H$103,Ranges!$E$56:$E$64,0),1) -> 0.9146532642
C134: BWATotalFertilizer | D134: BWA | E134: Total | F134: Fertilizer | G134: 409.894 | H134: 1366313.333 | I134: =INDEX(K134:M134,1,MATCH(Dashboard!$F$77,'Trade Data'!$K$30:$M$30,0)) -> 2395.967061 | J134: =INDEX(K134:M134,1,MATCH(Dashboard!$F$103,'Trade Data'!$K$30:$M$30,0)) -> 2276.824539 | K134: 2276.824539 | L134: 119.1425227 | M134: 2395.967061 | N134: =($J134*N$30/10^3)*INDEX(Ranges!$D$56:$D$64,MATCH(Dashboard!$H$103,Ranges!$E$56:$E$64,0),1) -> 0 | O134: =($J134*O$30/10^3)*INDEX(Ranges!$D$56:$D$64,MATCH(Dashboard!$H$103,Ranges!$E$56:$E$64,0),1) -> 22.08519803 | P134: =($J134*P$30/10^3)*INDEX(Ranges!$D$56:$D$64,MATCH(Dashboard!$H$103,Ranges!$E$56:$E$64,0),1) -> 44.17039605 | Q134: =($J134*Q$30/10^3)*INDEX(Ranges!$D$56:$D$64,MATCH(Dashboard!$H$103,Ranges!$E$56:$E$64,0),1) -> 66.25559408 | R134: =($J134*R$30/10^3)*INDEX(Ranges!$D$56:$D$64,MATCH(Dashboard!$H$103,Ranges!$E$56:$E$64,0),1) -> 88.3407921 | S134: =($J134*S$30/10^3)*INDEX(Ranges!$D$56:$D$64,MATCH(Dashboard!$H$103,Ranges!$E$56:$E$64,0),1) -> 110.4259901 | T134: =($J134*T$30/10^3)*INDEX(Ranges!$D$56:$D$64,MATCH(Dashboard!$H$103,Ranges!$E$56:$E$64,0),1) -> 132.5111882 | U134: =($J134*U$30/10^3)*INDEX(Ranges!$D$56:$D$64,MATCH(Dashboard!$H$103,Ranges!$E$56:$E$64,0),1) -> 154.5963862 | V134: =($J134*V$30/10^3)*INDEX(Ranges!$D$56:$D$64,MATCH(Dashboard!$H$103,Ranges!$E$56:$E$64,0),1) -> 176.6815842 | W134: =($J134*W$30/10^3)*INDEX(Ranges!$D$56:$D$64,MATCH(Dashboard!$H$103,Ranges!$E$56:$E$64,0),1) -> 198.7667822 | X134: =($J134*X$30/10^3)*INDEX(Ranges!$D$56:$D$64,MATCH(Dashboard!$H$103,Ranges!$E$56:$E$64,0),1) -> 220.8519803
C135: BWATotalIron & Steel | D135: BWA | E135: Total | F135: Iron & Steel | G135: 12075.59 | H135: 14206576.47 | I135: =INDEX(K135:M135,1,MATCH(Dashboard!$F$77,'Trade Data'!$K$30:$M$30,0)) -> 38693.89952 | J135: =INDEX(K135:M135,1,MATCH(Dashboard!$F$103,'Trade Data'!$K$30:$M$30,0)) -> 28674.3994 | K135: 28674.3994 | L135: 10019.50013 | M135: 38693.89952 | N135: =($J135*N$30/10^3)*INDEX(Ranges!$D$56:$D$64,MATCH(Dashboard!$H$103,Ranges!$E$56:$E$64,0),1) -> 0 | O135: =($J135*O$30/10^3)*INDEX(Ranges!$D$56:$D$64,MATCH(Dashboard!$H$103,Ranges!$E$56:$E$64,0),1) -> 278.1416742 | P135: =($J135*P$30/10^3)*INDEX(Ranges!$D$56:$D$64,MATCH(Dashboard!$H$103,Ranges!$E$56:$E$64,0),1) -> 556.2833484 | Q135: =($J135*Q$30/10^3)*INDEX(Ranges!$D$56:$D$64,MATCH(Dashboard!$H$103,Ranges!$E$56:$E$64,0),1) -> 834.4250225 | R135: =($J135*R$30/10^3)*INDEX(Ranges!$D$56:$D$64,MATCH(Dashboard!$H$103,Ranges!$E$56:$E$64,0),1) -> 1112.566697 | S135: =($J135*S$30/10^3)*INDEX(Ranges!$D$56:$D$64,MATCH(Dashboard!$H$103,Ranges!$E$56:$E$64,0),1) -> 1390.708371 | T135: =($J135*T$30/10^3)*INDEX(Ranges!$D$56:$D$64,MATCH(Dashboard!$H$103,Ranges!$E$56:$E$64,0),1) -> 1668.850045 | U135: =($J135*U$30/10^3)*INDEX(Ranges!$D$56:$D$64,MATCH(Dashboard!$H$103,Ranges!$E$56:$E$64,0),1) -> 1946.991719 | V135: =($J135*V$30/10^3)*INDEX(Ranges!$D$56:$D$64,MATCH(Dashboard!$H$103,Ranges!$E$56:$E$64,0),1) -> 2225.133393 | W135: =($J135*W$30/10^3)*INDEX(Ranges!$D$56:$D$64,MATCH(Dashboard!$H$103,Ranges!$E$56:$E$64,0),1) -> 2503.275068 | X135: =($J135*X$30/10^3)*INDEX(Ranges!$D$56:$D$64,MATCH(Dashboard!$H$103,Ranges!$E$56:$E$64,0),1) -> 2781.416742
C136: CAFTotalIron & Steel | D136: CAF | E136: Total | F136: Iron & Steel | G136: 1.103 | H136: 1297.647059 | I136: =INDEX(K136:M136,1,MATCH(Dashboard!$F$77,'Trade Data'!$K$30:$M$30,0)) -> 3.5343508 | J136: =INDEX(K136:M136,1,MATCH(Dashboard!$F$103,'Trade Data'!$K$30:$M$30,0)) -> 2.619156707 | K136: 2.619156707 | L136: 0.915194093 | M136: 3.5343508 | N136: =($J136*N$30/10^3)*INDEX(Ranges!$D$56:$D$64,MATCH(Dashboard!$H$103,Ranges!$E$56:$E$64,0),1) -> 0 | O136: =($J136*O$30/10^3)*INDEX(Ranges!$D$56:$D$64,MATCH(Dashboard!$H$103,Ranges!$E$56:$E$64,0),1) -> 0.02540582006 | P136: =($J136*P$30/10^3)*INDEX(Ranges!$D$56:$D$64,MATCH(Dashboard!$H$103,Ranges!$E$56:$E$64,0),1) -> 0.05081164011 | Q136: =($J136*Q$30/10^3)*INDEX(Ranges!$D$56:$D$64,MATCH(Dashboard!$H$103,Ranges!$E$56:$E$64,0),1) -> 0.07621746017 | R136: =($J136*R$30/10^3)*INDEX(Ranges!$D$56:$D$64,MATCH(Dashboard!$H$103,Ranges!$E$56:$E$64,0),1) -> 0.1016232802 | S136: =($J136*S$30/10^3)*INDEX(Ranges!$D$56:$D$64,MATCH(Dashboard!$H$103,Ranges!$E$56:$E$64,0),1) -> 0.1270291003 | T136: =($J136*T$30/10^3)*INDEX(Ranges!$D$56:$D$64,MATCH(Dashboard!$H$103,Ranges!$E$56:$E$64,0),1) -> 0.1524349203 | U136: =($J136*U$30/10^3)*INDEX(Ranges!$D$56:$D$64,MATCH(Dashboard!$H$103,Ranges!$E$56:$E$64,0),1) -> 0.1778407404 | V136: =($J136*V$30/10^3)*INDEX(Ranges!$D$56:$D$64,MATCH(Dashboard!$H$103,Ranges!$E$56:$E$64,0),1) -> 0.2032465605 | W136: =($J136*W$30/10^3)*INDEX(Ranges!$D$56:$D$64,MATCH(Dashboard!$H$103,Ranges!$E$56:$E$64,0),1) -> 0.2286523805 | X136: =($J136*X$30/10^3)*INDEX(Ranges!$D$56:$D$64,MATCH(Dashboard!$H$103,Ranges!$E$56:$E$64,0),1) -> 0.2540582006
C137: CANTotalAluminum | D137: CAN | E137: Total | F137: Aluminum | G137: 12522292.99 | H137: 4472247498 | I137: =INDEX(K137:M137,1,MATCH(Dashboard!$F$77,'Trade Data'!$K$30:$M$30,0)) -> 51760867.24 | J137: =INDEX(K137:M137,1,MATCH(Dashboard!$F$103,'Trade Data'!$K$30:$M$30,0)) -> 12060417.78 | K137: 12060417.78 | L137: 39700449.47 | M137: 51760867.24 | N137: =($J137*N$30/10^3)*INDEX(Ranges!$D$56:$D$64,MATCH(Dashboard!$H$103,Ranges!$E$56:$E$64,0),1) -> 0 | O137: =($J137*O$30/10^3)*INDEX(Ranges!$D$56:$D$64,MATCH(Dashboard!$H$103,Ranges!$E$56:$E$64,0),1) -> 116986.0524 | P137: =($J137*P$30/10^3)*INDEX(Ranges!$D$56:$D$64,MATCH(Dashboard!$H$103,Ranges!$E$56:$E$64,0),1) -> 233972.1049 | Q137: =($J137*Q$30/10^3)*INDEX(Ranges!$D$56:$D$64,MATCH(Dashboard!$H$103,Ranges!$E$56:$E$64,0),1) -> 350958.1573 | R137: =($J137*R$30/10^3)*INDEX(Ranges!$D$56:$D$64,MATCH(Dashboard!$H$103,Ranges!$E$56:$E$64,0),1) -> 467944.2098 | S137: =($J137*S$30/10^3)*INDEX(Ranges!$D$56:$D$64,MATCH(Dashboard!$H$103,Ranges!$E$56:$E$64,0),1) -> 584930.2622 | T137: =($J137*T$30/10^3)*INDEX(Ranges!$D$56:$D$64,MATCH(Dashboard!$H$103,Ranges!$E$56:$E$64,0),1) -> 701916.3146 | U137: =($J137*U$30/10^3)*INDEX(Ranges!$D$56:$D$64,MATCH(Dashboard!$H$103,Ranges!$E$56:$E$64,0),1) -> 818902.3671 | V137: =($J137*V$30/10^3)*INDEX(Ranges!$D$56:$D$64,MATCH(Dashboard!$H$103,Ranges!$E$56:$E$64,0),1) -> 935888.4195 | W137: =($J137*W$30/10^3)*INDEX(Ranges!$D$56:$D$64,MATCH(Dashboard!$H$103,Ranges!$E$56:$E$64,0),1) -> 1052874.472 | X137: =($J137*X$30/10^3)*INDEX(Ranges!$D$56:$D$64,MATCH(Dashboard!$H$103,Ranges!$E$56:$E$64,0),1) -> 1169860.524
C138: CANTotalCement | D138: CAN | E138: Total | F138: Cement | G138: 507701.191 | H138: 5077011910 | I138: =INDEX(K138:M138,1,MATCH(Dashboard!$F$77,'Trade Data'!$K$30:$M$30,0)) -> 4941624.926 | J138: =INDEX(K138:M138,1,MATCH(Dashboard!$F$103,'Trade Data'!$K$30:$M$30,0)) -> 4543925.659 | K138: 4543925.659 | L138: 397699.2663 | M138: 4941624.926 | N138: =($J138*N$30/10^3)*INDEX(Ranges!$D$56:$D$64,MATCH(Dashboard!$H$103,Ranges!$E$56:$E$64,0),1) -> 0 | O138: =($J138*O$30/10^3)*INDEX(Ranges!$D$56:$D$64,MATCH(Dashboard!$H$103,Ranges!$E$56:$E$64,0),1) -> 44076.0789 | P138: =($J138*P$30/10^3)*INDEX(Ranges!$D$56:$D$64,MATCH(Dashboard!$H$103,Ranges!$E$56:$E$64,0),1) -> 88152.15779 | Q138: =($J138*Q$30/10^3)*INDEX(Ranges!$D$56:$D$64,MATCH(Dashboard!$H$103,Ranges!$E$56:$E$64,0),1) -> 132228.2367 | R138: =($J138*R$30/10^3)*INDEX(Ranges!$D$56:$D$64,MATCH(Dashboard!$H$103,Ranges!$E$56:$E$64,0),1) -> 176304.3156 | S138: =($J138*S$30/10^3)*INDEX(Ranges!$D$56:$D$64,MATCH(Dashboard!$H$103,Ranges!$E$56:$E$64,0),1) -> 220380.3945 | T138: =($J138*T$30/10^3)*INDEX(Ranges!$D$56:$D$64,MATCH(Dashboard!$H$103,Ranges!$E$56:$E$64,0),1) -> 264456.4734 | U138: =($J138*U$30/10^3)*INDEX(Ranges!$D$56:$D$64,MATCH(Dashboard!$H$103,Ranges!$E$56:$E$64,0),1) -> 308532.5523 | V138: =($J138*V$30/10^3)*INDEX(Ranges!$D$56:$D$64,MATCH(Dashboard!$H$103,Ranges!$E$56:$E$64,0),1) -> 352608.6312 | W138: =($J138*W$30/10^3)*INDEX(Ranges!$D$56:$D$64,MATCH(Dashboard!$H$103,Ranges!$E$56:$E$64,0),1) -> 396684.7101 | X138: =($J138*X$30/10^3)*INDEX(Ranges!$D$56:$D$64,MATCH(Dashboard!$H$103,Ranges!$E$56:$E$64,0),1) -> 440760.789
C139: CANTotalElectricity | D139: CAN | E139: Total | F139: Electricity | G139: 4430864.5 | H139: 2.786707233e+10 | I139: =INDEX(K139:M139,1,MATCH(Dashboard!$F$77,'Trade Data'!$K$30:$M$30,0)) -> 13404061.79 | J139: =INDEX(K139:M139,1,MATCH(Dashboard!$F$103,'Trade Data'!$K$30:$M$30,0)) -> 13404061.79 | K139: 13404061.79 | L139: 0 | M139: 13404061.79 | N139: =($J139*N$30/10^3)*INDEX(Ranges!$D$56:$D$64,MATCH(Dashboard!$H$103,Ranges!$E$56:$E$64,0),1) -> 0 | O139: =($J139*O$30/10^3)*INDEX(Ranges!$D$56:$D$64,MATCH(Dashboard!$H$103,Ranges!$E$56:$E$64,0),1) -> 130019.3994 | P139: =($J139*P$30/10^3)*INDEX(Ranges!$D$56:$D$64,MATCH(Dashboard!$H$103,Ranges!$E$56:$E$64,0),1) -> 260038.7987 | Q139: =($J139*Q$30/10^3)*INDEX(Ranges!$D$56:$D$64,MATCH(Dashboard!$H$103,Ranges!$E$56:$E$64,0),1) -> 390058.1981 | R139: =($J139*R$30/10^3)*INDEX(Ranges!$D$56:$D$64,MATCH(Dashboard!$H$103,Ranges!$E$56:$E$64,0),1) -> 520077.5974 | S139: =($J139*S$30/10^3)*INDEX(Ranges!$D$56:$D$64,MATCH(Dashboard!$H$103,Ranges!$E$56:$E$64,0),1) -> 650096.9968 | T139: =($J139*T$30/10^3)*INDEX(Ranges!$D$56:$D$64,MATCH(Dashboard!$H$103,Ranges!$E$56:$E$64,0),1) -> 780116.3961 | U139: =($J139*U$30/10^3)*INDEX(Ranges!$D$56:$D$64,MATCH(Dashboard!$H$103,Ranges!$E$56:$E$64,0),1) -> 910135.7955 | V139: =($J139*V$30/10^3)*INDEX(Ranges!$D$56:$D$64,MATCH(Dashboard!$H$103,Ranges!$E$56:$E$64,0),1) -> 1040155.195 | W139: =($J139*W$30/10^3)*INDEX(Ranges!$D$56:$D$64,MATCH(Dashboard!$H$103,Ranges!$E$56:$E$64,0),1) -> 1170174.594 | X139: =($J139*X$30/10^3)*INDEX(Ranges!$D$56:$D$64,MATCH(Dashboard!$H$103,Ranges!$E$56:$E$64,0),1) -> 1300193.994
C140: CANTotalFertilizer | D140: CAN | E140: Total | F140: Fertilizer | G140: 2128184.51 | H140: 7093948367 | I140: =INDEX(K140:M140,1,MATCH(Dashboard!$F$77,'Trade Data'!$K$30:$M$30,0)) -> 12439947.86 | J140: =INDEX(K140:M140,1,MATCH(Dashboard!$F$103,'Trade Data'!$K$30:$M$30,0)) -> 11821355.56 | K140: 11821355.56 | L140: 618592.2976 | M140: 12439947.86 | N140: =($J140*N$30/10^3)*INDEX(Ranges!$D$56:$D$64,MATCH(Dashboard!$H$103,Ranges!$E$56:$E$64,0),1) -> 0 | O140: =($J140*O$30/10^3)*INDEX(Ranges!$D$56:$D$64,MATCH(Dashboard!$H$103,Ranges!$E$56:$E$64,0),1) -> 114667.1489 | P140: =($J140*P$30/10^3)*INDEX(Ranges!$D$56:$D$64,MATCH(Dashboard!$H$103,Ranges!$E$56:$E$64,0),1) -> 229334.2978 | Q140: =($J140*Q$30/10^3)*INDEX(Ranges!$D$56:$D$64,MATCH(Dashboard!$H$103,Ranges!$E$56:$E$64,0),1) -> 344001.4467 | R140: =($J140*R$30/10^3)*INDEX(Ranges!$D$56:$D$64,MATCH(Dashboard!$H$103,Ranges!$E$56:$E$64,0),1) -> 458668.5957 | S140: =($J140*S$30/10^3)*INDEX(Ranges!$D$56:$D$64,MATCH(Dashboard!$H$103,Ranges!$E$56:$E$64,0),1) -> 573335.7446 | T140: =($J140*T$30/10^3)*INDEX(Ranges!$D$56:$D$64,MATCH(Dashboard!$H$103,Ranges!$E$56:$E$64,0),1) -> 688002.8935 | U140: =($J140*U$30/10^3)*INDEX(Ranges!$D$56:$D$64,MATCH(Dashboard!$H$103,Ranges!$E$56:$E$64,0),1) -> 802670.0424 | V140: =($J140*V$30/10^3)*INDEX(Ranges!$D$56:$D$64,MATCH(Dashboard!$H$103,Ranges!$E$56:$E$64,0),1) -> 917337.1913 | W140: =($J140*W$30/10^3)*INDEX(Ranges!$D$56:$D$64,MATCH(Dashboard!$H$103,Ranges!$E$56:$E$64,0),1) -> 1032004.34 | X140: =($J140*X$30/10^3)*INDEX(Ranges!$D$56:$D$64,MATCH(Dashboard!$H$103,Ranges!$E$56:$E$64,0),1) -> 1146671.489
C141: CANTotalHydrogen | D141: CAN | E141: Total | F141: Hydrogen | G141: 53876.023 | H141: 8065272.904 | I141: =INDEX(K141:M141,1,MATCH(Dashboard!$F$77,'Trade Data'!$K$30:$M$30,0)) -> 83878.8382 | J141: =INDEX(K141:M141,1,MATCH(Dashboard!$F$103,'Trade Data'!$K$30:$M$30,0)) -> 83878.8382 | K141: 83878.8382 | L141: 0 | M141: 83878.8382 | N141: =($J141*N$30/10^3)*INDEX(Ranges!$D$56:$D$64,MATCH(Dashboard!$H$103,Ranges!$E$56:$E$64,0),1) -> 0 | O141: =($J141*O$30/10^3)*INDEX(Ranges!$D$56:$D$64,MATCH(Dashboard!$H$103,Ranges!$E$56:$E$64,0),1) -> 813.6247306 | P141: =($J141*P$30/10^3)*INDEX(Ranges!$D$56:$D$64,MATCH(Dashboard!$H$103,Ranges!$E$56:$E$64,0),1) -> 1627.249461 | Q141: =($J141*Q$30/10^3)*INDEX(Ranges!$D$56:$D$64,MATCH(Dashboard!$H$103,Ranges!$E$56:$E$64,0),1) -> 2440.874192 | R141: =($J141*R$30/10^3)*INDEX(Ranges!$D$56:$D$64,MATCH(Dashboard!$H$103,Ranges!$E$56:$E$64,0),1) -> 3254.498922 | S141: =($J141*S$30/10^3)*INDEX(Ranges!$D$56:$D$64,MATCH(Dashboard!$H$103,Ranges!$E$56:$E$64,0),1) -> 4068.123653 | T141: =($J141*T$30/10^3)*INDEX(Ranges!$D$56:$D$64,MATCH(Dashboard!$H$103,Ranges!$E$56:$E$64,0),1) -> 4881.748383 | U141: =($J141*U$30/10^3)*INDEX(Ranges!$D$56:$D$64,MATCH(Dashboard!$H$103,Ranges!$E$56:$E$64,0),1) -> 5695.373114 | V141: =($J141*V$30/10^3)*INDEX(Ranges!$D$56:$D$64,MATCH(Dashboard!$H$103,Ranges!$E$56:$E$64,0),1) -> 6508.997845 | W141: =($J141*W$30/10^3)*INDEX(Ranges!$D$56:$D$64,MATCH(Dashboard!$H$103,Ranges!$E$56:$E$64,0),1) -> 7322.622575 | X141: =($J141*X$30/10^3)*INDEX(Ranges!$D$56:$D$64,MATCH(Dashboard!$H$103,Ranges!$E$56:$E$64,0),1) -> 8136.247306
C142: CANTotalIron & Steel | D142: CAN | E142: Total | F142: Iron & Steel | G142: 15791591.37 | H142: 1.857834279e+10 | I142: =INDEX(K142:M142,1,MATCH(Dashboard!$F$77,'Trade Data'!$K$30:$M$30,0)) -> 50601109.34 | J142: =INDEX(K142:M142,1,MATCH(Dashboard!$F$103,'Trade Data'!$K$30:$M$30,0)) -> 37498324.98 | K142: 37498324.98 | L142: 13102784.36 | M142: 50601109.34 | N142: =($J142*N$30/10^3)*INDEX(Ranges!$D$56:$D$64,MATCH(Dashboard!$H$103,Ranges!$E$56:$E$64,0),1) -> 0 | O142: =($J142*O$30/10^3)*INDEX(Ranges!$D$56:$D$64,MATCH(Dashboard!$H$103,Ranges!$E$56:$E$64,0),1) -> 363733.7523 | P142: =($J142*P$30/10^3)*INDEX(Ranges!$D$56:$D$64,MATCH(Dashboard!$H$103,Ranges!$E$56:$E$64,0),1) -> 727467.5047 | Q142: =($J142*Q$30/10^3)*INDEX(Ranges!$D$56:$D$64,MATCH(Dashboard!$H$103,Ranges!$E$56:$E$64,0),1) -> 1091201.257 | R142: =($J142*R$30/10^3)*INDEX(Ranges!$D$56:$D$64,MATCH(Dashboard!$H$103,Ranges!$E$56:$E$64,0),1) -> 1454935.009 | S142: =($J142*S$30/10^3)*INDEX(Ranges!$D$56:$D$64,MATCH(Dashboard!$H$103,Ranges!$E$56:$E$64,0),1) -> 1818668.762 | T142: =($J142*T$30/10^3)*INDEX(Ranges!$D$56:$D$64,MATCH(Dashboard!$H$103,Ranges!$E$56:$E$64,0),1) -> 2182402.514 | U142: =($J142*U$30/10^3)*INDEX(Ranges!$D$56:$D$64,MATCH(Dashboard!$H$103,Ranges!$E$56:$E$64,0),1) -> 2546136.266 | V142: =($J142*V$30/10^3)*INDEX(Ranges!$D$56:$D$64,MATCH(Dashboard!$H$103,Ranges!$E$56:$E$64,0),1) -> 2909870.019 | W142: =($J142*W$30/10^3)*INDEX(Ranges!$D$56:$D$64,MATCH(Dashboard!$H$103,Ranges!$E$56:$E$64,0),1) -> 3273603.771 | X142: =($J142*X$30/10^3)*INDEX(Ranges!$D$56:$D$64,MATCH(Dashboard!$H$103,Ranges!$E$56:$E$64,0),1) -> 3637337.523
C143: CHETotalAluminum | D143: CHE | E143: Total | F143: Aluminum | G143: 2683870.456 | H143: 958525162.9 | I143: =INDEX(K143:M143,1,MATCH(Dashboard!$F$77,'Trade Data'!$K$30:$M$30,0)) -> 11093771.92 | J143: =INDEX(K143:M143,1,MATCH(Dashboard!$F$103,'Trade Data'!$K$30:$M$30,0)) -> 2584877.943 | K143: 2584877.943 | L143: 8508893.976 | M143: 11093771.92 | N143: =($J143*N$30/10^3)*INDEX(Ranges!$D$56:$D$64,MATCH(Dashboard!$H$103,Ranges!$E$56:$E$64,0),1) -> 0 | O143: =($J143*O$30/10^3)*INDEX(Ranges!$D$56:$D$64,MATCH(Dashboard!$H$103,Ranges!$E$56:$E$64,0),1) -> 25073.31605 | P143: =($J143*P$30/10^3)*INDEX(Ranges!$D$56:$D$64,MATCH(Dashboard!$H$103,Ranges!$E$56:$E$64,0),1) -> 50146.6321 | Q143: =($J143*Q$30/10^3)*INDEX(Ranges!$D$56:$D$64,MATCH(Dashboard!$H$103,Ranges!$E$56:$E$64,0),1) -> 75219.94816 | R143: =($J143*R$30/10^3)*INDEX(Ranges!$D$56:$D$64,MATCH(Dashboard!$H$103,Ranges!$E$56:$E$64,0),1) -> 100293.2642 | S143: =($J143*S$30/10^3)*INDEX(Ranges!$D$56:$D$64,MATCH(Dashboard!$H$103,Ranges!$E$56:$E$64,0),1) -> 125366.5803 | T143: =($J143*T$30/10^3)*INDEX(Ranges!$D$56:$D$64,MATCH(Dashboard!$H$103,Ranges!$E$56:$E$64,0),1) -> 150439.8963 | U143: =($J143*U$30/10^3)*INDEX(Ranges!$D$56:$D$64,MATCH(Dashboard!$H$103,Ranges!$E$56:$E$64,0),1) -> 175513.2124 | V143: =($J143*V$30/10^3)*INDEX(Ranges!$D$56:$D$64,MATCH(Dashboard!$H$103,Ranges!$E$56:$E$64,0),1) -> 200586.5284 | W143: =($J143*W$30/10^3)*INDEX(Ranges!$D$56:$D$64,MATCH(Dashboard!$H$103,Ranges!$E$56:$E$64,0),1) -> 225659.8445 | X143: =($J143*X$30/10^3)*INDEX(Ranges!$D$56:$D$64,MATCH(Dashboard!$H$103,Ranges!$E$56:$E$64,0),1) -> 250733.1605
C144: CHETotalCement | D144: CHE | E144: Total | F144: Cement | G144: 10940.727 | H144: 109407270 | I144: =INDEX(K144:M144,1,MATCH(Dashboard!$F$77,'Trade Data'!$K$30:$M$30,0)) -> 106489.7428 | J144: =INDEX(K144:M144,1,MATCH(Dashboard!$F$103,'Trade Data'!$K$30:$M$30,0)) -> 97919.50665 | K144: 97919.50665 | L144: 8570.23615 | M144: 106489.7428 | N144: =($J144*N$30/10^3)*INDEX(Ranges!$D$56:$D$64,MATCH(Dashboard!$H$103,Ranges!$E$56:$E$64,0),1) -> 0 | O144: =($J144*O$30/10^3)*INDEX(Ranges!$D$56:$D$64,MATCH(Dashboard!$H$103,Ranges!$E$56:$E$64,0),1) -> 949.8192145 | P144: =($J144*P$30/10^3)*INDEX(Ranges!$D$56:$D$64,MATCH(Dashboard!$H$103,Ranges!$E$56:$E$64,0),1) -> 1899.638429 | Q144: =($J144*Q$30/10^3)*INDEX(Ranges!$D$56:$D$64,MATCH(Dashboard!$H$103,Ranges!$E$56:$E$64,0),1) -> 2849.457644 | R144: =($J144*R$30/10^3)*INDEX(Ranges!$D$56:$D$64,MATCH(Dashboard!$H$103,Ranges!$E$56:$E$64,0),1) -> 3799.276858 | S144: =($J144*S$30/10^3)*INDEX(Ranges!$D$56:$D$64,MATCH(Dashboard!$H$103,Ranges!$E$56:$E$64,0),1) -> 4749.096073 | T144: =($J144*T$30/10^3)*INDEX(Ranges!$D$56:$D$64,MATCH(Dashboard!$H$103,Ranges!$E$56:$E$64,0),1) -> 5698.915287 | U144: =($J144*U$30/10^3)*INDEX(Ranges!$D$56:$D$64,MATCH(Dashboard!$H$103,Ranges!$E$56:$E$64,0),1) -> 6648.734502 | V144: =($J144*V$30/10^3)*INDEX(Ranges!$D$56:$D$64,MATCH(Dashboard!$H$103,Ranges!$E$56:$E$64,0),1) -> 7598.553716 | W144: =($J144*W$30/10^3)*INDEX(Ranges!$D$56:$D$64,MATCH(Dashboard!$H$103,Ranges!$E$56:$E$64,0),1) -> 8548.372931 | X144: =($J144*X$30/10^3)*INDEX(Ranges!$D$56:$D$64,MATCH(Dashboard!$H$103,Ranges!$E$56:$E$64,0),1) -> 9498.192145
C145: CHETotalElectricity | D145: CHE | E145: Total | F145: Electricity | G145: 8817807 | H145: 5.545790566e+10 | I145: =INDEX(K145:M145,1,MATCH(Dashboard!$F$77,'Trade Data'!$K$30:$M$30,0)) -> 26675252.62 | J145: =INDEX(K145:M145,1,MATCH(Dashboard!$F$103,'Trade Data'!$K$30:$M$30,0)) -> 26675252.62 | K145: 26675252.62 | L145: 0 | M145: 26675252.62 | N145: =($J145*N$30/10^3)*INDEX(Ranges!$D$56:$D$64,MATCH(Dashboard!$H$103,Ranges!$E$56:$E$64,0),1) -> 0 | O145: =($J145*O$30/10^3)*INDEX(Ranges!$D$56:$D$64,MATCH(Dashboard!$H$103,Ranges!$E$56:$E$64,0),1) -> 258749.9504 | P145: =($J145*P$30/10^3)*INDEX(Ranges!$D$56:$D$64,MATCH(Dashboard!$H$103,Ranges!$E$56:$E$64,0),1) -> 517499.9009 | Q145: =($J145*Q$30/10^3)*INDEX(Ranges!$D$56:$D$64,MATCH(Dashboard!$H$103,Ranges!$E$56:$E$64,0),1) -> 776249.8513 | R145: =($J145*R$30/10^3)*INDEX(Ranges!$D$56:$D$64,MATCH(Dashboard!$H$103,Ranges!$E$56:$E$64,0),1) -> 1034999.802 | S145: =($J145*S$30/10^3)*INDEX(Ranges!$D$56:$D$64,MATCH(Dashboard!$H$103,Ranges!$E$56:$E$64,0),1) -> 1293749.752 | T145: =($J145*T$30/10^3)*INDEX(Ranges!$D$56:$D$64,MATCH(Dashboard!$H$103,Ranges!$E$56:$E$64,0),1) -> 1552499.703 | U145: =($J145*U$30/10^3)*INDEX(Ranges!$D$56:$D$64,MATCH(Dashboard!$H$103,Ranges!$E$56:$E$64,0),1) -> 1811249.653 | V145: =($J145*V$30/10^3)*INDEX(Ranges!$D$56:$D$64,MATCH(Dashboard!$H$103,Ranges!$E$56:$E$64,0),1) -> 2069999.604 | W145: =($J145*W$30/10^3)*INDEX(Ranges!$D$56:$D$64,MATCH(Dashboard!$H$103,Ranges!$E$56:$E$64,0),1) -> 2328749.554 | X145: =($J145*X$30/10^3)*INDEX(Ranges!$D$56:$D$64,MATCH(Dashboard!$H$103,Ranges!$E$56:$E$64,0),1) -> 2587499.504
C146: CHETotalFertilizer | D146: CHE | E146: Total | F146: Fertilizer | G146: 16067.329 | H146: 53557763.33 | I146: =INDEX(K146:M146,1,MATCH(Dashboard!$F$77,'Trade Data'!$K$30:$M$30,0)) -> 93918.89378 | J146: =INDEX(K146:M146,1,MATCH(Dashboard!$F$103,'Trade Data'!$K$30:$M$30,0)) -> 89248.65682 | K146: 89248.65682 | L146: 4670.236963 | M146: 93918.89378 | N146: =($J146*N$30/10^3)*INDEX(Ranges!$D$56:$D$64,MATCH(Dashboard!$H$103,Ranges!$E$56:$E$64,0),1) -> 0 | O146: =($J146*O$30/10^3)*INDEX(Ranges!$D$56:$D$64,MATCH(Dashboard!$H$103,Ranges!$E$56:$E$64,0),1) -> 865.7119711 | P146: =($J146*P$30/10^3)*INDEX(Ranges!$D$56:$D$64,MATCH(Dashboard!$H$103,Ranges!$E$56:$E$64,0),1) -> 1731.423942 | Q146: =($J146*Q$30/10^3)*INDEX(Ranges!$D$56:$D$64,MATCH(Dashboard!$H$103,Ranges!$E$56:$E$64,0),1) -> 2597.135913 | R146: =($J146*R$30/10^3)*INDEX(Ranges!$D$56:$D$64,MATCH(Dashboard!$H$103,Ranges!$E$56:$E$64,0),1) -> 3462.847885 | S146: =($J146*S$30/10^3)*INDEX(Ranges!$D$56:$D$64,MATCH(Dashboard!$H$103,Ranges!$E$56:$E$64,0),1) -> 4328.559856 | T146: =($J146*T$30/10^3)*INDEX(Ranges!$D$56:$D$64,MATCH(Dashboard!$H$103,Ranges!$E$56:$E$64,0),1) -> 5194.271827 | U146: =($J146*U$30/10^3)*INDEX(Ranges!$D$56:$D$64,MATCH(Dashboard!$H$103,Ranges!$E$56:$E$64,0),1) -> 6059.983798 | V146: =($J146*V$30/10^3)*INDEX(Ranges!$D$56:$D$64,MATCH(Dashboard!$H$103,Ranges!$E$56:$E$64,0),1) -> 6925.695769 | W146: =($J146*W$30/10^3)*INDEX(Ranges!$D$56:$D$64,MATCH(Dashboard!$H$103,Ranges!$E$56:$E$64,0),1) -> 7791.40774 | X146: =($J146*X$30/10^3)*INDEX(Ranges!$D$56:$D$64,MATCH(Dashboard!$H$103,Ranges!$E$56:$E$64,0),1) -> 8657.119711
C147: CHETotalHydrogen | D147: CHE | E147: Total | F147: Hydrogen | G147: 181.577 | H147: 27182.18563 | I147: =INDEX(K147:M147,1,MATCH(Dashboard!$F$77,'Trade Data'!$K$30:$M$30,0)) -> 282.6947305 | J147: =INDEX(K147:M147,1,MATCH(Dashboard!$F$103,'Trade Data'!$K$30:$M$30,0)) -> 282.6947305 | K147: 282.6947305 | L147: 0 | M147: 282.6947305 | N147: =($J147*N$30/10^3)*INDEX(Ranges!$D$56:$D$64,MATCH(Dashboard!$H$103,Ranges!$E$56:$E$64,0),1) -> 0 | O147: =($J147*O$30/10^3)*INDEX(Ranges!$D$56:$D$64,MATCH(Dashboard!$H$103,Ranges!$E$56:$E$64,0),1) -> 2.742138886 | P147: =($J147*P$30/10^3)*INDEX(Ranges!$D$56:$D$64,MATCH(Dashboard!$H$103,Ranges!$E$56:$E$64,0),1) -> 5.484277772 | Q147: =($J147*Q$30/10^3)*INDEX(Ranges!$D$56:$D$64,MATCH(Dashboard!$H$103,Ranges!$E$56:$E$64,0),1) -> 8.226416659 | R147: =($J147*R$30/10^3)*INDEX(Ranges!$D$56:$D$64,MATCH(Dashboard!$H$103,Ranges!$E$56:$E$64,0),1) -> 10.96855554 | S147: =($J147*S$30/10^3)*INDEX(Ranges!$D$56:$D$64,MATCH(Dashboard!$H$103,Ranges!$E$56:$E$64,0),1) -> 13.71069443 | T147: =($J147*T$30/10^3)*INDEX(Ranges!$D$56:$D$64,MATCH(Dashboard!$H$103,Ranges!$E$56:$E$64,0),1) -> 16.45283332 | U147: =($J147*U$30/10^3)*INDEX(Ranges!$D$56:$D$64,MATCH(Dashboard!$H$103,Ranges!$E$56:$E$64,0),1) -> 19.1949722 | V147: =($J147*V$30/10^3)*INDEX(Ranges!$D$56:$D$64,MATCH(Dashboard!$H$103,Ranges!$E$56:$E$64,0),1) -> 21.93711109 | W147: =($J147*W$30/10^3)*INDEX(Ranges!$D$56:$D$64,MATCH(Dashboard!$H$103,Ranges!$E$56:$E$64,0),1) -> 24.67924998 | X147: =($J147*X$30/10^3)*INDEX(Ranges!$D$56:$D$64,MATCH(Dashboard!$H$103,Ranges!$E$56:$E$64,0),1) -> 27.42138886
C148: CHETotalIron & Steel | D148: CHE | E148: Total | F148: Iron & Steel | G148: 4148504.63 | H148: 4880593682 | I148: =INDEX(K148:M148,1,MATCH(Dashboard!$F$77,'Trade Data'!$K$30:$M$30,0)) -> 13293083.1 | J148: =INDEX(K148:M148,1,MATCH(Dashboard!$F$103,'Trade Data'!$K$30:$M$30,0)) -> 9850937.194 | K148: 9850937.194 | L148: 3442145.904 | M148: 13293083.1 | N148: =($J148*N$30/10^3)*INDEX(Ranges!$D$56:$D$64,MATCH(Dashboard!$H$103,Ranges!$E$56:$E$64,0),1) -> 0 | O148: =($J148*O$30/10^3)*INDEX(Ranges!$D$56:$D$64,MATCH(Dashboard!$H$103,Ranges!$E$56:$E$64,0),1) -> 95554.09078 | P148: =($J148*P$30/10^3)*INDEX(Ranges!$D$56:$D$64,MATCH(Dashboard!$H$103,Ranges!$E$56:$E$64,0),1) -> 191108.1816 | Q148: =($J148*Q$30/10^3)*INDEX(Ranges!$D$56:$D$64,MATCH(Dashboard!$H$103,Ranges!$E$56:$E$64,0),1) -> 286662.2723 | R148: =($J148*R$30/10^3)*INDEX(Ranges!$D$56:$D$64,MATCH(Dashboard!$H$103,Ranges!$E$56:$E$64,0),1) -> 382216.3631 | S148: =($J148*S$30/10^3)*INDEX(Ranges!$D$56:$D$64,MATCH(Dashboard!$H$103,Ranges!$E$56:$E$64,0),1) -> 477770.4539 | T148: =($J148*T$30/10^3)*INDEX(Ranges!$D$56:$D$64,MATCH(Dashboard!$H$103,Ranges!$E$56:$E$64,0),1) -> 573324.5447 | U148: =($J148*U$30/10^3)*INDEX(Ranges!$D$56:$D$64,MATCH(Dashboard!$H$103,Ranges!$E$56:$E$64,0),1) -> 668878.6355 | V148: =($J148*V$30/10^3)*INDEX(Ranges!$D$56:$D$64,MATCH(Dashboard!$H$103,Ranges!$E$56:$E$64,0),1) -> 764432.7263 | W148: =($J148*W$30/10^3)*INDEX(Ranges!$D$56:$D$64,MATCH(Dashboard!$H$103,Ranges!$E$56:$E$64,0),1) -> 859986.817 | X148: =($J148*X$30/10^3)*INDEX(Ranges!$D$56:$D$64,MATCH(Dashboard!$H$103,Ranges!$E$56:$E$64,0),1) -> 955540.9078
C149: CHLTotalAluminum | D149: CHL | E149: Total | F149: Aluminum | G149: 89158.161 | H149: 31842200.36 | I149: =INDEX(K149:M149,1,MATCH(Dashboard!$F$77,'Trade Data'!$K$30:$M$30,0)) -> 368535.0389 | J149: =INDEX(K149:M149,1,MATCH(Dashboard!$F$103,'Trade Data'!$K$30:$M$30,0)) -> 85869.63031 | K149: 85869.63031 | L149: 282665.4086 | M149: 368535.0389 | N149: =($J149*N$30/10^3)*INDEX(Ranges!$D$56:$D$64,MATCH(Dashboard!$H$103,Ranges!$E$56:$E$64,0),1) -> 0 | O149: =($J149*O$30/10^3)*INDEX(Ranges!$D$56:$D$64,MATCH(Dashboard!$H$103,Ranges!$E$56:$E$64,0),1) -> 832.935414 | P149: =($J149*P$30/10^3)*INDEX(Ranges!$D$56:$D$64,MATCH(Dashboard!$H$103,Ranges!$E$56:$E$64,0),1) -> 1665.870828 | Q149: =($J149*Q$30/10^3)*INDEX(Ranges!$D$56:$D$64,MATCH(Dashboard!$H$103,Ranges!$E$56:$E$64,0),1) -> 2498.806242 | R149: =($J149*R$30/10^3)*INDEX(Ranges!$D$56:$D$64,MATCH(Dashboard!$H$103,Ranges!$E$56:$E$64,0),1) -> 3331.741656 | S149: =($J149*S$30/10^3)*INDEX(Ranges!$D$56:$D$64,MATCH(Dashboard!$H$103,Ranges!$E$56:$E$64,0),1) -> 4164.67707 | T149: =($J149*T$30/10^3)*INDEX(Ranges!$D$56:$D$64,MATCH(Dashboard!$H$103,Ranges!$E$56:$E$64,0),1) -> 4997.612484 | U149: =($J149*U$30/10^3)*INDEX(Ranges!$D$56:$D$64,MATCH(Dashboard!$H$103,Ranges!$E$56:$E$64,0),1) -> 5830.547898 | V149: =($J149*V$30/10^3)*INDEX(Ranges!$D$56:$D$64,MATCH(Dashboard!$H$103,Ranges!$E$56:$E$64,0),1) -> 6663.483312 | W149: =($J149*W$30/10^3)*INDEX(Ranges!$D$56:$D$64,MATCH(Dashboard!$H$103,Ranges!$E$56:$E$64,0),1) -> 7496.418726 | X149: =($J149*X$30/10^3)*INDEX(Ranges!$D$56:$D$64,MATCH(Dashboard!$H$103,Ranges!$E$56:$E$64,0),1) -> 8329.35414
C150: CHLTotalCement | D150: CHL | E150: Total | F150: Cement | G150: 4214.989 | H150: 42149890 | I150: =INDEX(K150:M150,1,MATCH(Dashboard!$F$77,'Trade Data'!$K$30:$M$30,0)) -> 41025.89293 | J150: =INDEX(K150:M150,1,MATCH(Dashboard!$F$103,'Trade Data'!$K$30:$M$30,0)) -> 37724.15155 | K150: 37724.15155 | L150: 3301.741383 | M150: 41025.89293 | N150: =($J150*N$30/10^3)*INDEX(Ranges!$D$56:$D$64,MATCH(Dashboard!$H$103,Ranges!$E$56:$E$64,0),1) -> 0 | O150: =($J150*O$30/10^3)*INDEX(Ranges!$D$56:$D$64,MATCH(Dashboard!$H$103,Ranges!$E$56:$E$64,0),1) -> 365.92427 | P150: =($J150*P$30/10^3)*INDEX(Ranges!$D$56:$D$64,MATCH(Dashboard!$H$103,Ranges!$E$56:$E$64,0),1) -> 731.8485401 | Q150: =($J150*Q$30/10^3)*INDEX(Ranges!$D$56:$D$64,MATCH(Dashboard!$H$103,Ranges!$E$56:$E$64,0),1) -> 1097.77281 | R150: =($J150*R$30/10^3)*INDEX(Ranges!$D$56:$D$64,MATCH(Dashboard!$H$103,Ranges!$E$56:$E$64,0),1) -> 1463.69708 | S150: =($J150*S$30/10^3)*INDEX(Ranges!$D$56:$D$64,MATCH(Dashboard!$H$103,Ranges!$E$56:$E$64,0),1) -> 1829.62135 | T150: =($J150*T$30/10^3)*INDEX(Ranges!$D$56:$D$64,MATCH(Dashboard!$H$103,Ranges!$E$56:$E$64,0),1) -> 2195.54562 | U150: =($J150*U$30/10^3)*INDEX(Ranges!$D$56:$D$64,MATCH(Dashboard!$H$103,Ranges!$E$56:$E$64,0),1) -> 2561.46989 | V150: =($J150*V$30/10^3)*INDEX(Ranges!$D$56:$D$64,MATCH(Dashboard!$H$103,Ranges!$E$56:$E$64,0),1) -> 2927.39416 | W150: =($J150*W$30/10^3)*INDEX(Ranges!$D$56:$D$64,MATCH(Dashboard!$H$103,Ranges!$E$56:$E$64,0),1) -> 3293.31843 | X150: =($J150*X$30/10^3)*INDEX(Ranges!$D$56:$D$64,MATCH(Dashboard!$H$103,Ranges!$E$56:$E$64,0),1) -> 3659.2427
C151: CHLTotalFertilizer | D151: CHL | E151: Total | F151: Fertilizer | G151: 1145558.287 | H151: 3818527623 | I151: =INDEX(K151:M151,1,MATCH(Dashboard!$F$77,'Trade Data'!$K$30:$M$30,0)) -> 6696170.04 | J151: =INDEX(K151:M151,1,MATCH(Dashboard!$F$103,'Trade Data'!$K$30:$M$30,0)) -> 6363194.432 | K151: 6363194.432 | L151: 332975.6088 | M151: 6696170.04 | N151: =($J151*N$30/10^3)*INDEX(Ranges!$D$56:$D$64,MATCH(Dashboard!$H$103,Ranges!$E$56:$E$64,0),1) -> 0 | O151: =($J151*O$30/10^3)*INDEX(Ranges!$D$56:$D$64,MATCH(Dashboard!$H$103,Ranges!$E$56:$E$64,0),1) -> 61722.98599 | P151: =($J151*P$30/10^3)*INDEX(Ranges!$D$56:$D$64,MATCH(Dashboard!$H$103,Ranges!$E$56:$E$64,0),1) -> 123445.972 | Q151: =($J151*Q$30/10^3)*INDEX(Ranges!$D$56:$D$64,MATCH(Dashboard!$H$103,Ranges!$E$56:$E$64,0),1) -> 185168.958 | R151: =($J151*R$30/10^3)*INDEX(Ranges!$D$56:$D$64,MATCH(Dashboard!$H$103,Ranges!$E$56:$E$64,0),1) -> 246891.9439 | S151: =($J151*S$30/10^3)*INDEX(Ranges!$D$56:$D$64,MATCH(Dashboard!$H$103,Ranges!$E$56:$E$64,0),1) -> 308614.9299 | T151: =($J151*T$30/10^3)*INDEX(Ranges!$D$56:$D$64,MATCH(Dashboard!$H$103,Ranges!$E$56:$E$64,0),1) -> 370337.9159 | U151: =($J151*U$30/10^3)*INDEX(Ranges!$D$56:$D$64,MATCH(Dashboard!$H$103,Ranges!$E$56:$E$64,0),1) -> 432060.9019 | V151: =($J151*V$30/10^3)*INDEX(Ranges!$D$56:$D$64,MATCH(Dashboard!$H$103,Ranges!$E$56:$E$64,0),1) -> 493783.8879 | W151: =($J151*W$30/10^3)*INDEX(Ranges!$D$56:$D$64,MATCH(Dashboard!$H$103,Ranges!$E$56:$E$64,0),1) -> 555506.8739 | X151: =($J151*X$30/10^3)*INDEX(Ranges!$D$56:$D$64,MATCH(Dashboard!$H$103,Ranges!$E$56:$E$64,0),1) -> 617229.8599
C152: CHLTotalHydrogen | D152: CHL | E152: Total | F152: Hydrogen | G152: 14.715 | H152: 2202.844311 | I152: =INDEX(K152:M152,1,MATCH(Dashboard!$F$77,'Trade Data'!$K$30:$M$30,0)) -> 22.90958084 | J152: =INDEX(K152:M152,1,MATCH(Dashboard!$F$103,'Trade Data'!$K$30:$M$30,0)) -> 22.90958084 | K152: 22.90958084 | L152: 0 | M152: 22.90958084 | N152: =($J152*N$30/10^3)*INDEX(Ranges!$D$56:$D$64,MATCH(Dashboard!$H$103,Ranges!$E$56:$E$64,0),1) -> 0 | O152: =($J152*O$30/10^3)*INDEX(Ranges!$D$56:$D$64,MATCH(Dashboard!$H$103,Ranges!$E$56:$E$64,0),1) -> 0.2222229341 | P152: =($J152*P$30/10^3)*INDEX(Ranges!$D$56:$D$64,MATCH(Dashboard!$H$103,Ranges!$E$56:$E$64,0),1) -> 0.4444458683 | Q152: =($J152*Q$30/10^3)*INDEX(Ranges!$D$56:$D$64,MATCH(Dashboard!$H$103,Ranges!$E$56:$E$64,0),1) -> 0.6666688024 | R152: =($J152*R$30/10^3)*INDEX(Ranges!$D$56:$D$64,MATCH(Dashboard!$H$103,Ranges!$E$56:$E$64,0),1) -> 0.8888917365 | S152: =($J152*S$30/10^3)*INDEX(Ranges!$D$56:$D$64,MATCH(Dashboard!$H$103,Ranges!$E$56:$E$64,0),1) -> 1.111114671 | T152: =($J152*T$30/10^3)*INDEX(Ranges!$D$56:$D$64,MATCH(Dashboard!$H$103,Ranges!$E$56:$E$64,0),1) -> 1.333337605 | U152: =($J152*U$30/10^3)*INDEX(Ranges!$D$56:$D$64,MATCH(Dashboard!$H$103,Ranges!$E$56:$E$64,0),1) -> 1.555560539 | V152: =($J152*V$30/10^3)*INDEX(Ranges!$D$56:$D$64,MATCH(Dashboard!$H$103,Ranges!$E$56:$E$64,0),1) -> 1.777783473 | W152: =($J152*W$30/10^3)*INDEX(Ranges!$D$56:$D$64,MATCH(Dashboard!$H$103,Ranges!$E$56:$E$64,0),1) -> 2.000006407 | X152: =($J152*X$30/10^3)*INDEX(Ranges!$D$56:$D$64,MATCH(Dashboard!$H$103,Ranges!$E$56:$E$64,0),1) -> 2.222229341
C153: CHLTotalIron & Steel | D153: CHL | E153: Total | F153: Iron & Steel | G153: 917364.407 | H153: 1079252244 | I153: =INDEX(K153:M153,1,MATCH(Dashboard!$F$77,'Trade Data'!$K$30:$M$30,0)) -> 2939517.34 | J153: =INDEX(K153:M153,1,MATCH(Dashboard!$F$103,'Trade Data'!$K$30:$M$30,0)) -> 2178350.988 | K153: 2178350.988 | L153: 761166.3522 | M153: 2939517.34 | N153: =($J153*N$30/10^3)*INDEX(Ranges!$D$56:$D$64,MATCH(Dashboard!$H$103,Ranges!$E$56:$E$64,0),1) -> 0 | O153: =($J153*O$30/10^3)*INDEX(Ranges!$D$56:$D$64,MATCH(Dashboard!$H$103,Ranges!$E$56:$E$64,0),1) -> 21130.00458 | P153: =($J153*P$30/10^3)*INDEX(Ranges!$D$56:$D$64,MATCH(Dashboard!$H$103,Ranges!$E$56:$E$64,0),1) -> 42260.00916 | Q153: =($J153*Q$30/10^3)*INDEX(Ranges!$D$56:$D$64,MATCH(Dashboard!$H$103,Ranges!$E$56:$E$64,0),1) -> 63390.01374 | R153: =($J153*R$30/10^3)*INDEX(Ranges!$D$56:$D$64,MATCH(Dashboard!$H$103,Ranges!$E$56:$E$64,0),1) -> 84520.01832 | S153: =($J153*S$30/10^3)*INDEX(Ranges!$D$56:$D$64,MATCH(Dashboard!$H$103,Ranges!$E$56:$E$64,0),1) -> 105650.0229 | T153: =($J153*T$30/10^3)*INDEX(Ranges!$D$56:$D$64,MATCH(Dashboard!$H$103,Ranges!$E$56:$E$64,0),1) -> 126780.0275 | U153: =($J153*U$30/10^3)*INDEX(Ranges!$D$56:$D$64,MATCH(Dashboard!$H$103,Ranges!$E$56:$E$64,0),1) -> 147910.0321 | V153: =($J153*V$30/10^3)*INDEX(Ranges!$D$56:$D$64,MATCH(Dashboard!$H$103,Ranges!$E$56:$E$64,0),1) -> 169040.0366 | W153: =($J153*W$30/10^3)*INDEX(Ranges!$D$56:$D$64,MATCH(Dashboard!$H$103,Ranges!$E$56:$E$64,0),1) -> 190170.0412 | X153: =($J153*X$30/10^3)*INDEX(Ranges!$D$56:$D$64,MATCH(Dashboard!$H$103,Ranges!$E$56:$E$64,0),1) -> 211300.0458
C154: CHNTotalAluminum | D154: CHN | E154: Total | F154: Aluminum | G154: 38593255.43 | H154: 1.378330551e+10 | I154: =INDEX(K154:M154,1,MATCH(Dashboard!$F$77,'Trade Data'!$K$30:$M$30,0)) -> 159525126.3 | J154: =INDEX(K154:M154,1,MATCH(Dashboard!$F$103,'Trade Data'!$K$30:$M$30,0)) -> 37169772.68 | K154: 37169772.68 | L154: 122355353.6 | M154: 159525126.3 | N154: =($J154*N$30/10^3)*INDEX(Ranges!$D$56:$D$64,MATCH(Dashboard!$H$103,Ranges!$E$56:$E$64,0),1) -> 0 | O154: =($J154*O$30/10^3)*INDEX(Ranges!$D$56:$D$64,MATCH(Dashboard!$H$103,Ranges!$E$56:$E$64,0),1) -> 360546.7949 | P154: =($J154*P$30/10^3)*INDEX(Ranges!$D$56:$D$64,MATCH(Dashboard!$H$103,Ranges!$E$56:$E$64,0),1) -> 721093.5899 | Q154: =($J154*Q$30/10^3)*INDEX(Ranges!$D$56:$D$64,MATCH(Dashboard!$H$103,Ranges!$E$56:$E$64,0),1) -> 1081640.385 | R154: =($J154*R$30/10^3)*INDEX(Ranges!$D$56:$D$64,MATCH(Dashboard!$H$103,Ranges!$E$56:$E$64,0),1) -> 1442187.18 | S154: =($J154*S$30/10^3)*INDEX(Ranges!$D$56:$D$64,MATCH(Dashboard!$H$103,Ranges!$E$56:$E$64,0),1) -> 1802733.975 | T154: =($J154*T$30/10^3)*INDEX(Ranges!$D$56:$D$64,MATCH(Dashboard!$H$103,Ranges!$E$56:$E$64,0),1) -> 2163280.77 | U154: =($J154*U$30/10^3)*INDEX(Ranges!$D$56:$D$64,MATCH(Dashboard!$H$103,Ranges!$E$56:$E$64,0),1) -> 2523827.565 | V154: =($J154*V$30/10^3)*INDEX(Ranges!$D$56:$D$64,MATCH(Dashboard!$H$103,Ranges!$E$56:$E$64,0),1) -> 2884374.36 | W154: =($J154*W$30/10^3)*INDEX(Ranges!$D$56:$D$64,MATCH(Dashboard!$H$103,Ranges!$E$56:$E$64,0),1) -> 3244921.155 | X154: =($J154*X$30/10^3)*INDEX(Ranges!$D$56:$D$64,MATCH(Dashboard!$H$103,Ranges!$E$56:$E$64,0),1) -> 3605467.949
C155: CHNTotalCement | D155: CHN | E155: Total | F155: Cement | G155: 428360.762 | H155: 4283607620 | I155: =INDEX(K155:M155,1,MATCH(Dashboard!$F$77,'Trade Data'!$K$30:$M$30,0)) -> 4169378.083 | J155: =INDEX(K155:M155,1,MATCH(Dashboard!$F$103,'Trade Data'!$K$30:$M$30,0)) -> 3833828.82 | K155: 3833828.82 | L155: 335549.2636 | M155: 4169378.083 | N155: =($J155*N$30/10^3)*INDEX(Ranges!$D$56:$D$64,MATCH(Dashboard!$H$103,Ranges!$E$56:$E$64,0),1) -> 0 | O155: =($J155*O$30/10^3)*INDEX(Ranges!$D$56:$D$64,MATCH(Dashboard!$H$103,Ranges!$E$56:$E$64,0),1) -> 37188.13955 | P155: =($J155*P$30/10^3)*INDEX(Ranges!$D$56:$D$64,MATCH(Dashboard!$H$103,Ranges!$E$56:$E$64,0),1) -> 74376.27911 | Q155: =($J155*Q$30/10^3)*INDEX(Ranges!$D$56:$D$64,MATCH(Dashboard!$H$103,Ranges!$E$56:$E$64,0),1) -> 111564.4187 | R155: =($J155*R$30/10^3)*INDEX(Ranges!$D$56:$D$64,MATCH(Dashboard!$H$103,Ranges!$E$56:$E$64,0),1) -> 148752.5582 | S155: =($J155*S$30/10^3)*INDEX(Ranges!$D$56:$D$64,MATCH(Dashboard!$H$103,Ranges!$E$56:$E$64,0),1) -> 185940.6978 | T155: =($J155*T$30/10^3)*INDEX(Ranges!$D$56:$D$64,MATCH(Dashboard!$H$103,Ranges!$E$56:$E$64,0),1) -> 223128.8373 | U155: =($J155*U$30/10^3)*INDEX(Ranges!$D$56:$D$64,MATCH(Dashboard!$H$103,Ranges!$E$56:$E$64,0),1) -> 260316.9769 | V155: =($J155*V$30/10^3)*INDEX(Ranges!$D$56:$D$64,MATCH(Dashboard!$H$103,Ranges!$E$56:$E$64,0),1) -> 297505.1164 | W155: =($J155*W$30/10^3)*INDEX(Ranges!$D$56:$D$64,MATCH(Dashboard!$H$103,Ranges!$E$56:$E$64,0),1) -> 334693.256 | X155: =($J155*X$30/10^3)*INDEX(Ranges!$D$56:$D$64,MATCH(Dashboard!$H$103,Ranges!$E$56:$E$64,0),1) -> 371881.3955
C156: CHNTotalElectricity | D156: CHN | E156: Total | F156: Electricity | G156: 1577454.375 | H156: 9921096698 | I156: =INDEX(K156:M156,1,MATCH(Dashboard!$F$77,'Trade Data'!$K$30:$M$30,0)) -> 4772047.512 | J156: =INDEX(K156:M156,1,MATCH(Dashboard!$F$103,'Trade Data'!$K$30:$M$30,0)) -> 4772047.512 | K156: 4772047.512 | L156: 0 | M156: 4772047.512 | N156: =($J156*N$30/10^3)*INDEX(Ranges!$D$56:$D$64,MATCH(Dashboard!$H$103,Ranges!$E$56:$E$64,0),1) -> 0 | O156: =($J156*O$30/10^3)*INDEX(Ranges!$D$56:$D$64,MATCH(Dashboard!$H$103,Ranges!$E$56:$E$64,0),1) -> 46288.86086 | P156: =($J156*P$30/10^3)*INDEX(Ranges!$D$56:$D$64,MATCH(Dashboard!$H$103,Ranges!$E$56:$E$64,0),1) -> 92577.72173 | Q156: =($J156*Q$30/10^3)*INDEX(Ranges!$D$56:$D$64,MATCH(Dashboard!$H$103,Ranges!$E$56:$E$64,0),1) -> 138866.5826 | R156: =($J156*R$30/10^3)*INDEX(Ranges!$D$56:$D$64,MATCH(Dashboard!$H$103,Ranges!$E$56:$E$64,0),1) -> 185155.4435 | S156: =($J156*S$30/10^3)*INDEX(Ranges!$D$56:$D$64,MATCH(Dashboard!$H$103,Ranges!$E$56:$E$64,0),1) -> 231444.3043 | T156: =($J156*T$30/10^3)*INDEX(Ranges!$D$56:$D$64,MATCH(Dashboard!$H$103,Ranges!$E$56:$E$64,0),1) -> 277733.1652 | U156: =($J156*U$30/10^3)*INDEX(Ranges!$D$56:$D$64,MATCH(Dashboard!$H$103,Ranges!$E$56:$E$64,0),1) -> 324022.0261 | V156: =($J156*V$30/10^3)*INDEX(Ranges!$D$56:$D$64,MATCH(Dashboard!$H$103,Ranges!$E$56:$E$64,0),1) -> 370310.8869 | W156: =($J156*W$30/10^3)*INDEX(Ranges!$D$56:$D$64,MATCH(Dashboard!$H$103,Ranges!$E$56:$E$64,0),1) -> 416599.7478 | X156: =($J156*X$30/10^3)*INDEX(Ranges!$D$56:$D$64,MATCH(Dashboard!$H$103,Ranges!$E$56:$E$64,0),1) -> 462888.6086
C157: CHNTotalFertilizer | D157: CHN | E157: Total | F157: Fertilizer | G157: 10952373.3 | H157: 3.650791101e+10 | I157: =INDEX(K157:M157,1,MATCH(Dashboard!$F$77,'Trade Data'!$K$30:$M$30,0)) -> 64020272.74 | J157: =INDEX(K157:M157,1,MATCH(Dashboard!$F$103,'Trade Data'!$K$30:$M$30,0)) -> 60836782.9 | K157: 60836782.9 | L157: 3183489.84 | M157: 64020272.74 | N157: =($J157*N$30/10^3)*INDEX(Ranges!$D$56:$D$64,MATCH(Dashboard!$H$103,Ranges!$E$56:$E$64,0),1) -> 0 | O157: =($J157*O$30/10^3)*INDEX(Ranges!$D$56:$D$64,MATCH(Dashboard!$H$103,Ranges!$E$56:$E$64,0),1) -> 590116.7941 | P157: =($J157*P$30/10^3)*INDEX(Ranges!$D$56:$D$64,MATCH(Dashboard!$H$103,Ranges!$E$56:$E$64,0),1) -> 1180233.588 | Q157: =($J157*Q$30/10^3)*INDEX(Ranges!$D$56:$D$64,MATCH(Dashboard!$H$103,Ranges!$E$56:$E$64,0),1) -> 1770350.382 | R157: =($J157*R$30/10^3)*INDEX(Ranges!$D$56:$D$64,MATCH(Dashboard!$H$103,Ranges!$E$56:$E$64,0),1) -> 2360467.177 | S157: =($J157*S$30/10^3)*INDEX(Ranges!$D$56:$D$64,MATCH(Dashboard!$H$103,Ranges!$E$56:$E$64,0),1) -> 2950583.971 | T157: =($J157*T$30/10^3)*INDEX(Ranges!$D$56:$D$64,MATCH(Dashboard!$H$103,Ranges!$E$56:$E$64,0),1) -> 3540700.765 | U157: =($J157*U$30/10^3)*INDEX(Ranges!$D$56:$D$64,MATCH(Dashboard!$H$103,Ranges!$E$56:$E$64,0),1) -> 4130817.559 | V157: =($J157*V$30/10^3)*INDEX(Ranges!$D$56:$D$64,MATCH(Dashboard!$H$103,Ranges!$E$56:$E$64,0),1) -> 4720934.353 | W157: =($J157*W$30/10^3)*INDEX(Ranges!$D$56:$D$64,MATCH(Dashboard!$H$103,Ranges!$E$56:$E$64,0),1) -> 5311051.147 | X157: =($J157*X$30/10^3)*INDEX(Ranges!$D$56:$D$64,MATCH(Dashboard!$H$103,Ranges!$E$56:$E$64,0),1) -> 5901167.941
C158: CHNTotalHydrogen | D158: CHN | E158: Total | F158: Hydrogen | G158: 971.374 | H158: 145415.2695 | I158: =INDEX(K158:M158,1,MATCH(Dashboard!$F$77,'Trade Data'!$K$30:$M$30,0)) -> 1512.318802 | J158: =INDEX(K158:M158,1,MATCH(Dashboard!$F$103,'Trade Data'!$K$30:$M$30,0)) -> 1512.318802 | K158: 1512.318802 | L158: 0 | M158: 1512.318802 | N158: =($J158*N$30/10^3)*INDEX(Ranges!$D$56:$D$64,MATCH(Dashboard!$H$103,Ranges!$E$56:$E$64,0),1) -> 0 | O158: =($J158*O$30/10^3)*INDEX(Ranges!$D$56:$D$64,MATCH(Dashboard!$H$103,Ranges!$E$56:$E$64,0),1) -> 14.66949238 | P158: =($J158*P$30/10^3)*INDEX(Ranges!$D$56:$D$64,MATCH(Dashboard!$H$103,Ranges!$E$56:$E$64,0),1) -> 29.33898477 | Q158: =($J158*Q$30/10^3)*INDEX(Ranges!$D$56:$D$64,MATCH(Dashboard!$H$103,Ranges!$E$56:$E$64,0),1) -> 44.00847715 | R158: =($J158*R$30/10^3)*INDEX(Ranges!$D$56:$D$64,MATCH(Dashboard!$H$103,Ranges!$E$56:$E$64,0),1) -> 58.67796953 | S158: =($J158*S$30/10^3)*INDEX(Ranges!$D$56:$D$64,MATCH(Dashboard!$H$103,Ranges!$E$56:$E$64,0),1) -> 73.34746192 | T158: =($J158*T$30/10^3)*INDEX(Ranges!$D$56:$D$64,MATCH(Dashboard!$H$103,Ranges!$E$56:$E$64,0),1) -> 88.0169543 | U158: =($J158*U$30/10^3)*INDEX(Ranges!$D$56:$D$64,MATCH(Dashboard!$H$103,Ranges!$E$56:$E$64,0),1) -> 102.6864467 | V158: =($J158*V$30/10^3)*INDEX(Ranges!$D$56:$D$64,MATCH(Dashboard!$H$103,Ranges!$E$56:$E$64,0),1) -> 117.3559391 | W158: =($J158*W$30/10^3)*INDEX(Ranges!$D$56:$D$64,MATCH(Dashboard!$H$103,Ranges!$E$56:$E$64,0),1) -> 132.0254314 | X158: =($J158*X$30/10^3)*INDEX(Ranges!$D$56:$D$64,MATCH(Dashboard!$H$103,Ranges!$E$56:$E$64,0),1) -> 146.6949238
C159: CHNTotalIron & Steel | D159: CHN | E159: Total | F159: Iron & Steel | G159: 150403439.3 | H159: =(G159*1000/INDEX($D$23:$D$28,MATCH(F159,$C$23:$C$28,0),1)) -> 1.769452227e+11 | I159: =INDEX(K159:M159,1,MATCH(Dashboard!$F$77,'Trade Data'!$K$30:$M$30,0)) -> 481938817.7 | J159: =INDEX(K159:M159,1,MATCH(Dashboard!$F$103,'Trade Data'!$K$30:$M$30,0)) -> 357144312.5 | K159: =H159*INDEX($E$23:$E$28,MATCH(F159,$C$23:$C$28,0),1)/10^3 -> 357144312.5 | L159: =H159*INDEX($F$23:$F$28,MATCH(F159,$C$23:$C$28,0),1)/10^3 -> 124794505.2 | M159: 481938817.7 | N159: =($J159*N$30/10^3)*INDEX(Ranges!$D$56:$D$64,MATCH(Dashboard!$H$103,Ranges!$E$56:$E$64,0),1) -> 0 | O159: =($J159*O$30/10^3)*INDEX(Ranges!$D$56:$D$64,MATCH(Dashboard!$H$103,Ranges!$E$56:$E$64,0),1) -> 3464299.832 | P159: =($J159*P$30/10^3)*INDEX(Ranges!$D$56:$D$64,MATCH(Dashboard!$H$103,Ranges!$E$56:$E$64,0),1) -> 6928599.663 | Q159: =($J159*Q$30/10^3)*INDEX(Ranges!$D$56:$D$64,MATCH(Dashboard!$H$103,Ranges!$E$56:$E$64,0),1) -> 10392899.49 | R159: =($J159*R$30/10^3)*INDEX(Ranges!$D$56:$D$64,MATCH(Dashboard!$H$103,Ranges!$E$56:$E$64,0),1) -> 13857199.33 | S159: =($J159*S$30/10^3)*INDEX(Ranges!$D$56:$D$64,MATCH(Dashboard!$H$103,Ranges!$E$56:$E$64,0),1) -> 17321499.16 | T159: =($J159*T$30/10^3)*INDEX(Ranges!$D$56:$D$64,MATCH(Dashboard!$H$103,Ranges!$E$56:$E$64,0),1) -> 20785798.99 | U159: =($J159*U$30/10^3)*INDEX(Ranges!$D$56:$D$64,MATCH(Dashboard!$H$103,Ranges!$E$56:$E$64,0),1) -> 24250098.82 | V159: =($J159*V$30/10^3)*INDEX(Ranges!$D$56:$D$64,MATCH(Dashboard!$H$103,Ranges!$E$56:$E$64,0),1) -> 27714398.65 | W159: =($J159*W$30/10^3)*INDEX(Ranges!$D$56:$D$64,MATCH(Dashboard!$H$103,Ranges!$E$56:$E$64,0),1) -> 31178698.48 | X159: =($J159*X$30/10^3)*INDEX(Ranges!$D$56:$D$64,MATCH(Dashboard!$H$103,Ranges!$E$56:$E$64,0),1) -> 34642998.32
C160: =D160&E160&F160 -> CIVTotalAluminum | D160: CIV | E160: Total | F160: Aluminum | G160: 1433.869 | H160: 512096.0714 | I160: =INDEX(K160:M160,1,MATCH(Dashboard!$F$77,'Trade Data'!$K$30:$M$30,0)) -> 5926.89398 | J160: =INDEX(K160:M160,1,MATCH(Dashboard!$F$103,'Trade Data'!$K$30:$M$30,0)) -> 1380.981837 | K160: 1380.981837 | L160: 4545.912143 | M160: =K160+L160 -> 5926.89398 | N160: =($J160*N$30/10^3)*INDEX(Ranges!$D$56:$D$64,MATCH(Dashboard!$H$103,Ranges!$E$56:$E$64,0),1) -> 0 | O160: =($J160*O$30/10^3)*INDEX(Ranges!$D$56:$D$64,MATCH(Dashboard!$H$103,Ranges!$E$56:$E$64,0),1) -> 13.39552382 | P160: =($J160*P$30/10^3)*INDEX(Ranges!$D$56:$D$64,MATCH(Dashboard!$H$103,Ranges!$E$56:$E$64,0),1) -> 26.79104763 | Q160: =($J160*Q$30/10^3)*INDEX(Ranges!$D$56:$D$64,MATCH(Dashboard!$H$103,Ranges!$E$56:$E$64,0),1) -> 40.18657145 | R160: =($J160*R$30/10^3)*INDEX(Ranges!$D$56:$D$64,MATCH(Dashboard!$H$103,Ranges!$E$56:$E$64,0),1) -> 53.58209527 | S160: =($J160*S$30/10^3)*INDEX(Ranges!$D$56:$D$64,MATCH(Dashboard!$H$103,Ranges!$E$56:$E$64,0),1) -> 66.97761908 | T160: =($J160*T$30/10^3)*INDEX(Ranges!$D$56:$D$64,MATCH(Dashboard!$H$103,Ranges!$E$56:$E$64,0),1) -> 80.3731429 | U160: =($J160*U$30/10^3)*INDEX(Ranges!$D$56:$D$64,MATCH(Dashboard!$H$103,Ranges!$E$56:$E$64,0),1) -> 93.76866672 | V160: =($J160*V$30/10^3)*INDEX(Ranges!$D$56:$D$64,MATCH(Dashboard!$H$103,Ranges!$E$56:$E$64,0),1) -> 107.1641905 | W160: =($J160*W$30/10^3)*INDEX(Ranges!$D$56:$D$64,MATCH(Dashboard!$H$103,Ranges!$E$56:$E$64,0),1) -> 120.5597143 | X160: =($J160*X$30/10^3)*INDEX(Ranges!$D$56:$D$64,MATCH(Dashboard!$H$103,Ranges!$E$56:$E$64,0),1) -> 133.9552382
C161: CIVTotalCement | D161: CIV | E161: Total | F161: Cement | G161: 10721.445 | H161: 107214450 | I161: =INDEX(K161:M161,1,MATCH(Dashboard!$F$77,'Trade Data'!$K$30:$M$30,0)) -> 104355.398 | J161: =INDEX(K161:M161,1,MATCH(Dashboard!$F$103,'Trade Data'!$K$30:$M$30,0)) -> 95956.93275 | K161: 95956.93275 | L161: 8398.46525 | M161: 104355.398 | N161: =($J161*N$30/10^3)*INDEX(Ranges!$D$56:$D$64,MATCH(Dashboard!$H$103,Ranges!$E$56:$E$64,0),1) -> 0 | O161: =($J161*O$30/10^3)*INDEX(Ranges!$D$56:$D$64,MATCH(Dashboard!$H$103,Ranges!$E$56:$E$64,0),1) -> 930.7822477 | P161: =($J161*P$30/10^3)*INDEX(Ranges!$D$56:$D$64,MATCH(Dashboard!$H$103,Ranges!$E$56:$E$64,0),1) -> 1861.564495 | Q161: =($J161*Q$30/10^3)*INDEX(Ranges!$D$56:$D$64,MATCH(Dashboard!$H$103,Ranges!$E$56:$E$64,0),1) -> 2792.346743 | R161: =($J161*R$30/10^3)*INDEX(Ranges!$D$56:$D$64,MATCH(Dashboard!$H$103,Ranges!$E$56:$E$64,0),1) -> 3723.128991 | S161: =($J161*S$30/10^3)*INDEX(Ranges!$D$56:$D$64,MATCH(Dashboard!$H$103,Ranges!$E$56:$E$64,0),1) -> 4653.911238 | T161: =($J161*T$30/10^3)*INDEX(Ranges!$D$56:$D$64,MATCH(Dashboard!$H$103,Ranges!$E$56:$E$64,0),1) -> 5584.693486 | U161: =($J161*U$30/10^3)*INDEX(Ranges!$D$56:$D$64,MATCH(Dashboard!$H$103,Ranges!$E$56:$E$64,0),1) -> 6515.475734 | V161: =($J161*V$30/10^3)*INDEX(Ranges!$D$56:$D$64,MATCH(Dashboard!$H$103,Ranges!$E$56:$E$64,0),1) -> 7446.257981 | W161: =($J161*W$30/10^3)*INDEX(Ranges!$D$56:$D$64,MATCH(Dashboard!$H$103,Ranges!$E$56:$E$64,0),1) -> 8377.040229 | X161: =($J161*X$30/10^3)*INDEX(Ranges!$D$56:$D$64,MATCH(Dashboard!$H$103,Ranges!$E$56:$E$64,0),1) -> 9307.822477
